Workbook

Sheet LDC Info
AA3: Algoma Power Inc.
AA4: Atikokan Hydro Inc.
AA5: Attawapiskat Power Corporation
AA6: Bluewater Power Distribution Corporation
AA7: Brant County Power Inc.
AA8: Brantford Power Inc.
AA9: Burlington Hydro Inc.
AA10: Cambridge and North Dumfries Hydro Inc.
AA11: Canadian Niagara Power Inc.
AA12: Centre Wellington Hydro Ltd.
AA13: Chapleau Public Utilities Corporation
D14: Utility Name | E14: Wasaga Distribution Inc. | AA14: COLLUS PowerStream Corp.
AA15: Cooperative Hydro Embrun Inc.
D16: Assigned EB Number | E16: EB-2015-0107 | AA16: E.L.K. Energy Inc.
AA17: Enersource Hydro Mississauga Inc.
D18: Name of Contact and Title | E18: Joanne Tackaberry, Director of Finance | AA18: Entegrus Powerlines Inc.
AA19: EnWin Utilities Ltd.
D20: Phone Number | E20: 705-429-2517 | AA20: Erie Thames Powerlines Corporation
AA21: Espanola Regional Hydro Distribution Corporation
D22: Email Address | E22: j.tackaberry@wasagadist.ca | AA22: Essex Powerlines Corporation
AA23: Festival Hydro Inc.
D24: Test Year | E24: 2016 | AA24: Fort Albany Power Corporation
AA25: Fort Frances Power Corporation
D26: Bridge Year | E26: =IF(ISBLANK(E24), "", E24-1) -> 2015 | AA26: Greater Sudbury Hydro Inc.
AA27: Grimsby Power Inc.
D28: Last Rebasing Year | E28: 2012 | AA28: Guelph Hydro Electric Systems Inc.
AA29: Haldimand County Hydro Inc.
A30: Identify the accounting standard used for the test year | AA30: Halton Hills Hydro Inc.
E31: MIFRS | AA31: Hearst Power Distribution Company Limited
AA32: Horizon Utilities Corporation
A33: Did you update your depreciation and capitalization policies? | AA33: Hydro 2000 Inc.
E34: No | AA34: Hydro Hawkesbury Inc.
AA35: Hydro One Brampton Networks Inc.
A36: When did you update your depreciation and capitalization policies? | AA36: Hydro One Networks Inc.
E37: 2001-01-01 | AA37: Hydro One Remote Communities Inc.
AA38: Hydro Ottawa Limited
A39: Identify the year that the applicant has adopted or is expected to adopt IFRS for financial reporting purposes | AA39: Innpower Corporation
E40: 2015 or Later | AA40: Kashechewan Power Corporation
AA41: Kenora Hydro Electric Corporation Ltd.
AA42: Kingston Hydro Corporation
A43: Are you applying for cost recovery for the test and/or future year(s) for Green Energy initiatives? | AA43: Kitchener-Wilmot Hydro Inc.
E44: No | AA44: Lakefront Utilities Inc.
AA45: Lakeland Power Distribution Ltd.
A46: ="Is " & E14 & " an embedded distributor?" -> Is Wasaga Distribution Inc. an embedded distributor? | E46: Yes | AA46: London Hydro Inc.
AA47: Midland Power Utility Corporation
AA48: Milton Hydro Distribution Inc.
B49: Notes | AA49: Newmarket-Tay Power Distribution Ltd.
AA50: Niagara Peninsula Energy Inc.
C51: Pale green cells represent input cells. | AA51: Niagara-on-the-Lake Hydro Inc.
AA52: Norfolk Power Distribution Inc.
C53: Pale blue cells represent drop-down lists. The applicant should select the appropriate item from the drop-down list. | AA53: North Bay Hydro Distribution Limited
AA54: Northern Ontario Wires Inc.
C55: White cells contain fixed values, automatically generated values or formulae. | AA55: Oakville Hydro Electricity Distribution Inc.
AA56: Orangeville Hydro Limited
AA57: Orillia Power Distribution Corporation
AA58: Oshawa PUC Networks Inc.
AA59: Ottawa River Power Corporation
AA60: Peterborough Distribution Incorporated
AA61: PowerStream Inc.
AA62: PUC Distribution Inc.
AA63: Renfrew Hydro Inc.
AA64: Rideau St. Lawrence Distribution Inc.
AA65: Sioux Lookout Hydro Inc.
AA66: St. Thomas Energy Inc.
AA67: Thunder Bay Hydro Electricity Distribution Inc.
AA68: Tillsonburg Hydro Inc.
AA69: Toronto Hydro-Electric System Limited
AA70: Veridian Connections Inc.
AA71: Wasaga Distribution Inc.
AA72: Waterloo North Hydro Inc.
AA73: Welland Hydro-Electric System Corp.
AA74: Wellington North Power Inc.
AA75: West Coast Huron Energy Inc.
AA76: Westario Power Inc.
AA77: Whitby Hydro Electric Corporation
AA78: Woodstock Hydro Services Inc.

Sheet Index
A15: 1 | B15: LDC Information Sheet | E15: 28 | F15: App.2-G: Service Reliability Indicators
A16: 2 | B16: Index | E16: 29 | F16: App.2-H: Other Operating Revenue
A17: 3 | B17: Cost of Service Application Flowchart | E17: 30 | F17: App.2-I: Load Forecast CDM Adjustment Workform
A18: 4 | B18: List of Key References | E18: 31 | F18: App.2-IA: Actual and Forecast Load and Customer Data
A19: 5 | B19: App.2-AA: Capital Projects Table | E19: 32 | F19: App.2-JA: OM&A Summary Analysis
A20: 6 | B20: App.2-AB: Capital Expenditures | E20: 33 | F20: App.2-JB: Recoverable OM&A Cost Driver Table
A21: 7 | B21: App. 2-AC: Customer Engagement Worksheet | E21: 34 | F21: App.2-JC: OM&A Programs Table
A22: 8 | B22: App.2-B: General Accounting Instructions | E22: 35 | F22: App.2-K: Employee Costs
A23: 9 | B23: App.2-BA: Fixed Asset Continuity Schedule | E23: 36 | F23: App.2-L: Recoverable OM&A Cost per Customer and per FTE
A24: 10 | B24: Appendix 2-BB: Service Life Comparison | E24: 37 | F24: App.2-M: Regulatory Costs Schedule
A25: 11 | B25: App.2-CA: 2012 Depreciation and Amortization Expense (Old CGAAP) | E25: 38 | F25: App.2-N: Shared Servcies and Corporate Cost Allocation
A26: 12 | B26: App.2-CB: 2012 Depreciation and Amortization Expense (New CGAAP) | E26: 39 | F26: App.2-OA: Capital Structure and Cost of Capital
A27: 13 | B27: App.2-CC: 2013 Depreciation and Amortization Expense (New CGAAP) | E27: 40 | F27: App.2-OB: Debt Instruments
A28: 14 | B28: App.2-CD: 2014 Depreciation and Amortization Expense (MIFRS) | E28: 41 | F28: App.2-P: Cost Allocation
A29: 15 | B29: App.2-CE: 2015 Depreciation and Amortization Expense (MIFRS) | E29: 42 | F29: App.2-PA: New Rate Design Policy For Residential Customers
A30: 16 | B30: App.2-CF: 2015 Depreciation and Amortization Expense (MIFRS) | E30: 43 | F30: App.2-Q: Cost of Serving Embedded Distributor(s)
A31: 17 | B31: App.2-CG: 2013 Depreciation and Amortization Expense (Old CGAAP) | E31: 44 | F31: App.2-R: Loss Factors
A32: 18 | B32: App.2-CH: 2013 Depreciation and Amortization Expense (New CGAAP) | E32: 45 | F32: App.2-S: Stranded Meter Treatment
A33: 19 | B33: App.2-CI: 2014 Depreciation and Amortization Expense (MIFRS) | E33: 46 | F33: App.2-TA: Account 1592, PILs and Tax Variances
A34: 20 | B34: App.2-CJ: 2015 Depreciation and Amortization Expense (MIFRS) | E34: 47 | F34: App.2-TB: Account 1592, HST-OVAT Input Tax Credits
A35: 21 | B35: App.2-CK: 2016 Depreciation and Amortization Expense (MIFRS) | E35: 48 | F35: App.2-U: One-Time Incremental IFRS Transition Costs
A36: 22 | B36: App.2-D: Overhead Expenses | E36: 49 | F36: App.2-V: Revenue Reconciliation
A37: 23 | B37: App.2-EA: Account 1575 PP&E Deferral Account (2015 IFRS Adopters) | E37: 50 | F37: App.2-W: Bill Impacts
A38: 24 | B38: App.2-EB: Account 1576 - Accounting Changes Under CGAAP (2012 Changes) | E38: 51 | F38: App.2-Y: Transition to MIFRS Summary Impact
A39: 25 | B39: App.2-EC: Account 1576 - Accounting Changes Under CGAAP (2013 Changes) | E39: 52 | F39: App. 2-Z: Tariff Schedule
A40: 26 | B40: App.2-FA: Renewable Generation Connection Investment Summary
A41: 27 | B41: App.2-FB: Calculation of Renewable Generation Connection Direct Benefits/Provincial Amount: Renewable Enabling Improvement Investments
A42: 28 | B42: App.2-FC: Calculation of Renewable Generation Connection Direct Benefits/Provincial Amount: Renewable Expansion Investments

Sheet COS Flowchart
B4: Cost of Service Rate Application Schematic
B6: The Cost of Service Rate Application Schematic is a flowchart appended to Chapter 2 of the Filing Requirements as a guide for the components of an application and how demand and costs interrelate to derive the revenue requirement and then how the revenue requirement is allocated between classes and through fixed/variable splits to derive rates that will be compensatory for the annual revenue requirement, based on the the forecasted demand. There is no form to be filled out; therefore, this Schedule is not required to be filed.

Sheet List of Key References
B3: List of Key References
A5: A list of key references for understanding the Filing Requirements has been embedded in the document below. To access the list of references and associated hyperlinks double-click the icon below.

Sheet App.2-AA_Capital Projects
G1: File Number: | H1: =EBNUMBER -> EB-2015-0107
G2: Exhibit: | H2: 2
G3: Tab: | H3: 5
G4: Schedule: | H4: 3
G5: Page: | H5: 40
G7: Date:
A9: Appendix 2-AA
A10: Capital Projects Table (UPDATED)
A13: Projects | B13: =C13-1 -> 2011 | C13: =D13-1 -> 2012 | D13: =E13-1 -> 2013 | E13: =BridgeYear - 1 -> 2014 | F13: =BridgeYear & " Bridge Year" -> 2015 Bridge Year | G13: =TestYear & " Test Year" -> 2016 Test Year
A14: Reporting Basis | B14: CGAAP | C14: CGAAP | D14: CGAAP | E14: MIFRS | F14: MIFRS | G14: MIFRS
A15: System Access
A16: Residential and Commercial Developments (net of contributions) | B16: =244131-210625 -> 33506 | C16: =164206-123167 -> 41039 | D16: =435052-363963 -> 71089 | E16: =521650-457622 -> 64028 | F16: 10890 | G16: 68750
A17: New and Upgraded Services (net of contributions) | B17: =195885-84134 -> 111751 | C17: =153669-65316 -> 88353 | D17: =174515-82205 -> 92310 | E17: =242135-82205 -> 159930 | F17: 127854 | G17: 115000
A18: Smart Metering | B18: 67641 | C18: =90638.94-2 -> 90636.94 | D18: 62292.98 | E18: 0 | F18: 92821 | G18: 105000
A19: Highway 26 Pole Line Expansion | C19: 255707
A20: Highway 26 Primary Metering Equipment | D20: 97995
A21: Puccine Drive - O/H Expansion and Development (net of contributions) | D21: =150518-34919 -> 115599
A22: Upper Wasaga Express Feed Expansion (net of contributions) | E22: =264630-115144 -> 149486
A23: Distribution Station Contribution Repurchase | E23: 274000
A24: River Road West - Pole Line Upgrade (50% contributed) | E24: =432985-216470 -> 216515 | F24: 55012
A25: Sunnidale Road - Pole Line Expansion | F25: 0 | G25: =400000-75000 -> 325000
A27: Miscellaneous (net of contributions) | B27: =4336+168614-158642+9049 -> 23357 | C27: =429632.37-385099-20846.08 -> 23687.29 | D27: 0 | E27: =659232-647444 -> 11788
A28: Sub-Total | B28: =SUM(B16:B27) -> 236255 | C28: =SUM(C16:C27) -> 499423.23 | D28: 439285.98 | E28: 875747 | F28: 286577 | G28: 613750
A29: System Renewal
A30: River Road East Upgrade | C30: 446559
A31: Highway 92 Upgrade | D31: 141356
A32: Distribution Station Equipment Replacement | D32: =57553+27053.12 -> 84606.12 | E32: 51785
A34: O/H Replacements | C34: 23986.92 | G34: 75000
A35: Pole Replacements | B35: 32812.84 | C35: 47665.32 | D35: 34901.57 | E35: 60655.75 | F35: 156999 | G35: =375000 -> 375000
A36: Transformer Replacements | B36: 17910.76 | C36: 36367.71 | D36: 39971.91 | E36: 72998.86 | F36: 109500 | G36: 130000
A38: Miscellaneous (net of contributions) | B38: =92425-50724 -> 41701 | C38: =602914-554579 -> 48335 | D38: =305807-300836 -> 4971 | E38: =432350-401955 -> 30395 | F38: 83770 | G38: 70000
A39: Sub-Total | B39: =SUM(B30:B38) -> 92424.6 | C39: 602913.95 | D39: 305806.6 | E39: 215834.61 | F39: 350269 | G39: 650000
A40: System Service
A41: SCADA | C41: 129942 | D41: 6130.49
A42: VLAN & Towers - Communication Equipment | C42: 126793
A45: Miscellaneous | E45: 1951.44 | G45: 10000
A46: Sub-Total | B46: =SUM(B41:B45) -> 0 | C46: 256735 | D46: 6130.49 | E46: 1951.44 | F46: 0 | G46: 10000
A47: General Plant
A48: Service Centre Land Addition | C48: 106886 | D48: 28420.62 | E48: 91245
A49: Service Centre Building Upgrade | D49: 464754
A50: Administration Building Upgrades | F50: 42500
A51: Shop Roof Replacement | F51: 11000
A53: Miscellaneous | B53: 27718 | C53: =113259-106886 -> 6373 | D53: 0 | E53: 4626 | F53: 15000 | G53: 30000
A54: Sub-Total | B54: =SUM(B48:B53) -> 27718 | C54: 113259 | D54: 493174.62 | E54: 95871 | F54: 68500 | G54: 30000
A55: Miscellaneous
A56: Total | B56: =SUMPRODUCT(--($A22:$A55="Sub-Total"), B$22:B$55)+B55 -> 356397.6 | C56: 1472331.18 | D56: 1244397.69 | E56: 1189404.05 | F56: 705346 | G56: 1303750
A57: Less Renewable Generation Facility Assets and Other Non-Rate-Regulated Utility Assets (input as negative)
A58: Total | B58: =B56+B57 -> 356397.6 | C58: 1472331.18 | D58: 1244397.69 | E58: 1189404.05 | F58: 705346 | G58: 1303750
A60: Notes:
A62: 1 Please provide a breakdown of the major components of each capital project undertaken in each year. Please ensure that all projects below the materiality threshold are included in the miscellaneous line. Add more projects as required.
A63: 2 The applicant should group projects appropriately and avoid presentations that result in classification of significant components of the capital budget in the miscellaneous category.

Sheet App.2-AB_Capital Expenditures
S1: File Number: | U1: =EBNUMBER -> EB-2015-0107
S2: Exhibit: | U2: 2
S3: Tab: | U3: DSP
S4: Schedule:
S5: Page: | U5: 61
S7: Date:
A9: Appendix 2-AB
A10: Table 2 - Capital Expenditure Summary from Chapter 5 Consolidated Distribution System Plan Filing Requirements
A12: First year of Forecast Period: | B12: =TestYear -> 2016
A13: CATEGORY | B13: Historical Period (previous plan1 & actual) | Q13: Forecast Period (planned)
B14: =E14-1 -> 2011 | E14: =H14-1 -> 2012 | H14: =K14-1 -> 2013 | K14: =N14-1 -> 2014 | N14: =Q14-1 -> 2015 | Q14: =B12 -> 2016 | R14: =Q14+1 -> 2017 | S14: =R14+1 -> 2018 | T14: 2019 | U14: 2020
B15: Plan | C15: Actual | D15: Var | E15: Plan | F15: Actual | G15: Var | H15: Plan | I15: Actual | J15: Var | K15: Plan | L15: Actual | M15: Var | N15: Plan | O15: Actual2 | P15: Var
B16: $ '000 | D16: % | E16: $ '000 | G16: % | H16: $ '000 | J16: % | K16: $ '000 | M16: % | N16: $ '000 | P16: % | Q16: $ '000
A17: System Access | B17: =135000+355000+157500+120000+7500 -> 775000 | C17: ='App.2-AA_Capital Projects'!B28 -> 236255 | D17: =IF(ISERROR((C17-B17)/B17),"--",(C17-B17)/B17) -> -0.6951548387 | E17: =65000+300000+20000+120000+7500 -> 512500 | F17: ='App.2-AA_Capital Projects'!C28 -> 499423.23 | G17: =IF(ISERROR((F17-E17)/E17),"--",(F17-E17)/E17) -> -0.02551564878 | H17: =50000+300000+200000+120000+75000 -> 745000 | I17: ='App.2-AA_Capital Projects'!D28 -> 439285.98 | J17: =IF(ISERROR((I17-H17)/H17),"--",(I17-H17)/H17) -> -0.4103543893 | K17: =50000+300000+200000+120000+7500 -> 677500 | L17: ='App.2-AA_Capital Projects'!E28 -> 875747 | M17: =IF(ISERROR((L17-K17)/K17),"--",(L17-K17)/K17) -> 0.2926154982 | N17: =+O17 -> 286577 | O17: ='App.2-AA_Capital Projects'!F28 -> 286577 | P17: =IF(ISERROR((O17-N17)/N17),"--",(O17-N17)/N17) -> 0 | Q17: =588750+100000-75000 -> 613750 | R17: 463200 | S17: =211464+160000 -> 371464 | T17: 515693.28 | U17: 520007.15
A18: System Renewal | B18: =50000+37000+64000+15000+1000 -> 167000 | C18: ='App.2-AA_Capital Projects'!B39 -> 92424.6 | D18: =IF(ISERROR((C18-B18)/B18),"--",(C18-B18)/B18) -> -0.4465592814 | E18: =40000+65000+20000+1000 -> 126000 | F18: ='App.2-AA_Capital Projects'!C39 -> 602913.95 | G18: =IF(ISERROR((F18-E18)/E18),"--",(F18-E18)/E18) -> 3.785031349 | H18: =40000+65000+20000+1000 -> 126000 | I18: ='App.2-AA_Capital Projects'!D39 -> 305806.6 | J18: =IF(ISERROR((I18-H18)/H18),"--",(I18-H18)/H18) -> 1.427036508 | K18: =40000+65000+20000+1000 -> 126000 | L18: ='App.2-AA_Capital Projects'!E39 -> 215834.61 | M18: =IF(ISERROR((L18-K18)/K18),"--",(L18-K18)/K18) -> 0.7129730952 | N18: =O18 -> 350269 | O18: ='App.2-AA_Capital Projects'!F39 -> 350269 | P18: =IF(ISERROR((O18-N18)/N18),"--",(O18-N18)/N18) -> 0 | Q18: =650000 -> 650000 | R18: 743600 | S18: 903432 | T18: 615500.64 | U18: 627810.65
A19: System Service | B19: 55000 | C19: ='App.2-AA_Capital Projects'!B46 -> 0 | D19: -1 | E19: 50000 | F19: ='App.2-AA_Capital Projects'!C46 -> 256735 | G19: 4.1347 | H19: 65000 | I19: ='App.2-AA_Capital Projects'!D46 -> 6130.49 | J19: -0.9056847692 | K19: 65000 | L19: ='App.2-AA_Capital Projects'!E46 -> 1951.44 | M19: -0.9699778462 | N19: ='App.2-AA_Capital Projects'!F46 -> 0 | O19: ='App.2-AA_Capital Projects'!F46 -> 0 | P19: -- | Q19: 10000 | R19: 10000 | S19: 20000 | T19: 10000 | U19: 10000
A20: General Plant | B20: 0 | C20: =24968+2750 -> 27718 | D20: -- | E20: 0 | F20: ='App.2-AA_Capital Projects'!C54 -> 113259 | G20: -- | H20: 0 | I20: =28420.62+464753.91 -> 493174.53 | J20: -- | K20: 0 | L20: =91244.52+4626 -> 95870.52 | M20: -- | N20: =+O20 -> 68500 | O20: ='App.2-AA_Capital Projects'!F54 -> 68500 | P20: 0 | Q20: 30000 | R20: 10000 | S20: 10000 | T20: 0 | U20: 0
A21: TOTAL EXPENDITURE | B21: =SUM(B17:B20) -> 997000 | C21: =SUM(C17:C20) -> 356397.6 | D21: -0.64252999 | E21: 688500 | F21: =SUM(F17:F20) -> 1472331.18 | G21: 1.138462135 | H21: 936000 | I21: 1244397.6 | J21: 0.3294846154 | K21: 868500 | L21: 1189403.57 | M21: 0.3694917329 | N21: 705346 | O21: 705346 | P21: 0 | Q21: 1303750 | R21: 1226800 | S21: 1304896 | T21: 1141193.92 | U21: =SUM(U17:U20) -> 1157817.8
A22: System O&M | B22: =6812+26118+154300+101800+106744.9+24250+15875 -> 435899.9 | C22: 631082 | D22: 0.4477681688 | E22: =7000+30000+160000+103000+110000+28000+16000 -> 454000 | F22: 805657 | G22: 0.7745748899 | H22: =7000+30000+165000+105000+112000+30000+16250 -> 465250 | I22: 776446 | J22: 0.6688790973 | K22: =7000+30000+170000+107500+115000+34000+16500 -> 480000 | L22: 776677.85 | M22: 0.6180788542 | N22: =+O22 -> 828498 | O22: 828498 | P22: 0 | Q22: 872192 | R22: =+Q22*1.03 -> 898357.76 | S22: =+R22*1.03 -> 925308.4928 | T22: =+S22*1.03 -> 953067.7476 | U22: =+T22*1.03 -> 981659.78
A24: Notes to the Table:
A25: 1. Historical “previous plan” data is not required unless a plan has previously been filed
A26: 2. Indicate the number of months of 'actual' data included in the last year of the Historical Period (normally a 'bridge' year):
A28: Explanatory Notes on Variances (complete only if applicable)
A29: Notes on shifts in forecast vs. historical budgets by category
A32: Notes on year over year Plan vs. Actual variances for Total Expenditures
A33: Between the year 2011-2014 the original Asset Management Plan excluded all upgrades to General Plant, originally not reported in the plan, and all smart meter upgrades. Although all major subdivision development excluded contributed capital. The average assets capitalized adjusted for the differences mentioned are not materially different.
A35: Notes on Plan vs. Actual variance trends for individual expenditure categories
A36: WDI's original Asset Management plan was completed before the currently categories, as listed above, were identified. WDI's original plan's categories were more driven by the general ledger accounts, with the expenditures being further broken down into new construction and line improvements. Consequently, WDI's interpretation of new construction programs during the 2010 Asset Management Plan compilation would include System Access and System Renewal projects if the categories were used today. WDI has chosen to classify new contraction projects solely as system access as it is felt that no reasonable assumptions could be made otherwise. It is felt that for the sole purpose of comparing the original Asset Management plan to actual, based on the categories listed above, then System Access and System Renewal should be grouped together. Additionally, WDI's Actual numbers reported are based on Capitalization, according to WDI's Capitalization policy - As opposed to WDI's original asset management plan, which was based on expenditures, furthermore, WDI provided detailed expenditures for 2010, and 2011 ( on record EB-2011-0103), 2012-2014 were projected as estimates. System Access and System Renewal (note the asset management plan included all new construction at gross asset values): 2011 - River Road East and Hwy 26 were originally planned to be completed in 2011 (completed in 2012) including the contributed capital not reflected - the total difference would account for approximately $700,000. 2012 - River Road East was completed in 2012 for a total cost of $446,559 2013 & 2014 - Timing differences System Service Expenditures: 2011 - Station metering was planned, smart metering installations included instead 2012 - Station metering was planned, smart metering installations and SCADA, as well as VLAN communication equipment to communicate with the SCADA installed ( replacement to station metering) 2013 - Station metering was planned, smart metering installations and SCADA instead 2013 - Station metering was planned, smart metering installations and SCADA instead General Plant Expenditures: 2011 - 2015 -were not considered in the original Asset Management Plan. ( Actuals included Service Centre upgrades, including land purchases, and Administration building upgrades) The original Asset Management Plan was prepared up until 2014 - the plan reported for 2015 is the same as the 2015 budget.

Sheet App. 2-AC_Customer Engagement
B1: File Number: | C1: =EBNUMBER -> EB-2015-0107
B2: Exhibit: | C2: 1
B3: Tab: | C3: 5
B4: Schedule: | C4: 1
B5: Page: | C5: 51
B7: Date:
A9: Appendix 2-AC
A10: Customer Engagement Activities Summary
A12: Provide a list of customer engagement activities | B12: Provide a list of customer needs and preferences identified through each engagement activity | C12: Actions taken to respond to identified needs and preferences. If no action was taken, explain why.
A13: Annual Home and Garden Show (2012-2014) | B13: 1. Conservation and usage reduction for small business and residential customers 2. Peaksaver Plus, Customer Connect, E-Billing, Safety awareness | C13: General awareness is been promoted. If awareness was identified as unsatisfactory through ballot responses WDI looked at increasing awareness through newspaper advertisements and in office promotion. WDI has implemented Peaksaver Plus, Customer Connect and E-Billing Services.
A14: Business Show | B14: 1. Conservation and usage reduction for small business and residential customers 2. Peaksaver Plus, Customer Connect, E-Billing, Safety awareness | C14: General awareness is been promoted. If awareness was identified as unsatisfactory through ballot responses WDI looked at increasing awareness through newspaper advertisements and in office promotion. WDI has implemented Peaksaver Plus, Customer Connect and E-Billing Services.
A15: Customer Surveys | B15: 1. Utility Pulse 2. Survey Monkey 3. Annual Home and Garden Home Show Contest | C15: WDI continues to incorporate customers needs. Unsatisfactory results are identified and addressed and brought forward to WDI's Board of Directors. Open ended responses are followed up with individually.
A16: Meeting with Contractors Association | B16: 1. Monthly Business meetings 2. Presentation of services | C16: Regulatory requirements and process required for WDI to upgrade and/or install new services. Making sure contractors are familiar with WDI's process and ESA requirements. Community outreach.
A17: In-Office Customer Engagement | B17: 1. Front Counter Engagement 2. Senior Assistance - Customer Connect (drop in appointments) 3. Computer Centre provide for free to all customers in office | C17: Concerns and issues are dealt with immediately. Any concerns that need to be escalated are brought forward to senior management and if necessary, the board of directors. WDI provides a computer centre to assist with customers that need extra assistance using WDI's customer connect, e-billing services and customer satisfaction surveys.
A18: Regional Planning Engagements | B18: WDI is was invited to participate in regional planning | C18: No projects identified therefore WDI has not taken any action.
A19: Financial Assistance Program | B19: WDI provides support through partnerships' with the province's Low-income Energy Assistance Program (LEAP). This emergency financial assistance programs are designed to help low-income customers who have difficulty making their electricity bill payments. | C19: WDI continues to promote verbally and on their website, on emergency financial assistance programs that are designed to help low-income customers having difficulty making their electricity bill payments.
A20: E-billing/Customer Connect - Online Account Services | B20: WDI provides access to customer bills and consumption data. | C20: WDI has offering to customers based on input received from customer service staff addressing customer inquiries. This also reduces WDI's carbon footprint.
A21: Annual utility coordination meetings | B21: Synergies achieved through collaboration to reduce costs on construction | C21: The meetings include discussion on short term projects that have potential to achieve cost savings by working collaboratively. Current projects include Bell FTTH (Fibre to the home), road widening, and bridge replacements.
A22: Customer Education literature | B22: WDI's safety practices and policies | C22: WDI responded to customers that followed up on the literature.
A45: Note: Use "ALT-ENTER" to go to the next line within a cell

Sheet App.2-B_Acct Instructions
A1: General Instructions to MIFRS Appendices
A2: Types of Schedules to File
A4: The purpose of this tab is to provide general instructions. The specific instructions to each appendix are listed in footnotes of each appendix.
A6: The typical applicant is expected to have made capitalization and depreciation policy changes under CGAAP as permitted by the Board on January 1, 2012 or mandated by the Board by January 1, 2013, and adopted IFRS for reporting purposes on January 1, 2015 (transition date January 1, 2014). In general, applicants under the two scenarios should provide the following information in the appendices:
E9: Accounting Policy Changes in 2012 and Adopted IFRS in 2015 | F9: Accounting Policy Changes in 2013 and Adopted IFRS in 2015
E10: (Date of Transition to IFRS 2014)
A11: Information to be filed in 2016 CoS Application | B11: 2016 | C11: Test | E11: MIFRS | F11: MIFRS
B12: 2015 | C12: Bridge | E12: MIFRS | F12: MIFRS
B13: 2014 | C13: Historical | E13: MIFRS and Revised CGAAP* | F13: MIFRS and Revised CGAAP*
B14: 2013 | C14: Historical | E14: Revised CGAAP | F14: CGAAP and Revised CGAAP
B15: 2012 | C15: Historical | E15: CGAAP and Revised CGAAP | F15: CGAAP
B16: 2011 and Prior | C16: Historical | E16: CGAAP | F16: CGAAP
A18: 1) For the year that the applicant implemented changes to its capitalization and depreciation policies (2012 or 2013), the applicant must file two appendices, one before and one after the policy changes.
A21: 2) For the transition year (2014), the applicant may file two appendices, one under Revised CGAAP and one under MIFRS, depending on the materiality of impacts. See the specific instructions under each appendix below for further details.
A26: Appendix 2-BA - Fixed Asset Schedule
A28: Applicants are to provide Appendix 2-BA in accordance with the years and corresponding accounting standards noted in the above table to provide a year over year continuity in fixed assets.
A29: *For the transition year (2014), the applicant should file two appendices, one under Revised CGAAP and one under MIFRS if the change between Revised CGAAP and MIFRS is material. If the change from the accounting standards is not material, the applicant may choose to only provide one appendix under MIFRS. However, the applicant must also indicate the fixed asset net book value balance under Revised CGAAP, the total dollar value of the change and explain why it is not material.
A33: Regulatory Gross Assets of Property, Plant and Equipment
A35: For an applicant that adopted IFRS on January 1, 2015 for financial reporting purposes, the applicant must establish the continuity of historic cost by using the December 31, 2013 regulatory gross assets of property, plant and equipment as the opening January 1, 2014 regulatory gross assets. The applicant must provide schedules (including Appendix 2-BA, Fixed Asset Continuity Schedule) which must identify the following details to substantiate the continuity of historic cost for regulatory purposes:
A38: · December 31, 2013 regulatory gross assets of property, plant and equipment, by asset class; and
A39: · January 1, 2014 regulatory gross assets of property, plant and equipment, by asset class.
A41: Accumulated Depreciation
A43: For an applicant that adopted IFRS on January 1, 2015 for financial reporting purposes, the applicant must establish the continuity of historic cost by using the December 31, 2013 regulatory accumulated depreciation as the opening January 1, 2014 regulatory accumulated depreciation. The applicant must provide schedules (including Appendix 2-BA, Fixed Asset Continuity Schedule) which must identify the following details to substantiate the continuity of historic cost for regulatory purposes:
A46: · December 31, 2013 regulatory accumulated depreciation, by asset class; and
A47: · January 1, 2014 regulatory accumulated depreciation, by asset class.
A49: Appendix 2-C - Depreciation and Amortization
A51: Applicants are to provide Appendix 2-C starting in the year capitalization and depreciation policy changes were implemented in accordance with the years and corresponding accounting standards listed in the above table.
A52: If an applicant changed capitalization and depreciation policies effective January 1, 2012 and adopted IFRS for reporting purposes effective January 1, 2015, the applicant must complete Appendix 2-CA to 2-CF (inclusive).
A53: If an applicant changed capitalization and depreciation policies effective January 1, 2013 and adopted IFRS for reporting purposes effective January 1, 2015, the applicant must complete Appendix 2-CG to 2-CK (inclusive).
A54: *Depreciation accounting policy changes were mandated by the Board by January 1, 2013. These accounting changes should be implemented consistent with the Board’s regulatory accounting policies as set out for MIFRS as contained in the Report of the Board, Transition to International Financial Reporting Standards (EB-2008-0408), the Depreciation Study for Use by Electricity Distributors (EB-2010-0178) and the Revised 2012 Accounting Procedures Handbook for Electricity Distributors. In general, no further changes to an applicant's depreciation policy (i.e. assets' service lives) are expected after the Board mandated changes by January 1, 2013. The set of Appendix CA to CK assumes this to be the case. If the applicant has made any changes to its depreciation policy subsequent to the Board mandated changes, applicants must identify the change, explain the nature of the change, the reason for the change, quantify the impact of the change, and quantify the depreciation expense before and after the change.
A57: Appendix 2-E - Account 1575, IFRS-CGAAP Transitional PP&E Amounts (2-EA), Account 1576, Accounting Changes Under CGAAP (2-EB, 2-EC)
A59: If an applicant changed capitalization and depreciation policies effective January 1, 2012 and adopted IFRS for reporting purposes effective January 1, 2015, the applicant must complete Appendix 2-EA and 2-EB. If the applicant did not make any further PP&E accounting policy changes beyond the capitalization and depreciation policy changes as permitted by the Board on January 1, 2012 (i.e. no further changes made on transition to IFRS), the applicant must indicate this and does not need to complete Appendix 2-EA.
A61: If an applicant changed capitalization and depreciation policies effective January 1, 2013 and adopted IFRS for reporting purposes effective January 1, 2015, the applicant must complete Appendix 2-EA and 2-EC. If the applicant did not make any further PP&E accounting policy changes beyond the capitalization and depreciation policy changes as mandated by the Board by January 1, 2013 (i.e. no further changes made on transition to IFRS), the applicant must indicate this and does not need to complete Appendix 2-EA.
A63: Please refer to section 2.12.4 and 2.12.5 of the Filing Requirements for further details.
A65: Appendix 2-YA - Summary of Impacts to Revenue Requirement from Transition to MIFRS
A67: For applicants adopting MIFRS, the applicants must provide a summary of the dollar impacts of MIFRS to each component of the revenue requirement (e.g. rate base, operating costs, etc), including the overall impact on the proposed revenue requirement. Accordingly, the applicants must identify financial differences and resulting revenue requirement impacts arising from the adoption of MIFRS as compared to CGAAP prior to capitalization and depreciation policy changes.

Sheet App.2-BA_Fixed Asset Cont
L1: File Number: | M1: =EBNUMBER -> EB-2015-0107
L2: Exhibit: | M2: 2
L3: Tab: | M3: 1
L4: Schedule: | M4: 4
L5: Page: | M5: 12-17
L7: Date:
A9: Appendix 2-BA
A10: Fixed Asset Continuity Schedule 1
E12: Accounting Standard | F12: CGAAP
E13: Year | F13: 2012
D15: Cost | J15: Accumulated Depreciation
A16: CCA Class 2 | B16: OEB Account 3 | C16: Description 3 | D16: Opening Balance | E16: Additions 4 | F16: Disposals | G16: Closing Balance | I16: Opening Balance | J16: Additions | K16: Disposals | L16: Closing Balance | M16: Net Book Value
A17: 12 | B17: 1611 | C17: Computer Software (Formally known as Account 1925) | D17: 51375 | E17: 89000 | G17: =D17+E17+F17 -> 140375 | I17: -9606.58 | J17: -9342.6 | L17: =I17+J17+K17 -> -18949.18 | M17: =G17+L17 -> 121425.82
A18: CEC | B18: 1612 | C18: Land Rights (Formally known as Account 1906) | D18: 5512 | G18: =D18+E18+F18 -> 5512 | I18: -5512 | L18: =I18+J18+K18 -> -5512 | M18: =G18+L18 -> 0
A19: N/A | B19: 1805 | C19: Land | D19: 121775.03 | G19: =D19+E19+F19 -> 121775.03 | L19: =I19+J19+K19 -> 0 | M19: =G19+L19 -> 121775.03
A20: 47 | B20: 1808 | C20: Buildings | G20: =D20+E20+F20 -> 0 | L20: =I20+J20+K20 -> 0 | M20: =G20+L20 -> 0
A21: 13 | B21: 1810 | C21: Leasehold Improvements | G21: 0 | L21: 0 | M21: 0
A22: 47 | B22: 1815 | C22: Transformer Station Equipment >50 kV | G22: 0 | L22: 0 | M22: 0
A23: 47 | B23: 1820 | C23: Distribution Station Equipment <50 kV | D23: 3358633.38 | E23: -114219.8 | G23: 3244413.58 | I23: -913788.58 | J23: -29384.5 | L23: -943173.08 | M23: 2301240.5
A24: 47 | B24: 1825 | C24: Storage Battery Equipment | G24: 0 | L24: 0 | M24: 0
A25: 47 | B25: 1830 | C25: Poles, Towers & Fixtures | D25: 3153339.05 | E25: 330497.3 | F25: -6764.89 | G25: 3477071.46 | I25: -1999850.31 | J25: -82912.53 | K25: 6004.36 | L25: -2076758.48 | M25: 1400312.98
A26: 47 | B26: 1835 | C26: Overhead Conductors & Devices | D26: 3515887.56 | E26: 319173.59 | G26: 3835061.15 | I26: -2130237.05 | J26: -81214.16 | L26: -2211451.21 | M26: 1623609.94
A27: 47 | B27: 1840 | C27: Underground Conduit | D27: 268600.91 | E27: 1797.41 | G27: 270398.32 | I27: -38140.62 | J27: -4956.27 | L27: -43096.89 | M27: 227301.43
A28: 47 | B28: 1845 | C28: Underground Conductors & Devices | D28: 5015218.98 | E28: 112700.13 | G28: 5127919.11 | I28: -2231847.23 | J28: -147674.56 | L28: -2379521.79 | M28: 2748397.32
A29: 47 | B29: 1850 | C29: Line Transformers | D29: 4049391.29 | E29: 217045.44 | F29: -5151.09 | G29: 4261285.64 | I29: -2092868.12 | J29: -66611.06 | K29: 4958.05 | L29: -2154521.13 | M29: 2106764.51
A30: 47 | B30: 1855 | C30: Services (Overhead & Underground) | D30: 3608742.43 | E30: 282236.4 | G30: 3890978.83 | I30: -1918062.03 | J30: -73325.89 | L30: -1991387.92 | M30: 1899590.91
A31: 47 | B31: 1860 | C31: Meters | D31: 4335.62 | E31: 114219.8 | G31: 118555.42 | I31: -86.51 | J31: =-174-4950-50445.8 -> -55569.8 | L31: -55656.31 | M31: 62899.11
A32: 47 | B32: 1860 | C32: Meters (Smart Meters) | D32: 1646261.01 | E32: 90638.94 | F32: -70001.23 | G32: 1666898.72 | I32: =-242181.51+86.51 -> -242095 | J32: -113015 | K32: 13727.33 | L32: -341382.67 | M32: 1325516.05
A33: N/A | B33: 1905 | C33: Land | D33: 382467.11 | E33: 106865.98 | G33: 489333.09 | I33: 0 | L33: 0 | M33: 489333.09
A34: 47 | B34: 1908 | C34: Buildings & Fixtures | D34: 1014876.27 | E34: 6393.45 | G34: 1021269.72 | I34: -361290.99 | J34: -19829.78 | L34: -381120.77 | M34: 640148.95
A35: 13 | B35: 1910 | C35: Leasehold Improvements | G35: 0 | L35: 0 | M35: 0
A36: 8 | B36: 1915 | C36: Office Furniture & Equipment (10 years) | G36: 0 | L36: 0 | M36: 0
A37: 8 | B37: 1915 | C37: Office Furniture & Equipment (5 years) | G37: 0 | L37: 0 | M37: 0
A38: 10 | B38: 1920 | C38: Computer Equipment - Hardware | G38: 0 | L38: 0 | M38: 0
A39: 45 | B39: 1920 | C39: Computer Equip.-Hardware(Post Mar. 22/04) | G39: 0 | L39: 0 | M39: 0
A40: 45.1 | B40: 1920 | C40: Computer Equip.-Hardware(Post Mar. 19/07) | G40: 0 | L40: 0 | M40: 0
A41: 10 | B41: 1930 | C41: Transportation Equipment | G41: 0 | L41: 0 | M41: 0
A42: 8 | B42: 1935 | C42: Stores Equipment | G42: 0 | L42: 0 | M42: 0
A43: 8 | B43: 1940 | C43: Tools, Shop & Garage Equipment | G43: 0 | L43: 0 | M43: 0
A44: 8 | B44: 1945 | C44: Measurement & Testing Equipment | G44: 0 | L44: 0 | M44: 0
A45: 8 | B45: 1950 | C45: Power Operated Equipment | G45: 0 | L45: 0 | M45: 0
A46: 8 | B46: 1955 | C46: Communications Equipment | G46: 0 | L46: 0 | M46: 0
A47: 8 | B47: 1955 | C47: Communication Equipment (Smart Meters) | G47: 0 | L47: 0 | M47: 0
A48: 8 | B48: 1960 | C48: Miscellaneous Equipment | G48: 0 | L48: 0 | M48: 0
A49: 47 | B49: 1970 | C49: Load Management Controls Customer Premises | G49: 0 | L49: 0 | M49: 0
A50: 47 | B50: 1975 | C50: Load Management Controls Utility Premises | G50: 0 | L50: 0 | M50: 0
A51: 47 | B51: 1980 | C51: System Supervisor Equipment | E51: 40942.03 | G51: 40942.03 | I51: 0 | J51: -2047.1 | L51: -2047.1 | M51: =G51+L51 -> 38894.93
A52: 47 | B52: 1985 | C52: Miscellaneous Fixed Assets | G52: 0 | L52: 0 | M52: 0
A53: 47 | B53: 1990 | C53: Other Tangible Property | G53: 0 | L53: 0 | M53: 0
A54: 47 | B54: 1995 | C54: Contributions & Grants | D54: -5377445.68 | E54: -251752.17 | G54: =D54+E54+F54 -> -5629197.85 | I54: 942734.99 | J54: 136581.39 | L54: 1079316.38 | M54: =G54+L54 -> -4549881.47
A55: 47 | B55: 2440 | C55: Deferred Revenue5 | G55: =D55+E55+F55 -> 0 | L55: 0 | M55: =G55+L55 -> 0
B56: 2055 | C56: Capital Lease | E56: 126793.16 | G56: 126793.16 | J56: -2007.18 | L56: -2007.18 | M56: 124785.98
G57: 0 | L57: 0 | M57: 0
C58: Sub-Total | D58: =SUM(D17:D57) -> 20818969.96 | E58: =SUM(E17:E57) -> 1472331.66 | F58: =SUM(F17:F57) -> -81917.21 | G58: =SUM(G17:G57) -> 22209384.41 | I58: =SUM(I17:I57) -> -11000650.03 | J58: =SUM(J17:J57) -> -551309.04 | K58: =SUM(K17:K57) -> 24689.74 | L58: =SUM(L17:L57) -> -11527269.33 | M58: =SUM(M17:M57) -> 10682115.08
C59: Less Socialized Renewable Energy Generation Investments (input as negative) | G59: =D59+E59+F59 -> 0 | L59: =I59+J59+K59 -> 0 | M59: =G59+L59 -> 0
C60: Less Other Non Rate-Regulated Utility Assets (input as negative) | G60: 0 | L60: 0 | M60: 0
C61: Total PP&E | D61: =SUM(D58:D60) -> 20818969.96 | E61: =SUM(E58:E60) -> 1472331.66 | F61: -81917.21 | G61: 22209384.41 | I61: =SUM(I58:I60) -> -11000650.03 | J61: -551309.04 | K61: 24689.74 | L61: -11527269.33 | M61: 10682115.08
C62: Depreciation Expense adj. from gain or loss on the retirement of assets (pool of like assets), if applicable6
C63: Total | J63: =J61+J62 -> -551309.04
I65: Less: Fully Allocated Depreciation
A66: 10 | C66: Transportation | I66: Transportation
A67: 8 | C67: Stores Equipment | I67: Stores Equipment
I68: Net Depreciation | K68: =J63-K66-K67 -> -551309.04
A70: Notes:
A72: 1 | B72: Tables in the format outlined above covering all fixed asset accounts should be submitted for the Test Year, Bridge Year and all relevant historical years. At a minimum , the applicant must provide data for the earlier of: 1) all historical years back to its last rebasing; or 2) at least three years of historical actuals, in addition to Bridge Year and Test Year forecasts.
A75: 2 | B75: The "CCA Class" for fixed assets should agree with the CCA Class used for tax purposes in Tax Returns. Fixed Assets sub-components may be used where the underlying asset components are classified under multiple CCA Classes for tax purposes. If an applicant uses any different classes from those shown in the table, an explanation should be provided. (also see note 3).
A78: 3 | B78: The table may need to be customized for a utility's asset categories or for any new asset accounts announced or authorized by the Board.
A80: 4 | B80: The additions in column (E) must not include construction work in progress (CWIP).
A82: 5 | B82: Effective on the date of IFRS adoption, customer contributions will no longer be recorded in Account 1995 Contributions & Grants, but will be recorded in Account 2440, Deferred Revenues.
A84: 6 | B84: Where a distributor for general financial reporting purposes under IFRS has accounted for the amount of gain or loss on the retirement of assets in a pool of like assets as a charge or credit to income, for reporting and rate application filings, the distributor shall reclassify such gains and losses as depreciation expense, and disclose the amount separately.
A87: Appendix 2-BA
A88: Fixed Asset Continuity Schedule 1
E90: Accounting Standard | F90: CGAAP
E91: Year | F91: 2013
D93: Cost | J93: Accumulated Depreciation
A94: CCA Class 2 | B94: OEB Account 3 | C94: Description 3 | D94: Opening Balance | E94: Additions 4 | F94: Disposals | G94: Closing Balance | I94: Opening Balance | J94: Additions | K94: Disposals | L94: Closing Balance | M94: Net Book Value
A95: 12 | B95: 1611 | C95: Computer Software (Formally known as Account 1925) | D95: =G17 -> 140375 | G95: =D95+E95+F95 -> 140375 | I95: =L17 -> -18949.18 | J95: -13779.23 | L95: =I95+J95+K95 -> -32728.41 | M95: =G95+L95 -> 107646.59
A96: CEC | B96: 1612 | C96: Land Rights (Formally known as Account 1906) | D96: =G18 -> 5512 | G96: =D96+E96+F96 -> 5512 | I96: =L18 -> -5512 | L96: =I96+J96+K96 -> -5512 | M96: =G96+L96 -> 0
A97: N/A | B97: 1805 | C97: Land | D97: 121775.03 | G97: =D97+E97+F97 -> 121775.03 | I97: 0 | L97: =I97+J97+K97 -> 0 | M97: =G97+L97 -> 121775.03
A98: 47 | B98: 1808 | C98: Buildings | D98: 0 | G98: =D98+E98+F98 -> 0 | I98: 0 | L98: =I98+J98+K98 -> 0 | M98: =G98+L98 -> 0
A99: 13 | B99: 1810 | C99: Leasehold Improvements | D99: 0 | G99: 0 | I99: 0 | L99: 0 | M99: 0
A100: 47 | B100: 1815 | C100: Transformer Station Equipment >50 kV | D100: 0 | G100: 0 | I100: 0 | L100: 0 | M100: 0
A101: 47 | B101: 1820 | C101: Distribution Station Equipment <50 kV | D101: 3244413.58 | E101: 84606.01 | F101: 0 | G101: 3329019.59 | I101: -943173.08 | J101: -81388.92 | L101: -1024562 | M101: 2304457.59
A102: 47 | B102: 1825 | C102: Storage Battery Equipment | D102: 0 | E102: 0 | F102: 0 | G102: 0 | I102: 0 | L102: 0 | M102: 0
A103: 47 | B103: 1830 | C103: Poles, Towers & Fixtures | D103: 3477071.46 | E103: 102449.38 | F103: 0 | G103: 3579520.84 | I103: -2076758.48 | J103: -87253.07 | L103: -2164011.55 | M103: 1415509.29
A104: 47 | B104: 1835 | C104: Overhead Conductors & Devices | D104: 3835061.15 | E104: 120401.89 | F104: 0 | G104: 3955463.04 | I104: -2211451.21 | J104: -85887.07 | L104: -2297338.28 | M104: 1658124.76
A105: 47 | B105: 1840 | C105: Underground Conduit | D105: 270398.32 | E105: 40362.5 | F105: 0 | G105: 310760.82 | I105: -43096.89 | J105: -5364.38 | L105: -48461.27 | M105: 262299.55
A106: 47 | B106: 1845 | C106: Underground Conductors & Devices | D106: 5127919.11 | E106: 320214.87 | F106: 0 | G106: 5448133.98 | I106: -2379521.79 | J106: -154491.44 | L106: -2534013.23 | M106: 2914120.75
A107: 47 | B107: 1850 | C107: Line Transformers | D107: 4261285.64 | E107: 295560.03 | F107: -20236.65 | G107: 4536609.02 | I107: -2154521.13 | J107: -72464.29 | K107: 12471.76 | L107: -2214513.66 | M107: 2322095.36
A108: 47 | B108: 1855 | C108: Services (Overhead & Underground) | D108: 3890978.83 | E108: 344725.24 | F108: 0 | G108: 4235704.07 | I108: -1991387.92 | J108: -82081.09 | L108: -2073469.01 | M108: 2162235.06
A109: 47 | B109: 1860 | C109: Meters | D109: 118555.42 | E109: =1260+97995 -> 99255 | F109: 0 | G109: 217810.42 | I109: -55656.31 | J109: =-199-4708 -> -4907 | L109: -60563.31 | M109: 157247.11
A110: 47 | B110: 1860 | C110: Meters (Smart Meters) | D110: 1666898.72 | E110: =61033 -> 61033 | F110: 0 | G110: 1727931.72 | I110: -341382.67 | J110: -113106 | L110: -454488.67 | M110: 1273443.05
A111: N/A | B111: 1905 | C111: Land | D111: 489333.09 | E111: 28420.62 | F111: 0 | G111: 517753.71 | I111: 0 | J111: 0 | L111: 0 | M111: 517753.71
A112: 47 | B112: 1908 | C112: Buildings & Fixtures | D112: 1021269.72 | E112: 464753.91 | F112: 0 | G112: 1486023.63 | I112: -381120.77 | J112: -23366.5 | L112: -404487.27 | M112: 1081536.36
A113: 13 | B113: 1910 | C113: Leasehold Improvements | D113: 0 | E113: 0 | F113: 0 | G113: 0 | I113: 0 | J113: 0 | L113: 0 | M113: 0
A114: 8 | B114: 1915 | C114: Office Furniture & Equipment (10 years) | D114: 0 | G114: 0 | I114: 0 | J114: 0 | K114: 0 | L114: 0 | M114: 0
A115: 8 | B115: 1915 | C115: Office Furniture & Equipment (5 years) | D115: 0 | G115: 0 | I115: 0 | J115: 0 | K115: 0 | L115: 0 | M115: 0
A116: 10 | B116: 1920 | C116: Computer Equipment - Hardware | D116: 0 | G116: 0 | I116: 0 | J116: 0 | K116: 0 | L116: 0 | M116: 0
A117: 45 | B117: 1920 | C117: Computer Equip.-Hardware(Post Mar. 22/04) | D117: 0 | G117: 0 | I117: 0 | J117: 0 | K117: 0 | L117: 0 | M117: 0
A118: 45.1 | B118: 1920 | C118: Computer Equip.-Hardware(Post Mar. 19/07) | D118: 0 | G118: 0 | I118: 0 | J118: 0 | K118: 0 | L118: 0 | M118: 0
A119: 10 | B119: 1930 | C119: Transportation Equipment | D119: 0 | G119: 0 | I119: 0 | J119: 0 | K119: 0 | L119: 0 | M119: 0
A120: 8 | B120: 1935 | C120: Stores Equipment | D120: 0 | G120: 0 | I120: 0 | J120: 0 | K120: 0 | L120: 0 | M120: 0
A121: 8 | B121: 1940 | C121: Tools, Shop & Garage Equipment | D121: 0 | G121: 0 | I121: 0 | J121: 0 | K121: 0 | L121: 0 | M121: 0
A122: 8 | B122: 1945 | C122: Measurement & Testing Equipment | D122: 0 | G122: 0 | I122: 0 | J122: 0 | K122: 0 | L122: 0 | M122: 0
A123: 8 | B123: 1950 | C123: Power Operated Equipment | D123: 0 | G123: 0 | I123: 0 | J123: 0 | K123: 0 | L123: 0 | M123: 0
A124: 8 | B124: 1955 | C124: Communications Equipment | D124: 0 | G124: 0 | I124: 0 | J124: 0 | K124: 0 | L124: 0 | M124: 0
A125: 8 | B125: 1955 | C125: Communication Equipment (Smart Meters) | D125: 0 | G125: 0 | I125: 0 | J125: 0 | K125: 0 | L125: 0 | M125: 0
A126: 8 | B126: 1960 | C126: Miscellaneous Equipment | D126: 0 | G126: 0 | I126: 0 | J126: 0 | K126: 0 | L126: 0 | M126: 0
A127: 47 | B127: 1970 | C127: Load Management Controls Customer Premises | D127: 0 | G127: 0 | I127: 0 | J127: 0 | K127: 0 | L127: 0 | M127: 0
A128: 47 | B128: 1975 | C128: Load Management Controls Utility Premises | D128: 0 | G128: 0 | I128: 0 | J128: 0 | K128: 0 | L128: 0 | M128: 0
A129: 47 | B129: 1980 | C129: System Supervisor Equipment | D129: 40942.03 | E129: 6130.49 | G129: 47072.52 | I129: -2047.1 | J129: -4247.46 | K129: 0 | L129: -6294.56 | M129: 40777.96
A130: 47 | B130: 1985 | C130: Miscellaneous Fixed Assets | D130: 0 | G130: 0 | I130: 0 | J130: 0 | K130: 0 | L130: 0 | M130: 0
A131: 47 | B131: 1990 | C131: Other Tangible Property | D131: 0 | G131: 0 | I131: 0 | J131: 0 | K131: 0 | L131: 0 | M131: 0
A132: 47 | B132: 1995 | C132: Contributions & Grants | D132: -5629197.85 | E132: -723515.15 | G132: -6352713 | I132: 1079316.38 | J132: =--167460.09 -> 167460.09 | K132: 0 | L132: 1246776.47 | M132: -5105936.53
A133: 47 | B133: 2440 | C133: Deferred Revenue5 | D133: 0 | G133: 0 | I133: 0 | J133: 0 | K133: 0 | L133: =I133+J133+K133 -> 0 | M133: =G133+L133 -> 0
B134: 2055 | C134: Capital Lease | D134: 126793.16 | G134: 126793.16 | I134: -2007.18 | J134: -4014.35 | K134: 0 | L134: -6021.53 | M134: 120771.63
G135: =D135+E135+F135 -> 0 | L135: =I135+J135+K135 -> 0 | M135: =G135+L135 -> 0
C136: Sub-Total | D136: =SUM(D95:D135) -> 22209384.41 | E136: =SUM(E95:E135) -> 1244397.79 | F136: =SUM(F95:F135) -> -20236.65 | G136: =SUM(G95:G135) -> 23433545.55 | I136: =SUM(I95:I135) -> -11527269.33 | J136: =SUM(J95:J135) -> -564890.71 | K136: =SUM(K95:K135) -> 12471.76 | L136: =SUM(L95:L135) -> -12079688.28 | M136: =SUM(M95:M135) -> 11353857.27
C137: Less Socialized Renewable Energy Generation Investments (input as negative) | G137: =D137+E137+F137 -> 0 | L137: =I137+J137+K137 -> 0 | M137: =G137+L137 -> 0
C138: Less Other Non Rate-Regulated Utility Assets (input as negative) | G138: 0 | L138: 0 | M138: 0
C139: Total PP&E | D139: =SUM(D136:D138) -> 22209384.41 | E139: =SUM(E136:E138) -> 1244397.79 | F139: -20236.65 | G139: 23433545.55 | I139: =SUM(I136:I138) -> -11527269.33 | J139: -564890.71 | K139: 12471.76 | L139: -12079688.28 | M139: 11353857.27
C140: Depreciation Expense adj. from gain or loss on the retirement of assets (pool of like assets), if applicable6
C141: Total | J141: =J139+J140 -> -564890.71
I143: Less: Fully Allocated Depreciation
A144: 10 | C144: Transportation | I144: Transportation
A145: 8 | C145: Stores Equipment | I145: Stores Equipment
I146: Net Depreciation | K146: =J141-K144-K145 -> -564890.71
A149: Appendix 2-BA
A150: Fixed Asset Continuity Schedule 1
E152: Accounting Standard | F152: CGAAP
E153: Year | F153: 2014
D155: Cost | J155: Accumulated Depreciation
A156: CCA Class 2 | B156: OEB Account 3 | C156: Description 3 | D156: Opening Balance | E156: Additions 4 | F156: Disposals | G156: Closing Balance | I156: Opening Balance | J156: Additions | K156: Disposals | L156: Closing Balance | M156: Net Book Value
A157: 12 | B157: 1611 | C157: Computer Software (Formally known as Account 1925) | D157: =G95 -> 140375 | E157: 0 | F157: 0 | G157: =D157+E157+F157 -> 140375 | I157: =L95 -> -32728.41 | J157: -13779.23 | K157: 0 | L157: =I157+J157+K157 -> -46507.64 | M157: =G157+L157 -> 93867.36
A158: CEC | B158: 1612 | C158: Land Rights (Formally known as Account 1906) | D158: =G96 -> 5512 | E158: 0 | F158: 0 | G158: =D158+E158+F158 -> 5512 | I158: =L96 -> -5512 | J158: 0 | K158: 0 | L158: =I158+J158+K158 -> -5512 | M158: =G158+L158 -> 0
A159: N/A | B159: 1805 | C159: Land | D159: 121775.03 | E159: 0 | F159: 0 | G159: =D159+E159+F159 -> 121775.03 | I159: 0 | J159: 0 | K159: 0 | L159: =I159+J159+K159 -> 0 | M159: =G159+L159 -> 121775.03
A160: 47 | B160: 1808 | C160: Buildings | D160: 0 | E160: 0 | F160: 0 | G160: =D160+E160+F160 -> 0 | I160: 0 | J160: 0 | K160: 0 | L160: =I160+J160+K160 -> 0 | M160: =G160+L160 -> 0
A161: 13 | B161: 1810 | C161: Leasehold Improvements | D161: 0 | E161: 0 | F161: 0 | G161: 0 | I161: 0 | J161: 0 | K161: 0 | L161: 0 | M161: 0
A162: 47 | B162: 1815 | C162: Transformer Station Equipment >50 kV | D162: 0 | E162: 0 | F162: 0 | G162: 0 | I162: 0 | J162: 0 | K162: 0 | L162: 0 | M162: 0
A163: 47 | B163: 1820 | C163: Distribution Station Equipment <50 kV | D163: 3329019.59 | E163: 51785.06 | F163: 0 | G163: 3380804.65 | I163: -1024562 | J163: -84460.54 | K163: 0 | L163: -1109022.54 | M163: 2271782.11
A164: 47 | B164: 1825 | C164: Storage Battery Equipment | D164: 0 | E164: 0 | F164: 0 | G164: 0 | I164: 0 | J164: 0 | K164: 0 | L164: 0 | M164: 0
A165: 47 | B165: 1830 | C165: Poles, Towers & Fixtures | D165: 3579520.84 | E165: 472241.04 | F165: -24577.78 | G165: 4027184.1 | I165: -2164011.55 | J165: -93291.5 | K165: 19983.54 | L165: -2237319.51 | M165: 1789864.59
A166: 47 | B166: 1835 | C166: Overhead Conductors & Devices | D166: 3955463.04 | E166: 61106.28 | F166: -7212.47 | G166: 4009356.85 | I166: -2297338.28 | J166: -87768.2 | K166: 6807.15 | L166: -2378299.33 | M166: 1631057.52
A167: 47 | B167: 1840 | C167: Underground Conduit | D167: 310760.82 | E167: 31180 | F167: 0 | G167: 341940.82 | I167: -48461.27 | J167: -6079.8 | K167: 0 | L167: -54541.07 | M167: 287399.75
A168: 47 | B168: 1845 | C168: Underground Conductors & Devices | D168: 5448133.98 | E168: 475381.86 | F168: 0 | G168: 5923515.84 | I168: -2534013.23 | J168: -167751.43 | K168: 0 | L168: -2701764.66 | M168: 3221751.18
A169: 47 | B169: 1850 | C169: Line Transformers | D169: 4536609.02 | E169: 338531.21 | F169: -18109.83 | G169: 4857030.4 | I169: -2214513.66 | J169: -80278.29 | K169: 14792.34 | L169: -2279999.61 | M169: 2577030.79
A170: 47 | B170: 1855 | C170: Services (Overhead & Underground) | D170: 4235704.07 | E170: 343053.2 | F170: 0 | G170: 4578757.27 | I170: -2073469.01 | J170: -91894.43 | K170: 0 | L170: -2165363.44 | M170: 2413393.83
A171: 47 | B171: 1860 | C171: Meters | D171: 217810.42 | E171: 5254.37 | F171: 0 | G171: 223064.79 | I171: -60563.31 | J171: =-6667.79-223.73 -> -6891.52 | K171: 0 | L171: -67454.83 | M171: 155609.96
A172: 47 | B172: 1860 | C172: Meters (Smart Meters) | D172: 1727931.72 | E172: 0 | F172: 0 | G172: 1727931.72 | I172: -454488.67 | J172: -115316.02 | K172: 0 | L172: -569804.69 | M172: 1158127.03
A173: N/A | B173: 1905 | C173: Land | D173: 517753.71 | E173: 91244.52 | F173: 0 | G173: 608998.23 | I173: 0 | J173: 0 | K173: 0 | L173: 0 | M173: 608998.23
A174: 47 | B174: 1908 | C174: Buildings & Fixtures | D174: 1486023.63 | E174: 4626 | F174: 0 | G174: 1490649.63 | I174: -404487.27 | J174: -28060 | K174: 0 | L174: -432547.27 | M174: 1058102.36
A175: 13 | B175: 1910 | C175: Leasehold Improvements | D175: 0 | E175: 0 | F175: 0 | G175: 0 | I175: 0 | J175: 0 | K175: 0 | L175: 0 | M175: 0
A176: 8 | B176: 1915 | C176: Office Furniture & Equipment (10 years) | D176: 0 | E176: 0 | F176: 0 | G176: 0 | I176: 0 | J176: 0 | K176: 0 | L176: 0 | M176: 0
A177: 8 | B177: 1915 | C177: Office Furniture & Equipment (5 years) | D177: 0 | E177: 0 | F177: 0 | G177: 0 | I177: 0 | J177: 0 | K177: 0 | L177: 0 | M177: 0
A178: 10 | B178: 1920 | C178: Computer Equipment - Hardware | D178: 0 | E178: 0 | F178: 0 | G178: 0 | I178: 0 | J178: 0 | K178: 0 | L178: 0 | M178: 0
A179: 45 | B179: 1920 | C179: Computer Equip.-Hardware(Post Mar. 22/04) | D179: 0 | E179: 0 | F179: 0 | G179: 0 | I179: 0 | J179: 0 | K179: 0 | L179: 0 | M179: 0
A180: 45.1 | B180: 1920 | C180: Computer Equip.-Hardware(Post Mar. 19/07) | D180: 0 | E180: 0 | F180: 0 | G180: 0 | I180: 0 | J180: 0 | K180: 0 | L180: 0 | M180: 0
A181: 10 | B181: 1930 | C181: Transportation Equipment | D181: 0 | E181: 0 | F181: 0 | G181: 0 | I181: 0 | J181: 0 | K181: 0 | L181: 0 | M181: 0
A182: 8 | B182: 1935 | C182: Stores Equipment | D182: 0 | E182: 0 | F182: 0 | G182: 0 | I182: 0 | J182: 0 | K182: 0 | L182: 0 | M182: 0
A183: 8 | B183: 1940 | C183: Tools, Shop & Garage Equipment | D183: 0 | E183: 0 | F183: 0 | G183: 0 | I183: 0 | J183: 0 | K183: 0 | L183: 0 | M183: 0
A184: 8 | B184: 1945 | C184: Measurement & Testing Equipment | D184: 0 | E184: 0 | F184: 0 | G184: 0 | I184: 0 | J184: 0 | K184: 0 | L184: 0 | M184: 0
A185: 8 | B185: 1950 | C185: Power Operated Equipment | D185: 0 | E185: 0 | F185: 0 | G185: 0 | I185: 0 | J185: 0 | K185: 0 | L185: 0 | M185: 0
A186: 8 | B186: 1955 | C186: Communications Equipment | D186: 0 | E186: 0 | F186: 0 | G186: 0 | I186: 0 | J186: 0 | K186: 0 | L186: 0 | M186: 0
A187: 8 | B187: 1955 | C187: Communication Equipment (Smart Meters) | D187: 0 | E187: 0 | F187: 0 | G187: 0 | I187: 0 | J187: 0 | K187: 0 | L187: 0 | M187: 0
A188: 8 | B188: 1960 | C188: Miscellaneous Equipment | D188: 0 | E188: 0 | F188: 0 | G188: 0 | I188: 0 | J188: 0 | K188: 0 | L188: 0 | M188: 0
A189: 47 | B189: 1970 | C189: Load Management Controls Customer Premises | D189: 0 | E189: 0 | F189: 0 | G189: 0 | I189: 0 | J189: 0 | K189: 0 | L189: 0 | M189: 0
A190: 47 | B190: 1975 | C190: Load Management Controls Utility Premises | D190: 0 | E190: 0 | F190: 0 | G190: 0 | I190: 0 | J190: 0 | K190: 0 | L190: 0 | M190: 0
A191: 47 | B191: 1980 | C191: System Supervisor Equipment | D191: 47072.52 | E191: 0 | F191: 0 | G191: 47072.52 | I191: -6294.56 | J191: -4400.72 | K191: 0 | L191: -10695.28 | M191: 36377.24
A192: 47 | B192: 1985 | C192: Miscellaneous Fixed Assets | D192: 0 | E192: 0 | F192: 0 | G192: 0 | I192: 0 | J192: 0 | K192: 0 | L192: 0 | M192: 0
A193: 47 | B193: 1990 | C193: Other Tangible Property | D193: 0 | E193: 0 | F193: 0 | G193: 0 | I193: 0 | J193: 0 | K193: 0 | L193: 0 | M193: 0
A194: 47 | B194: 1995 | C194: Contributions & Grants | D194: -6352713 | E194: -684999.49 | F194: 7123.04 | G194: -7030589.45 | I194: 1246776.47 | J194: 186598.34 | K194: -4482.32 | L194: 1428892.49 | M194: -5601696.96
A195: 47 | B195: 2440 | C195: Deferred Revenue5 | D195: 0 | G195: 0 | I195: 0 | J195: 0 | K195: 0 | L195: =I195+J195+K195 -> 0 | M195: =G195+L195 -> 0
B196: 2055 | C196: Capital Lease | D196: 126793.16 | G196: 126793.16 | I196: -6021.53 | J196: -4014.35 | K196: 0 | L196: -10035.88 | M196: 116757.28
G197: =D197+E197+F197 -> 0 | L197: =I197+J197+K197 -> 0 | M197: =G197+L197 -> 0
C198: Sub-Total | D198: =SUM(D157:D197) -> 23433545.55 | E198: =SUM(E157:E197) -> 1189404.05 | F198: =SUM(F157:F197) -> -42777.04 | G198: =SUM(G157:G197) -> 24580172.56 | I198: =SUM(I157:I197) -> -12079688.28 | J198: =SUM(J157:J197) -> -597387.69 | K198: =SUM(K157:K197) -> 37100.71 | L198: =SUM(L157:L197) -> -12639975.26 | M198: =SUM(M157:M197) -> 11940197.3
C199: Less Socialized Renewable Energy Generation Investments (input as negative) | G199: =D199+E199+F199 -> 0 | L199: =I199+J199+K199 -> 0 | M199: =G199+L199 -> 0
C200: Less Other Non Rate-Regulated Utility Assets (input as negative) | G200: 0 | L200: 0 | M200: 0
C201: Total PP&E | D201: =SUM(D198:D200) -> 23433545.55 | E201: =SUM(E198:E200) -> 1189404.05 | F201: -42777.04 | G201: 24580172.56 | I201: =SUM(I198:I200) -> -12079688.28 | J201: -597387.69 | K201: 37100.71 | L201: -12639975.26 | M201: 11940197.3
C202: Depreciation Expense adj. from gain or loss on the retirement of assets (pool of like assets), if applicable6
C203: Total | J203: =J201+J202 -> -597387.69
I205: Less: Fully Allocated Depreciation
A206: 10 | C206: Transportation | I206: Transportation
A207: 8 | C207: Stores Equipment | I207: Stores Equipment
I208: Net Depreciation | K208: =J203-K206-K207 -> -597387.69
A210: Appendix 2-BA
A211: Fixed Asset Continuity Schedule 1
E213: Accounting Standard | F213: MIFRS
E214: Year | F214: 2014
D216: Cost | J216: Accumulated Depreciation
A217: CCA Class 2 | B217: OEB Account 3 | C217: Description 3 | D217: Opening Balance | E217: Additions 4 | F217: Disposals | G217: Closing Balance | I217: Opening Balance | J217: Additions | K217: Disposals | L217: Closing Balance | M217: Net Book Value
A218: 12 | B218: 1611 | C218: Computer Software (Formally known as Account 1925) | D218: =G95 -> 140375 | G218: =D218+E218+F218 -> 140375 | I218: =L95 -> -32728.41 | J218: -13779.23 | K218: 0 | L218: =I218+J218+K218 -> -46507.64 | M218: =G218+L218 -> 93867.36
A219: CEC | B219: 1612 | C219: Land Rights (Formally known as Account 1906) | D219: =G96 -> 5512 | G219: =D219+E219+F219 -> 5512 | I219: =L96 -> -5512 | J219: 0 | K219: 0 | L219: =I219+J219+K219 -> -5512 | M219: =G219+L219 -> 0
A220: N/A | B220: 1805 | C220: Land | D220: 121775.03 | G220: =D220+E220+F220 -> 121775.03 | I220: 0 | J220: 0 | K220: 0 | L220: =I220+J220+K220 -> 0 | M220: =G220+L220 -> 121775.03
A221: 47 | B221: 1808 | C221: Buildings | D221: 0 | G221: =D221+E221+F221 -> 0 | I221: 0 | J221: 0 | K221: 0 | L221: =I221+J221+K221 -> 0 | M221: =G221+L221 -> 0
A222: 13 | B222: 1810 | C222: Leasehold Improvements | D222: 0 | G222: 0 | I222: 0 | J222: 0 | K222: 0 | L222: 0 | M222: 0
A223: 47 | B223: 1815 | C223: Transformer Station Equipment >50 kV | D223: 0 | G223: 0 | I223: 0 | J223: 0 | K223: 0 | L223: 0 | M223: 0
A224: 47 | B224: 1820 | C224: Distribution Station Equipment <50 kV | D224: 3329019.59 | E224: =51785.06 -> 51785.06 | F224: 0 | G224: 3380804.65 | I224: -1024562 | J224: -84460.54 | K224: 0 | L224: -1109022.54 | M224: 2271782.11
A225: 47 | B225: 1825 | C225: Storage Battery Equipment | D225: 0 | E225: 0 | F225: 0 | G225: 0 | I225: 0 | J225: 0 | K225: 0 | L225: 0 | M225: 0
A226: 47 | B226: 1830 | C226: Poles, Towers & Fixtures | D226: 3579520.84 | E226: 472241.04 | F226: -24577.78 | G226: 4027184.1 | I226: -2164011.55 | J226: -93291.5 | K226: 19983.54 | L226: -2237319.51 | M226: 1789864.59
A227: 47 | B227: 1835 | C227: Overhead Conductors & Devices | D227: 3955463.04 | E227: 61106.28 | F227: -7212.47 | G227: 4009356.85 | I227: -2297338.28 | J227: -87768.2 | K227: 6807.15 | L227: -2378299.33 | M227: 1631057.52
... 327 more rows

Sheet Appendix 2-BB Service Life
M1: File Number: | O1: 0
M2: Exhibit: | O2: 4
M3: Tab: | O3: 4
M4: Schedule: | O4: 4
M5: Page: | O5: 55-56
M7: Date:
A9: Appendix 2-BB
A10: Service Life Comparison
A11: Table F-1 from Kinetrics Report1
C15: Asset Details | F15: Useful Life | J15: USoA Account Number | K15: USoA Account Description | L15: Current | N15: Proposed | P15: Outside Range of Min, Max TUL?
A16: Parent* | B16: # | C16: Category| Component | Type | F16: MIN UL | G16: TUL | H16: MAX UL | L16: Years | M16: Rate | N16: Years | O16: Rate | P16: Below Min TUL | Q16: Above Max TUL
A17: OH | B17: 1 | C17: Fully Dressed Wood Poles | D17: Overall | F17: 35 | G17: 45 | H17: 75 | J17: 1830 | K17: Poles, Towers and Fixtures | L17: 45 | M17: =IF(ISERROR(1/L17), "", 1/L17) -> 0.02222222222 | N17: 45 | O17: =IF(ISERROR(1/N17), "", 1/N17) -> 0.02222222222 | P17: =IF(ISBLANK(N17),"",IF(N17<F17,"Yes","No")) -> No | Q17: =IF(ISBLANK(N17),"",IF(N17>H17,"Yes","No")) -> No
D18: Cross Arm | E18: Wood | F18: 20 | G18: 40 | H18: 55 | J18: 1830 | K18: Poles, Towers and Fixtures | L18: 45 | M18: =IF(ISERROR(1/L18), "", 1/L18) -> 0.02222222222 | N18: 45 | O18: =IF(ISERROR(1/N18), "", 1/N18) -> 0.02222222222 | P18: =IF(ISBLANK(N18),"",IF(N18<F18,"Yes","No")) -> No | Q18: =IF(ISBLANK(N18),"",IF(N18>H18,"Yes","No")) -> No
E19: Steel | F19: 30 | G19: 70 | H19: 95
B20: 2 | C20: Fully Dressed Concrete Poles | D20: Overall | F20: 50 | G20: 60 | H20: 80
D21: Cross Arm | E21: Wood | F21: 20 | G21: 40 | H21: 55
E22: Steel | F22: 30 | G22: 70 | H22: 95
B23: 3 | C23: Fully Dressed Steel Poles | D23: Overall | F23: 60 | G23: 60 | H23: 80
D24: Cross Arm | E24: Wood | F24: 20 | G24: 40 | H24: 55
E25: Steel | F25: 30 | G25: 70 | H25: 95 | J25: 1830 | K25: Poles, Towers and Fixtures | L25: 45 | M25: 0.02222222222 | N25: 45 | O25: 0.02222222222 | P25: No | Q25: No
B26: 4 | C26: OH Line Switch | F26: 30 | G26: 45 | H26: 55 | J26: 1835 | K26: Undgerground Conductors and Devices | L26: 45 | M26: 0.02222222222 | N26: 45 | O26: 0.02222222222 | P26: No | Q26: No
B27: 5 | C27: OH Line Switch Motor | F27: 15 | G27: 25 | H27: 25
B28: 6 | C28: OH Line Switch RTU | F28: 15 | G28: 20 | H28: 20
B29: 7 | C29: OH Integral Switches | F29: 35 | G29: 45 | H29: 60 | J29: 1835 | K29: Undgerground Conductors and Devices | L29: 45 | M29: 0.02222222222 | N29: 45 | O29: 0.02222222222 | P29: No | Q29: No
B30: 8 | C30: OH Conductors | F30: 50 | G30: 60 | H30: 75 | J30: 1835 | K30: Undgerground Conductors and Devices | L30: 45 | M30: 0.02222222222 | N30: 45 | O30: 0.02222222222 | P30: Yes | Q30: No
B31: 9 | C31: OH Transformers & Voltage Regulators | F31: 30 | G31: 40 | H31: 60 | J31: 1850 | K31: Line Transformers | L31: 50 | M31: 0.02 | N31: 50 | O31: 0.02 | P31: No | Q31: No
B32: 10 | C32: OH Shunt Capacitor Banks | F32: 25 | G32: 30 | H32: 40
B33: 11 | C33: Reclosers | F33: 25 | G33: 40 | H33: 55
A34: TS & MS | B34: 12 | C34: Power Transformers | D34: Overall | F34: 30 | G34: 45 | H34: 60 | J34: 1820 | K34: Distribution Station Equipment | L34: 45 | M34: 0.02222222222 | N34: 45 | O34: 0.02222222222 | P34: No | Q34: No
D35: Bushing | F35: 10 | G35: 20 | H35: 30
D36: Tap Changer | F36: 20 | G36: 30 | H36: 60
B37: 13 | C37: Station Service Transformer | F37: 30 | G37: 45 | H37: 55
B38: 14 | C38: Station Grounding Transformer | F38: 30 | G38: 40 | H38: 40
B39: 15 | C39: Station DC System | D39: Overall | F39: 10 | G39: 20 | H39: 30
D40: Battery Bank | F40: 10 | G40: 15 | H40: 15
D41: Charger | F41: 20 | G41: 20 | H41: 30
B42: 16 | C42: Station Metal Clad Switchgear | D42: Overall | F42: 30 | G42: 40 | H42: 60 | J42: 1820 | K42: Distribution Station Equipment | L42: 40 | M42: =IF(ISERROR(1/L42), "", 1/L42) -> 0.025 | N42: 40 | O42: 0.025 | P42: No | Q42: No
D43: Removable Breaker | F43: 25 | G43: 40 | H43: 60 | J43: 1820 | K43: Distribution Station Equipment | L43: 40 | M43: 0.025 | N43: 40 | O43: 0.025 | P43: No | Q43: No
B44: 17 | C44: Station Independent Breakers | F44: 35 | G44: 45 | H44: 65 | J44: 1820 | K44: Distribution Station Equipment | L44: 40 | M44: 0.025 | N44: 40 | O44: 0.025 | P44: No | Q44: No
B45: 18 | C45: Station Switch | F45: 30 | G45: 50 | H45: 60 | J45: 1820 | K45: Distribution Station Equipment | L45: 40 | M45: 0.025 | N45: 40 | O45: 0.025 | P45: No | Q45: No
B46: 19 | C46: Electromechanical Relays | F46: 25 | G46: 35 | H46: 50
B47: 20 | C47: Solid State Relays | F47: 10 | G47: 30 | H47: 45 | J47: 1820 | K47: Distribution Station Equipment | L47: 20 | M47: 0.05 | N47: 20 | O47: 0.05 | P47: No | Q47: No
B48: 21 | C48: Digital & Numeric Relays | F48: 15 | G48: 20 | H48: 20 | J48: 1820 | K48: Distribution Station Equipment | L48: 20 | M48: =IF(ISERROR(1/L48), "", 1/L48) -> 0.05 | N48: 20 | O48: =IF(ISERROR(1/N48), "", 1/N48) -> 0.05 | P48: No | Q48: No
B49: 22 | C49: Rigid Busbars | F49: 30 | G49: 55 | H49: 60
B50: 23 | C50: Steel Structure | F50: 35 | G50: 50 | H50: 90 | J50: 1820 | K50: Distribution Station Equipment | L50: 50 | M50: 0.02 | N50: 50 | O50: 0.02 | P50: No | Q50: No
A51: UG | B51: 24 | C51: Primary Paper Insulated Lead Covered (PILC) Cables | F51: 60 | G51: 65 | H51: 75
B52: 25 | C52: Primary Ethylene-Propylene Rubber (EPR) Cables | F52: 20 | G52: 25 | H52: 25
B53: 26 | C53: Primary Non-Tree Retardant (TR) Cross Linked Polyethylene (XLPE) Cables Direct Buried | F53: 20 | G53: 25 | H53: 30
B54: 27 | C54: Primary Non-TR XLPE Cables in Duct | F54: 20 | G54: 25 | H54: 30 | J54: 1845 | K54: Undgerground Conductor | L54: 30 | M54: 0.03333333333 | N54: 30 | O54: 0.03333333333 | P54: No | Q54: No
B55: 30 | C55: Secondary PILC Cables | F55: 70 | G55: 75 | H55: 80
B56: 31 | C56: Secondary Cables Direct Buried | F56: 25 | G56: 35 | H56: 40 | J56: 1855 | K56: Secondary Services | L56: 35 | M56: 0.02857142857 | N56: 35 | O56: 0.02857142857 | P56: No | Q56: No
B57: 32 | C57: Secondary Cables in Duct | F57: 35 | G57: 40 | H57: 60
B58: 33 | C58: Network Tranformers | D58: Overall | F58: 20 | G58: 35 | H58: 50
D59: Protector | F59: 20 | G59: 35 | H59: 40
B60: 34 | C60: Pad-Mounted Transformers | F60: 25 | G60: 40 | H60: 45 | J60: 1950 | K60: Transformer | L60: 40 | M60: 0.025 | N60: 40 | O60: 0.025 | P60: No | Q60: No
B61: 35 | C61: Submersible/Vault Transformers | F61: 25 | G61: 35 | H61: 45
B62: 36 | C62: UG Foundation | F62: 35 | G62: 55 | H62: 70
B63: 37 | C63: UG Vaults | D63: Overall | F63: 40 | G63: 60 | H63: 80
D64: Roof | F64: 20 | G64: 30 | H64: 45
B65: 38 | C65: UG Vault Switches | F65: 20 | G65: 35 | H65: 50
B66: 39 | C66: Pad-Mounted Switchgear | F66: 20 | G66: 30 | H66: 45
B67: 40 | C67: Ducts | F67: 30 | G67: 50 | H67: 85 | J67: 1850 | K67: Conduit | L67: 50 | M67: 0.02 | N67: 50 | O67: 0.02 | P67: No | Q67: No
B68: 41 | C68: Concrete Encased Duct Banks | F68: 35 | G68: 55 | H68: 80
B69: 42 | C69: Cable Chambers | F69: 50 | G69: 60 | H69: 80
A70: S | B70: 43 | C70: Remote SCADA | F70: 15 | G70: 20 | H70: 30 | J70: 1980 | K70: SCADA | L70: 20 | M70: 0.05 | N70: 20 | O70: 0.05 | P70: No | Q70: No
A73: Table F-2 from Kinetrics Report1
C75: Asset Details | F75: Useful Life Range | J75: USoA Account Number | K75: USoA Account Description | L75: Current | N75: Proposed | P75: Outside Range of Min, Max TUL?
B76: # | C76: Category| Component | Type | L76: Years | M76: Rate | N76: Years | O76: Rate | P76: Below Min Range | Q76: Above Max Range
B77: 1 | C77: Office Equipment | F77: 5 | G77: 15 | M77: =IF(ISERROR(1/L77), "", 1/L77) ->  | O77: =IF(ISERROR(1/N77), "", 1/N77) ->  | P77: =IF(ISBLANK(N77),"",IF(N77<F77,"Yes","No")) ->  | Q77: =IF(ISBLANK(N77),"",IF(N77>G77,"Yes","No")) -> 
B78: 2 | C78: Vehicles | D78: Trucks & Buckets | F78: 5 | G78: 15 | M78: =IF(ISERROR(1/L78), "", 1/L78) ->  | O78: =IF(ISERROR(1/N78), "", 1/N78) ->  | P78: =IF(ISBLANK(N78),"",IF(N78<F78,"Yes","No")) ->  | Q78: =IF(ISBLANK(N78),"",IF(N78>G78,"Yes","No")) -> 
D79: Trailers | F79: 5 | G79: 20
D80: Vans | F80: 5 | G80: 10
B81: 3 | C81: Administrative Buildings | F81: 50 | G81: 75
B82: 4 | C82: Leasehold Improvements | F82: Lease dependent
B83: 5 | C83: Station Buildings | D83: Station Buildings | F83: 50 | G83: 75 | J83: 1820 | K83: Distribution Station Equipment | L83: 50 | M83: 0.02 | N83: 50 | O83: 0.02 | P83: No | Q83: No
D84: Parking | F84: 25 | G84: 30
D85: Fence | F85: 25 | G85: 60 | J85: 1820 | K85: Distribution Station Equipment | L85: 50 | M85: 0.02 | N85: 50 | O85: 0.02 | P85: No | Q85: No
D86: Roof | F86: 20 | G86: 30
B87: 6 | C87: Computer Equipment | D87: Hardware | F87: 3 | G87: 5
D88: Software | F88: 2 | G88: 5 | J88: 1611 | K88: Computer Software | L88: 10 | M88: 0.1 | N88: 10 | O88: 0.1 | P88: No | Q88: Yes
B89: 7 | C89: Equipment | D89: Power Operated | F89: 5 | G89: 10
D90: Stores | F90: 5 | G90: 10
D91: Tools, Shop, Garage Equipment | F91: 5 | G91: 10
D92: Measurement & Testing Equipment | F92: 5 | G92: 10
B93: 8 | C93: Communication | D93: Towers | F93: 60 | G93: 70 | J93: 2055 | K93: Capital Leases - Towers | L93: 50 | M93: 0.02 | N93: 50 | O93: 0.02 | P93: Yes | Q93: No
D94: Wireless | F94: 2 | G94: 10 | J94: 1980 | K94: System Supervisor Equipment | L94: 20 | M94: 0.05 | N94: 20 | O94: 0.05 | P94: No | Q94: Yes
B95: 9 | C95: Residential Energy Meters | F95: 25 | G95: 35
B96: 10 | C96: Industrial/Commercial Energy Meters | F96: 25 | G96: 35 | J96: 1860 | K96: Meters | L96: 25 | M96: 0.04 | N96: 25 | O96: 0.04 | P96: No | Q96: No
B97: 11 | C97: Wholesale Energy Meters | F97: 15 | G97: 30 | J97: 1860 | K97: Meters | L97: 25 | M97: 0.04 | N97: 25 | O97: 0.04 | P97: No | Q97: No
B98: 12 | C98: Current & Potential Transformer (CT & PT) | F98: 35 | G98: 50
B99: 13 | C99: Smart Meters | F99: 5 | G99: 15 | J99: 1860 | K99: Meters | L99: 15 | M99: 0.06666666667 | N99: 15 | O99: 0.06666666667 | P99: No | Q99: No
B100: 14 | C100: Repeaters - Smart Metering | F100: 10 | G100: 15
B101: 15 | C101: Data Collectors - Smart Metering | F101: 15 | G101: 20
A104: * TS & MS = Transformer and Municipal Stations UG = Underground Systems S = Monitoring and Control Systems
A106: Note 1: | B106: Tables F-1 and F-2 above are to be used as a reference in order to complete columns J, K, L and N.
B107: See pages 17-19 of Kinetrics Report

Sheet App.2-CA_OldCGAAP_DepExp_2012
K1: File Number: | L1: =EBNUMBER -> EB-2015-0107
K2: Exhibit: | L2: 2
K3: Tab:
K4: Schedule:
K5: Page:
K7: Date:
A9: Appendix 2-CA
A10: Depreciation and Amortization Expense
B11: Assumes the applicant made capitalization and depreciation expense accounting policy changes under CGAAP effective January 1, 2012 and has adopted IFRS for financial reporting purposes effective January 1, 2015.
C13: Year | D13: 2012 | E13: Former CGAAP
A15: Account | B15: Description | C15: Opening Regulatory Gross PP&E as at Jan 1, 2012 | D15: Less Fully Depreciated | E15: Net for Depreciation | F15: Additions | G15: Total for Depreciation 1 | H15: Years | I15: Depreciation Rate | J15: Depreciation Expense | K15: 2012 Depreciation Expense per Appendix 2-BA Fixed Assets, Column J (l) | L15: Variance 2
C16: (a) | D16: (b) | E16: (c) | F16: (d) | G16: (e) = (c) + ½ x (d) | H16: (f) | I16: (g) = 1 / (f) | J16: (h) = (e) / (f) | L16: (m) = (h) - (l)
A17: 1611 | B17: Computer Software (Formally known as Account 1925) | E17: =C17-D17 -> 0 | G17: =E17+0.5*F17 -> 0 | I17: =IF(H17=0,0,1/H17) -> 0 | J17: =IF(H17=0,0,G17/H17) -> 0 | L17: =IF(ISERROR(+J17-K17), 0, +J17-K17) -> 0
A18: 1612 | B18: Land Rights (Formally known as Account 1906) | E18: =C18-D18 -> 0 | G18: =E18+0.5*F18 -> 0 | I18: 0 | J18: 0 | L18: 0
A19: 1805 | B19: Land | E19: 0 | G19: 0 | I19: 0 | J19: 0 | L19: 0
A20: 1808 | B20: Buildings | E20: 0 | G20: 0 | I20: 0 | J20: 0 | L20: 0
A21: 1810 | B21: Leasehold Improvements | E21: 0 | G21: 0 | I21: 0 | J21: 0 | L21: 0
A22: 1815 | B22: Transformer Station Equipment >50 kV | E22: 0 | G22: 0 | I22: 0 | J22: 0 | L22: 0
A23: 1820 | B23: Distribution Station Equipment <50 kV | E23: 0 | G23: 0 | I23: 0 | J23: 0 | L23: 0
A24: 1825 | B24: Storage Battery Equipment | E24: 0 | G24: 0 | I24: 0 | J24: 0 | L24: 0
A25: 1830 | B25: Poles, Towers & Fixtures | E25: 0 | G25: 0 | I25: 0 | J25: 0 | L25: 0
A26: 1835 | B26: Overhead Conductors & Devices | E26: 0 | G26: 0 | I26: 0 | J26: 0 | L26: 0
A27: 1840 | B27: Underground Conduit | E27: 0 | G27: 0 | I27: 0 | J27: 0 | L27: 0
A28: 1845 | B28: Underground Conductors & Devices | E28: 0 | G28: 0 | I28: 0 | J28: 0 | L28: 0
A29: 1850 | B29: Line Transformers | E29: 0 | G29: 0 | I29: 0 | J29: 0 | L29: 0
A30: 1855 | B30: Services (Overhead & Underground) | E30: 0 | G30: 0 | I30: 0 | J30: 0 | L30: 0
A31: 1860 | B31: Meters | E31: 0 | G31: 0 | I31: 0 | J31: 0 | L31: 0
A32: 1860 | B32: Meters (Smart Meters) | E32: 0 | G32: 0 | I32: 0 | J32: 0 | L32: 0
A33: 1905 | B33: Land | E33: 0 | G33: 0 | I33: 0 | J33: 0 | L33: 0
A34: 1908 | B34: Buildings & Fixtures | E34: 0 | G34: 0 | I34: 0 | J34: 0 | L34: 0
A35: 1910 | B35: Leasehold Improvements | E35: 0 | G35: 0 | I35: 0 | J35: 0 | L35: 0
A36: 1915 | B36: Office Furniture & Equipment (10 years) | E36: 0 | G36: 0 | I36: 0 | J36: 0 | L36: 0
A37: 1915 | B37: Office Furniture & Equipment (5 years) | E37: 0 | G37: 0 | I37: 0 | J37: 0 | L37: 0
A38: 1920 | B38: Computer Equipment - Hardware | E38: 0 | G38: 0 | I38: 0 | J38: 0 | L38: 0
A39: 1920 | B39: Computer Equip.-Hardware(Post Mar. 22/04) | E39: 0 | G39: 0 | I39: 0 | J39: 0 | L39: 0
A40: 1920 | B40: Computer Equip.-Hardware(Post Mar. 19/07) | E40: 0 | G40: 0 | I40: 0 | J40: 0 | L40: 0
A41: 1930 | B41: Transportation Equipment | E41: 0 | G41: 0 | I41: 0 | J41: 0 | L41: 0
A42: 1935 | B42: Stores Equipment | E42: 0 | G42: 0 | I42: 0 | J42: 0 | L42: 0
A43: 1940 | B43: Tools, Shop & Garage Equipment | E43: 0 | G43: 0 | I43: 0 | J43: 0 | L43: 0
A44: 1945 | B44: Measurement & Testing Equipment | E44: 0 | G44: 0 | I44: 0 | J44: 0 | L44: 0
A45: 1950 | B45: Power Operated Equipment | E45: 0 | G45: 0 | I45: 0 | J45: 0 | L45: 0
A46: 1955 | B46: Communications Equipment | E46: 0 | G46: 0 | I46: 0 | J46: 0 | L46: 0
A47: 1955 | B47: Communication Equipment (Smart Meters) | E47: 0 | G47: 0 | I47: 0 | J47: 0 | L47: 0
A48: 1960 | B48: Miscellaneous Equipment | E48: 0 | G48: 0 | I48: 0 | J48: 0 | L48: 0
A49: 1970 | B49: Load Management Controls Customer Premises | E49: 0 | G49: 0 | I49: 0 | J49: 0 | L49: 0
A50: 1975 | B50: Load Management Controls Utility Premises | E50: 0 | G50: 0 | I50: 0 | J50: 0 | L50: 0
A51: 1980 | B51: System Supervisor Equipment | E51: 0 | G51: 0 | I51: 0 | J51: 0 | L51: 0
A52: 1985 | B52: Miscellaneous Fixed Assets | E52: 0 | G52: 0 | I52: 0 | J52: 0 | L52: 0
A53: 1990 | B53: Other Tangible Property | E53: 0 | G53: 0 | I53: 0 | J53: 0 | L53: 0
A54: 1995 | B54: Contributions & Grants | E54: 0 | G54: 0 | I54: 0 | J54: 0 | L54: 0
B55: Total | C55: =SUM(C17:C54) -> 0 | D55: =SUM(D17:D54) -> 0 | E55: =SUM(E17:E54) -> 0 | F55: =SUM(F17:F54) -> 0 | G55: =SUM(G17:G54) -> 0 | J55: =SUM(J17:J54) -> 0 | K55: =SUM(K17:K54) -> 0 | L55: =SUM(L17:L54) -> 0
A57: Notes:
A59: 1 | B59: Board policy of the "half-year" rule - the applicant must ensure that additions in the year attract a half-year depreciation expense in the first year. Deviations from this standard practice must be supported in the application.
A60: 2 | B60: The applicant must provide an explanation of material variances in evidence.
A62: General | B62: Applicants must provide a breakdown of depreciation and amortization expense in the above format for all relevant accounts. Asset Retirement Obligations (AROs), depreciation and accretion expense should be disclosed separately consistent with the Notes of historical Audited Financial Statements.

Sheet App.2-CB_NewCGAAP_DepExp_2012
N1: File Number: | O1: =EBNUMBER -> EB-2015-0107
N2: Exhibit: | O2: 4
N3: Tab: | O3: 4
N4: Schedule: | O4: 2
N5: Page: | O5: 49
N7: Date:
A9: Appendix 2-CB
A10: Depreciation and Amortization Expense
A11: Assumes the applicant made capitalization and depreciation expense accounting policy changes under CGAAP effective January 1, 2012 and has adopted IFRS for financial reporting purposes effective January 1, 2015.
C13: Year | D13: 2012 | E13: Revised CGAAP
A15: Account | B15: Description | C15: Opening NBV as at Jan 1, 2012 5 | D15: Additions | E15: Average Remaining Life of Opening NBV 4 | F15: Years (new additions only) 3 | G15: Depreciation Rate on New Additions | H15: Depreciation Expense on Opening NBV | I15: Depreciation Expense on Additions 1 | J15: 2012 Depreciation Expense | K15: 2012 Depreciation Expense per Appendix 2-BA Fixed Assets, Column J (l) | L15: Variance 2 | M15: Depreciation Expense on 2012 Full Year Additions | N15: Less Depreciation Expense on Assets Fully Depreciated during the year (o) | O15: 2012 Full Year Depreciation 6
C16: (a) | D16: (d) | E16: (i) | F16: (f) | G16: (g) = 1 / (f) | H16: (j) = (a) / (i) | I16: (h)=((d)*0.5)/(f) | J16: (k) = (j) + (h) | L16: (m) = (k) - (l) | M16: (n) = (d)/(f) | O16: (p) = (j) + (n) - (o)
A17: 1611 | B17: Computer Software (Formally known as Account 1925) | C17: =51375-9607 -> 41768 | D17: 89000 | E17: 8.55 | F17: 10 | G17: =IF(F17=0,0,1/F17) -> 0.1 | H17: =IF(E17=0,0,+C17/E17) -> 4885.146199 | I17: =IF(F17=0,0,+(D17*0.5)/F17) -> 4450 | J17: =IF(ISERROR(+H17+I17), 0, +H17+I17) -> 9335.146199 | K17: 9343 | L17: =IF(ISERROR(+J17-K17), 0, +J17-K17) -> -7.85380117 | M17: =IF(F17=0,0,+(D17)/F17) -> 8900 | N17: 0 | O17: =IF(ISERROR(+M17+H17-N17), 0, +M17+H17-N17) -> 13785.1462
A18: 1612 | B18: Land Rights (Formally known as Account 1906) | C18: 0 | D18: 0 | E18: 0 | F18: 0 | G18: 0 | H18: 0 | I18: 0 | J18: 0 | L18: =IF(ISERROR(+J18-K18), 0, +J18-K18) -> 0 | M18: 0 | O18: =IF(ISERROR(+M18+H18-N18), 0, +M18+H18-N18) -> 0
A19: 1805 | B19: Land | C19: 121775 | D19: 0 | E19: 0 | F19: 0 | G19: 0 | H19: 0 | I19: 0 | J19: 0 | L19: 0 | M19: 0 | O19: 0
A20: 1808 | B20: Buildings | C20: 0 | D20: 0 | E20: 0 | F20: 0 | G20: 0 | H20: 0 | I20: 0 | J20: 0 | L20: 0 | M20: 0 | O20: 0
A21: 1810 | B21: Leasehold Improvements | C21: 0 | D21: 0 | E21: 0 | F21: 0 | G21: 0 | H21: 0 | I21: 0 | J21: 0 | L21: 0 | M21: 0 | O21: 0
A22: 1815 | B22: Transformer Station Equipment >50 kV | C22: 0 | D22: 0 | E22: 0 | F22: 0 | G22: 0 | H22: 0 | I22: 0 | J22: 0 | L22: 0 | M22: 0 | O22: 0
A23: 1820 | B23: Distribution Station Equipment <50 kV - Building & Infrastructure | C23: 314353.34 | D23: 0 | E23: 43 | F23: 50 | G23: 0.02 | H23: 7310.542791 | I23: 0 | J23: 7310.542791 | K23: 7273.1 | L23: 37.4427907 | M23: 0 | O23: 7310.542791
A24: 1820 | B24: Distribution Station Equipment <50 kV - Civil Work | C24: 130959.54 | D24: 0 | E24: 44.5 | F24: 50 | G24: 0.02 | H24: 2942.911011 | I24: 0 | J24: 2942.911011 | K24: 2929.03 | L24: 13.88101124 | M24: 0 | O24: 2942.911011
A25: 1820 | B25: Distribution Station Equipment <50 kV - LV Reclosures & Breakers | C25: 339505.23 | D25: 0 | E25: 13.35 | F25: 20 | G25: 0.05 | H25: 25431.10337 | I25: 0 | J25: 25431.10337 | K25: 25437.33 | L25: -6.226629213 | M25: 0 | O25: 25431.10337
A26: 1820 | B26: Distribution Station Equipment <50 kV - Equipment | C26: 781809.45 | D26: 0 | E26: 33 | F26: 40 | G26: 0.025 | H26: 23691.19545 | I26: 0 | J26: 23691.19545 | K26: 23671.66 | L26: 19.53545455 | M26: 0 | O26: 23691.19545
A27: 1820 | B27: Distribution Station Equipment <50 kV - Transformer | C27: 814442.96 | D27: 0 | E27: 39.75 | F27: 45 | G27: 0.02222222222 | H27: 20489.13107 | I27: 0 | J27: 20489.13107 | K27: 20518.91 | L27: -29.77893082 | M27: 0 | O27: 20489.13107
A28: 1825 | B28: Storage Battery Equipment | C28: 0 | D28: 0 | E28: 0 | F28: 0 | G28: 0 | H28: 0 | I28: 0 | J28: 0 | L28: 0 | M28: 0 | O28: 0
A29: 1830 | B29: Poles, Towers & Fixtures | C29: =3153339-1999850.31 -> 1153488.69 | D29: 330497.3 | E29: 14.55 | F29: 45 | G29: 0.02222222222 | H29: =IF(E29=0,0,+C29/E29) -> 79277.5732 | I29: 3672.192222 | J29: 82949.76542 | K29: 82912.53 | L29: =IF(ISERROR(+J29-K29), 0, +J29-K29) -> 37.2354181 | M29: 7344.384444 | N29: 254.2 | O29: 86367.75764
A30: 1835 | B30: Overhead Conductors & Devices | C30: =3515888-2130237.05 -> 1385650.95 | D30: 319173.59 | E30: 17.85 | F30: 45 | G30: 0.02222222222 | H30: 77627.5042 | I30: 3546.373222 | J30: 81173.87742 | K30: 81214.16 | L30: -40.2825761 | M30: 7092.746444 | O30: 84720.25065
A31: 1840 | B31: Underground Conduit | C31: =268601-38140.62 -> 230460.38 | D31: 1797.41 | E31: 46.5 | F31: 50 | G31: 0.02 | H31: 4956.137204 | I31: 17.9741 | J31: 4974.111304 | K31: 4956.27 | L31: 17.8413043 | M31: 35.9482 | O31: 4992.085404
A32: 1845 | B32: Underground Conductors & Devices | C32: =5015219-2231847.23 -> 2783371.77 | D32: 112700.13 | E32: 19.1 | F32: 30 | G32: 0.03333333333 | H32: 145726.2707 | I32: 1878.3355 | J32: 147604.6062 | K32: 147674.56 | L32: -69.95381937 | M32: 3756.671 | O32: 149482.9417
A33: 1850 | B33: Line Transformers | C33: =4049391-2092868.12 -> 1956522.88 | D33: 217045.44 | E33: 30.6 | F33: 40 | G33: 0.025 | H33: 63938.65621 | I33: 2713.068 | J33: 66651.72421 | K33: 66611.06 | L33: 40.66420915 | M33: 5426.136 | N33: 64.45 | O33: 69300.34221
A34: 1855 | B34: Services (Overhead & Underground) | C34: =3608742-1918062.03 -> 1690679.97 | D34: 282236.4 | E34: 24.4 | F34: 35 | G34: 0.02857142857 | H34: 69290.1627 | I34: 4031.948571 | J34: 73322.11128 | K34: 73325.89 | L34: -3.778723653 | M34: 8063.897143 | O34: 77354.05985
A35: 1860 | B35: Meters | C35: =4335.62-86.51 -> 4249.11 | D35: 0 | E35: 24.5 | F35: 25 | G35: 0.04 | H35: 173.4330612 | I35: 0 | J35: 173.4330612 | K35: 173.8 | L35: -0.3669387755 | M35: 0 | O35: 173.4330612
A36: 1860 | B36: Meters (Smart Meters) | C36: =1646261.01-242095 -> 1404166.01 | D36: 90638.94 | E36: 12.75 | F36: 15 | G36: 0.06666666667 | H36: 110130.6675 | I36: 3021.298 | J36: 113151.9655 | K36: 113015.45 | L36: =IF(ISERROR(+J36-K36), 0, +J36-K36) -> 136.515451 | M36: 6042.596 | N36: =70001/15 -> 4666.733333 | O36: 111506.5301
A37: 1860 | B37: Primary Metering Equipment | C37: 63774.27 | D37: 0 | E37: 12.9 | F37: 25 | G37: 0.04 | H37: 4943.74186 | I37: 0 | J37: 4943.74186 | K37: 4949.79 | L37: -6.048139535 | M37: 0 | N37: 2194.27 | O37: 2749.47186
A38: 1905 | B38: Land | C38: 382467 | D38: 106865.98 | E38: 0 | F38: 0 | G38: 0 | H38: 0 | I38: 0 | J38: 0 | L38: 0 | M38: 0 | O38: 0
A39: 1908 | B39: Buildings & Fixtures | C39: =1014876-361290.99 -> 653585.01 | D39: 6393.45 | E39: 33.1 | F39: 50 | G39: 0.02 | H39: 19745.77069 | I39: 63.9345 | J39: 19809.70519 | K39: 19829.78 | L39: -20.07480514 | M39: 127.869 | N39: 1124 | O39: 18749.63969
A40: 1910 | B40: Leasehold Improvements | G40: 0 | H40: 0 | I40: 0 | J40: 0 | L40: 0 | M40: 0 | O40: 0
A41: 1915 | B41: Office Furniture & Equipment (10 years) | G41: 0 | H41: 0 | I41: 0 | J41: 0 | L41: 0 | M41: 0 | O41: 0
A42: 1915 | B42: Office Furniture & Equipment (5 years) | G42: 0 | H42: 0 | I42: 0 | J42: 0 | L42: 0 | M42: 0 | O42: 0
A43: 1920 | B43: Computer Equipment - Hardware | G43: 0 | H43: 0 | I43: 0 | J43: 0 | L43: 0 | M43: 0 | O43: 0
A44: 1920 | B44: Computer Equip.-Hardware(Post Mar. 22/04) | G44: 0 | H44: 0 | I44: 0 | J44: 0 | L44: 0 | M44: 0 | O44: 0
A45: 1920 | B45: Computer Equip.-Hardware(Post Mar. 19/07) | G45: 0 | H45: 0 | I45: 0 | J45: 0 | L45: 0 | M45: 0 | O45: 0
A46: 1930 | B46: Transportation Equipment | G46: 0 | H46: 0 | I46: 0 | J46: 0 | L46: 0 | M46: 0 | O46: 0
A47: 1935 | B47: Stores Equipment | G47: 0 | H47: 0 | I47: 0 | J47: 0 | L47: 0 | M47: 0 | O47: 0
A48: 1940 | B48: Tools, Shop & Garage Equipment | G48: 0 | H48: 0 | I48: 0 | J48: 0 | L48: 0 | M48: 0 | O48: 0
A49: 1945 | B49: Measurement & Testing Equipment | G49: 0 | H49: 0 | I49: 0 | J49: 0 | L49: 0 | M49: 0 | O49: 0
A50: 1950 | B50: Power Operated Equipment | G50: 0 | H50: 0 | I50: 0 | J50: 0 | L50: 0 | M50: 0 | O50: 0
A51: 1955 | B51: Communications Equipment | G51: 0 | H51: 0 | I51: 0 | J51: 0 | L51: 0 | M51: 0 | O51: 0
A52: 1955 | B52: Communication Equipment (Smart Meters) | G52: 0 | H52: 0 | I52: 0 | J52: 0 | L52: 0 | M52: 0 | O52: 0
A53: 1960 | B53: Miscellaneous Equipment | G53: 0 | H53: 0 | I53: 0 | J53: 0 | L53: 0 | M53: 0 | O53: 0
A54: 1970 | B54: Load Management Controls Customer Premises | G54: 0 | H54: 0 | I54: 0 | J54: 0 | L54: 0 | M54: 0 | O54: 0
A55: 1975 | B55: Load Management Controls Utility Premises | G55: 0 | H55: 0 | I55: 0 | J55: 0 | L55: 0 | M55: 0 | O55: 0
A56: 1980 | B56: System Supervisor Equipment | C56: 0 | D56: 40942.03 | E56: 0 | F56: 10 | G56: 0.1 | H56: 0 | I56: 2047.1015 | J56: 2047.1015 | K56: 2047.1 | L56: 0.0015 | M56: =IF(F56=0,0,+(D56)/F56) -> 4094.203 | O56: 4094.203
A57: 1985 | B57: Miscellaneous Fixed Assets | G57: 0 | H57: 0 | I57: 0 | J57: 0 | L57: 0 | M57: 0 | O57: 0
A58: 1990 | B58: Other Tangible Property | G58: 0 | H58: 0 | I58: 0 | J58: 0 | L58: 0 | M58: 0 | O58: 0
A59: 1995-1820-01 | B59: Contributions & Grants - Station Building & Infrastructure | C59: -71826.77 | D59: 0 | E59: 47.5 | F59: 50 | G59: 0.02 | H59: -1512.142526 | I59: 0 | J59: -1512.142526 | K59: -1017.79 | L59: -494.3525263 | M59: 0 | O59: =IF(ISERROR(+M59+H59-N59), 0, +M59+H59-N59) -> -1512.142526
A60: 1995-1820-02 | B60: Contributions & Grants - Station Civil Work | C60: -70692.66 | D60: 0 | E60: 47.5 | F60: 50 | G60: 0.02 | H60: -1488.266526 | I60: 0 | J60: -1488.266526 | K60: -1001.72 | L60: -486.5465263 | M60: 0 | O60: -1488.266526
A61: 1995-1820-03 | B61: Contributions & Grants - Station LV/Reclosures & Breakers | C61: -92455.48 | D61: 0 | E61: 17.5 | F61: 20 | G61: 0.05 | H61: =IF(E61=0,0,+C61/E61) -> -5283.170286 | I61: 0 | J61: -5283.170286 | K61: -3541.94 | L61: -1741.230286 | M61: 0 | O61: -5283.170286
A62: 1995-1820-04 | B62: Contributions & Grants - Station Equipment | C62: -255035.3 | D62: 0 | E62: 37.5 | F62: 40 | G62: 0.025 | H62: -6800.941333 | I62: 0 | J62: -6800.941333 | K62: -4535.84 | L62: -2265.101333 | M62: 0 | O62: -6800.941333
A63: 1995-1820-05 | B63: Contributions & Grants - Station Transformers | C63: -261162.52 | D63: 0 | E63: 42.5 | F63: 45 | G63: 0.02222222222 | H63: -6145.000471 | I63: 0 | J63: -6145.000471 | K63: -4119.35 | L63: -2025.650471 | M63: 0 | O63: -6145.000471
A64: 1995-1830 | B64: Contributions & Grants - Poles | C64: -176791.39 | D64: -22367.93 | E64: 39.75 | F64: 45 | G64: 0.02222222222 | H64: =IF(E64=0,0,+C64/E64) -> -4447.582138 | I64: -248.5325556 | J64: -4696.114694 | K64: -4699.26 | L64: =IF(ISERROR(+J64-K64), 0, +J64-K64) -> 3.14530608 | M64: -497.0651111 | O64: =IF(ISERROR(+M64+H64-N64), 0, +M64+H64-N64) -> -4944.647249
A65: 1995-1835 | B65: Contributions & Grants - O/H Conductor | C65: -48881.7 | D65: -1306.82 | E65: 35.75 | F65: 45 | G65: 0.02222222222 | H65: -1367.32028 | I65: -14.52022222 | J65: -1381.840502 | K65: -1665.31 | L65: 283.4694981 | M65: -29.04044444 | O65: -1396.360724
A66: 1995-1840 | B66: Contributions & Grants - Conduit | C66: -196116.63 | D66: 0 | E66: 46.5 | F66: 50 | G66: 0.02 | H66: -4217.561935 | I66: 0 | J66: -4217.561935 | K66: -4581.97 | L66: 364.4080645 | M66: 0 | O66: -4217.561935
A67: 1995-1845 | B67: Contributions & Grants - U/G Conductor | C67: -1464998.88 | D67: -51170.57 | E67: 24.25 | F67: 30 | G67: 0.03333333333 | H67: -60412.32495 | I67: -852.8428333 | J67: -61265.16778 | K67: -55174.64 | L67: -6090.527782 | M67: -1705.685667 | O67: -62118.01062
A68: 1995-1850 | B68: Contributions & Grants - Transformers | C68: -984048.74 | D68: -81267.14 | E68: 33.75 | F68: 40 | G68: 0.025 | H68: -29156.9997 | I68: -1015.83925 | J68: -30172.83895 | K68: -27124.47 | L68: -3048.368954 | M68: -2031.6785 | O68: -31188.6782
A69: 1995-1855 | B69: Contributions & Grants - Secondary Services | C69: -782225.69 | D69: -95639.71 | E69: 28.25 | F69: 35 | G69: 0.02857142857 | H69: -27689.40496 | I69: -1366.281571 | J69: -29055.68653 | K69: -25594.06 | L69: -3461.626527 | M69: -2732.563143 | O69: =IF(ISERROR(+M69+H69-N69), 0, +M69+H69-N69) -> -30421.9681
A70: 1995-1860-01 | B70: Contributions & Grants - Smart Meters | C70: -30474.24 | D70: 0 | E70: 11 | F70: 15 | G70: 0.06666666667 | H70: -2770.385455 | I70: 0 | J70: -2770.385455 | K70: -3525.03 | L70: 754.6445455 | M70: 0 | O70: -2770.385455
A71: 2005 | B71: Capital Lease - Communication Equipment | C71: 0 | D71: 49283.08 | E71: 0 | F71: 20 | G71: 0.05 | H71: 0 | I71: 1232.077 | J71: 1232.077 | K71: 1232.08 | L71: -0.003 | M71: 2464.154 | O71: 2464.154
A72: 2005 | B72: Capital Lease - Structure | C72: 0 | D72: 77510.08 | E72: 0 | F72: 50 | G72: 0.02 | H72: 0 | I72: 775.1008 | J72: 775.1008 | K72: 775.1 | L72: 0.0008 | M72: 1550.2016 | O72: 1550.2016
B73: Total | C73: =SUM(C17:C72) -> 9818319.56 | D73: =SUM(D17:D72) -> 1472331.66 | G73: 1.08047619 | H73: 509268.8466 | I73: 23951.38698 | J73: 533220.2336 | K73: 551309.22 | L73: -18088.98642 | M73: 47902.77397 | N73: 8303.653333 | O73: =SUM(O17:O72) -> 548867.9672
A75: Notes:
A77: 1 | B77: Board policy of the "half-year" rule - the applicant must ensure that additions in the year attract a half-year depreciation expense in the first year. Deviations from this standard practice must be supported in the application.
A78: 2 | B78: The applicant must provide an explanation of material variances in evidence.
A79: 3 | B79: The applicant should ensure that the years for new additions of assets are the asset useful lives determined by management in accordance with the Board's regulatory accounting policies. The capitalization and depreciation expense accounting changes should be implemented consistent with the Board’s regulatory accounting policies as set out for modified IFRS as contained in the Report of the Board, Transition to International Financial Reporting Standards, EB-2008-0408, the Kinectrics Report, and the Revised 2012 Accounting Procedures Handbook for Electricity Distributors (“APH”).
A80: 4 | B80: A recalculation should be performed to determine the average remaining life of opening balance of assets (i.e. excluding 2012 additions) under the change in policies under CGAAP. For example, Asset A had a useful life of 20 years under CGAAP without the change in policies. On January 1, 2012, the effective date of the changes in policies, Asset A was 3 years depreciated. As a result, Asset A would have a remaining service life of 17 years (20 years less 3 years) as of January 1, 2012. Due to making the change in policies under CGAAP, management re-assessed the asset useful lives and concluded that the revised useful life of Asset A is now 30 years. Therefore, the average remaining useful life of the opening balance of Asset A is determined to be 27 years (30 years less 3 years) under the revised CGAAP as of January 1, 2012.
A81: 5 | B81: NBV must exclude assets still on the books but which have been fully amortized or depreciated.
A82: 6 | B82: This column refers to the calculated full year depreciation but excludes the depreciation expense on assets fully depreciated during the year. This column is used for the purpose of calculating depreciation expense in the following year on the next worksheet.
A84: General: | B84: Applicants must provide a breakdown of depreciation and amortization expense in the above format for all relevant accounts. Asset Retirement Obligations (AROs), depreciation and accretion expense should be disclosed separately consistent with the Notes of historical Audited Financial Statements.

Sheet App.2-CC_NewCGAAP_DepExp_2013
J1: File Number: | K1: =EBNUMBER -> EB-2015-0107
J2: Exhibit: | K2: 4
J3: Tab: | K3: 4
J4: Schedule: | K4: 2
J5: Page: | K5: 50
J7: Date:
A9: Appendix 2-CC
A10: Depreciation and Amortization Expense
A11: Assumes the applicant made capitalization and depreciation expense accounting policy changes under CGAAP effective January 1, 2012 and has adopted IFRS for financial reporting purposes effective January 1, 2015.
C13: 2013 | D13: Revised CGAAP
A15: Account | B15: Description | C15: Additions | D15: Years (new additions only) | E15: Depreciation Rate on New Additions | F15: 2013 Depreciation Expense 1 | G15: 2013 Depreciation Expense per Appendix 2-BA Fixed Assets, Column J (l) | H15: Variance 2 | I15: Depreciation Expense on 2013 Full Year Additions | J15: Less Depreciation Expense on Assets Fully Depreciated during the year (o) | K15: 2013 Full Year Depreciation 3
C16: (d) | D16: (f) | E16: (g) = 1 / (f) | F16: (h)=2012 Full Year Deprecation + ((d)*0.5)/(f) | H16: (m) = (h) - (l) | I16: (n)=((d))/(f) | K16: (p) = 2012 Full Year Depreciation + (n) - (o)
A17: 1611 | B17: Computer Software (Formally known as Account 1925) | C17: 0 | D17: 10 | E17: =IF(D17=0,0,1/D17) -> 0.1 | F17: =IF(D17=0,+'App.2-CB_NewCGAAP_DepExp_2012'!O17,+'App.2-CB_NewCGAAP_DepExp_2012'!O17+((C17*0.5)/D17)) -> 13785.1462 | G17: 13779.23 | H17: =IF(ISERROR(+F17-G17), 0, +F17-G17) -> 5.91619883 | I17: =IF(D17=0,0,+(C17)/D17) -> 0 | J17: 0 | K17: =IF(ISERROR(+I17+'App.2-CB_NewCGAAP_DepExp_2012'!O17-J17), 0, +I17+'App.2-CB_NewCGAAP_DepExp_2012'!O17-J17) -> 13785.1462
A18: 1612 | B18: Land Rights (Formally known as Account 1906) | C18: 0 | D18: 0 | E18: 0 | F18: =IF(D18=0,+'App.2-CB_NewCGAAP_DepExp_2012'!O18,+'App.2-CB_NewCGAAP_DepExp_2012'!O18+((C18*0.5)/D18)) -> 0 | H18: 0 | I18: 0 | J18: 0 | K18: =IF(ISERROR(+I18+'App.2-CB_NewCGAAP_DepExp_2012'!O18-J18), 0, +I18+'App.2-CB_NewCGAAP_DepExp_2012'!O18-J18) -> 0
A19: 1805 | B19: Land | C19: 28420.62 | D19: 0 | E19: 0 | F19: =IF(D19=0,+'App.2-CB_NewCGAAP_DepExp_2012'!O19,+'App.2-CB_NewCGAAP_DepExp_2012'!O19+((C19*0.5)/D19)) -> 0 | H19: 0 | I19: 0 | J19: 0 | K19: =IF(ISERROR(+I19+'App.2-CB_NewCGAAP_DepExp_2012'!O19-J19), 0, +I19+'App.2-CB_NewCGAAP_DepExp_2012'!O19-J19) -> 0
A20: 1808 | B20: Buildings | C20: 0 | D20: 0 | E20: 0 | F20: =IF(D20=0,+'App.2-CB_NewCGAAP_DepExp_2012'!O20,+'App.2-CB_NewCGAAP_DepExp_2012'!O20+((C20*0.5)/D20)) -> 0 | H20: 0 | I20: 0 | J20: 0 | K20: =IF(ISERROR(+I20+'App.2-CB_NewCGAAP_DepExp_2012'!O20-J20), 0, +I20+'App.2-CB_NewCGAAP_DepExp_2012'!O20-J20) -> 0
A21: 1810 | B21: Leasehold Improvements | C21: 0 | D21: 0 | E21: 0 | F21: =IF(D21=0,+'App.2-CB_NewCGAAP_DepExp_2012'!O21,+'App.2-CB_NewCGAAP_DepExp_2012'!O21+((C21*0.5)/D21)) -> 0 | H21: 0 | I21: 0 | J21: 0 | K21: =IF(ISERROR(+I21+'App.2-CB_NewCGAAP_DepExp_2012'!O21-J21), 0, +I21+'App.2-CB_NewCGAAP_DepExp_2012'!O21-J21) -> 0
A22: 1815 | B22: Transformer Station Equipment >50 kV | C22: 0 | D22: 0 | E22: 0 | F22: =IF(D22=0,+'App.2-CB_NewCGAAP_DepExp_2012'!O22,+'App.2-CB_NewCGAAP_DepExp_2012'!O22+((C22*0.5)/D22)) -> 0 | H22: 0 | I22: 0 | J22: 0 | K22: =IF(ISERROR(+I22+'App.2-CB_NewCGAAP_DepExp_2012'!O22-J22), 0, +I22+'App.2-CB_NewCGAAP_DepExp_2012'!O22-J22) -> 0
A23: 1820 | B23: Distribution Station Equipment <50 kV - Building & Infrastructure | C23: 0 | D23: 50 | E23: 0.02 | F23: =IF(D23=0,+'App.2-CB_NewCGAAP_DepExp_2012'!O23,+'App.2-CB_NewCGAAP_DepExp_2012'!O23+((C23*0.5)/D23)) -> 7310.542791 | G23: 7253.23 | H23: 57.3127907 | I23: 0 | J23: 0 | K23: =IF(ISERROR(+I23+'App.2-CB_NewCGAAP_DepExp_2012'!O23-J23), 0, +I23+'App.2-CB_NewCGAAP_DepExp_2012'!O23-J23) -> 7310.542791
A24: 1820 | B24: Distribution Station Equipment <50 kV - Civil Work | C24: 0 | D24: 50 | E24: 0.02 | F24: =IF(D24=0,+'App.2-CB_NewCGAAP_DepExp_2012'!O24,+'App.2-CB_NewCGAAP_DepExp_2012'!O24+((C24*0.5)/D24)) -> 2942.911011 | G24: 2921.02 | H24: 21.89101124 | I24: 0 | J24: 0 | K24: =IF(ISERROR(+I24+'App.2-CB_NewCGAAP_DepExp_2012'!O24-J24), 0, +I24+'App.2-CB_NewCGAAP_DepExp_2012'!O24-J24) -> 2942.911011
A25: 1820 | B25: Distribution Station Equipment <50 kV - LV Reclosures & Breakers | C25: 57552.89 | D25: 20 | E25: 0.05 | F25: =IF(D25=0,+'App.2-CB_NewCGAAP_DepExp_2012'!O25,+'App.2-CB_NewCGAAP_DepExp_2012'!O25+((C25*0.5)/D25)) -> 26869.92562 | G25: 26806.66 | H25: 63.26562079 | I25: 2877.6445 | J25: 0 | K25: =IF(ISERROR(+I25+'App.2-CB_NewCGAAP_DepExp_2012'!O25-J25), 0, +I25+'App.2-CB_NewCGAAP_DepExp_2012'!O25-J25) -> 28308.74787
A26: 1820 | B26: Distribution Station Equipment <50 kV - Equipment | C26: 27053.12 | D26: 40 | E26: 0.025 | F26: =IF(D26=0,+'App.2-CB_NewCGAAP_DepExp_2012'!O26,+'App.2-CB_NewCGAAP_DepExp_2012'!O26+((C26*0.5)/D26)) -> 24029.35945 | G26: 23945.17 | H26: 84.18945455 | I26: 676.328 | J26: 0 | K26: =IF(ISERROR(+I26+'App.2-CB_NewCGAAP_DepExp_2012'!O26-J26), 0, +I26+'App.2-CB_NewCGAAP_DepExp_2012'!O26-J26) -> 24367.52345
A27: 1820 | B27: Distribution Station Equipment <50 kV - Transformer | C27: 0 | D27: 45 | E27: 0.02222222222 | F27: =IF(D27=0,+'App.2-CB_NewCGAAP_DepExp_2012'!O27,+'App.2-CB_NewCGAAP_DepExp_2012'!O27+((C27*0.5)/D27)) -> 20489.13107 | G27: 20462.84 | H27: 26.29106918 | I27: 0 | J27: 0 | K27: =IF(ISERROR(+I27+'App.2-CB_NewCGAAP_DepExp_2012'!O27-J27), 0, +I27+'App.2-CB_NewCGAAP_DepExp_2012'!O27-J27) -> 20489.13107
A28: 1825 | B28: Storage Battery Equipment | C28: 0 | D28: 0 | E28: 0 | F28: =IF(D28=0,+'App.2-CB_NewCGAAP_DepExp_2012'!O28,+'App.2-CB_NewCGAAP_DepExp_2012'!O28+((C28*0.5)/D28)) -> 0 | H28: 0 | I28: 0 | J28: 0 | K28: =IF(ISERROR(+I28+'App.2-CB_NewCGAAP_DepExp_2012'!O28-J28), 0, +I28+'App.2-CB_NewCGAAP_DepExp_2012'!O28-J28) -> 0
A29: 1830 | B29: Poles, Towers & Fixtures | C29: 102449.38 | D29: 45 | E29: 0.02222222222 | F29: =IF(D29=0,+'App.2-CB_NewCGAAP_DepExp_2012'!O29,+'App.2-CB_NewCGAAP_DepExp_2012'!O29+((C29*0.5)/D29)) -> 87506.08408 | G29: 87253.07 | H29: 253.0140848 | I29: 2276.652889 | J29: 0 | K29: =IF(ISERROR(+I29+'App.2-CB_NewCGAAP_DepExp_2012'!O29-J29), 0, +I29+'App.2-CB_NewCGAAP_DepExp_2012'!O29-J29) -> 88644.41053
A30: 1835 | B30: Overhead Conductors & Devices | C30: 120401.89 | D30: 45 | E30: 0.02222222222 | F30: =IF(D30=0,+'App.2-CB_NewCGAAP_DepExp_2012'!O30,+'App.2-CB_NewCGAAP_DepExp_2012'!O30+((C30*0.5)/D30)) -> 86058.04942 | G30: 85887.07 | H30: 170.9794239 | I30: 2675.597556 | J30: 0 | K30: =IF(ISERROR(+I30+'App.2-CB_NewCGAAP_DepExp_2012'!O30-J30), 0, +I30+'App.2-CB_NewCGAAP_DepExp_2012'!O30-J30) -> 87395.8482
A31: 1840 | B31: Underground Conduit | C31: 40362.5 | D31: 50 | E31: 0.02 | F31: =IF(D31=0,+'App.2-CB_NewCGAAP_DepExp_2012'!O31,+'App.2-CB_NewCGAAP_DepExp_2012'!O31+((C31*0.5)/D31)) -> 5395.710404 | G31: 5364.38 | H31: 31.3304043 | I31: 807.25 | J31: 0 | K31: =IF(ISERROR(+I31+'App.2-CB_NewCGAAP_DepExp_2012'!O31-J31), 0, +I31+'App.2-CB_NewCGAAP_DepExp_2012'!O31-J31) -> 5799.335404
A32: 1845 | B32: Underground Conductors & Devices | C32: 320214.87 | D32: 30 | E32: 0.03333333333 | F32: =IF(D32=0,+'App.2-CB_NewCGAAP_DepExp_2012'!O32,+'App.2-CB_NewCGAAP_DepExp_2012'!O32+((C32*0.5)/D32)) -> 154819.8562 | G32: 154491.44 | H32: 328.4161806 | I32: 10673.829 | J32: 0 | K32: =IF(ISERROR(+I32+'App.2-CB_NewCGAAP_DepExp_2012'!O32-J32), 0, +I32+'App.2-CB_NewCGAAP_DepExp_2012'!O32-J32) -> 160156.7707
A33: 1850 | B33: Line Transformers | C33: 295560.03 | D33: 40 | E33: 0.025 | F33: =IF(D33=0,+'App.2-CB_NewCGAAP_DepExp_2012'!O33,+'App.2-CB_NewCGAAP_DepExp_2012'!O33+((C33*0.5)/D33)) -> 72994.84258 | G33: 72464.29 | H33: 530.5525842 | I33: 7389.00075 | J33: 315.36 | K33: =IF(ISERROR(+I33+'App.2-CB_NewCGAAP_DepExp_2012'!O33-J33), 0, +I33+'App.2-CB_NewCGAAP_DepExp_2012'!O33-J33) -> 76373.98296
A34: 1855 | B34: Services (Overhead & Underground) | C34: 344725.24 | D34: 35 | E34: 0.02857142857 | F34: =IF(D34=0,+'App.2-CB_NewCGAAP_DepExp_2012'!O34,+'App.2-CB_NewCGAAP_DepExp_2012'!O34+((C34*0.5)/D34)) -> 82278.70613 | G34: 82081.09 | H34: 197.6161335 | I34: 9849.292571 | J34: 0 | K34: =IF(ISERROR(+I34+'App.2-CB_NewCGAAP_DepExp_2012'!O34-J34), 0, +I34+'App.2-CB_NewCGAAP_DepExp_2012'!O34-J34) -> 87203.35242
A35: 1860 | B35: Meters | C35: 1260 | D35: 25 | E35: 0.04 | F35: =IF(D35=0,+'App.2-CB_NewCGAAP_DepExp_2012'!O35,+'App.2-CB_NewCGAAP_DepExp_2012'!O35+((C35*0.5)/D35)) -> 198.6330612 | G35: 198.53 | H35: 0.1030612245 | I35: 50.4 | J35: 0 | K35: =IF(ISERROR(+I35+'App.2-CB_NewCGAAP_DepExp_2012'!O35-J35), 0, +I35+'App.2-CB_NewCGAAP_DepExp_2012'!O35-J35) -> 223.8330612
A36: 1860 | B36: Meters (Smart Meters) | C36: 61032.98 | D36: 15 | E36: 0.06666666667 | F36: =IF(D36=0,+'App.2-CB_NewCGAAP_DepExp_2012'!O36,+'App.2-CB_NewCGAAP_DepExp_2012'!O36+((C36*0.5)/D36)) -> 113540.9628 | G36: 113106.41 | H36: 434.5527843 | I36: 4068.865333 | J36: 0 | K36: =IF(ISERROR(+I36+'App.2-CB_NewCGAAP_DepExp_2012'!O36-J36), 0, +I36+'App.2-CB_NewCGAAP_DepExp_2012'!O36-J36) -> 115575.3955
A37: 1860 | B37: Primary Metering Equipment | C37: 97995.21 | D37: 25 | E37: 0.04 | F37: =IF(D37=0,+'App.2-CB_NewCGAAP_DepExp_2012'!O37,+'App.2-CB_NewCGAAP_DepExp_2012'!O37+((C37*0.5)/D37)) -> 4709.37606 | G37: 4707.88 | H37: 1.496060465 | I37: 3919.8084 | J37: 0 | K37: =IF(ISERROR(+I37+'App.2-CB_NewCGAAP_DepExp_2012'!O37-J37), 0, +I37+'App.2-CB_NewCGAAP_DepExp_2012'!O37-J37) -> 6669.28026
A38: 1905 | B38: Land | C38: 0 | D38: 0 | E38: 0 | F38: =IF(D38=0,+'App.2-CB_NewCGAAP_DepExp_2012'!O38,+'App.2-CB_NewCGAAP_DepExp_2012'!O38+((C38*0.5)/D38)) -> 0 | H38: 0 | I38: 0 | J38: 0 | K38: =IF(ISERROR(+I38+'App.2-CB_NewCGAAP_DepExp_2012'!O38-J38), 0, +I38+'App.2-CB_NewCGAAP_DepExp_2012'!O38-J38) -> 0
A39: 1908 | B39: Buildings & Fixtures | C39: 464753.91 | D39: 50 | E39: 0.02 | F39: =IF(D39=0,+'App.2-CB_NewCGAAP_DepExp_2012'!O39,+'App.2-CB_NewCGAAP_DepExp_2012'!O39+((C39*0.5)/D39)) -> 23397.17879 | G39: 23366.5 | H39: 30.67879486 | I39: 9295.0782 | J39: 0 | K39: =IF(ISERROR(+I39+'App.2-CB_NewCGAAP_DepExp_2012'!O39-J39), 0, +I39+'App.2-CB_NewCGAAP_DepExp_2012'!O39-J39) -> 28044.71789
A40: 1910 | B40: Leasehold Improvements | E40: 0 | F40: =IF(D40=0,+'App.2-CB_NewCGAAP_DepExp_2012'!O40,+'App.2-CB_NewCGAAP_DepExp_2012'!O40+((C40*0.5)/D40)) -> 0 | H40: 0 | I40: 0 | J40: 0 | K40: =IF(ISERROR(+I40+'App.2-CB_NewCGAAP_DepExp_2012'!O40-J40), 0, +I40+'App.2-CB_NewCGAAP_DepExp_2012'!O40-J40) -> 0
A41: 1915 | B41: Office Furniture & Equipment (10 years) | E41: 0 | F41: =IF(D41=0,+'App.2-CB_NewCGAAP_DepExp_2012'!O41,+'App.2-CB_NewCGAAP_DepExp_2012'!O41+((C41*0.5)/D41)) -> 0 | H41: 0 | I41: 0 | J41: 0 | K41: =IF(ISERROR(+I41+'App.2-CB_NewCGAAP_DepExp_2012'!O41-J41), 0, +I41+'App.2-CB_NewCGAAP_DepExp_2012'!O41-J41) -> 0
A42: 1915 | B42: Office Furniture & Equipment (5 years) | E42: 0 | F42: =IF(D42=0,+'App.2-CB_NewCGAAP_DepExp_2012'!O42,+'App.2-CB_NewCGAAP_DepExp_2012'!O42+((C42*0.5)/D42)) -> 0 | H42: 0 | I42: 0 | J42: 0 | K42: =IF(ISERROR(+I42+'App.2-CB_NewCGAAP_DepExp_2012'!O42-J42), 0, +I42+'App.2-CB_NewCGAAP_DepExp_2012'!O42-J42) -> 0
A43: 1920 | B43: Computer Equipment - Hardware | E43: 0 | F43: =IF(D43=0,+'App.2-CB_NewCGAAP_DepExp_2012'!O43,+'App.2-CB_NewCGAAP_DepExp_2012'!O43+((C43*0.5)/D43)) -> 0 | H43: 0 | I43: 0 | J43: 0 | K43: =IF(ISERROR(+I43+'App.2-CB_NewCGAAP_DepExp_2012'!O43-J43), 0, +I43+'App.2-CB_NewCGAAP_DepExp_2012'!O43-J43) -> 0
A44: 1920 | B44: Computer Equip.-Hardware(Post Mar. 22/04) | E44: 0 | F44: =IF(D44=0,+'App.2-CB_NewCGAAP_DepExp_2012'!O44,+'App.2-CB_NewCGAAP_DepExp_2012'!O44+((C44*0.5)/D44)) -> 0 | H44: 0 | I44: 0 | J44: 0 | K44: =IF(ISERROR(+I44+'App.2-CB_NewCGAAP_DepExp_2012'!O44-J44), 0, +I44+'App.2-CB_NewCGAAP_DepExp_2012'!O44-J44) -> 0
A45: 1920 | B45: Computer Equip.-Hardware(Post Mar. 19/07) | E45: 0 | F45: =IF(D45=0,+'App.2-CB_NewCGAAP_DepExp_2012'!O45,+'App.2-CB_NewCGAAP_DepExp_2012'!O45+((C45*0.5)/D45)) -> 0 | H45: 0 | I45: 0 | J45: 0 | K45: =IF(ISERROR(+I45+'App.2-CB_NewCGAAP_DepExp_2012'!O45-J45), 0, +I45+'App.2-CB_NewCGAAP_DepExp_2012'!O45-J45) -> 0
A46: 1930 | B46: Transportation Equipment | E46: 0 | F46: =IF(D46=0,+'App.2-CB_NewCGAAP_DepExp_2012'!O46,+'App.2-CB_NewCGAAP_DepExp_2012'!O46+((C46*0.5)/D46)) -> 0 | H46: 0 | I46: 0 | J46: 0 | K46: =IF(ISERROR(+I46+'App.2-CB_NewCGAAP_DepExp_2012'!O46-J46), 0, +I46+'App.2-CB_NewCGAAP_DepExp_2012'!O46-J46) -> 0
A47: 1935 | B47: Stores Equipment | E47: 0 | F47: =IF(D47=0,+'App.2-CB_NewCGAAP_DepExp_2012'!O47,+'App.2-CB_NewCGAAP_DepExp_2012'!O47+((C47*0.5)/D47)) -> 0 | H47: 0 | I47: 0 | J47: 0 | K47: =IF(ISERROR(+I47+'App.2-CB_NewCGAAP_DepExp_2012'!O47-J47), 0, +I47+'App.2-CB_NewCGAAP_DepExp_2012'!O47-J47) -> 0
A48: 1940 | B48: Tools, Shop & Garage Equipment | E48: 0 | F48: =IF(D48=0,+'App.2-CB_NewCGAAP_DepExp_2012'!O48,+'App.2-CB_NewCGAAP_DepExp_2012'!O48+((C48*0.5)/D48)) -> 0 | H48: 0 | I48: 0 | J48: 0 | K48: =IF(ISERROR(+I48+'App.2-CB_NewCGAAP_DepExp_2012'!O48-J48), 0, +I48+'App.2-CB_NewCGAAP_DepExp_2012'!O48-J48) -> 0
A49: 1945 | B49: Measurement & Testing Equipment | E49: 0 | F49: =IF(D49=0,+'App.2-CB_NewCGAAP_DepExp_2012'!O49,+'App.2-CB_NewCGAAP_DepExp_2012'!O49+((C49*0.5)/D49)) -> 0 | H49: 0 | I49: 0 | J49: 0 | K49: =IF(ISERROR(+I49+'App.2-CB_NewCGAAP_DepExp_2012'!O49-J49), 0, +I49+'App.2-CB_NewCGAAP_DepExp_2012'!O49-J49) -> 0
A50: 1950 | B50: Power Operated Equipment | E50: 0 | F50: =IF(D50=0,+'App.2-CB_NewCGAAP_DepExp_2012'!O50,+'App.2-CB_NewCGAAP_DepExp_2012'!O50+((C50*0.5)/D50)) -> 0 | H50: 0 | I50: 0 | J50: 0 | K50: =IF(ISERROR(+I50+'App.2-CB_NewCGAAP_DepExp_2012'!O50-J50), 0, +I50+'App.2-CB_NewCGAAP_DepExp_2012'!O50-J50) -> 0
A51: 1955 | B51: Communications Equipment | E51: 0 | F51: =IF(D51=0,+'App.2-CB_NewCGAAP_DepExp_2012'!O51,+'App.2-CB_NewCGAAP_DepExp_2012'!O51+((C51*0.5)/D51)) -> 0 | H51: 0 | I51: 0 | J51: 0 | K51: =IF(ISERROR(+I51+'App.2-CB_NewCGAAP_DepExp_2012'!O51-J51), 0, +I51+'App.2-CB_NewCGAAP_DepExp_2012'!O51-J51) -> 0
A52: 1955 | B52: Communication Equipment (Smart Meters) | E52: 0 | F52: =IF(D52=0,+'App.2-CB_NewCGAAP_DepExp_2012'!O52,+'App.2-CB_NewCGAAP_DepExp_2012'!O52+((C52*0.5)/D52)) -> 0 | H52: 0 | I52: 0 | J52: 0 | K52: =IF(ISERROR(+I52+'App.2-CB_NewCGAAP_DepExp_2012'!O52-J52), 0, +I52+'App.2-CB_NewCGAAP_DepExp_2012'!O52-J52) -> 0
A53: 1960 | B53: Miscellaneous Equipment | E53: 0 | F53: =IF(D53=0,+'App.2-CB_NewCGAAP_DepExp_2012'!O53,+'App.2-CB_NewCGAAP_DepExp_2012'!O53+((C53*0.5)/D53)) -> 0 | H53: 0 | I53: 0 | J53: 0 | K53: =IF(ISERROR(+I53+'App.2-CB_NewCGAAP_DepExp_2012'!O53-J53), 0, +I53+'App.2-CB_NewCGAAP_DepExp_2012'!O53-J53) -> 0
A54: 1970 | B54: Load Management Controls Customer Premises | E54: 0 | F54: =IF(D54=0,+'App.2-CB_NewCGAAP_DepExp_2012'!O54,+'App.2-CB_NewCGAAP_DepExp_2012'!O54+((C54*0.5)/D54)) -> 0 | H54: 0 | I54: 0 | J54: 0 | K54: =IF(ISERROR(+I54+'App.2-CB_NewCGAAP_DepExp_2012'!O54-J54), 0, +I54+'App.2-CB_NewCGAAP_DepExp_2012'!O54-J54) -> 0
A55: 1975 | B55: Load Management Controls Utility Premises | E55: 0 | F55: =IF(D55=0,+'App.2-CB_NewCGAAP_DepExp_2012'!O55,+'App.2-CB_NewCGAAP_DepExp_2012'!O55+((C55*0.5)/D55)) -> 0 | H55: =IF(ISERROR(+F55-G55), 0, +F55-G55) -> 0 | I55: =IF(D55=0,0,+(C55)/D55) -> 0 | J55: 0 | K55: =IF(ISERROR(+I55+'App.2-CB_NewCGAAP_DepExp_2012'!O55-J55), 0, +I55+'App.2-CB_NewCGAAP_DepExp_2012'!O55-J55) -> 0
A56: 1980 | B56: System Supervisor Equipment | C56: 6130.49 | D56: 20 | E56: 0.05 | F56: =IF(D56=0,+'App.2-CB_NewCGAAP_DepExp_2012'!O56,+'App.2-CB_NewCGAAP_DepExp_2012'!O56+((C56*0.5)/D56)) -> 4247.46525 | G56: 4247.46 | H56: 0.00525 | I56: 306.5245 | J56: 0 | K56: =IF(ISERROR(+I56+'App.2-CB_NewCGAAP_DepExp_2012'!O56-J56), 0, +I56+'App.2-CB_NewCGAAP_DepExp_2012'!O56-J56) -> 4400.7275
A57: 1985 | B57: Miscellaneous Fixed Assets | E57: 0 | F57: =IF(D57=0,+'App.2-CB_NewCGAAP_DepExp_2012'!O57,+'App.2-CB_NewCGAAP_DepExp_2012'!O57+((C57*0.5)/D57)) -> 0 | H57: 0 | I57: 0 | J57: 0 | K57: =IF(ISERROR(+I57+'App.2-CB_NewCGAAP_DepExp_2012'!O57-J57), 0, +I57+'App.2-CB_NewCGAAP_DepExp_2012'!O57-J57) -> 0
A58: 1990 | B58: Other Tangible Property | E58: 0 | F58: =IF(D58=0,+'App.2-CB_NewCGAAP_DepExp_2012'!O58,+'App.2-CB_NewCGAAP_DepExp_2012'!O58+((C58*0.5)/D58)) -> 0 | H58: 0 | I58: 0 | J58: 0 | K58: =IF(ISERROR(+I58+'App.2-CB_NewCGAAP_DepExp_2012'!O58-J58), 0, +I58+'App.2-CB_NewCGAAP_DepExp_2012'!O58-J58) -> 0
A59: 1995-1820-01 | B59: Contributions & Grants - Station Building & Infrastructure | C59: 0 | D59: 50 | E59: 0.02 | F59: =IF(D59=0,+'App.2-CB_NewCGAAP_DepExp_2012'!O59,+'App.2-CB_NewCGAAP_DepExp_2012'!O59+((C59*0.5)/D59)) -> -1512.142526 | G59: -1497.89 | H59: -14.25252632 | I59: 0 | J59: 0 | K59: =IF(ISERROR(+I59+'App.2-CB_NewCGAAP_DepExp_2012'!O59-J59), 0, +I59+'App.2-CB_NewCGAAP_DepExp_2012'!O59-J59) -> -1512.142526
A60: 1995-1820-02 | B60: Contributions & Grants - Station Civil Work | C60: 0 | D60: 50 | E60: 0.02 | F60: =IF(D60=0,+'App.2-CB_NewCGAAP_DepExp_2012'!O60,+'App.2-CB_NewCGAAP_DepExp_2012'!O60+((C60*0.5)/D60)) -> -1488.266526 | G60: -1521.92 | H60: 33.65347368 | I60: 0 | J60: 0 | K60: =IF(ISERROR(+I60+'App.2-CB_NewCGAAP_DepExp_2012'!O60-J60), 0, +I60+'App.2-CB_NewCGAAP_DepExp_2012'!O60-J60) -> -1488.266526
A61: 1995-1820-03 | B61: Contributions & Grants - Station LV/Reclosures & Breakers | C61: 0 | D61: 20 | E61: 0.05 | F61: =IF(D61=0,+'App.2-CB_NewCGAAP_DepExp_2012'!O61,+'App.2-CB_NewCGAAP_DepExp_2012'!O61+((C61*0.5)/D61)) -> -5283.170286 | G61: -5386.46 | H61: 103.2897143 | I61: 0 | J61: 0 | K61: =IF(ISERROR(+I61+'App.2-CB_NewCGAAP_DepExp_2012'!O61-J61), 0, +I61+'App.2-CB_NewCGAAP_DepExp_2012'!O61-J61) -> -5283.170286
A62: 1995-1820-04 | B62: Contributions & Grants - Station Equipment | C62: 0 | D62: 40 | E62: 0.025 | F62: =IF(D62=0,+'App.2-CB_NewCGAAP_DepExp_2012'!O62,+'App.2-CB_NewCGAAP_DepExp_2012'!O62+((C62*0.5)/D62)) -> -6800.941333 | G62: -6859.14 | H62: 58.19866667 | I62: 0 | J62: 0 | K62: =IF(ISERROR(+I62+'App.2-CB_NewCGAAP_DepExp_2012'!O62-J62), 0, +I62+'App.2-CB_NewCGAAP_DepExp_2012'!O62-J62) -> -6800.941333
A63: 1995-1820-05 | B63: Contributions & Grants - Station Transformers | C63: 0 | D63: 45 | E63: 0.02222222222 | F63: =IF(D63=0,+'App.2-CB_NewCGAAP_DepExp_2012'!O63,+'App.2-CB_NewCGAAP_DepExp_2012'!O63+((C63*0.5)/D63)) -> -6145.000471 | G63: =-3057.43-3132.91 -> -6190.34 | H63: 45.33952941 | I63: 0 | J63: 0 | K63: =IF(ISERROR(+I63+'App.2-CB_NewCGAAP_DepExp_2012'!O63-J63), 0, +I63+'App.2-CB_NewCGAAP_DepExp_2012'!O63-J63) -> -6145.000471
A64: 1995-1830 | B64: Contributions & Grants - Poles | C64: -17485.04 | D64: 45 | E64: 0.02222222222 | F64: =IF(D64=0,+'App.2-CB_NewCGAAP_DepExp_2012'!O64,+'App.2-CB_NewCGAAP_DepExp_2012'!O64+((C64*0.5)/D64)) -> -5138.925472 | G64: -5098.4 | H64: -40.5254717 | I64: -388.5564444 | J64: 0 | K64: =IF(ISERROR(+I64+'App.2-CB_NewCGAAP_DepExp_2012'!O64-J64), 0, +I64+'App.2-CB_NewCGAAP_DepExp_2012'!O64-J64) -> -5333.203694
A65: 1995-1835 | B65: Contributions & Grants - O/H Conductor | C65: -4123.42 | D65: 45 | E65: 0.02222222222 | F65: =IF(D65=0,+'App.2-CB_NewCGAAP_DepExp_2012'!O65,+'App.2-CB_NewCGAAP_DepExp_2012'!O65+((C65*0.5)/D65)) -> -1442.176502 | G65: -1445.24 | H65: 3.063498057 | I65: -91.63155556 | J65: 0 | K65: =IF(ISERROR(+I65+'App.2-CB_NewCGAAP_DepExp_2012'!O65-J65), 0, +I65+'App.2-CB_NewCGAAP_DepExp_2012'!O65-J65) -> -1487.99228
A66: 1995-1840 | B66: Contributions & Grants - Conduit | C66: -36438.43 | D66: 50 | E66: 0.02 | F66: =IF(D66=0,+'App.2-CB_NewCGAAP_DepExp_2012'!O66,+'App.2-CB_NewCGAAP_DepExp_2012'!O66+((C66*0.5)/D66)) -> -4581.946235 | G66: -4577.26 | H66: -4.686235484 | I66: -728.7686 | J66: 0 | K66: =IF(ISERROR(+I66+'App.2-CB_NewCGAAP_DepExp_2012'!O66-J66), 0, +I66+'App.2-CB_NewCGAAP_DepExp_2012'!O66-J66) -> -4946.330535
A67: 1995-1845 | B67: Contributions & Grants - U/G Conductor | C67: -280700.19 | D67: 30 | E67: 0.03333333333 | F67: =IF(D67=0,+'App.2-CB_NewCGAAP_DepExp_2012'!O67,+'App.2-CB_NewCGAAP_DepExp_2012'!O67+((C67*0.5)/D67)) -> -66796.34712 | G67: -66202.54 | H67: -593.8071151 | I67: -9356.673 | J67: 0 | K67: =IF(ISERROR(+I67+'App.2-CB_NewCGAAP_DepExp_2012'!O67-J67), 0, +I67+'App.2-CB_NewCGAAP_DepExp_2012'!O67-J67) -> -71474.68362
A68: 1995-1850 | B68: Contributions & Grants - Transformers | C68: -200950.44 | D68: 40 | E68: 0.025 | F68: =IF(D68=0,+'App.2-CB_NewCGAAP_DepExp_2012'!O68,+'App.2-CB_NewCGAAP_DepExp_2012'!O68+((C68*0.5)/D68)) -> -33700.5587 | G68: -33100.12 | H68: -600.4387037 | I68: -5023.761 | J68: 0 | K68: =IF(ISERROR(+I68+'App.2-CB_NewCGAAP_DepExp_2012'!O68-J68), 0, +I68+'App.2-CB_NewCGAAP_DepExp_2012'!O68-J68) -> -36212.4392
A69: 1995-1855 | B69: Contributions & Grants - Secondary Services | C69: =-1256189.46+1081376.39-9004.56 -> -183817.63 | D69: 35 | E69: 0.02857142857 | F69: =IF(D69=0,+'App.2-CB_NewCGAAP_DepExp_2012'!O69,+'App.2-CB_NewCGAAP_DepExp_2012'!O69+((C69*0.5)/D69)) -> -33047.93424 | G69: -32832.37 | H69: -215.5642415 | I69: -5251.932286 | J69: 0 | K69: =IF(ISERROR(+I69+'App.2-CB_NewCGAAP_DepExp_2012'!O69-J69), 0, +I69+'App.2-CB_NewCGAAP_DepExp_2012'!O69-J69) -> -35673.90038
A70: 1995-1860-01 | B70: Contributions & Grants - Smart Meters | C70: 0 | D70: 15 | E70: 0.06666666667 | F70: =IF(D70=0,+'App.2-CB_NewCGAAP_DepExp_2012'!O70,+'App.2-CB_NewCGAAP_DepExp_2012'!O70+((C70*0.5)/D70)) -> -2770.385455 | G70: -2748.41 | H70: -21.97545455 | I70: 0 | J70: 0 | K70: =IF(ISERROR(+I70+'App.2-CB_NewCGAAP_DepExp_2012'!O70-J70), 0, +I70+'App.2-CB_NewCGAAP_DepExp_2012'!O70-J70) -> -2770.385455
A71: 2005 | B71: Capital Lease - Communication Equipment | C71: 0 | D71: 20 | E71: 0.05 | F71: =IF(D71=0,+'App.2-CB_NewCGAAP_DepExp_2012'!O71,+'App.2-CB_NewCGAAP_DepExp_2012'!O71+((C71*0.5)/D71)) -> 2464.154 | G71: 2464.15 | H71: 0.004 | I71: 0 | J71: 0 | K71: =IF(ISERROR(+I71+'App.2-CB_NewCGAAP_DepExp_2012'!O71-J71), 0, +I71+'App.2-CB_NewCGAAP_DepExp_2012'!O71-J71) -> 2464.154
A72: 2005 | B72: Capital Lease - Structure | C72: 0 | D72: 50 | E72: 0.02 | F72: =IF(D72=0,+'App.2-CB_NewCGAAP_DepExp_2012'!O72,+'App.2-CB_NewCGAAP_DepExp_2012'!O72+((C72*0.5)/D72)) -> 1550.2016 | G72: 1550.2 | H72: 0.0016 | I72: 0 | J72: 0 | K72: =IF(ISERROR(+I72+'App.2-CB_NewCGAAP_DepExp_2012'!O72-J72), 0, +I72+'App.2-CB_NewCGAAP_DepExp_2012'!O72-J72) -> 1550.2016
B73: Total | C73: =SUM(C17:C72) -> 1244397.98 | F73: =SUM(F17:F72) -> 565880.4416 | G73: =SUM(G17:G72) -> 564890.53 | H73: =SUM(H17:H72) -> 989.9116412 | I73: =SUM(I17:I72) -> 34024.94881 | J73: =SUM(J17:J54) -> 315.36 | K73: =SUM(K17:K72) -> 582577.556
A75: Notes:
A76: 1 | B76: Board policy of the "half-year" rule - the applicant must ensure that additions in the year attract a half-year depreciation expense in the first year. Deviations from this standard practice must be supported in the application.
A77: 2 | B77: The applicant must provide an explanation of material variances in evidence.
A78: 3 | B78: This column refers to the calculated full year depreciation but excludes the depreciation expense on assets fully depreciated during the year. This column is used for the purpose of calculating depreciation expense in the following year on the next worksheet.
A80: General: | B80: Applicants must provide a breakdown of depreciation and amortization expense in the above format for all relevant accounts. Asset Retirement Obligations (AROs), depreciation and accretion expense should be disclosed separately consistent with the Notes of historical Audited Financial Statements.

Sheet App.2-CD_MIFRS_DepExp_2014
K1: File Number: | L1: =EBNUMBER -> EB-2015-0107
K2: Exhibit: | L2: 4
K3: Tab: | L3: 4
K4: Schedule: | L4: 2
K5: Page: | L5: 51
K7: Date:
A9: Appendix 2-CD
A10: Depreciation and Amortization Expense
A11: Assumes the applicant made capitalization and depreciation expense accounting policy changes under CGAAP effective January 1, 2012 and has adopted IFRS for financial reporting purposes effective January 1, 2015.
E13: 2014 | F13: MIFRS UNDER DEEMED COST ELECTION
A15: Account | B15: Description | C15: Additions | D15: Years (new additions only) | E15: Depreciation Rate on New Additions | F15: Unamortized Depreciation Expense of Contributed Capital (Cost election transition to IFRS) (X) | G15: 2014 Depreciation Expense 1 | H15: 2014 Depreciation Expense per Appendix 2-BA Fixed Assets, Column J (l) | I15: Variance 2 | J15: Depreciation Expense on 2014 Full Year Additions | K15: Less Depreciation Expense on Assets Fully Depreciated during the year (o) | L15: 2014 Full Year Depreciation 3
C16: (d) | D16: (f) | E16: (g) = 1 / (f) | G16: (h)=2013 Full Year Deprecation + ((d)*0.5)/(f) | I16: (m) = (h) - (l) | J16: (n)=((d))/(f) | L16: (p) = 2013 Full Year Depreciation + (n) - (o) + (x)
A17: 1611 | B17: Computer Software (Formally known as Account 1925) | C17: 0 | D17: 10 | E17: =IF(D17=0,0,1/D17) -> 0.1 | G17: =IF(D17=0,+'App.2-CC_NewCGAAP_DepExp_2013'!K17,+'App.2-CC_NewCGAAP_DepExp_2013'!K17+((C17*0.5)/D17))+F17 -> 13785.1462 | H17: 13779 | I17: =IF(ISERROR(+G17-H17), 0, +G17-H17) -> 6.14619883 | J17: =IF(D17=0,0,+(C17)/D17) -> 0 | L17: =IF(ISERROR(+J17+'App.2-CC_NewCGAAP_DepExp_2013'!K17-K17), 0, +J17+'App.2-CC_NewCGAAP_DepExp_2013'!K17-K17)+F17 -> 13785.1462
A18: 1612 | B18: Land Rights (Formally known as Account 1906) | C18: 0 | D18: 0 | E18: 0 | G18: =IF(D18=0,+'App.2-CC_NewCGAAP_DepExp_2013'!K18,+'App.2-CC_NewCGAAP_DepExp_2013'!K18+((C18*0.5)/D18))+F18 -> 0 | I18: =IF(ISERROR(+G18-H18), 0, +G18-H18) -> 0 | J18: 0 | L18: =IF(ISERROR(+J18+'App.2-CC_NewCGAAP_DepExp_2013'!K18-K18), 0, +J18+'App.2-CC_NewCGAAP_DepExp_2013'!K18-K18)+F18 -> 0
A19: 1805 | B19: Land | C19: 0 | D19: 0 | E19: 0 | G19: =IF(D19=0,+'App.2-CC_NewCGAAP_DepExp_2013'!K19,+'App.2-CC_NewCGAAP_DepExp_2013'!K19+((C19*0.5)/D19))+F19 -> 0 | I19: 0 | J19: 0 | L19: =IF(ISERROR(+J19+'App.2-CC_NewCGAAP_DepExp_2013'!K19-K19), 0, +J19+'App.2-CC_NewCGAAP_DepExp_2013'!K19-K19)+F19 -> 0
A20: 1808 | B20: Buildings | C20: 0 | D20: 0 | E20: 0 | G20: =IF(D20=0,+'App.2-CC_NewCGAAP_DepExp_2013'!K20,+'App.2-CC_NewCGAAP_DepExp_2013'!K20+((C20*0.5)/D20))+F20 -> 0 | I20: 0 | J20: 0 | L20: =IF(ISERROR(+J20+'App.2-CC_NewCGAAP_DepExp_2013'!K20-K20), 0, +J20+'App.2-CC_NewCGAAP_DepExp_2013'!K20-K20)+F20 -> 0
A21: 1810 | B21: Leasehold Improvements | C21: 0 | D21: 0 | E21: 0 | G21: =IF(D21=0,+'App.2-CC_NewCGAAP_DepExp_2013'!K21,+'App.2-CC_NewCGAAP_DepExp_2013'!K21+((C21*0.5)/D21))+F21 -> 0 | I21: 0 | J21: 0 | L21: =IF(ISERROR(+J21+'App.2-CC_NewCGAAP_DepExp_2013'!K21-K21), 0, +J21+'App.2-CC_NewCGAAP_DepExp_2013'!K21-K21)+F21 -> 0
A22: 1815 | B22: Transformer Station Equipment >50 kV | C22: 0 | D22: 0 | E22: 0 | G22: =IF(D22=0,+'App.2-CC_NewCGAAP_DepExp_2013'!K22,+'App.2-CC_NewCGAAP_DepExp_2013'!K22+((C22*0.5)/D22))+F22 -> 0 | I22: 0 | J22: 0 | L22: =IF(ISERROR(+J22+'App.2-CC_NewCGAAP_DepExp_2013'!K22-K22), 0, +J22+'App.2-CC_NewCGAAP_DepExp_2013'!K22-K22)+F22 -> 0
A23: 1820 | B23: Distribution Station Equipment <50 kV - Building & Infrastructure | C23: 31213.82 | D23: 50 | E23: 0.02 | F23: =-F59 -> -1512.142526 | G23: =IF(D23=0,+'App.2-CC_NewCGAAP_DepExp_2013'!K23,+'App.2-CC_NewCGAAP_DepExp_2013'!K23+((C23*0.5)/D23))+F23 -> 6110.538464 | H23: =7253.23-1151.07 -> 6102.16 | I23: 8.378464382 | J23: 624.2764 | L23: =IF(ISERROR(+J23+'App.2-CC_NewCGAAP_DepExp_2013'!K23-K23), 0, +J23+'App.2-CC_NewCGAAP_DepExp_2013'!K23-K23)+F23 -> 6422.676664
A24: 1820 | B24: Distribution Station Equipment <50 kV - Civil Work | C24: 31714.58 | D24: 50 | E24: 0.02 | F24: =-F60 -> -1488.266526 | G24: =IF(D24=0,+'App.2-CC_NewCGAAP_DepExp_2013'!K24,+'App.2-CC_NewCGAAP_DepExp_2013'!K24+((C24*0.5)/D24))+F24 -> 1771.790285 | H24: =2921.02-1169.54 -> 1751.48 | I24: 20.31028492 | J24: 634.2916 | L24: =IF(ISERROR(+J24+'App.2-CC_NewCGAAP_DepExp_2013'!K24-K24), 0, +J24+'App.2-CC_NewCGAAP_DepExp_2013'!K24-K24)+F24 -> 2088.936085
A25: 1820 | B25: Distribution Station Equipment <50 kV - LV Reclosures & Breakers | C25: =51785.06+41228.95 -> 93014.01 | D25: 20 | E25: 0.05 | F25: -5283.170286 | G25: =IF(D25=0,+'App.2-CC_NewCGAAP_DepExp_2013'!K25,+'App.2-CC_NewCGAAP_DepExp_2013'!K25+((C25*0.5)/D25))+F25 -> 25350.92784 | H25: =29540.11-4012.16 -> 25527.95 | I25: -177.0221649 | J25: 4650.7005 | L25: =IF(ISERROR(+J25+'App.2-CC_NewCGAAP_DepExp_2013'!K25-K25), 0, +J25+'App.2-CC_NewCGAAP_DepExp_2013'!K25-K25)+F25 -> 27676.27809
A26: 1820 | B26: Distribution Station Equipment <50 kV - Equipment | C26: =112837.13 -> 112837.13 | D26: 40 | E26: 0.025 | F26: -6800.941333 | G26: =IF(D26=0,+'App.2-CC_NewCGAAP_DepExp_2013'!K26,+'App.2-CC_NewCGAAP_DepExp_2013'!K26+((C26*0.5)/D26))+F26 -> 18977.04625 | H26: =24283.34-5247.18 -> 19036.16 | I26: -59.11375379 | J26: 2820.92825 | L26: =IF(ISERROR(+J26+'App.2-CC_NewCGAAP_DepExp_2013'!K26-K26), 0, +J26+'App.2-CC_NewCGAAP_DepExp_2013'!K26-K26)+F26 -> 20387.51037
A27: 1820 | B27: Distribution Station Equipment <50 kV - Transformer | C27: =57005.52 -> 57005.52 | D27: 45 | E27: 0.02222222222 | F27: -6145.000471 | G27: =IF(D27=0,+'App.2-CC_NewCGAAP_DepExp_2013'!K27,+'App.2-CC_NewCGAAP_DepExp_2013'!K27+((C27*0.5)/D27))+F27 -> 14977.52527 | H27: =20462.84-5477.77 -> 14985.07 | I27: -7.544734739 | J27: 1266.789333 | L27: =IF(ISERROR(+J27+'App.2-CC_NewCGAAP_DepExp_2013'!K27-K27), 0, +J27+'App.2-CC_NewCGAAP_DepExp_2013'!K27-K27)+F27 -> 15610.91993
A28: 1825 | B28: Storage Battery Equipment | C28: 0 | D28: 0 | E28: 0 | G28: =IF(D28=0,+'App.2-CC_NewCGAAP_DepExp_2013'!K28,+'App.2-CC_NewCGAAP_DepExp_2013'!K28+((C28*0.5)/D28))+F28 -> 0 | I28: 0 | J28: 0 | L28: =IF(ISERROR(+J28+'App.2-CC_NewCGAAP_DepExp_2013'!K28-K28), 0, +J28+'App.2-CC_NewCGAAP_DepExp_2013'!K28-K28)+F28 -> 0
A29: 1830 | B29: Poles, Towers & Fixtures | C29: 472241 | D29: 45 | E29: 0.02222222222 | F29: =-F64 -> -5333.203694 | G29: =IF(D29=0,+'App.2-CC_NewCGAAP_DepExp_2013'!K29,+'App.2-CC_NewCGAAP_DepExp_2013'!K29+((C29*0.5)/D29))+F29 -> 88558.32906 | H29: =93292-5333.2 -> 87958.8 | I29: 599.5290575 | J29: 10494.24444 | K29: =43.22+8.65+72.33+116.38+58.74+36.36+66.38+69.65+67.25+20.85+19.42+14.58+48.36+2.92+2.92+0.51*12+17.07+19.11+25.28+39.16 -> 754.75 | L29: =IF(ISERROR(+J29+'App.2-CC_NewCGAAP_DepExp_2013'!K29-K29), 0, +J29+'App.2-CC_NewCGAAP_DepExp_2013'!K29-K29)+F29 -> 93050.70128
A30: 1835 | B30: Overhead Conductors & Devices | C30: 61106 | D30: 45 | E30: 0.02222222222 | F30: =-F65 -> -1487.99228 | G30: =IF(D30=0,+'App.2-CC_NewCGAAP_DepExp_2013'!K30,+'App.2-CC_NewCGAAP_DepExp_2013'!K30+((C30*0.5)/D30))+F30 -> 86586.81148 | H30: =87768-1487.99 -> 86280.01 | I30: 306.8014775 | J30: 1357.911111 | K30: =97.3+172.18 -> 269.48 | L30: =IF(ISERROR(+J30+'App.2-CC_NewCGAAP_DepExp_2013'!K30-K30), 0, +J30+'App.2-CC_NewCGAAP_DepExp_2013'!K30-K30)+F30 -> 86996.28703
A31: 1840 | B31: Underground Conduit | C31: 31180 | D31: 50 | E31: 0.02 | F31: -4946.330535 | G31: =IF(D31=0,+'App.2-CC_NewCGAAP_DepExp_2013'!K31,+'App.2-CC_NewCGAAP_DepExp_2013'!K31+((C31*0.5)/D31))+F31 -> 1164.804869 | H31: =6080-4946.33 -> 1133.67 | I31: 31.13486882 | J31: 623.6 | L31: =IF(ISERROR(+J31+'App.2-CC_NewCGAAP_DepExp_2013'!K31-K31), 0, +J31+'App.2-CC_NewCGAAP_DepExp_2013'!K31-K31)+F31 -> 1476.604869
A32: 1845 | B32: Underground Conductors & Devices | C32: 475382 | D32: 30 | E32: 0.03333333333 | F32: -71474.68362 | G32: =IF(D32=0,+'App.2-CC_NewCGAAP_DepExp_2013'!K32,+'App.2-CC_NewCGAAP_DepExp_2013'!K32+((C32*0.5)/D32))+F32 -> 96605.1204 | H32: =167751-71474.68 -> 96276.32 | I32: 328.8003988 | J32: 15846.06667 | L32: =IF(ISERROR(+J32+'App.2-CC_NewCGAAP_DepExp_2013'!K32-K32), 0, +J32+'App.2-CC_NewCGAAP_DepExp_2013'!K32-K32)+F32 -> 104528.1537
A33: 1850 | B33: Line Transformers | C33: 338531 | D33: 40 | E33: 0.025 | F33: -36212.4392 | G33: =IF(D33=0,+'App.2-CC_NewCGAAP_DepExp_2013'!K33,+'App.2-CC_NewCGAAP_DepExp_2013'!K33+((C33*0.5)/D33))+F33 -> 44393.18126 | H33: =80278-36212.44 -> 44065.56 | I33: 327.6212554 | J33: 8463.275 | K33: =4.1+5.04+5.51+38.57+10.7+21.51+7.12+6.93+1.53*12+88.61-79.05 -> 127.4 | L33: =IF(ISERROR(+J33+'App.2-CC_NewCGAAP_DepExp_2013'!K33-K33), 0, +J33+'App.2-CC_NewCGAAP_DepExp_2013'!K33-K33)+F33 -> 48497.41876
A34: 1855 | B34: Services (Overhead & Underground) | C34: 343053 | D34: 35 | E34: 0.02857142857 | F34: -35673.90038 | G34: =IF(D34=0,+'App.2-CC_NewCGAAP_DepExp_2013'!K34,+'App.2-CC_NewCGAAP_DepExp_2013'!K34+((C34*0.5)/D34))+F34 -> 56430.20918 | H34: =91894-35673.9 -> 56220.1 | I34: 210.1091777 | J34: 9801.514286 | L34: =IF(ISERROR(+J34+'App.2-CC_NewCGAAP_DepExp_2013'!K34-K34), 0, +J34+'App.2-CC_NewCGAAP_DepExp_2013'!K34-K34)+F34 -> 61330.96632
A35: 1860 | B35: Meters | C35: 0 | D35: 25 | E35: 0.04 | G35: =IF(D35=0,+'App.2-CC_NewCGAAP_DepExp_2013'!K35,+'App.2-CC_NewCGAAP_DepExp_2013'!K35+((C35*0.5)/D35))+F35 -> 223.8330612 | H35: 223.73 | I35: 0.1030612245 | J35: 0 | L35: =IF(ISERROR(+J35+'App.2-CC_NewCGAAP_DepExp_2013'!K35-K35), 0, +J35+'App.2-CC_NewCGAAP_DepExp_2013'!K35-K35)+F35 -> 223.8330612
A36: 1860 | B36: Meters (Smart Meters) | C36: 5254.37 | D36: 15 | E36: 0.06666666667 | F36: =-F70 -> -2770.385455 | G36: =IF(D36=0,+'App.2-CC_NewCGAAP_DepExp_2013'!K36,+'App.2-CC_NewCGAAP_DepExp_2013'!K36+((C36*0.5)/D36))+F36 -> 112980.1557 | H36: =115316.02-2770.39 -> 112545.63 | I36: 434.5256631 | J36: 350.2913333 | L36: =IF(ISERROR(+J36+'App.2-CC_NewCGAAP_DepExp_2013'!K36-K36), 0, +J36+'App.2-CC_NewCGAAP_DepExp_2013'!K36-K36)+F36 -> 113155.3013
A37: 1860 | B37: Primary Metering Equipment | C37: 0 | D37: 25 | E37: 0.04 | G37: =IF(D37=0,+'App.2-CC_NewCGAAP_DepExp_2013'!K37,+'App.2-CC_NewCGAAP_DepExp_2013'!K37+((C37*0.5)/D37))+F37 -> 6669.28026 | H37: 6667.79 | I37: 1.490260465 | J37: 0 | L37: =IF(ISERROR(+J37+'App.2-CC_NewCGAAP_DepExp_2013'!K37-K37), 0, +J37+'App.2-CC_NewCGAAP_DepExp_2013'!K37-K37)+F37 -> 6669.28026
A38: 1905 | B38: Land | C38: 91245 | D38: 0 | E38: 0 | G38: =IF(D38=0,+'App.2-CC_NewCGAAP_DepExp_2013'!K38,+'App.2-CC_NewCGAAP_DepExp_2013'!K38+((C38*0.5)/D38))+F38 -> 0 | I38: 0 | J38: 0 | L38: =IF(ISERROR(+J38+'App.2-CC_NewCGAAP_DepExp_2013'!K38-K38), 0, +J38+'App.2-CC_NewCGAAP_DepExp_2013'!K38-K38)+F38 -> 0
A39: 1908 | B39: Buildings & Fixtures | C39: 4626 | D39: 50 | E39: 0.02 | G39: =IF(D39=0,+'App.2-CC_NewCGAAP_DepExp_2013'!K39,+'App.2-CC_NewCGAAP_DepExp_2013'!K39+((C39*0.5)/D39))+F39 -> 28090.97789 | H39: 28060.3 | I39: 30.67789486 | J39: 92.52 | L39: =IF(ISERROR(+J39+'App.2-CC_NewCGAAP_DepExp_2013'!K39-K39), 0, +J39+'App.2-CC_NewCGAAP_DepExp_2013'!K39-K39)+F39 -> 28137.23789
A40: 1910 | B40: Leasehold Improvements | C40: 0 | E40: 0 | G40: =IF(D40=0,+'App.2-CC_NewCGAAP_DepExp_2013'!K40,+'App.2-CC_NewCGAAP_DepExp_2013'!K40+((C40*0.5)/D40))+F40 -> 0 | I40: 0 | J40: 0 | L40: =IF(ISERROR(+J40+'App.2-CC_NewCGAAP_DepExp_2013'!K40-K40), 0, +J40+'App.2-CC_NewCGAAP_DepExp_2013'!K40-K40)+F40 -> 0
A41: 1915 | B41: Office Furniture & Equipment (10 years) | C41: 0 | E41: 0 | G41: =IF(D41=0,+'App.2-CC_NewCGAAP_DepExp_2013'!K41,+'App.2-CC_NewCGAAP_DepExp_2013'!K41+((C41*0.5)/D41))+F41 -> 0 | I41: 0 | J41: 0 | L41: =IF(ISERROR(+J41+'App.2-CC_NewCGAAP_DepExp_2013'!K41-K41), 0, +J41+'App.2-CC_NewCGAAP_DepExp_2013'!K41-K41)+F41 -> 0
A42: 1915 | B42: Office Furniture & Equipment (5 years) | C42: 0 | E42: 0 | G42: =IF(D42=0,+'App.2-CC_NewCGAAP_DepExp_2013'!K42,+'App.2-CC_NewCGAAP_DepExp_2013'!K42+((C42*0.5)/D42))+F42 -> 0 | I42: 0 | J42: 0 | L42: =IF(ISERROR(+J42+'App.2-CC_NewCGAAP_DepExp_2013'!K42-K42), 0, +J42+'App.2-CC_NewCGAAP_DepExp_2013'!K42-K42)+F42 -> 0
A43: 1920 | B43: Computer Equipment - Hardware | C43: 0 | E43: 0 | G43: =IF(D43=0,+'App.2-CC_NewCGAAP_DepExp_2013'!K43,+'App.2-CC_NewCGAAP_DepExp_2013'!K43+((C43*0.5)/D43))+F43 -> 0 | I43: 0 | J43: 0 | L43: =IF(ISERROR(+J43+'App.2-CC_NewCGAAP_DepExp_2013'!K43-K43), 0, +J43+'App.2-CC_NewCGAAP_DepExp_2013'!K43-K43)+F43 -> 0
A44: 1920 | B44: Computer Equip.-Hardware(Post Mar. 22/04) | C44: 0 | E44: 0 | G44: =IF(D44=0,+'App.2-CC_NewCGAAP_DepExp_2013'!K44,+'App.2-CC_NewCGAAP_DepExp_2013'!K44+((C44*0.5)/D44))+F44 -> 0 | I44: 0 | J44: 0 | L44: =IF(ISERROR(+J44+'App.2-CC_NewCGAAP_DepExp_2013'!K44-K44), 0, +J44+'App.2-CC_NewCGAAP_DepExp_2013'!K44-K44)+F44 -> 0
A45: 1920 | B45: Computer Equip.-Hardware(Post Mar. 19/07) | C45: 0 | E45: 0 | G45: =IF(D45=0,+'App.2-CC_NewCGAAP_DepExp_2013'!K45,+'App.2-CC_NewCGAAP_DepExp_2013'!K45+((C45*0.5)/D45))+F45 -> 0 | I45: 0 | J45: 0 | L45: =IF(ISERROR(+J45+'App.2-CC_NewCGAAP_DepExp_2013'!K45-K45), 0, +J45+'App.2-CC_NewCGAAP_DepExp_2013'!K45-K45)+F45 -> 0
A46: 1930 | B46: Transportation Equipment | C46: 0 | E46: 0 | G46: =IF(D46=0,+'App.2-CC_NewCGAAP_DepExp_2013'!K46,+'App.2-CC_NewCGAAP_DepExp_2013'!K46+((C46*0.5)/D46))+F46 -> 0 | I46: 0 | J46: 0 | L46: =IF(ISERROR(+J46+'App.2-CC_NewCGAAP_DepExp_2013'!K46-K46), 0, +J46+'App.2-CC_NewCGAAP_DepExp_2013'!K46-K46)+F46 -> 0
A47: 1935 | B47: Stores Equipment | C47: 0 | E47: 0 | G47: =IF(D47=0,+'App.2-CC_NewCGAAP_DepExp_2013'!K47,+'App.2-CC_NewCGAAP_DepExp_2013'!K47+((C47*0.5)/D47))+F47 -> 0 | I47: 0 | J47: 0 | L47: =IF(ISERROR(+J47+'App.2-CC_NewCGAAP_DepExp_2013'!K47-K47), 0, +J47+'App.2-CC_NewCGAAP_DepExp_2013'!K47-K47)+F47 -> 0
A48: 1940 | B48: Tools, Shop & Garage Equipment | C48: 0 | E48: 0 | G48: =IF(D48=0,+'App.2-CC_NewCGAAP_DepExp_2013'!K48,+'App.2-CC_NewCGAAP_DepExp_2013'!K48+((C48*0.5)/D48))+F48 -> 0 | I48: 0 | J48: 0 | L48: =IF(ISERROR(+J48+'App.2-CC_NewCGAAP_DepExp_2013'!K48-K48), 0, +J48+'App.2-CC_NewCGAAP_DepExp_2013'!K48-K48)+F48 -> 0
A49: 1945 | B49: Measurement & Testing Equipment | C49: 0 | E49: 0 | G49: =IF(D49=0,+'App.2-CC_NewCGAAP_DepExp_2013'!K49,+'App.2-CC_NewCGAAP_DepExp_2013'!K49+((C49*0.5)/D49))+F49 -> 0 | I49: 0 | J49: =IF(D49=0,0,+(C49)/D49) -> 0 | L49: =IF(ISERROR(+J49+'App.2-CC_NewCGAAP_DepExp_2013'!K49-K49), 0, +J49+'App.2-CC_NewCGAAP_DepExp_2013'!K49-K49)+F49 -> 0
A50: 1950 | B50: Power Operated Equipment | C50: 0 | E50: 0 | G50: =IF(D50=0,+'App.2-CC_NewCGAAP_DepExp_2013'!K50,+'App.2-CC_NewCGAAP_DepExp_2013'!K50+((C50*0.5)/D50))+F50 -> 0 | I50: 0 | J50: 0 | L50: =IF(ISERROR(+J50+'App.2-CC_NewCGAAP_DepExp_2013'!K50-K50), 0, +J50+'App.2-CC_NewCGAAP_DepExp_2013'!K50-K50)+F50 -> 0
A51: 1955 | B51: Communications Equipment | C51: 0 | E51: 0 | G51: =IF(D51=0,+'App.2-CC_NewCGAAP_DepExp_2013'!K51,+'App.2-CC_NewCGAAP_DepExp_2013'!K51+((C51*0.5)/D51))+F51 -> 0 | I51: 0 | J51: 0 | L51: =IF(ISERROR(+J51+'App.2-CC_NewCGAAP_DepExp_2013'!K51-K51), 0, +J51+'App.2-CC_NewCGAAP_DepExp_2013'!K51-K51)+F51 -> 0
A52: 1955 | B52: Communication Equipment (Smart Meters) | C52: 0 | E52: 0 | G52: =IF(D52=0,+'App.2-CC_NewCGAAP_DepExp_2013'!K52,+'App.2-CC_NewCGAAP_DepExp_2013'!K52+((C52*0.5)/D52))+F52 -> 0 | I52: 0 | J52: 0 | L52: =IF(ISERROR(+J52+'App.2-CC_NewCGAAP_DepExp_2013'!K52-K52), 0, +J52+'App.2-CC_NewCGAAP_DepExp_2013'!K52-K52)+F52 -> 0
A53: 1960 | B53: Miscellaneous Equipment | C53: 0 | E53: 0 | G53: =IF(D53=0,+'App.2-CC_NewCGAAP_DepExp_2013'!K53,+'App.2-CC_NewCGAAP_DepExp_2013'!K53+((C53*0.5)/D53))+F53 -> 0 | I53: 0 | J53: 0 | L53: =IF(ISERROR(+J53+'App.2-CC_NewCGAAP_DepExp_2013'!K53-K53), 0, +J53+'App.2-CC_NewCGAAP_DepExp_2013'!K53-K53)+F53 -> 0
A54: 1970 | B54: Load Management Controls Customer Premises | C54: 0 | E54: 0 | G54: =IF(D54=0,+'App.2-CC_NewCGAAP_DepExp_2013'!K54,+'App.2-CC_NewCGAAP_DepExp_2013'!K54+((C54*0.5)/D54))+F54 -> 0 | I54: 0 | J54: 0 | L54: =IF(ISERROR(+J54+'App.2-CC_NewCGAAP_DepExp_2013'!K54-K54), 0, +J54+'App.2-CC_NewCGAAP_DepExp_2013'!K54-K54)+F54 -> 0
A55: 1975 | B55: Load Management Controls Utility Premises | C55: 0 | E55: 0 | G55: =IF(D55=0,+'App.2-CC_NewCGAAP_DepExp_2013'!K55,+'App.2-CC_NewCGAAP_DepExp_2013'!K55+((C55*0.5)/D55))+F55 -> 0 | I55: 0 | J55: 0 | L55: =IF(ISERROR(+J55+'App.2-CC_NewCGAAP_DepExp_2013'!K55-K55), 0, +J55+'App.2-CC_NewCGAAP_DepExp_2013'!K55-K55)+F55 -> 0
A56: 1980 | B56: System Supervisor Equipment | C56: 0 | D56: 20 | E56: 0.05 | G56: =IF(D56=0,+'App.2-CC_NewCGAAP_DepExp_2013'!K56,+'App.2-CC_NewCGAAP_DepExp_2013'!K56+((C56*0.5)/D56))+F56 -> 4400.7275 | H56: 4400.72 | I56: 0.0075 | J56: 0 | L56: =IF(ISERROR(+J56+'App.2-CC_NewCGAAP_DepExp_2013'!K56-K56), 0, +J56+'App.2-CC_NewCGAAP_DepExp_2013'!K56-K56)+F56 -> 4400.7275
A57: 1985 | B57: Miscellaneous Fixed Assets | C57: 0 | E57: 0 | G57: =IF(D57=0,+'App.2-CC_NewCGAAP_DepExp_2013'!K57,+'App.2-CC_NewCGAAP_DepExp_2013'!K57+((C57*0.5)/D57))+F57 -> 0 | I57: 0 | J57: 0 | L57: =IF(ISERROR(+J57+'App.2-CC_NewCGAAP_DepExp_2013'!K57-K57), 0, +J57+'App.2-CC_NewCGAAP_DepExp_2013'!K57-K57)+F57 -> 0
A58: 1990 | B58: Other Tangible Property | C58: 0 | E58: 0 | G58: =IF(D58=0,+'App.2-CC_NewCGAAP_DepExp_2013'!K58,+'App.2-CC_NewCGAAP_DepExp_2013'!K58+((C58*0.5)/D58))+F58 -> 0 | I58: 0 | J58: 0 | L58: =IF(ISERROR(+J58+'App.2-CC_NewCGAAP_DepExp_2013'!K58-K58), 0, +J58+'App.2-CC_NewCGAAP_DepExp_2013'!K58-K58)+F58 -> 0
A59: 2440-1820-01 | B59: Deferred Revenue - Station Building & Infrastructure | C59: 0 | D59: 50 | E59: 0.02 | F59: =-'App.2-CC_NewCGAAP_DepExp_2013'!K59 -> 1512.142526 | G59: =IF(D59=0,+'App.2-CC_NewCGAAP_DepExp_2013'!K59,+'App.2-CC_NewCGAAP_DepExp_2013'!K59+((C59*0.5)/D59))+F59 -> 0 | H59: 0 | I59: =IF(ISERROR(+G59-H59), 0, +G59-H59) -> 0 | J59: 0 | L59: =IF(ISERROR(+J59+'App.2-CC_NewCGAAP_DepExp_2013'!K59-K59), 0, +J59+'App.2-CC_NewCGAAP_DepExp_2013'!K59-K59)+F59 -> 0
A60: 2440-1820-02 | B60: Deferred Revenue - Station Civil Work | C60: 0 | D60: 50 | E60: 0.02 | F60: =-'App.2-CC_NewCGAAP_DepExp_2013'!K60 -> 1488.266526 | G60: =IF(D60=0,+'App.2-CC_NewCGAAP_DepExp_2013'!K60,+'App.2-CC_NewCGAAP_DepExp_2013'!K60+((C60*0.5)/D60))+F60 -> 0 | H60: 0 | I60: 0 | J60: 0 | L60: =IF(ISERROR(+J60+'App.2-CC_NewCGAAP_DepExp_2013'!K60-K60), 0, +J60+'App.2-CC_NewCGAAP_DepExp_2013'!K60-K60)+F60 -> 0
A61: 2440-1820-03 | B61: Deferred Revenue - Station LV/Reclosures & Breakers | C61: 0 | D61: 20 | E61: 0.05 | F61: =-'App.2-CC_NewCGAAP_DepExp_2013'!K61 -> 5283.170286 | G61: =IF(D61=0,+'App.2-CC_NewCGAAP_DepExp_2013'!K61,+'App.2-CC_NewCGAAP_DepExp_2013'!K61+((C61*0.5)/D61))+F61 -> 0 | H61: 0 | I61: 0 | J61: 0 | L61: =IF(ISERROR(+J61+'App.2-CC_NewCGAAP_DepExp_2013'!K61-K61), 0, +J61+'App.2-CC_NewCGAAP_DepExp_2013'!K61-K61)+F61 -> 0
A62: 2440-1820-04 | B62: Deferred Revenue- Station Equipment | C62: 0 | D62: 40 | E62: 0.025 | F62: =-'App.2-CC_NewCGAAP_DepExp_2013'!K62 -> 6800.941333 | G62: =IF(D62=0,+'App.2-CC_NewCGAAP_DepExp_2013'!K62,+'App.2-CC_NewCGAAP_DepExp_2013'!K62+((C62*0.5)/D62))+F62 -> 0 | H62: 0 | I62: 0 | J62: 0 | L62: =IF(ISERROR(+J62+'App.2-CC_NewCGAAP_DepExp_2013'!K62-K62), 0, +J62+'App.2-CC_NewCGAAP_DepExp_2013'!K62-K62)+F62 -> 0
A63: 2440-1820-05 | B63: Deferred Revenue - Station Transformers | C63: 0 | D63: 45 | E63: 0.02222222222 | F63: =-'App.2-CC_NewCGAAP_DepExp_2013'!K63 -> 6145.000471 | G63: =IF(D63=0,+'App.2-CC_NewCGAAP_DepExp_2013'!K63,+'App.2-CC_NewCGAAP_DepExp_2013'!K63+((C63*0.5)/D63))+F63 -> 0 | H63: 0 | I63: 0 | J63: 0 | L63: =IF(ISERROR(+J63+'App.2-CC_NewCGAAP_DepExp_2013'!K63-K63), 0, +J63+'App.2-CC_NewCGAAP_DepExp_2013'!K63-K63)+F63 -> 0
A64: 2440-1830 | B64: Deferred Revenue - Poles | C64: -233748.95 | D64: 45 | E64: 0.02222222222 | F64: =-'App.2-CC_NewCGAAP_DepExp_2013'!K64 -> 5333.203694 | G64: =IF(D64=0,+'App.2-CC_NewCGAAP_DepExp_2013'!K64,+'App.2-CC_NewCGAAP_DepExp_2013'!K64+((C64*0.5)/D64))+F64 -> -2597.210556 | H64: =-7889.87+5333.2 -> -2556.67 | I64: -40.54055556 | J64: -5194.421111 | L64: =IF(ISERROR(+J64+'App.2-CC_NewCGAAP_DepExp_2013'!K64-K64), 0, +J64+'App.2-CC_NewCGAAP_DepExp_2013'!K64-K64)+F64 -> -5194.421111
A65: 2440-1835 | B65: Deferred Revenue - O/H Conductor | C65: -26452.38 | D65: 45 | E65: 0.02222222222 | F65: =-'App.2-CC_NewCGAAP_DepExp_2013'!K65 -> 1487.99228 | G65: =IF(D65=0,+'App.2-CC_NewCGAAP_DepExp_2013'!K65,+'App.2-CC_NewCGAAP_DepExp_2013'!K65+((C65*0.5)/D65))+F65 -> -293.9153333 | H65: =-1785+1487.99 -> -297.01 | I65: 3.094666667 | J65: -587.8306667 | L65: =IF(ISERROR(+J65+'App.2-CC_NewCGAAP_DepExp_2013'!K65-K65), 0, +J65+'App.2-CC_NewCGAAP_DepExp_2013'!K65-K65)+F65 -> -587.8306667
A66: 2440-1840 | B66: Deferred Revenue - Conduit | C66: -13566.78 | D66: 50 | E66: 0.02 | F66: =-'App.2-CC_NewCGAAP_DepExp_2013'!K66 -> 4946.330535 | G66: =IF(D66=0,+'App.2-CC_NewCGAAP_DepExp_2013'!K66,+'App.2-CC_NewCGAAP_DepExp_2013'!K66+((C66*0.5)/D66))+F66 -> -135.6678 | H66: =-5077.32+4946.33 -> -130.99 | I66: -4.6778 | J66: -271.3356 | L66: =IF(ISERROR(+J66+'App.2-CC_NewCGAAP_DepExp_2013'!K66-K66), 0, +J66+'App.2-CC_NewCGAAP_DepExp_2013'!K66-K66)+F66 -> -271.3356
A67: 2440-1845 | B67: Deferred Revenue - U/G Conductor | C67: -304232.01 | D67: 30 | E67: 0.03333333333 | F67: =-'App.2-CC_NewCGAAP_DepExp_2013'!K67 -> 71474.68362 | G67: =IF(D67=0,+'App.2-CC_NewCGAAP_DepExp_2013'!K67,+'App.2-CC_NewCGAAP_DepExp_2013'!K67+((C67*0.5)/D67))+F67 -> -5070.5335 | H67: =-75951.41+71474.68 -> -4476.73 | I67: -593.8035 | J67: -10141.067 | L67: =IF(ISERROR(+J67+'App.2-CC_NewCGAAP_DepExp_2013'!K67-K67), 0, +J67+'App.2-CC_NewCGAAP_DepExp_2013'!K67-K67)+F67 -> -10141.067
A68: 2440-1850 | B68: Deferred Revenue - Transformers | C68: -222377.83 | D68: 40 | E68: 0.025 | F68: =-'App.2-CC_NewCGAAP_DepExp_2013'!K68 -> 36212.4392 | G68: =IF(D68=0,+'App.2-CC_NewCGAAP_DepExp_2013'!K68,+'App.2-CC_NewCGAAP_DepExp_2013'!K68+((C68*0.5)/D68))+F68 -> -2779.722875 | H68: =-38311.36+36212.44 -> -2098.92 | I68: -680.802875 | J68: -5559.44575 | L68: =IF(ISERROR(+J68+'App.2-CC_NewCGAAP_DepExp_2013'!K68-K68), 0, +J68+'App.2-CC_NewCGAAP_DepExp_2013'!K68-K68)+F68 -> -5559.44575
A69: 2440-1855 | B69: Deferred Revenue - Secondary Services | C69: -155318.61 | D69: 35 | E69: 0.02857142857 | F69: =-'App.2-CC_NewCGAAP_DepExp_2013'!K69 -> 35673.90038 | G69: =IF(D69=0,+'App.2-CC_NewCGAAP_DepExp_2013'!K69,+'App.2-CC_NewCGAAP_DepExp_2013'!K69+((C69*0.5)/D69))+F69 -> -2218.837286 | H69: =-37667.15+35673.9 -> -1993.25 | I69: -225.5872857 | J69: -4437.674571 | L69: =IF(ISERROR(+J69+'App.2-CC_NewCGAAP_DepExp_2013'!K69-K69), 0, +J69+'App.2-CC_NewCGAAP_DepExp_2013'!K69-K69)+F69 -> -4437.674571
A70: 2440-1860 | B70: Deferred Revenue - Smart Meters | C70: -3302.93 | D70: 15 | E70: 0.06666666667 | F70: =-'App.2-CC_NewCGAAP_DepExp_2013'!K70 -> 2770.385455 | G70: =IF(D70=0,+'App.2-CC_NewCGAAP_DepExp_2013'!K70,+'App.2-CC_NewCGAAP_DepExp_2013'!K70+((C70*0.5)/D70))+F70 -> -110.0976667 | H70: =-2858.51+2770.39 -> -88.12 | I70: -21.97766667 | J70: -220.1953333 | L70: =IF(ISERROR(+J70+'App.2-CC_NewCGAAP_DepExp_2013'!K70-K70), 0, +J70+'App.2-CC_NewCGAAP_DepExp_2013'!K70-K70)+F70 -> -220.1953333
A71: 2005 | B71: Capital Lease - Communication Equipment | D71: 20 | E71: 0.05 | G71: =IF(D71=0,+'App.2-CC_NewCGAAP_DepExp_2013'!K71,+'App.2-CC_NewCGAAP_DepExp_2013'!K71+((C71*0.5)/D71)) -> 2464.154 | H71: 2464.15 | I71: 0.004 | J71: 0 | L71: =IF(ISERROR(+J71+'App.2-CC_NewCGAAP_DepExp_2013'!K71-K71), 0, +J71+'App.2-CC_NewCGAAP_DepExp_2013'!K71-K71)+F71 -> 2464.154
A72: 2005 | B72: Capital Lease - Structure | D72: 50 | E72: 0.02 | G72: =IF(D72=0,+'App.2-CC_NewCGAAP_DepExp_2013'!K72,+'App.2-CC_NewCGAAP_DepExp_2013'!K72+((C72*0.5)/D72)) -> 1550.2016 | H72: 1550.2 | I72: 0.0016 | J72: 0 | L72: =IF(ISERROR(+J72+'App.2-CC_NewCGAAP_DepExp_2013'!K72-K72), 0, +J72+'App.2-CC_NewCGAAP_DepExp_2013'!K72-K72)+F72 -> 1550.2016
B73: Total | C73: =SUM(C17:C72) -> 1189403.94 | F73: =SUM(F17:F72) -> 0 | G73: =SUM(G17:G72) -> 597884.7755 | H73: 597387.11 | I73: 497.6654939 | J73: 30614.43889 | K73: 1151.63 | L73: =SUM(L17:L72) -> 612040.3649
B74: Depreciation exp. adj. from gain or loss on the retirement of assets (pool of like assets)
B75: Total Depreciation Expense | G75: =+G74+G73 -> 597884.7755
A77: Notes:
A78: 1 | B78: Board policy of the "half-year" rule - the applicant must ensure that additions in the year attract a half-year depreciation expense in the first year. Deviations from this standard practice must be supported in the application.
A79: 2 | B79: The applicant must provide an explanation of material variances in evidence.
A80: 3 | B80: This column refers to the calculated full year depreciation but excludes the depreciation expense on assets fully depreciated during the year. This column is used for the purpose of calculating depreciation expense in the following year on the next worksheet.
A82: General: | B82: Applicants must provide a breakdown of depreciation and amortization expense in the above format for all relevant accounts. Asset Retirement Obligations (AROs), depreciation and accretion expense should be disclosed separately consistent with the Notes of historical Audited Financial Statements.
E86: 2014 | F86: MIFRS
A88: Account | B88: Description | C88: Additions | D88: Years (new additions only) | E88: Depreciation Rate on New Additions | F88: 2014 Depreciation Expense 1 | G88: 2014 Depreciation Expense per Appendix 2-BA Fixed Assets, Column J (l) | H88: Variance 2 | I88: Depreciation Expense on 2014 Full Year Additions | J88: Less Depreciation Expense on Assets Fully Depreciated during the year (o) | K88: 2014 Full Year Depreciation 3
C89: (d) | D89: (f) | E89: (g) = 1 / (f) | F89: (h)=2013 Full Year Deprecation + ((d)*0.5)/(f) | H89: (m) = (h) - (l) | I89: (n)=((d))/(f) | K89: (p) = 2013 Full Year Depreciation + (n) - (o)
A90: 1611 | B90: Computer Software (Formally known as Account 1925) | C90: 0 | D90: 10 | E90: 0.1 | F90: 13785.1462 | G90: 13779 | H90: 6.14619883 | I90: 0 | K90: 13785.1462
A91: 1612 | B91: Land Rights (Formally known as Account 1906) | C91: 0 | D91: 0 | E91: 0 | F91: 0 | H91: 0 | I91: 0 | K91: 0
A92: 1805 | B92: Land | C92: 0 | D92: 0 | E92: 0 | F92: 0 | H92: 0 | I92: 0 | K92: 0
A93: 1808 | B93: Buildings | C93: 0 | D93: 0 | E93: 0 | F93: 0 | H93: 0 | I93: 0 | K93: 0
A94: 1810 | B94: Leasehold Improvements | C94: 0 | D94: 0 | E94: 0 | F94: 0 | H94: 0 | I94: 0 | K94: 0
A95: 1815 | B95: Transformer Station Equipment >50 kV | C95: 0 | D95: 0 | E95: 0 | F95: 0 | H95: 0 | I95: 0 | K95: 0
A96: 1820 | B96: Distribution Station Equipment <50 kV - Building & Infrastructure | C96: 0 | D96: 50 | E96: 0.02 | F96: 7310.542791 | G96: 7253.23 | H96: 57.3127907 | I96: 0 | K96: 7310.542791
A97: 1820 | B97: Distribution Station Equipment <50 kV - Civil Work | C97: 0 | D97: 50 | E97: 0.02 | F97: 2942.911011 | G97: 2921.02 | H97: 21.89101124 | I97: 0 | K97: 2942.911011
A98: 1820 | B98: Distribution Station Equipment <50 kV - LV Reclosures & Breakers | C98: 51785.06 | D98: 20 | E98: 0.05 | F98: 29603.37437 | G98: 29540.11 | H98: 63.26437079 | I98: 2589.253 | K98: 30898.00087
A99: 1820 | B99: Distribution Station Equipment <50 kV - Equipment | C99: 0 | D99: 40 | E99: 0.025 | F99: 24367.52345 | G99: 24283.34 | H99: 84.18345455 | I99: 0 | K99: 24367.52345
A100: 1820 | B100: Distribution Station Equipment <50 kV - Transformer | C100: 0 | D100: 45 | E100: 0.02222222222 | F100: 20489.13107 | G100: 20462.84 | H100: 26.29106918 | I100: 0 | K100: 20489.13107
A101: 1825 | B101: Storage Battery Equipment | C101: 0 | D101: 0 | E101: 0 | F101: 0 | H101: 0 | I101: 0 | K101: 0
A102: 1830 | B102: Poles, Towers & Fixtures | C102: 472241 | D102: 45 | E102: 0.02222222222 | F102: 93891.53275 | G102: 93292 | H102: 599.5327514 | I102: 10494.24444 | J102: 754.75 | K102: 98383.90497
A103: 1835 | B103: Overhead Conductors & Devices | C103: 61106 | D103: 45 | E103: 0.02222222222 | F103: 88074.80376 | G103: 87768 | H103: 306.8037572 | I103: 1357.911111 | J103: 269.48 | K103: 88484.27931
A104: 1840 | B104: Underground Conduit | C104: 31180 | D104: 50 | E104: 0.02 | F104: 6111.135404 | G104: 6080 | H104: 31.1354043 | I104: 623.6 | K104: 6422.935404
A105: 1845 | B105: Underground Conductors & Devices | C105: 475382 | D105: 30 | E105: 0.03333333333 | F105: 168079.804 | G105: 167751 | H105: 328.804014 | I105: 15846.06667 | K105: 176002.8373
A106: 1850 | B106: Line Transformers | C106: 338531 | D106: 40 | E106: 0.025 | F106: 80605.62046 | G106: 80278 | H106: 327.6204592 | I106: 8463.275 | J106: 206.45 | K106: 84630.80796
A107: 1855 | B107: Services (Overhead & Underground) | C107: 343053 | D107: 35 | E107: 0.02857142857 | F107: 92104.10956 | G107: 91894 | H107: 210.1095621 | I107: 9801.514286 | K107: 97004.8667
A108: 1860 | B108: Meters | C108: 0 | D108: 25 | E108: 0.04 | F108: 223.8330612 | G108: 223.73 | H108: 0.1030612245 | I108: 0 | K108: 223.8330612
A109: 1860 | B109: Meters (Smart Meters) | C109: 5254.37 | D109: 15 | E109: 0.06666666667 | F109: 115750.5411 | G109: 115316.02 | H109: 434.5211176 | I109: 350.2913333 | K109: 115925.6868
A110: 1860 | B110: Primary Metering Equipment | C110: 0 | D110: 25 | E110: 0.04 | F110: 6669.28026 | G110: 6667.79 | H110: 1.490260465 | I110: 0 | K110: 6669.28026
A111: 1905 | B111: Land | C111: 91245 | D111: 0 | E111: 0 | F111: 0 | H111: 0 | I111: 0 | K111: 0
A112: 1908 | B112: Buildings & Fixtures | C112: 4626 | D112: 50 | E112: 0.02 | F112: 28090.97789 | G112: 28060.3 | H112: 30.67789486 | I112: 92.52 | K112: 28137.23789
A113: 1980 | B113: System Supervisor Equipment | C113: 0 | D113: 20 | E113: 0.05 | F113: 4400.7275 | G113: 4400.72 | H113: 0.0075 | I113: 0 | K113: 4400.7275
A114: 1985 | B114: Miscellaneous Fixed Assets | C114: 0 | E114: 0 | F114: 0 | H114: 0 | I114: 0 | K114: 0
A115: 1990 | B115: Other Tangible Property | C115: 0 | E115: 0 | F115: 0 | H115: 0 | I115: 0 | K115: 0
A116: 2440-1820-01 | B116: Contributions & Grants - Station Building & Infrastructure | C116: 31213.82 | D116: 50 | E116: 0.02 | F116: -1200.004326 | G116: -1151.07 | H116: -48.93432632 | I116: 624.2764 | K116: -887.8661263
A117: 2440-1820-02 | B117: Contributions & Grants - Station Civil Work | C117: 31714.58 | D117: 50 | E117: 0.02 | F117: -1171.120726 | G117: -1169.54 | H117: -1.580726316 | I117: 634.2916 | K117: -853.9749263
A118: 2440-1820-03 | B118: Contributions & Grants - Station LV/Reclosures & Breakers | C118: 41228.95 | D118: 20 | E118: 0.05 | F118: -4252.446536 | G118: -4012.16 | H118: -240.2865357 | I118: 2061.4475 | K118: -3221.722786
A119: 2440-1820-04 | B119: Contributions & Grants - Station Equipment | C119: 112837.13 | D119: 40 | E119: 0.025 | F119: -5390.477208 | G119: -5247.18 | H119: -143.2972083 | I119: 2820.92825 | K119: -3980.013083
A120: 2440-1820-05 | B120: Contributions & Grants - Station Transformers | C120: 57005.52 | D120: 45 | E120: 0.02222222222 | F120: -5511.605804 | G120: -5477.77 | H120: -33.83580392 | I120: 1266.789333 | K120: -4799.161137
A121: 2440-1830 | B121: Contributions & Grants - Poles | C121: -233748.95 | D121: 45 | E121: 0.02222222222 | F121: -7930.414249 | G121: -7889.87 | H121: -40.54424948 | I121: -5194.421111 | K121: -10527.62481
A122: 2440-1835 | B122: Contributions & Grants - O/H Conductor | C122: -26452.38 | D122: 45 | E122: 0.02222222222 | F122: -1781.907613 | G122: -1785 | H122: 3.092386946 | I122: -587.8306667 | K122: -2075.822946
A123: 2440-1840 | B123: Contributions & Grants - Conduit | C123: -13566.78 | D123: 50 | E123: 0.02 | F123: -5081.998335 | G123: -5077.32 | H123: -4.678335484 | I123: -271.3356 | K123: -5217.666135
A124: 2440-1845 | B124: Contributions & Grants - U/G Conductor | C124: -304232.01 | D124: 30 | E124: 0.03333333333 | F124: -76545.21712 | G124: -75951.41 | H124: -593.8071151 | I124: -10141.067 | K124: -81615.75062
A125: 2440-1850 | B125: Contributions & Grants - Transformers | C125: -222377.83 | D125: 40 | E125: 0.025 | F125: -38992.16208 | G125: -38311.36 | H125: -680.8020787 | I125: -5559.44575 | J125: -79.05 | K125: -41771.88495
A126: 2440-1855 | B126: Contributions & Grants - Secondary Services | C126: -155318.61 | D126: 35 | E126: 0.02857142857 | F126: -37892.73767 | G126: -37667.15 | H126: -225.58767 | I126: -4437.674571 | K126: -40111.57496
A127: 2440-1860 | B127: Contributions & Grants - Smart Meters | C127: -3302.93 | D127: 15 | E127: 0.06666666667 | F127: -2880.483121 | G127: -2858.51 | H127: -21.97312121 | I127: -220.1953333 | K127: -2990.580788
A128: 2005 | B128: Capital Lease - Communication Equipment | D128: 20 | E128: 0.05 | F128: 2464.154 | G128: 2464.15 | H128: 0.004 | I128: 0 | K128: 2464.154
A129: 2005 | B129: Capital Lease - Structure | D129: 50 | E129: 0.02 | F129: 1550.2016 | G129: 1550.2 | H129: 0.0016 | I129: 0 | K129: 1550.2016
B130: Total | C130: 1189403.94 | F130: =SUM(F90:F129) -> 597884.7755 | G130: =SUM(G90:G129) -> 597387.11 | H130: 497.6654939 | I130: 30614.43889 | J130: 1151.63 | K130: 612040.3649
B131: Depreciation exp. adj. from gain or loss on the retirement of assets (pool of like assets)
B132: Total Depreciation Expense | F132: 597884.7755

Sheet App.2-CE_MIFRS_DepExp_2015
J1: File Number: | K1: =EBNUMBER -> EB-2015-0107
J2: Exhibit: | K2: 4
J3: Tab: | K3: 4
J4: Schedule: | K4: 2
J5: Page: | K5: 52
J7: Date:
A9: Appendix 2-CE
A10: Depreciation and Amortization Expense
A11: Assumes the applicant made capitalization and depreciation expense accounting policy changes under CGAAP effective January 1, 2012 and has adopted IFRS for financial reporting purposes effective January 1, 2015.
C13: 2015 | D13: MIFRS UNDER DEEMED COST ELECTION
A15: Account | B15: Description | C15: Additions | D15: Years (new additions only) | E15: Depreciation Rate on New Additions | F15: 2015 Depreciation Expense 1 | G15: 2015 Depreciation Expense per Appendix 2-BA Fixed Assets, Column J (l) | H15: Variance 2 | I15: Depreciation Expense on 2015 Full Year Additions | J15: Less Depreciation Expense on Assets Fully Depreciated during the year (o) | K15: 2015 Full Year Depreciation 3
C16: (d) | D16: (f) | E16: (g) = 1 / (f) | F16: (h)=2014 Full Year Depreciation + ((d)*0.5)/(f) | H16: (m) = (h) - (l) | I16: (n)=((d))/(f) | K16: (p) = 2014 Full Year Depreciation + (n) - (o) | P16: From Great Plains
A17: 1611 | B17: Computer Software (Formally known as Account 1925) | C17: 7500 | D17: 10 | E17: =IF(D17=0,0,1/D17) -> 0.1 | F17: =IF(D17=0,'App.2-CD_MIFRS_DepExp_2014'!L17,+'App.2-CD_MIFRS_DepExp_2014'!L17+((C17*0.5)/D17)) -> 14160.1462 | G17: 14535.1462 | H17: =IF(ISERROR(+F17-G17), 0, +F17-G17) -> -375 | I17: =IF(D17=0,0,+(C17)/D17) -> 750 | K17: =IF(ISERROR(+I17+'App.2-CD_MIFRS_DepExp_2014'!L17-J17), 0, +I17+'App.2-CD_MIFRS_DepExp_2014'!L17-J17) -> 14535.1462 | P17: =13779.23+L17*1/M17*0.5 -> 
A18: 1612 | B18: Land Rights (Formally known as Account 1906) | D18: 0 | E18: 0 | F18: =IF(D18=0,'App.2-CD_MIFRS_DepExp_2014'!L18,+'App.2-CD_MIFRS_DepExp_2014'!L18+((C18*0.5)/D18)) -> 0 | G18: 0 | H18: 0 | I18: =IF(D18=0,0,+(C18)/D18) -> 0 | K18: =IF(ISERROR(+I18+'App.2-CD_MIFRS_DepExp_2014'!L18-J18), 0, +I18+'App.2-CD_MIFRS_DepExp_2014'!L18-J18) -> 0
A19: 1805 | B19: Land | D19: 0 | E19: 0 | F19: =IF(D19=0,'App.2-CD_MIFRS_DepExp_2014'!L19,+'App.2-CD_MIFRS_DepExp_2014'!L19+((C19*0.5)/D19)) -> 0 | G19: 0 | H19: 0 | I19: 0 | K19: =IF(ISERROR(+I19+'App.2-CD_MIFRS_DepExp_2014'!L19-J19), 0, +I19+'App.2-CD_MIFRS_DepExp_2014'!L19-J19) -> 0
A20: 1808 | B20: Buildings | D20: 0 | E20: 0 | F20: =IF(D20=0,'App.2-CD_MIFRS_DepExp_2014'!L20,+'App.2-CD_MIFRS_DepExp_2014'!L20+((C20*0.5)/D20)) -> 0 | G20: 0 | H20: 0 | I20: 0 | K20: =IF(ISERROR(+I20+'App.2-CD_MIFRS_DepExp_2014'!L20-J20), 0, +I20+'App.2-CD_MIFRS_DepExp_2014'!L20-J20) -> 0
A21: 1810 | B21: Leasehold Improvements | D21: 0 | E21: 0 | F21: =IF(D21=0,'App.2-CD_MIFRS_DepExp_2014'!L21,+'App.2-CD_MIFRS_DepExp_2014'!L21+((C21*0.5)/D21)) -> 0 | G21: 0 | H21: 0 | I21: 0 | K21: =IF(ISERROR(+I21+'App.2-CD_MIFRS_DepExp_2014'!L21-J21), 0, +I21+'App.2-CD_MIFRS_DepExp_2014'!L21-J21) -> 0
A22: 1815 | B22: Transformer Station Equipment >50 kV | D22: 0 | E22: 0 | F22: =IF(D22=0,'App.2-CD_MIFRS_DepExp_2014'!L22,+'App.2-CD_MIFRS_DepExp_2014'!L22+((C22*0.5)/D22)) -> 0 | G22: 0 | H22: 0 | I22: 0 | K22: =IF(ISERROR(+I22+'App.2-CD_MIFRS_DepExp_2014'!L22-J22), 0, +I22+'App.2-CD_MIFRS_DepExp_2014'!L22-J22) -> 0
A23: 1820 | B23: Distribution Station Equipment <50 kV - Building & Infrastructure | D23: 50 | E23: 0.02 | F23: =IF(D23=0,'App.2-CD_MIFRS_DepExp_2014'!L23,+'App.2-CD_MIFRS_DepExp_2014'!L23+((C23*0.5)/D23)) -> 6422.676664 | G23: 6422.676664 | H23: 0 | I23: 0 | K23: =IF(ISERROR(+I23+'App.2-CD_MIFRS_DepExp_2014'!L23-J23), 0, +I23+'App.2-CD_MIFRS_DepExp_2014'!L23-J23) -> 6422.676664 | P23: =7253.24-804.25 -> 6448.99
A24: 1820 | B24: Distribution Station Equipment <50 kV - Civil Work | D24: 50 | E24: 0.02 | F24: =IF(D24=0,'App.2-CD_MIFRS_DepExp_2014'!L24,+'App.2-CD_MIFRS_DepExp_2014'!L24+((C24*0.5)/D24)) -> 2088.936085 | G24: 2088.936085 | H24: 0 | I24: 0 | K24: =IF(ISERROR(+I24+'App.2-CD_MIFRS_DepExp_2014'!L24-J24), 0, +I24+'App.2-CD_MIFRS_DepExp_2014'!L24-J24) -> 2088.936085 | P24: =2921.02-817.15 -> 2103.87
A25: 1820 | B25: Distribution Station Equipment <50 kV - LV Reclosures & Breakers | D25: 20 | E25: 0.05 | F25: =IF(D25=0,'App.2-CD_MIFRS_DepExp_2014'!L25,+'App.2-CD_MIFRS_DepExp_2014'!L25+((C25*0.5)/D25)) -> 27676.27809 | G25: 27676.27809 | H25: 0 | I25: 0 | J25: 7868 | K25: =IF(ISERROR(+I25+'App.2-CD_MIFRS_DepExp_2014'!L25-J25), 0, +I25+'App.2-CD_MIFRS_DepExp_2014'!L25-J25) -> 19808.27809 | P25: =30834.72-2637.86 -> 28196.86
A26: 1820 | B26: Distribution Station Equipment <50 kV - Equipment | D26: 40 | E26: 0.025 | F26: =IF(D26=0,'App.2-CD_MIFRS_DepExp_2014'!L26,+'App.2-CD_MIFRS_DepExp_2014'!L26+((C26*0.5)/D26)) -> 20387.51037 | G26: 20387.51037 | H26: 0 | I26: 0 | K26: =IF(ISERROR(+I26+'App.2-CD_MIFRS_DepExp_2014'!L26-J26), 0, +I26+'App.2-CD_MIFRS_DepExp_2014'!L26-J26) -> 20387.51037 | P26: =24283.33-3635.22 -> 20648.11
A27: 1820 | B27: Distribution Station Equipment <50 kV - Transformer | D27: 45 | E27: 0.02222222222 | F27: =IF(D27=0,'App.2-CD_MIFRS_DepExp_2014'!L27,+'App.2-CD_MIFRS_DepExp_2014'!L27+((C27*0.5)/D27)) -> 15610.91993 | G27: 15610.91993 | H27: 0 | I27: 0 | K27: =IF(ISERROR(+I27+'App.2-CD_MIFRS_DepExp_2014'!L27-J27), 0, +I27+'App.2-CD_MIFRS_DepExp_2014'!L27-J27) -> 15610.91993 | P27: =20462.84-4765.2 -> 15697.64
A28: 1825 | B28: Storage Battery Equipment | D28: 0 | E28: 0 | F28: =IF(D28=0,'App.2-CD_MIFRS_DepExp_2014'!L28,+'App.2-CD_MIFRS_DepExp_2014'!L28+((C28*0.5)/D28)) -> 0 | G28: 0 | H28: 0 | I28: 0 | K28: =IF(ISERROR(+I28+'App.2-CD_MIFRS_DepExp_2014'!L28-J28), 0, +I28+'App.2-CD_MIFRS_DepExp_2014'!L28-J28) -> 0
A29: 1830 | B29: Poles, Towers & Fixtures | C29: 316895 | D29: 45 | E29: 0.02222222222 | F29: =IF(D29=0,'App.2-CD_MIFRS_DepExp_2014'!L29,+'App.2-CD_MIFRS_DepExp_2014'!L29+((C29*0.5)/D29)) -> 96571.75684 | G29: 96050.70128 | H29: 521.0555556 | I29: 7042.111111 | J29: =44314.34+336.33 -> 44650.67 | K29: =IF(ISERROR(+I29+'App.2-CD_MIFRS_DepExp_2014'!L29-J29), 0, +I29+'App.2-CD_MIFRS_DepExp_2014'!L29-J29) -> 55442.14239 | P29: =98187.24+L29*1/M29*0.5-5333.2 -> 
A30: 1835 | B30: Overhead Conductors & Devices | C30: 0 | D30: 45 | E30: 0.02222222222 | F30: =IF(D30=0,'App.2-CD_MIFRS_DepExp_2014'!L30,+'App.2-CD_MIFRS_DepExp_2014'!L30+((C30*0.5)/D30)) -> 86996.28703 | G30: 88218.50926 | H30: -1222.222222 | I30: 0 | J30: =38147.82+89.667 -> 38237.487 | K30: =IF(ISERROR(+I30+'App.2-CD_MIFRS_DepExp_2014'!L30-J30), 0, +I30+'App.2-CD_MIFRS_DepExp_2014'!L30-J30) -> 48758.80003 | P30: =88313.22+L30*1/M30*0.5-1487.99 -> 
A31: 1840 | B31: Underground Conduit | C31: 0 | D31: 50 | E31: 0.02 | F31: =IF(D31=0,'App.2-CD_MIFRS_DepExp_2014'!L31,+'App.2-CD_MIFRS_DepExp_2014'!L31+((C31*0.5)/D31)) -> 1476.604869 | G31: 1476.604869 | H31: 0 | I31: 0 | K31: =IF(ISERROR(+I31+'App.2-CD_MIFRS_DepExp_2014'!L31-J31), 0, +I31+'App.2-CD_MIFRS_DepExp_2014'!L31-J31) -> 1476.604869 | P31: =6391.6-4946.33 -> 1445.27
A32: 1845 | B32: Underground Conductors & Devices | C32: 89532 | D32: 30 | E32: 0.03333333333 | F32: =IF(D32=0,'App.2-CD_MIFRS_DepExp_2014'!L32,+'App.2-CD_MIFRS_DepExp_2014'!L32+((C32*0.5)/D32)) -> 106020.3537 | G32: 107694.8204 | H32: -1674.466667 | I32: 2984.4 | J32: 7376.44 | K32: =IF(ISERROR(+I32+'App.2-CD_MIFRS_DepExp_2014'!L32-J32), 0, +I32+'App.2-CD_MIFRS_DepExp_2014'!L32-J32) -> 100136.1137 | P32: =175674.43+L32*1/M32*0.5-71474.68 -> 
A33: 1850 | B33: Line Transformers | C33: 165020 | D33: 40 | E33: 0.025 | F33: =IF(D33=0,'App.2-CD_MIFRS_DepExp_2014'!L33,+'App.2-CD_MIFRS_DepExp_2014'!L33+((C33*0.5)/D33)) -> 50560.16876 | G33: 51559.91876 | H33: -999.75 | I33: 4125.5 | J33: =4838.72+195 -> 5033.72 | K33: =IF(ISERROR(+I33+'App.2-CD_MIFRS_DepExp_2014'!L33-J33), 0, +I33+'App.2-CD_MIFRS_DepExp_2014'!L33-J33) -> 47589.19876 | P33: =84360+L33*1/M33*0.5-36212.44 -> 
A34: 1855 | B34: Services (Overhead & Underground) | C34: 259839 | D34: 35 | E34: 0.02857142857 | F34: =IF(D34=0,'App.2-CD_MIFRS_DepExp_2014'!L34,+'App.2-CD_MIFRS_DepExp_2014'!L34+((C34*0.5)/D34)) -> 65042.95203 | G34: 66402.39489 | H34: -1359.442857 | I34: 7423.971429 | K34: =IF(ISERROR(+I34+'App.2-CD_MIFRS_DepExp_2014'!L34-J34), 0, +I34+'App.2-CD_MIFRS_DepExp_2014'!L34-J34) -> 68754.93775 | P34: =96795.16+L34*1/M34*0.5-35673.9 -> 
A35: 1860 | B35: Meters | C35: 6973 | D35: 25 | E35: 0.04 | F35: =IF(D35=0,'App.2-CD_MIFRS_DepExp_2014'!L35,+'App.2-CD_MIFRS_DepExp_2014'!L35+((C35*0.5)/D35)) -> 363.2930612 | G35: 323.8330612 | H35: 39.46 | I35: 278.92 | K35: =IF(ISERROR(+I35+'App.2-CD_MIFRS_DepExp_2014'!L35-J35), 0, +I35+'App.2-CD_MIFRS_DepExp_2014'!L35-J35) -> 502.7530612 | P35: =223.73+L35*1/M35*0.5 -> 
A36: 1860 | B36: Meters (Smart Meters) | C36: 85848 | D36: 15 | E36: 0.06666666667 | F36: =IF(D36=0,'App.2-CD_MIFRS_DepExp_2014'!L36,+'App.2-CD_MIFRS_DepExp_2014'!L36+((C36*0.5)/D36)) -> 116016.9013 | G36: 115988.6347 | H36: 28.26666667 | I36: 5723.2 | J36: =70.2*54 -> 3790.8 | K36: =IF(ISERROR(+I36+'App.2-CD_MIFRS_DepExp_2014'!L36-J36), 0, +I36+'App.2-CD_MIFRS_DepExp_2014'!L36-J36) -> 115087.7013 | P36: =115491.15+L36*1/M36*0.5-2770.39 -> 
A37: 1860 | B37: Primary Metering Equipment | D37: 25 | E37: 0.04 | F37: =IF(D37=0,'App.2-CD_MIFRS_DepExp_2014'!L37,+'App.2-CD_MIFRS_DepExp_2014'!L37+((C37*0.5)/D37)) -> 6669.28026 | G37: 6669.28026 | H37: 0 | I37: 0 | K37: =IF(ISERROR(+I37+'App.2-CD_MIFRS_DepExp_2014'!L37-J37), 0, +I37+'App.2-CD_MIFRS_DepExp_2014'!L37-J37) -> 6669.28026 | P37: 6667.79
A38: 1905 | B38: Land | C38: 10000 | D38: 0 | E38: 0 | F38: =IF(D38=0,'App.2-CD_MIFRS_DepExp_2014'!L38,+'App.2-CD_MIFRS_DepExp_2014'!L38+((C38*0.5)/D38)) -> 0 | G38: 0 | H38: 0 | I38: 0 | K38: =IF(ISERROR(+I38+'App.2-CD_MIFRS_DepExp_2014'!L38-J38), 0, +I38+'App.2-CD_MIFRS_DepExp_2014'!L38-J38) -> 0
A39: 1908 | B39: Buildings & Fixtures | C39: 51000 | D39: 50 | E39: 0.02 | F39: =IF(D39=0,'App.2-CD_MIFRS_DepExp_2014'!L39,+'App.2-CD_MIFRS_DepExp_2014'!L39+((C39*0.5)/D39)) -> 28647.23789 | G39: 29337.23789 | H39: -690 | I39: 1020 | K39: =IF(ISERROR(+I39+'App.2-CD_MIFRS_DepExp_2014'!L39-J39), 0, +I39+'App.2-CD_MIFRS_DepExp_2014'!L39-J39) -> 29157.23789 | P39: =28106.55+L39*1/M39*0.5 -> 
A40: 1910 | B40: Leasehold Improvements | E40: 0 | F40: =IF(D40=0,'App.2-CD_MIFRS_DepExp_2014'!L40,+'App.2-CD_MIFRS_DepExp_2014'!L40+((C40*0.5)/D40)) -> 0 | G40: 0 | H40: 0 | I40: 0 | K40: =IF(ISERROR(+I40+'App.2-CD_MIFRS_DepExp_2014'!L40-J40), 0, +I40+'App.2-CD_MIFRS_DepExp_2014'!L40-J40) -> 0
A41: 1915 | B41: Office Furniture & Equipment (10 years) | E41: 0 | F41: =IF(D41=0,'App.2-CD_MIFRS_DepExp_2014'!L41,+'App.2-CD_MIFRS_DepExp_2014'!L41+((C41*0.5)/D41)) -> 0 | G41: 0 | H41: 0 | I41: 0 | K41: =IF(ISERROR(+I41+'App.2-CD_MIFRS_DepExp_2014'!L41-J41), 0, +I41+'App.2-CD_MIFRS_DepExp_2014'!L41-J41) -> 0
A42: 1915 | B42: Office Furniture & Equipment (5 years) | E42: 0 | F42: =IF(D42=0,'App.2-CD_MIFRS_DepExp_2014'!L42,+'App.2-CD_MIFRS_DepExp_2014'!L42+((C42*0.5)/D42)) -> 0 | G42: 0 | H42: 0 | I42: 0 | K42: =IF(ISERROR(+I42+'App.2-CD_MIFRS_DepExp_2014'!L42-J42), 0, +I42+'App.2-CD_MIFRS_DepExp_2014'!L42-J42) -> 0
A43: 1920 | B43: Computer Equipment - Hardware | E43: 0 | F43: =IF(D43=0,'App.2-CD_MIFRS_DepExp_2014'!L43,+'App.2-CD_MIFRS_DepExp_2014'!L43+((C43*0.5)/D43)) -> 0 | G43: 0 | H43: 0 | I43: 0 | K43: =IF(ISERROR(+I43+'App.2-CD_MIFRS_DepExp_2014'!L43-J43), 0, +I43+'App.2-CD_MIFRS_DepExp_2014'!L43-J43) -> 0
A44: 1920 | B44: Computer Equip.-Hardware(Post Mar. 22/04) | E44: 0 | F44: =IF(D44=0,'App.2-CD_MIFRS_DepExp_2014'!L44,+'App.2-CD_MIFRS_DepExp_2014'!L44+((C44*0.5)/D44)) -> 0 | G44: 0 | H44: 0 | I44: 0 | K44: =IF(ISERROR(+I44+'App.2-CD_MIFRS_DepExp_2014'!L44-J44), 0, +I44+'App.2-CD_MIFRS_DepExp_2014'!L44-J44) -> 0
A45: 1920 | B45: Computer Equip.-Hardware(Post Mar. 19/07) | E45: 0 | F45: =IF(D45=0,'App.2-CD_MIFRS_DepExp_2014'!L45,+'App.2-CD_MIFRS_DepExp_2014'!L45+((C45*0.5)/D45)) -> 0 | G45: 0 | H45: 0 | I45: 0 | K45: =IF(ISERROR(+I45+'App.2-CD_MIFRS_DepExp_2014'!L45-J45), 0, +I45+'App.2-CD_MIFRS_DepExp_2014'!L45-J45) -> 0
A46: 1930 | B46: Transportation Equipment | E46: 0 | F46: =IF(D46=0,'App.2-CD_MIFRS_DepExp_2014'!L46,+'App.2-CD_MIFRS_DepExp_2014'!L46+((C46*0.5)/D46)) -> 0 | G46: 0 | H46: 0 | I46: 0 | K46: =IF(ISERROR(+I46+'App.2-CD_MIFRS_DepExp_2014'!L46-J46), 0, +I46+'App.2-CD_MIFRS_DepExp_2014'!L46-J46) -> 0
A47: 1935 | B47: Stores Equipment | E47: 0 | F47: =IF(D47=0,'App.2-CD_MIFRS_DepExp_2014'!L47,+'App.2-CD_MIFRS_DepExp_2014'!L47+((C47*0.5)/D47)) -> 0 | G47: 0 | H47: 0 | I47: 0 | K47: =IF(ISERROR(+I47+'App.2-CD_MIFRS_DepExp_2014'!L47-J47), 0, +I47+'App.2-CD_MIFRS_DepExp_2014'!L47-J47) -> 0
A48: 1940 | B48: Tools, Shop & Garage Equipment | E48: 0 | F48: =IF(D48=0,'App.2-CD_MIFRS_DepExp_2014'!L48,+'App.2-CD_MIFRS_DepExp_2014'!L48+((C48*0.5)/D48)) -> 0 | G48: 0 | H48: 0 | I48: 0 | K48: =IF(ISERROR(+I48+'App.2-CD_MIFRS_DepExp_2014'!L48-J48), 0, +I48+'App.2-CD_MIFRS_DepExp_2014'!L48-J48) -> 0
A49: 1945 | B49: Measurement & Testing Equipment | E49: 0 | F49: =IF(D49=0,'App.2-CD_MIFRS_DepExp_2014'!L49,+'App.2-CD_MIFRS_DepExp_2014'!L49+((C49*0.5)/D49)) -> 0 | G49: 0 | H49: 0 | I49: 0 | K49: =IF(ISERROR(+I49+'App.2-CD_MIFRS_DepExp_2014'!L49-J49), 0, +I49+'App.2-CD_MIFRS_DepExp_2014'!L49-J49) -> 0
A50: 1950 | B50: Power Operated Equipment | E50: 0 | F50: =IF(D50=0,'App.2-CD_MIFRS_DepExp_2014'!L50,+'App.2-CD_MIFRS_DepExp_2014'!L50+((C50*0.5)/D50)) -> 0 | G50: 0 | H50: 0 | I50: 0 | K50: =IF(ISERROR(+I50+'App.2-CD_MIFRS_DepExp_2014'!L50-J50), 0, +I50+'App.2-CD_MIFRS_DepExp_2014'!L50-J50) -> 0
A51: 1955 | B51: Communications Equipment | E51: 0 | F51: =IF(D51=0,'App.2-CD_MIFRS_DepExp_2014'!L51,+'App.2-CD_MIFRS_DepExp_2014'!L51+((C51*0.5)/D51)) -> 0 | G51: 0 | H51: 0 | I51: 0 | K51: =IF(ISERROR(+I51+'App.2-CD_MIFRS_DepExp_2014'!L51-J51), 0, +I51+'App.2-CD_MIFRS_DepExp_2014'!L51-J51) -> 0
A52: 1955 | B52: Communication Equipment (Smart Meters) | E52: 0 | F52: =IF(D52=0,'App.2-CD_MIFRS_DepExp_2014'!L52,+'App.2-CD_MIFRS_DepExp_2014'!L52+((C52*0.5)/D52)) -> 0 | G52: 0 | H52: 0 | I52: 0 | K52: =IF(ISERROR(+I52+'App.2-CD_MIFRS_DepExp_2014'!L52-J52), 0, +I52+'App.2-CD_MIFRS_DepExp_2014'!L52-J52) -> 0
A53: 1960 | B53: Miscellaneous Equipment | E53: 0 | F53: =IF(D53=0,'App.2-CD_MIFRS_DepExp_2014'!L53,+'App.2-CD_MIFRS_DepExp_2014'!L53+((C53*0.5)/D53)) -> 0 | G53: 0 | H53: 0 | I53: 0 | K53: =IF(ISERROR(+I53+'App.2-CD_MIFRS_DepExp_2014'!L53-J53), 0, +I53+'App.2-CD_MIFRS_DepExp_2014'!L53-J53) -> 0
A54: 1970 | B54: Load Management Controls Customer Premises | E54: 0 | F54: =IF(D54=0,'App.2-CD_MIFRS_DepExp_2014'!L54,+'App.2-CD_MIFRS_DepExp_2014'!L54+((C54*0.5)/D54)) -> 0 | G54: 0 | H54: 0 | I54: 0 | K54: =IF(ISERROR(+I54+'App.2-CD_MIFRS_DepExp_2014'!L54-J54), 0, +I54+'App.2-CD_MIFRS_DepExp_2014'!L54-J54) -> 0
A55: 1975 | B55: Load Management Controls Utility Premises | E55: =IF(D55=0,0,1/D55) -> 0 | F55: =IF(D55=0,'App.2-CD_MIFRS_DepExp_2014'!L55,+'App.2-CD_MIFRS_DepExp_2014'!L55+((C55*0.5)/D55)) -> 0 | G55: 0 | H55: =IF(ISERROR(+F55-G55), 0, +F55-G55) -> 0 | I55: =IF(D55=0,0,+(C55)/D55) -> 0 | K55: =IF(ISERROR(+I55+'App.2-CD_MIFRS_DepExp_2014'!L55-J55), 0, +I55+'App.2-CD_MIFRS_DepExp_2014'!L55-J55) -> 0
A56: 1980 | B56: System Supervisor Equipment | D56: 20 | E56: 0.05 | F56: =IF(D56=0,'App.2-CD_MIFRS_DepExp_2014'!L56,+'App.2-CD_MIFRS_DepExp_2014'!L56+((C56*0.5)/D56)) -> 4400.7275 | G56: 4400.7275 | H56: 0 | I56: 0 | K56: =IF(ISERROR(+I56+'App.2-CD_MIFRS_DepExp_2014'!L56-J56), 0, +I56+'App.2-CD_MIFRS_DepExp_2014'!L56-J56) -> 4400.7275 | P56: 4400.72
A57: 1985 | B57: Miscellaneous Fixed Assets | E57: 0 | F57: =IF(D57=0,'App.2-CD_MIFRS_DepExp_2014'!L57,+'App.2-CD_MIFRS_DepExp_2014'!L57+((C57*0.5)/D57)) -> 0 | G57: 0 | H57: 0 | I57: 0 | K57: =IF(ISERROR(+I57+'App.2-CD_MIFRS_DepExp_2014'!L57-J57), 0, +I57+'App.2-CD_MIFRS_DepExp_2014'!L57-J57) -> 0
A58: 1990 | B58: Other Tangible Property | E58: 0 | F58: =IF(D58=0,'App.2-CD_MIFRS_DepExp_2014'!L58,+'App.2-CD_MIFRS_DepExp_2014'!L58+((C58*0.5)/D58)) -> 0 | G58: 0 | H58: 0 | I58: 0 | K58: =IF(ISERROR(+I58+'App.2-CD_MIFRS_DepExp_2014'!L58-J58), 0, +I58+'App.2-CD_MIFRS_DepExp_2014'!L58-J58) -> 0
A59: 2440-1820-01 | B59: Deferred Revenue - Station Building & Infrastructure | D59: 50 | E59: 0.02 | F59: =IF(D59=0,'App.2-CD_MIFRS_DepExp_2014'!L59,+'App.2-CD_MIFRS_DepExp_2014'!L59+((C59*0.5)/D59)) -> 0 | G59: 0 | H59: 0 | I59: 0 | K59: =IF(ISERROR(+I59+'App.2-CD_MIFRS_DepExp_2014'!L59-J59), 0, +I59+'App.2-CD_MIFRS_DepExp_2014'!L59-J59) -> 0
A60: 2440-1820-02 | B60: Deferred Revenue - Station Civil Work | D60: 50 | E60: 0.02 | F60: =IF(D60=0,'App.2-CD_MIFRS_DepExp_2014'!L60,+'App.2-CD_MIFRS_DepExp_2014'!L60+((C60*0.5)/D60)) -> 0 | G60: 0 | H60: 0 | I60: 0 | K60: =IF(ISERROR(+I60+'App.2-CD_MIFRS_DepExp_2014'!L60-J60), 0, +I60+'App.2-CD_MIFRS_DepExp_2014'!L60-J60) -> 0
A61: 2440-1820-03 | B61: Deferred Revenue - Station LV/Reclosures & Breakers | D61: 20 | E61: 0.05 | F61: =IF(D61=0,'App.2-CD_MIFRS_DepExp_2014'!L61,+'App.2-CD_MIFRS_DepExp_2014'!L61+((C61*0.5)/D61)) -> 0 | G61: 0 | H61: 0 | I61: 0 | K61: =IF(ISERROR(+I61+'App.2-CD_MIFRS_DepExp_2014'!L61-J61), 0, +I61+'App.2-CD_MIFRS_DepExp_2014'!L61-J61) -> 0
A62: 2440-1820-04 | B62: Deferred Revenue- Station Equipment | D62: 40 | E62: 0.025 | F62: =IF(D62=0,'App.2-CD_MIFRS_DepExp_2014'!L62,+'App.2-CD_MIFRS_DepExp_2014'!L62+((C62*0.5)/D62)) -> 0 | G62: 0 | H62: 0 | I62: 0 | K62: =IF(ISERROR(+I62+'App.2-CD_MIFRS_DepExp_2014'!L62-J62), 0, +I62+'App.2-CD_MIFRS_DepExp_2014'!L62-J62) -> 0
A63: 2440-1820-05 | B63: Deferred Revenue - Station Transformers | D63: 45 | E63: 0.02222222222 | F63: =IF(D63=0,'App.2-CD_MIFRS_DepExp_2014'!L63,+'App.2-CD_MIFRS_DepExp_2014'!L63+((C63*0.5)/D63)) -> 0 | G63: 0 | H63: 0 | I63: 0 | K63: =IF(ISERROR(+I63+'App.2-CD_MIFRS_DepExp_2014'!L63-J63), 0, +I63+'App.2-CD_MIFRS_DepExp_2014'!L63-J63) -> 0
A64: 2440-1830 | B64: Deferred Revenue - Poles | C64: -136625 | D64: 45 | E64: 0.02222222222 | F64: =IF(D64=0,'App.2-CD_MIFRS_DepExp_2014'!L64,+'App.2-CD_MIFRS_DepExp_2014'!L64+((C64*0.5)/D64)) -> -6712.476667 | G64: -5194.421111 | H64: -1518.055556 | I64: -3036.111111 | K64: =IF(ISERROR(+I64+'App.2-CD_MIFRS_DepExp_2014'!L64-J64), 0, +I64+'App.2-CD_MIFRS_DepExp_2014'!L64-J64) -> -8230.532222 | P64: =-10487.08+5333.2 -> -5153.88
A65: 2440-1835 | B65: Deferred Revenue - O/H Conductor | D65: 45 | E65: 0.02222222222 | F65: =IF(D65=0,'App.2-CD_MIFRS_DepExp_2014'!L65,+'App.2-CD_MIFRS_DepExp_2014'!L65+((C65*0.5)/D65)) -> -587.8306667 | G65: -587.8306667 | H65: 0 | I65: 0 | K65: =IF(ISERROR(+I65+'App.2-CD_MIFRS_DepExp_2014'!L65-J65), 0, +I65+'App.2-CD_MIFRS_DepExp_2014'!L65-J65) -> -587.8306667 | P65: =-2078.89+1487.99 -> -590.9
A66: 2440-1840 | B66: Deferred Revenue - Conduit | D66: 50 | E66: 0.02 | F66: =IF(D66=0,'App.2-CD_MIFRS_DepExp_2014'!L66,+'App.2-CD_MIFRS_DepExp_2014'!L66+((C66*0.5)/D66)) -> -271.3356 | G66: -271.3356 | H66: 0 | I66: 0 | K66: =IF(ISERROR(+I66+'App.2-CD_MIFRS_DepExp_2014'!L66-J66), 0, +I66+'App.2-CD_MIFRS_DepExp_2014'!L66-J66) -> -271.3356 | P66: =-5212.99+4946.33 -> -266.66
A67: 2440-1845 | B67: Deferred Revenue - U/G Conductor | C67: =-0.5*55012-0.3333333*32670 -> -38395.99891 | D67: 30 | E67: 0.03333333333 | F67: =IF(D67=0,'App.2-CD_MIFRS_DepExp_2014'!L67,+'App.2-CD_MIFRS_DepExp_2014'!L67+((C67*0.5)/D67)) -> -10781.00032 | G67: -12057.73367 | H67: 1276.733351 | I67: -1279.86663 | K67: =IF(ISERROR(+I67+'App.2-CD_MIFRS_DepExp_2014'!L67-J67), 0, +I67+'App.2-CD_MIFRS_DepExp_2014'!L67-J67) -> -11420.93363 | P67: =-81021.96+L67*1/M67*0.5+71474.68 -> 
A68: 2440-1850 | B68: Deferred Revenue - Transformers | C68: =-10500-32670*0.3333333 -> -21389.99891 | D68: 40 | E68: 0.025 | F68: =IF(D68=0,'App.2-CD_MIFRS_DepExp_2014'!L68,+'App.2-CD_MIFRS_DepExp_2014'!L68+((C68*0.5)/D68)) -> -5826.820736 | G68: -6450.07075 | H68: 623.2500136 | I68: -534.7499728 | K68: =IF(ISERROR(+I68+'App.2-CD_MIFRS_DepExp_2014'!L68-J68), 0, +I68+'App.2-CD_MIFRS_DepExp_2014'!L68-J68) -> -6094.195723 | P68: =-41012.02+L68*1/M68*0.5+36212.44 -> 
A69: 2440-1855 | B69: Deferred Revenue - Secondary Services | C69: =-52454-55012*0.5-32670*0.3333333 -> -90849.99891 | D69: 35 | E69: 0.02857142857 | F69: =IF(D69=0,'App.2-CD_MIFRS_DepExp_2014'!L69,+'App.2-CD_MIFRS_DepExp_2014'!L69+((C69*0.5)/D69)) -> -5735.531699 | G69: -6705.531714 | H69: 970.0000156 | I69: -2595.714255 | K69: =IF(ISERROR(+I69+'App.2-CD_MIFRS_DepExp_2014'!L69-J69), 0, +I69+'App.2-CD_MIFRS_DepExp_2014'!L69-J69) -> -7033.388826 | P69: =-39885.99+L69*1/M69*0.5+35673.9 -> 
A70: 2440-1860 | B70: Deferred Revenue - Smart Meters | D70: 15 | E70: 0.06666666667 | F70: =IF(D70=0,'App.2-CD_MIFRS_DepExp_2014'!L70,+'App.2-CD_MIFRS_DepExp_2014'!L70+((C70*0.5)/D70)) -> -220.1953333 | G70: -220.1953333 | H70: 0 | I70: 0 | K70: =IF(ISERROR(+I70+'App.2-CD_MIFRS_DepExp_2014'!L70-J70), 0, +I70+'App.2-CD_MIFRS_DepExp_2014'!L70-J70) -> -220.1953333 | P70: =-2968.61+2770.39 -> -198.22
A71: 2005 | B71: Capital Lease - Communication Equipment | D71: 20 | E71: 0.05 | F71: =IF(D71=0,'App.2-CD_MIFRS_DepExp_2014'!L71,+'App.2-CD_MIFRS_DepExp_2014'!L71+((C71*0.5)/D71)) -> 2464.154 | G71: 2464.154 | H71: 0 | I71: 0 | K71: =IF(ISERROR(+I71+'App.2-CD_MIFRS_DepExp_2014'!L71-J71), 0, +I71+'App.2-CD_MIFRS_DepExp_2014'!L71-J71) -> 2464.154 | P71: 2464.15
A72: 2005 | B72: Capital Lease - Structure | D72: 50 | E72: 0.02 | F72: =IF(D72=0,'App.2-CD_MIFRS_DepExp_2014'!L72,+'App.2-CD_MIFRS_DepExp_2014'!L72+((C72*0.5)/D72)) -> 1550.2016 | G72: 1550.2016 | H72: 0 | I72: 0 | K72: =IF(ISERROR(+I72+'App.2-CD_MIFRS_DepExp_2014'!L72-J72), 0, +I72+'App.2-CD_MIFRS_DepExp_2014'!L72-J72) -> 1550.2016 | P72: 1550
B73: Total | C73: =SUM(C17:C72) -> 705346.0033 | F73: =SUM(F17:F72) -> 622991.1952 | G73: 627371.3669 | H73: -4380.171699 | I73: 21901.66057 | J73: 106957.117 | K73: 526984.9085
B74: Depreciation exp. adj. from gain or loss on the retirement of assets (pool of like assets)
B75: Total Depreciation expense to be included in the test year revenue requirement | F75: =SUM(F73:F74) -> 622991.1952
A76: Notes:
A77: 1 | B77: Board policy of the "half-year" rule - the applicant must ensure that additions in the year attract a half-year depreciation expense in the first year. Deviations from this standard practice must be supported in the application.
A78: 2 | B78: The applicant must provide an explanation of material variances in evidence.
A79: 3 | B79: This column refers to the calculated full year depreciation but excludes the depreciation expense on assets fully depreciated during the year. This column is used for the purpose of calculating depreciation expense in the following year on the next worksheet.
A81: General: | B81: Applicants must provide a breakdown of depreciation and amortization expense in the above format for all relevant accounts. Asset Retirement Obligations (AROs), depreciation and accretion expense should be disclosed separately consistent with the Notes of historical Audited Financial Statements.
C85: 2015 | D85: MIFRS
A87: Account | B87: Description | C87: Additions | D87: Years (new additions only) | E87: Depreciation Rate on New Additions | F87: 2015 Depreciation Expense 1 | G87: 2015 Depreciation Expense per Appendix 2-BA Fixed Assets, Column J (l) | H87: Variance 2 | I87: Depreciation Expense on 2015 Full Year Additions | J87: Less Depreciation Expense on Assets Fully Depreciated during the year (o) | K87: 2015 Full Year Depreciation 3
C88: (d) | D88: (f) | E88: (g) = 1 / (f) | F88: (h)=2014 Full Year Depreciation + ((d)*0.5)/(f) | H88: (m) = (h) - (l) | I88: (n)=((d))/(f) | K88: (p) = 2014 Full Year Depreciation + (n) - (o)
A89: 1611 | B89: Computer Software (Formally known as Account 1925) | C89: 7500 | D89: 10 | E89: =IF(D89=0,0,1/D89) -> 0.1 | F89: =IF(D89=0,'App.2-CD_MIFRS_DepExp_2014'!K90,+'App.2-CD_MIFRS_DepExp_2014'!K90+((C89*0.5)/D89)) -> 14160.1462 | G89: =F89 -> 14160.1462 | H89: =IF(ISERROR(+F89-G89), 0, +F89-G89) -> 0 | I89: =IF(D89=0,0,+(C89)/D89) -> 750 | K89: =IF(ISERROR(+I89+'App.2-CD_MIFRS_DepExp_2014'!K90-J89), 0, +I89+'App.2-CD_MIFRS_DepExp_2014'!K90-J89) -> 14535.1462
A90: 1612 | B90: Land Rights (Formally known as Account 1906) | D90: 0 | E90: 0 | F90: =IF(D90=0,'App.2-CD_MIFRS_DepExp_2014'!K91,+'App.2-CD_MIFRS_DepExp_2014'!K91+((C90*0.5)/D90)) -> 0 | G90: 0 | H90: 0 | I90: =IF(D90=0,0,+(C90)/D90) -> 0 | K90: =IF(ISERROR(+I90+'App.2-CD_MIFRS_DepExp_2014'!K91-J90), 0, +I90+'App.2-CD_MIFRS_DepExp_2014'!K91-J90) -> 0
A91: 1805 | B91: Land | D91: 0 | E91: 0 | F91: =IF(D91=0,'App.2-CD_MIFRS_DepExp_2014'!K92,+'App.2-CD_MIFRS_DepExp_2014'!K92+((C91*0.5)/D91)) -> 0 | G91: 0 | H91: 0 | I91: 0 | K91: =IF(ISERROR(+I91+'App.2-CD_MIFRS_DepExp_2014'!K92-J91), 0, +I91+'App.2-CD_MIFRS_DepExp_2014'!K92-J91) -> 0
A92: 1808 | B92: Buildings | D92: 0 | E92: 0 | F92: =IF(D92=0,'App.2-CD_MIFRS_DepExp_2014'!K93,+'App.2-CD_MIFRS_DepExp_2014'!K93+((C92*0.5)/D92)) -> 0 | G92: 0 | H92: 0 | I92: 0 | K92: =IF(ISERROR(+I92+'App.2-CD_MIFRS_DepExp_2014'!K93-J92), 0, +I92+'App.2-CD_MIFRS_DepExp_2014'!K93-J92) -> 0
A93: 1810 | B93: Leasehold Improvements | D93: 0 | E93: 0 | F93: =IF(D93=0,'App.2-CD_MIFRS_DepExp_2014'!K94,+'App.2-CD_MIFRS_DepExp_2014'!K94+((C93*0.5)/D93)) -> 0 | G93: 0 | H93: 0 | I93: 0 | K93: =IF(ISERROR(+I93+'App.2-CD_MIFRS_DepExp_2014'!K94-J93), 0, +I93+'App.2-CD_MIFRS_DepExp_2014'!K94-J93) -> 0
A94: 1815 | B94: Transformer Station Equipment >50 kV | D94: 0 | E94: 0 | F94: =IF(D94=0,'App.2-CD_MIFRS_DepExp_2014'!K95,+'App.2-CD_MIFRS_DepExp_2014'!K95+((C94*0.5)/D94)) -> 0 | G94: 0 | H94: 0 | I94: 0 | K94: =IF(ISERROR(+I94+'App.2-CD_MIFRS_DepExp_2014'!K95-J94), 0, +I94+'App.2-CD_MIFRS_DepExp_2014'!K95-J94) -> 0
A95: 1820 | B95: Distribution Station Equipment <50 kV - Building & Infrastructure | D95: 50 | E95: 0.02 | F95: =IF(D95=0,'App.2-CD_MIFRS_DepExp_2014'!K96,+'App.2-CD_MIFRS_DepExp_2014'!K96+((C95*0.5)/D95)) -> 7310.542791 | G95: 7310.542791 | H95: 0 | I95: 0 | K95: =IF(ISERROR(+I95+'App.2-CD_MIFRS_DepExp_2014'!K96-J95), 0, +I95+'App.2-CD_MIFRS_DepExp_2014'!K96-J95) -> 7310.542791
A96: 1820 | B96: Distribution Station Equipment <50 kV - Civil Work | D96: 50 | E96: 0.02 | F96: =IF(D96=0,'App.2-CD_MIFRS_DepExp_2014'!K97,+'App.2-CD_MIFRS_DepExp_2014'!K97+((C96*0.5)/D96)) -> 2942.911011 | G96: 2942.911011 | H96: 0 | I96: 0 | K96: =IF(ISERROR(+I96+'App.2-CD_MIFRS_DepExp_2014'!K97-J96), 0, +I96+'App.2-CD_MIFRS_DepExp_2014'!K97-J96) -> 2942.911011
A97: 1820 | B97: Distribution Station Equipment <50 kV - LV Reclosures & Breakers | D97: 20 | E97: 0.05 | F97: =IF(D97=0,'App.2-CD_MIFRS_DepExp_2014'!K98,+'App.2-CD_MIFRS_DepExp_2014'!K98+((C97*0.5)/D97)) -> 30898.00087 | G97: 30898.00087 | H97: 0 | I97: 0 | J97: 7868 | K97: =IF(ISERROR(+I97+'App.2-CD_MIFRS_DepExp_2014'!K98-J97), 0, +I97+'App.2-CD_MIFRS_DepExp_2014'!K98-J97) -> 23030.00087
A98: 1820 | B98: Distribution Station Equipment <50 kV - Equipment | D98: 40 | E98: 0.025 | F98: =IF(D98=0,'App.2-CD_MIFRS_DepExp_2014'!K99,+'App.2-CD_MIFRS_DepExp_2014'!K99+((C98*0.5)/D98)) -> 24367.52345 | G98: 24367.52345 | H98: 0 | I98: 0 | K98: =IF(ISERROR(+I98+'App.2-CD_MIFRS_DepExp_2014'!K99-J98), 0, +I98+'App.2-CD_MIFRS_DepExp_2014'!K99-J98) -> 24367.52345
A99: 1820 | B99: Distribution Station Equipment <50 kV - Transformer | D99: 45 | E99: 0.02222222222 | F99: =IF(D99=0,'App.2-CD_MIFRS_DepExp_2014'!K100,+'App.2-CD_MIFRS_DepExp_2014'!K100+((C99*0.5)/D99)) -> 20489.13107 | G99: 20489.13107 | H99: 0 | I99: 0 | K99: =IF(ISERROR(+I99+'App.2-CD_MIFRS_DepExp_2014'!K100-J99), 0, +I99+'App.2-CD_MIFRS_DepExp_2014'!K100-J99) -> 20489.13107
A100: 1825 | B100: Storage Battery Equipment | D100: 0 | E100: 0 | F100: =IF(D100=0,'App.2-CD_MIFRS_DepExp_2014'!K101,+'App.2-CD_MIFRS_DepExp_2014'!K101+((C100*0.5)/D100)) -> 0 | G100: 0 | H100: 0 | I100: 0 | K100: =IF(ISERROR(+I100+'App.2-CD_MIFRS_DepExp_2014'!K101-J100), 0, +I100+'App.2-CD_MIFRS_DepExp_2014'!K101-J100) -> 0
A101: 1830 | B101: Poles, Towers & Fixtures | C101: 316895 | D101: 45 | E101: 0.02222222222 | F101: =IF(D101=0,'App.2-CD_MIFRS_DepExp_2014'!K102,+'App.2-CD_MIFRS_DepExp_2014'!K102+((C101*0.5)/D101)) -> 101904.9605 | G101: 101904.9605 | H101: 0 | I101: 7042.111111 | J101: =44314.34+336.33 -> 44650.67 | K101: =IF(ISERROR(+I101+'App.2-CD_MIFRS_DepExp_2014'!K102-J101), 0, +I101+'App.2-CD_MIFRS_DepExp_2014'!K102-J101) -> 60775.34608
A102: 1835 | B102: Overhead Conductors & Devices | C102: 0 | D102: 45 | E102: 0.02222222222 | F102: =IF(D102=0,'App.2-CD_MIFRS_DepExp_2014'!K103,+'App.2-CD_MIFRS_DepExp_2014'!K103+((C102*0.5)/D102)) -> 88484.27931 | G102: 88484.27931 | H102: 0 | I102: 0 | J102: =38147.82+89.667 -> 38237.487 | K102: =IF(ISERROR(+I102+'App.2-CD_MIFRS_DepExp_2014'!K103-J102), 0, +I102+'App.2-CD_MIFRS_DepExp_2014'!K103-J102) -> 50246.79231
A103: 1840 | B103: Underground Conduit | C103: 0 | D103: 50 | E103: 0.02 | F103: =IF(D103=0,'App.2-CD_MIFRS_DepExp_2014'!K104,+'App.2-CD_MIFRS_DepExp_2014'!K104+((C103*0.5)/D103)) -> 6422.935404 | G103: 6422.935404 | H103: 0 | I103: 0 | K103: =IF(ISERROR(+I103+'App.2-CD_MIFRS_DepExp_2014'!K104-J103), 0, +I103+'App.2-CD_MIFRS_DepExp_2014'!K104-J103) -> 6422.935404
A104: 1845 | B104: Underground Conductors & Devices | C104: 89532 | D104: 30 | E104: 0.03333333333 | F104: =IF(D104=0,'App.2-CD_MIFRS_DepExp_2014'!K105,+'App.2-CD_MIFRS_DepExp_2014'!K105+((C104*0.5)/D104)) -> 177495.0373 | G104: 177495.0373 | H104: 0 | I104: 2984.4 | J104: 7376.44 | K104: =IF(ISERROR(+I104+'App.2-CD_MIFRS_DepExp_2014'!K105-J104), 0, +I104+'App.2-CD_MIFRS_DepExp_2014'!K105-J104) -> 171610.7973
A105: 1850 | B105: Line Transformers | C105: 165020 | D105: 40 | E105: 0.025 | F105: =IF(D105=0,'App.2-CD_MIFRS_DepExp_2014'!K106,+'App.2-CD_MIFRS_DepExp_2014'!K106+((C105*0.5)/D105)) -> 86693.55796 | G105: 86693.55796 | H105: 0 | I105: 4125.5 | J105: =4838.72+195 -> 5033.72 | K105: =IF(ISERROR(+I105+'App.2-CD_MIFRS_DepExp_2014'!K106-J105), 0, +I105+'App.2-CD_MIFRS_DepExp_2014'!K106-J105) -> 83722.58796
A106: 1855 | B106: Services (Overhead & Underground) | C106: 259839 | D106: 35 | E106: 0.02857142857 | F106: =IF(D106=0,'App.2-CD_MIFRS_DepExp_2014'!K107,+'App.2-CD_MIFRS_DepExp_2014'!K107+((C106*0.5)/D106)) -> 100716.8524 | G106: 100716.8524 | H106: 0 | I106: 7423.971429 | K106: =IF(ISERROR(+I106+'App.2-CD_MIFRS_DepExp_2014'!K107-J106), 0, +I106+'App.2-CD_MIFRS_DepExp_2014'!K107-J106) -> 104428.8381
A107: 1860 | B107: Meters | C107: 6973 | D107: 25 | E107: 0.04 | F107: =IF(D107=0,'App.2-CD_MIFRS_DepExp_2014'!K108,+'App.2-CD_MIFRS_DepExp_2014'!K108+((C107*0.5)/D107)) -> 363.2930612 | G107: 363.2930612 | H107: 0 | I107: 278.92 | K107: =IF(ISERROR(+I107+'App.2-CD_MIFRS_DepExp_2014'!K108-J107), 0, +I107+'App.2-CD_MIFRS_DepExp_2014'!K108-J107) -> 502.7530612
A108: 1860 | B108: Meters (Smart Meters) | C108: 85848 | D108: 15 | E108: 0.06666666667 | F108: =IF(D108=0,'App.2-CD_MIFRS_DepExp_2014'!K109,+'App.2-CD_MIFRS_DepExp_2014'!K109+((C108*0.5)/D108)) -> 118787.2868 | G108: 118787.2868 | H108: 0 | I108: 5723.2 | J108: =70.2*54 -> 3790.8 | K108: =IF(ISERROR(+I108+'App.2-CD_MIFRS_DepExp_2014'!K109-J108), 0, +I108+'App.2-CD_MIFRS_DepExp_2014'!K109-J108) -> 117858.0868
A109: 1860 | B109: Primary Metering Equipment | D109: 25 | E109: 0.04 | F109: =IF(D109=0,'App.2-CD_MIFRS_DepExp_2014'!K110,+'App.2-CD_MIFRS_DepExp_2014'!K110+((C109*0.5)/D109)) -> 6669.28026 | G109: 6669.28026 | H109: 0 | I109: 0 | K109: =IF(ISERROR(+I109+'App.2-CD_MIFRS_DepExp_2014'!K110-J109), 0, +I109+'App.2-CD_MIFRS_DepExp_2014'!K110-J109) -> 6669.28026
A110: 1905 | B110: Land | C110: 10000 | D110: 0 | E110: 0 | F110: =IF(D110=0,'App.2-CD_MIFRS_DepExp_2014'!K111,+'App.2-CD_MIFRS_DepExp_2014'!K111+((C110*0.5)/D110)) -> 0 | G110: 0 | H110: 0 | I110: 0 | K110: =IF(ISERROR(+I110+'App.2-CD_MIFRS_DepExp_2014'!K111-J110), 0, +I110+'App.2-CD_MIFRS_DepExp_2014'!K111-J110) -> 0
A111: 1908 | B111: Buildings & Fixtures | C111: 51000 | D111: 50 | E111: 0.02 | F111: =IF(D111=0,'App.2-CD_MIFRS_DepExp_2014'!K112,+'App.2-CD_MIFRS_DepExp_2014'!K112+((C111*0.5)/D111)) -> 28647.23789 | G111: 28647.23789 | H111: 0 | I111: 1020 | K111: =IF(ISERROR(+I111+'App.2-CD_MIFRS_DepExp_2014'!K112-J111), 0, +I111+'App.2-CD_MIFRS_DepExp_2014'!K112-J111) -> 29157.23789
A112: 1910 | B112: Leasehold Improvements | E112: 0 | F112: 0 | G112: 0 | H112: 0 | I112: 0 | K112: =IF(ISERROR(+I112+'App.2-CD_MIFRS_DepExp_2014'!#REF!-J112), 0, +I112+'App.2-CD_MIFRS_DepExp_2014'!#REF!-J112) -> 0
A113: 1915 | B113: Office Furniture & Equipment (10 years) | E113: 0 | F113: 0 | G113: 0 | H113: 0 | I113: 0 | K113: =IF(ISERROR(+I113+'App.2-CD_MIFRS_DepExp_2014'!#REF!-J113), 0, +I113+'App.2-CD_MIFRS_DepExp_2014'!#REF!-J113) -> 0
A114: 1915 | B114: Office Furniture & Equipment (5 years) | E114: 0 | F114: 0 | G114: 0 | H114: 0 | I114: 0 | K114: =IF(ISERROR(+I114+'App.2-CD_MIFRS_DepExp_2014'!#REF!-J114), 0, +I114+'App.2-CD_MIFRS_DepExp_2014'!#REF!-J114) -> 0
A115: 1920 | B115: Computer Equipment - Hardware | E115: 0 | F115: 0 | G115: 0 | H115: 0 | I115: 0 | K115: =IF(ISERROR(+I115+'App.2-CD_MIFRS_DepExp_2014'!#REF!-J115), 0, +I115+'App.2-CD_MIFRS_DepExp_2014'!#REF!-J115) -> 0
A116: 1920 | B116: Computer Equip.-Hardware(Post Mar. 22/04) | E116: 0 | F116: 0 | G116: 0 | H116: 0 | I116: 0 | K116: =IF(ISERROR(+I116+'App.2-CD_MIFRS_DepExp_2014'!#REF!-J116), 0, +I116+'App.2-CD_MIFRS_DepExp_2014'!#REF!-J116) -> 0
A117: 1920 | B117: Computer Equip.-Hardware(Post Mar. 19/07) | E117: 0 | F117: 0 | G117: 0 | H117: 0 | I117: 0 | K117: =IF(ISERROR(+I117+'App.2-CD_MIFRS_DepExp_2014'!#REF!-J117), 0, +I117+'App.2-CD_MIFRS_DepExp_2014'!#REF!-J117) -> 0
A118: 1930 | B118: Transportation Equipment | E118: 0 | F118: 0 | G118: 0 | H118: 0 | I118: 0 | K118: =IF(ISERROR(+I118+'App.2-CD_MIFRS_DepExp_2014'!#REF!-J118), 0, +I118+'App.2-CD_MIFRS_DepExp_2014'!#REF!-J118) -> 0
A119: 1935 | B119: Stores Equipment | E119: 0 | F119: 0 | G119: 0 | H119: 0 | I119: 0 | K119: =IF(ISERROR(+I119+'App.2-CD_MIFRS_DepExp_2014'!#REF!-J119), 0, +I119+'App.2-CD_MIFRS_DepExp_2014'!#REF!-J119) -> 0
A120: 1940 | B120: Tools, Shop & Garage Equipment | E120: 0 | F120: 0 | G120: 0 | H120: 0 | I120: 0 | K120: =IF(ISERROR(+I120+'App.2-CD_MIFRS_DepExp_2014'!#REF!-J120), 0, +I120+'App.2-CD_MIFRS_DepExp_2014'!#REF!-J120) -> 0
A121: 1945 | B121: Measurement & Testing Equipment | E121: 0 | F121: 0 | G121: 0 | H121: 0 | I121: 0 | K121: =IF(ISERROR(+I121+'App.2-CD_MIFRS_DepExp_2014'!#REF!-J121), 0, +I121+'App.2-CD_MIFRS_DepExp_2014'!#REF!-J121) -> 0
A122: 1950 | B122: Power Operated Equipment | E122: 0 | F122: 0 | G122: 0 | H122: 0 | I122: 0 | K122: =IF(ISERROR(+I122+'App.2-CD_MIFRS_DepExp_2014'!#REF!-J122), 0, +I122+'App.2-CD_MIFRS_DepExp_2014'!#REF!-J122) -> 0
A123: 1955 | B123: Communications Equipment | E123: 0 | F123: 0 | G123: 0 | H123: 0 | I123: 0 | K123: =IF(ISERROR(+I123+'App.2-CD_MIFRS_DepExp_2014'!#REF!-J123), 0, +I123+'App.2-CD_MIFRS_DepExp_2014'!#REF!-J123) -> 0
A124: 1955 | B124: Communication Equipment (Smart Meters) | E124: 0 | F124: 0 | G124: 0 | H124: 0 | I124: 0 | K124: =IF(ISERROR(+I124+'App.2-CD_MIFRS_DepExp_2014'!#REF!-J124), 0, +I124+'App.2-CD_MIFRS_DepExp_2014'!#REF!-J124) -> 0
A125: 1960 | B125: Miscellaneous Equipment | E125: 0 | F125: 0 | G125: 0 | H125: 0 | I125: 0 | K125: =IF(ISERROR(+I125+'App.2-CD_MIFRS_DepExp_2014'!#REF!-J125), 0, +I125+'App.2-CD_MIFRS_DepExp_2014'!#REF!-J125) -> 0
A126: 1970 | B126: Load Management Controls Customer Premises | E126: 0 | F126: 0 | G126: 0 | H126: 0 | I126: 0 | K126: =IF(ISERROR(+I126+'App.2-CD_MIFRS_DepExp_2014'!#REF!-J126), 0, +I126+'App.2-CD_MIFRS_DepExp_2014'!#REF!-J126) -> 0
A127: 1975 | B127: Load Management Controls Utility Premises | E127: 0 | F127: 0 | G127: 0 | H127: 0 | I127: 0 | K127: =IF(ISERROR(+I127+'App.2-CD_MIFRS_DepExp_2014'!#REF!-J127), 0, +I127+'App.2-CD_MIFRS_DepExp_2014'!#REF!-J127) -> 0
A128: 1980 | B128: System Supervisor Equipment | D128: 20 | E128: 0.05 | F128: =IF(D128=0,'App.2-CD_MIFRS_DepExp_2014'!K113,+'App.2-CD_MIFRS_DepExp_2014'!K113+((C128*0.5)/D128)) -> 4400.7275 | G128: 4400.7275 | H128: 0 | I128: 0 | K128: =IF(ISERROR(+I128+'App.2-CD_MIFRS_DepExp_2014'!K113-J128), 0, +I128+'App.2-CD_MIFRS_DepExp_2014'!K113-J128) -> 4400.7275
A129: 1985 | B129: Miscellaneous Fixed Assets | E129: 0 | F129: =IF(D129=0,'App.2-CD_MIFRS_DepExp_2014'!K114,+'App.2-CD_MIFRS_DepExp_2014'!K114+((C129*0.5)/D129)) -> 0 | G129: 0 | H129: 0 | I129: 0 | K129: =IF(ISERROR(+I129+'App.2-CD_MIFRS_DepExp_2014'!K114-J129), 0, +I129+'App.2-CD_MIFRS_DepExp_2014'!K114-J129) -> 0
A130: 1990 | B130: Other Tangible Property | E130: 0 | F130: =IF(D130=0,'App.2-CD_MIFRS_DepExp_2014'!K115,+'App.2-CD_MIFRS_DepExp_2014'!K115+((C130*0.5)/D130)) -> 0 | G130: 0 | H130: 0 | I130: 0 | K130: =IF(ISERROR(+I130+'App.2-CD_MIFRS_DepExp_2014'!K115-J130), 0, +I130+'App.2-CD_MIFRS_DepExp_2014'!K115-J130) -> 0
A131: 2440-1820-01 | B131: Deferred Revenue - Station Building & Infrastructure | D131: 50 | E131: 0.02 | F131: =IF(D131=0,'App.2-CD_MIFRS_DepExp_2014'!K116,+'App.2-CD_MIFRS_DepExp_2014'!K116+((C131*0.5)/D131)) -> -887.8661263 | G131: -887.8661263 | H131: 0 | I131: 0 | K131: =IF(ISERROR(+I131+'App.2-CD_MIFRS_DepExp_2014'!K116-J131), 0, +I131+'App.2-CD_MIFRS_DepExp_2014'!K116-J131) -> -887.8661263
A132: 2440-1820-02 | B132: Deferred Revenue - Station Civil Work | D132: 50 | E132: 0.02 | F132: =IF(D132=0,'App.2-CD_MIFRS_DepExp_2014'!K117,+'App.2-CD_MIFRS_DepExp_2014'!K117+((C132*0.5)/D132)) -> -853.9749263 | G132: -853.9749263 | H132: 0 | I132: 0 | K132: =IF(ISERROR(+I132+'App.2-CD_MIFRS_DepExp_2014'!K117-J132), 0, +I132+'App.2-CD_MIFRS_DepExp_2014'!K117-J132) -> -853.9749263
A133: 2440-1820-03 | B133: Deferred Revenue - Station LV/Reclosures & Breakers | D133: 20 | E133: 0.05 | F133: =IF(D133=0,'App.2-CD_MIFRS_DepExp_2014'!K118,+'App.2-CD_MIFRS_DepExp_2014'!K118+((C133*0.5)/D133)) -> -3221.722786 | G133: -3221.722786 | H133: 0 | I133: 0 | K133: =IF(ISERROR(+I133+'App.2-CD_MIFRS_DepExp_2014'!K118-J133), 0, +I133+'App.2-CD_MIFRS_DepExp_2014'!K118-J133) -> -3221.722786
A134: 2440-1820-04 | B134: Deferred Revenue- Station Equipment | D134: 40 | E134: 0.025 | F134: =IF(D134=0,'App.2-CD_MIFRS_DepExp_2014'!K119,+'App.2-CD_MIFRS_DepExp_2014'!K119+((C134*0.5)/D134)) -> -3980.013083 | G134: -3980.013083 | H134: 0 | I134: 0 | K134: =IF(ISERROR(+I134+'App.2-CD_MIFRS_DepExp_2014'!K119-J134), 0, +I134+'App.2-CD_MIFRS_DepExp_2014'!K119-J134) -> -3980.013083
A135: 2440-1820-05 | B135: Deferred Revenue - Station Transformers | D135: 45 | E135: 0.02222222222 | F135: =IF(D135=0,'App.2-CD_MIFRS_DepExp_2014'!K120,+'App.2-CD_MIFRS_DepExp_2014'!K120+((C135*0.5)/D135)) -> -4799.161137 | G135: -4799.161137 | H135: 0 | I135: 0 | K135: =IF(ISERROR(+I135+'App.2-CD_MIFRS_DepExp_2014'!K120-J135), 0, +I135+'App.2-CD_MIFRS_DepExp_2014'!K120-J135) -> -4799.161137
A136: 2440-1830 | B136: Deferred Revenue - Poles | C136: -136625 | D136: 45 | E136: 0.02222222222 | F136: =IF(D136=0,'App.2-CD_MIFRS_DepExp_2014'!K121,+'App.2-CD_MIFRS_DepExp_2014'!K121+((C136*0.5)/D136)) -> -12045.68036 | G136: -12045.68036 | H136: 0 | I136: -3036.111111 | K136: =IF(ISERROR(+I136+'App.2-CD_MIFRS_DepExp_2014'!K121-J136), 0, +I136+'App.2-CD_MIFRS_DepExp_2014'!K121-J136) -> -13563.73592
A137: 2440-1835 | B137: Deferred Revenue - O/H Conductor | D137: 45 | E137: 0.02222222222 | F137: =IF(D137=0,'App.2-CD_MIFRS_DepExp_2014'!K122,+'App.2-CD_MIFRS_DepExp_2014'!K122+((C137*0.5)/D137)) -> -2075.822946 | G137: -2075.822946 | H137: 0 | I137: 0 | K137: =IF(ISERROR(+I137+'App.2-CD_MIFRS_DepExp_2014'!K122-J137), 0, +I137+'App.2-CD_MIFRS_DepExp_2014'!K122-J137) -> -2075.822946
A138: 2440-1840 | B138: Deferred Revenue - Conduit | D138: 50 | E138: 0.02 | F138: =IF(D138=0,'App.2-CD_MIFRS_DepExp_2014'!K123,+'App.2-CD_MIFRS_DepExp_2014'!K123+((C138*0.5)/D138)) -> -5217.666135 | G138: -5217.666135 | H138: 0 | I138: 0 | K138: =IF(ISERROR(+I138+'App.2-CD_MIFRS_DepExp_2014'!K123-J138), 0, +I138+'App.2-CD_MIFRS_DepExp_2014'!K123-J138) -> -5217.666135
A139: 2440-1845 | B139: Deferred Revenue - U/G Conductor | C139: =-0.5*55012-0.3333333*32670 -> -38395.99891 | D139: 30 | E139: 0.03333333333 | F139: =IF(D139=0,'App.2-CD_MIFRS_DepExp_2014'!K124,+'App.2-CD_MIFRS_DepExp_2014'!K124+((C139*0.5)/D139)) -> -82255.68393 | G139: -82255.68393 | H139: 0 | I139: -1279.86663 | K139: =IF(ISERROR(+I139+'App.2-CD_MIFRS_DepExp_2014'!K124-J139), 0, +I139+'App.2-CD_MIFRS_DepExp_2014'!K124-J139) -> -82895.61725
A140: 2440-1850 | B140: Deferred Revenue - Transformers | C140: =-10500-32670*0.3333333 -> -21389.99891 | D140: 40 | E140: 0.025 | F140: =IF(D140=0,'App.2-CD_MIFRS_DepExp_2014'!K125,+'App.2-CD_MIFRS_DepExp_2014'!K125+((C140*0.5)/D140)) -> -42039.25994 | G140: -42039.25994 | H140: 0 | I140: -534.7499728 | K140: =IF(ISERROR(+I140+'App.2-CD_MIFRS_DepExp_2014'!K125-J140), 0, +I140+'App.2-CD_MIFRS_DepExp_2014'!K125-J140) -> -42306.63493
A141: 2440-1855 | B141: Deferred Revenue - Secondary Services | C141: =-52454-55012*0.5-32670*0.3333333 -> -90849.99891 | D141: 35 | E141: 0.02857142857 | F141: =IF(D141=0,'App.2-CD_MIFRS_DepExp_2014'!K126,+'App.2-CD_MIFRS_DepExp_2014'!K126+((C141*0.5)/D141)) -> -41409.43208 | G141: -41409.43208 | H141: 0 | I141: -2595.714255 | K141: =IF(ISERROR(+I141+'App.2-CD_MIFRS_DepExp_2014'!K126-J141), 0, +I141+'App.2-CD_MIFRS_DepExp_2014'!K126-J141) -> -42707.28921
A142: 2440-1860 | B142: Deferred Revenue - Smart Meters | D142: 15 | E142: 0.06666666667 | F142: =IF(D142=0,'App.2-CD_MIFRS_DepExp_2014'!K127,+'App.2-CD_MIFRS_DepExp_2014'!K127+((C142*0.5)/D142)) -> -2990.580788 | G142: -2990.580788 | H142: 0 | I142: 0 | K142: =IF(ISERROR(+I142+'App.2-CD_MIFRS_DepExp_2014'!K127-J142), 0, +I142+'App.2-CD_MIFRS_DepExp_2014'!K127-J142) -> -2990.580788
A143: 2005 | B143: Capital Lease - Communication Equipment | D143: 20 | E143: 0.05 | F143: =IF(D143=0,'App.2-CD_MIFRS_DepExp_2014'!K128,+'App.2-CD_MIFRS_DepExp_2014'!K128+((C143*0.5)/D143)) -> 2464.154 | G143: 2464.154 | H143: 0 | I143: 0 | K143: =IF(ISERROR(+I143+'App.2-CD_MIFRS_DepExp_2014'!K128-J143), 0, +I143+'App.2-CD_MIFRS_DepExp_2014'!K128-J143) -> 2464.154
A144: 2005 | B144: Capital Lease - Structure | D144: 50 | E144: 0.02 | F144: =IF(D144=0,'App.2-CD_MIFRS_DepExp_2014'!K129,+'App.2-CD_MIFRS_DepExp_2014'!K129+((C144*0.5)/D144)) -> 1550.2016 | G144: 1550.2016 | H144: 0 | I144: 0 | K144: =IF(ISERROR(+I144+'App.2-CD_MIFRS_DepExp_2014'!K129-J144), 0, +I144+'App.2-CD_MIFRS_DepExp_2014'!K129-J144) -> 1550.2016
B145: Total | C145: =SUM(C89:C144) -> 705346.0033 | F145: =SUM(F89:F144) -> 622991.1952 | G145: 622991.1952 | H145: 0 | I145: 21901.66057 | J145: 106957.117 | K145: 526984.9085
B146: Depreciation exp. adj. from gain or loss on the retirement of assets (pool of like assets)
B147: Total Depreciation expense to be included in the test year revenue requirement | F147: =SUM(F145:F146) -> 622991.1952

Sheet App.2-CF_MIFRS_DepExp_2016
G1: File Number: | H1: =EBNUMBER -> EB-2015-0107
G2: Exhibit: | H2: 4
G3: Tab: | H3: 4
G4: Schedule: | H4: 2
G5: Page: | H5: 53
G7: Date:
A9: Appendix 2-CF
A10: Depreciation and Amortization Expense
A11: Assumes the applicant made capitalization and depreciation expense accounting policy changes under CGAAP effective January 1, 2012 and has adopted IFRS for financial reporting purposes effective January 1, 2015.
C13: 2016 | D13: MIFRS UNDER DEEMED COST ELECTION
A15: Account | B15: Description | C15: Additions | D15: Years (new additions only) | E15: Depreciation Rate on New Additions | F15: 2016 Depreciation Expense 1 | G15: 2016 Depreciation Expense per Appendix 2-BA Fixed Assets, Column J (l) | H15: Variance 2
C16: (d) | D16: (f) | E16: (g) = 1 / (f) | F16: (h)=2015 Full Year Depreciation + ((d)*0.5)/(f) | H16: (m) = (h) - (l)
A17: 1611 | B17: Computer Software (Formally known as Account 1925) | C17: 40000 | D17: 10 | E17: =IF(D17=0,0,1/D17) -> 0.1 | F17: =IF(D17=0,'App.2-CE_MIFRS_DepExp_2015'!K17,+'App.2-CE_MIFRS_DepExp_2015'!K17+((C17*0.5)/D17)) -> 16535.1462 | G17: 17285.1462 | H17: =IF(ISERROR(+F17-G17), 0, +F17-G17) -> -750 | M17: From Great Plains
A18: 1612 | B18: Land Rights (Formally known as Account 1906) | D18: 0 | E18: 0 | F18: =IF(D18=0,'App.2-CE_MIFRS_DepExp_2015'!K18,+'App.2-CE_MIFRS_DepExp_2015'!K18+((C18*0.5)/D18)) -> 0 | G18: 0 | H18: 0 | M18: =13792.61+'App.2-CE_MIFRS_DepExp_2015'!I18*1/'App.2-CE_MIFRS_DepExp_2015'!J18+'App.2-CF_MIFRS_DepExp_2016'!I18*1/'App.2-CF_MIFRS_DepExp_2016'!J18*0.5 -> 
A19: 1805 | B19: Land | D19: 0 | E19: 0 | F19: =IF(D19=0,'App.2-CE_MIFRS_DepExp_2015'!K19,+'App.2-CE_MIFRS_DepExp_2015'!K19+((C19*0.5)/D19)) -> 0 | G19: 0 | H19: 0
A20: 1808 | B20: Buildings | D20: 0 | E20: 0 | F20: =IF(D20=0,'App.2-CE_MIFRS_DepExp_2015'!K20,+'App.2-CE_MIFRS_DepExp_2015'!K20+((C20*0.5)/D20)) -> 0 | G20: 0 | H20: 0
A21: 1810 | B21: Leasehold Improvements | D21: 0 | E21: 0 | F21: =IF(D21=0,'App.2-CE_MIFRS_DepExp_2015'!K21,+'App.2-CE_MIFRS_DepExp_2015'!K21+((C21*0.5)/D21)) -> 0 | G21: 0 | H21: 0
A22: 1815 | B22: Transformer Station Equipment >50 kV | D22: 0 | E22: 0 | F22: =IF(D22=0,'App.2-CE_MIFRS_DepExp_2015'!K22,+'App.2-CE_MIFRS_DepExp_2015'!K22+((C22*0.5)/D22)) -> 0 | G22: 0 | H22: 0
A23: 1820 | B23: Distribution Station Equipment <50 kV - Building & Infrastructure | D23: 50 | E23: 0.02 | F23: =IF(D23=0,'App.2-CE_MIFRS_DepExp_2015'!K23,+'App.2-CE_MIFRS_DepExp_2015'!K23+((C23*0.5)/D23)) -> 6422.676664 | G23: 6422.676664 | H23: 0
A24: 1820 | B24: Distribution Station Equipment <50 kV - Civil Work | D24: 50 | E24: 0.02 | F24: =IF(D24=0,'App.2-CE_MIFRS_DepExp_2015'!K24,+'App.2-CE_MIFRS_DepExp_2015'!K24+((C24*0.5)/D24)) -> 2088.936085 | G24: 2088.936085 | H24: 0 | M24: =7273.1-808.36 -> 6464.74
A25: 1820 | B25: Distribution Station Equipment <50 kV - LV Reclosures & Breakers | D25: 20 | E25: 0.05 | F25: =IF(D25=0,'App.2-CE_MIFRS_DepExp_2015'!K25,+'App.2-CE_MIFRS_DepExp_2015'!K25+((C25*0.5)/D25)) -> 19808.27809 | G25: 19808.27809 | H25: 0 | M25: =2929.03-821.32 -> 2107.71
A26: 1820 | B26: Distribution Station Equipment <50 kV - Equipment | D26: 40 | E26: 0.025 | F26: =IF(D26=0,'App.2-CE_MIFRS_DepExp_2015'!K26,+'App.2-CE_MIFRS_DepExp_2015'!K26+((C26*0.5)/D26)) -> 20387.51037 | G26: 20387.51037 | H26: 0 | M26: =23014.44-2652.62 -> 20361.82
A27: 1820 | B27: Distribution Station Equipment <50 kV - Transformer | D27: 45 | E27: 0.02222222222 | F27: =IF(D27=0,'App.2-CE_MIFRS_DepExp_2015'!K27,+'App.2-CE_MIFRS_DepExp_2015'!K27+((C27*0.5)/D27)) -> 15610.91993 | G27: 15610.91993 | H27: 0 | M27: =24347.99-3654.01 -> 20693.98
A28: 1825 | B28: Storage Battery Equipment | D28: 0 | E28: 0 | F28: =IF(D28=0,'App.2-CE_MIFRS_DepExp_2015'!K28,+'App.2-CE_MIFRS_DepExp_2015'!K28+((C28*0.5)/D28)) -> 0 | G28: 0 | H28: 0 | M28: =20518.9-4782.16 -> 15736.74
A29: 1830 | B29: Poles, Towers & Fixtures | C29: =525000+50000 -> 575000 | D29: 45 | E29: 0.02222222222 | F29: =IF(D29=0,'App.2-CE_MIFRS_DepExp_2015'!K29,+'App.2-CE_MIFRS_DepExp_2015'!K29+((C29*0.5)/D29)) -> 61831.03128 | G29: 60233.36461 | H29: 1597.666667
A30: 1835 | B30: Overhead Conductors & Devices | C30: =265000+50000 -> 315000 | D30: 45 | E30: 0.02222222222 | F30: =IF(D30=0,'App.2-CE_MIFRS_DepExp_2015'!K30,+'App.2-CE_MIFRS_DepExp_2015'!K30+((C30*0.5)/D30)) -> 52258.80003 | G30: 54147.68892 | H30: -1888.888889 | M30: =53975.41+'App.2-CE_MIFRS_DepExp_2015'!I30*1/'App.2-CE_MIFRS_DepExp_2015'!J30+'App.2-CF_MIFRS_DepExp_2016'!I30*1/'App.2-CF_MIFRS_DepExp_2016'!J30*0.5-336-5333.2 -> 
A31: 1840 | B31: Underground Conduit | D31: 50 | E31: 0.02 | F31: =IF(D31=0,'App.2-CE_MIFRS_DepExp_2015'!K31,+'App.2-CE_MIFRS_DepExp_2015'!K31+((C31*0.5)/D31)) -> 1476.604869 | G31: 1476.604869 | H31: 0 | M31: =50272.65+'App.2-CE_MIFRS_DepExp_2015'!I31*1/'App.2-CE_MIFRS_DepExp_2015'!J31+'App.2-CF_MIFRS_DepExp_2016'!I31*1/'App.2-CF_MIFRS_DepExp_2016'!J31*0.5-89-1487.99 -> 
A32: 1845 | B32: Underground Conductors & Devices | C32: 112000 | D32: 30 | E32: 0.03333333333 | F32: =IF(D32=0,'App.2-CE_MIFRS_DepExp_2015'!K32,+'App.2-CE_MIFRS_DepExp_2015'!K32+((C32*0.5)/D32)) -> 102002.7804 | G32: 105351.7137 | H32: -3348.933333 | M32: =6405.1-4946.33 -> 1458.77
A33: 1850 | B33: Line Transformers | C33: 235000 | D33: 40 | E33: 0.025 | F33: =IF(D33=0,'App.2-CE_MIFRS_DepExp_2015'!K33,+'App.2-CE_MIFRS_DepExp_2015'!K33+((C33*0.5)/D33)) -> 50526.69876 | G33: 52526.19876 | H33: -1999.5 | M33: =168676.21+'App.2-CE_MIFRS_DepExp_2015'!I33*1/'App.2-CE_MIFRS_DepExp_2015'!J33+'App.2-CF_MIFRS_DepExp_2016'!I33*1/'App.2-CF_MIFRS_DepExp_2016'!J33*0.5-71474.68 -> 
A34: 1855 | B34: Services (Overhead & Underground) | C34: 273000 | D34: 35 | E34: 0.02857142857 | F34: =IF(D34=0,'App.2-CE_MIFRS_DepExp_2015'!K34,+'App.2-CE_MIFRS_DepExp_2015'!K34+((C34*0.5)/D34)) -> 72654.93775 | G34: 75373.82346 | H34: -2718.885714 | M34: =79681.05+'App.2-CE_MIFRS_DepExp_2015'!I34*1/'App.2-CE_MIFRS_DepExp_2015'!J34+'App.2-CF_MIFRS_DepExp_2016'!I34*1/'App.2-CF_MIFRS_DepExp_2016'!J34*0.5-195-36212.44 -> 
A35: 1860 | B35: Meters | C35: 5000 | D35: 25 | E35: 0.04 | F35: =IF(D35=0,'App.2-CE_MIFRS_DepExp_2015'!K35,+'App.2-CE_MIFRS_DepExp_2015'!K35+((C35*0.5)/D35)) -> 602.7530612 | G35: 523.8330612 | H35: 78.92 | M35: =96984.48+'App.2-CE_MIFRS_DepExp_2015'!I35*1/'App.2-CE_MIFRS_DepExp_2015'!J35+'App.2-CF_MIFRS_DepExp_2016'!I35*1/'App.2-CF_MIFRS_DepExp_2016'!J35*0.5-35673.9 -> 
A36: 1860 | B36: Meters (Smart Meters) | C36: 100000 | D36: 15 | E36: 0.06666666667 | F36: =IF(D36=0,'App.2-CE_MIFRS_DepExp_2015'!K36,+'App.2-CE_MIFRS_DepExp_2015'!K36+((C36*0.5)/D36)) -> 118421.0347 | G36: 118026.6013 | H36: 394.4333333 | M36: =224.2+'App.2-CE_MIFRS_DepExp_2015'!I36*1/'App.2-CE_MIFRS_DepExp_2015'!J36+'App.2-CF_MIFRS_DepExp_2016'!I36*1/'App.2-CF_MIFRS_DepExp_2016'!J36*0.5 -> 
A37: 1860 | B37: Primary Metering Equipment | D37: 25 | E37: 0.04 | F37: =IF(D37=0,'App.2-CE_MIFRS_DepExp_2015'!K37,+'App.2-CE_MIFRS_DepExp_2015'!K37+((C37*0.5)/D37)) -> 6669.28026 | G37: 6669.28026 | H37: 0 | M37: =115778.95+'App.2-CE_MIFRS_DepExp_2015'!I37*1/'App.2-CE_MIFRS_DepExp_2015'!J37+'App.2-CF_MIFRS_DepExp_2016'!I37*1/'App.2-CF_MIFRS_DepExp_2016'!J37*0.5-'App.2-CE_MIFRS_DepExp_2015'!P37-2770.39 -> 
A38: 1905 | B38: Land | D38: 0 | E38: 0 | F38: =IF(D38=0,'App.2-CE_MIFRS_DepExp_2015'!K38,+'App.2-CE_MIFRS_DepExp_2015'!K38+((C38*0.5)/D38)) -> 0 | G38: 0 | H38: 0 | M38: 6675.33
A39: 1908 | B39: Buildings & Fixtures | D39: 50 | E39: 0.02 | F39: =IF(D39=0,'App.2-CE_MIFRS_DepExp_2015'!K39,+'App.2-CE_MIFRS_DepExp_2015'!K39+((C39*0.5)/D39)) -> 29157.23789 | G39: 30537.23789 | H39: -1380
A40: 1910 | B40: Leasehold Improvements | E40: 0 | F40: =IF(D40=0,'App.2-CE_MIFRS_DepExp_2015'!K40,+'App.2-CE_MIFRS_DepExp_2015'!K40+((C40*0.5)/D40)) -> 0 | G40: 0 | H40: 0 | M40: =28157.49+'App.2-CE_MIFRS_DepExp_2015'!I40*1/'App.2-CE_MIFRS_DepExp_2015'!J40 -> 
A41: 1915 | B41: Office Furniture & Equipment (10 years) | E41: 0 | F41: =IF(D41=0,'App.2-CE_MIFRS_DepExp_2015'!K41,+'App.2-CE_MIFRS_DepExp_2015'!K41+((C41*0.5)/D41)) -> 0 | G41: 0 | H41: 0
A42: 1915 | B42: Office Furniture & Equipment (5 years) | E42: 0 | F42: =IF(D42=0,'App.2-CE_MIFRS_DepExp_2015'!K42,+'App.2-CE_MIFRS_DepExp_2015'!K42+((C42*0.5)/D42)) -> 0 | G42: 0 | H42: 0
A43: 1920 | B43: Computer Equipment - Hardware | E43: 0 | F43: =IF(D43=0,'App.2-CE_MIFRS_DepExp_2015'!K43,+'App.2-CE_MIFRS_DepExp_2015'!K43+((C43*0.5)/D43)) -> 0 | G43: 0 | H43: 0
A44: 1920 | B44: Computer Equip.-Hardware(Post Mar. 22/04) | E44: 0 | F44: =IF(D44=0,'App.2-CE_MIFRS_DepExp_2015'!K44,+'App.2-CE_MIFRS_DepExp_2015'!K44+((C44*0.5)/D44)) -> 0 | G44: 0 | H44: 0
A45: 1920 | B45: Computer Equip.-Hardware(Post Mar. 19/07) | E45: 0 | F45: =IF(D45=0,'App.2-CE_MIFRS_DepExp_2015'!K45,+'App.2-CE_MIFRS_DepExp_2015'!K45+((C45*0.5)/D45)) -> 0 | G45: 0 | H45: 0
A46: 1930 | B46: Transportation Equipment | E46: 0 | F46: =IF(D46=0,'App.2-CE_MIFRS_DepExp_2015'!K46,+'App.2-CE_MIFRS_DepExp_2015'!K46+((C46*0.5)/D46)) -> 0 | G46: 0 | H46: 0
A47: 1935 | B47: Stores Equipment | E47: 0 | F47: =IF(D47=0,'App.2-CE_MIFRS_DepExp_2015'!K47,+'App.2-CE_MIFRS_DepExp_2015'!K47+((C47*0.5)/D47)) -> 0 | G47: 0 | H47: 0
A48: 1940 | B48: Tools, Shop & Garage Equipment | E48: 0 | F48: =IF(D48=0,'App.2-CE_MIFRS_DepExp_2015'!K48,+'App.2-CE_MIFRS_DepExp_2015'!K48+((C48*0.5)/D48)) -> 0 | G48: 0 | H48: 0
A49: 1945 | B49: Measurement & Testing Equipment | E49: 0 | F49: =IF(D49=0,'App.2-CE_MIFRS_DepExp_2015'!K49,+'App.2-CE_MIFRS_DepExp_2015'!K49+((C49*0.5)/D49)) -> 0 | G49: 0 | H49: 0
A50: 1950 | B50: Power Operated Equipment | E50: 0 | F50: =IF(D50=0,'App.2-CE_MIFRS_DepExp_2015'!K50,+'App.2-CE_MIFRS_DepExp_2015'!K50+((C50*0.5)/D50)) -> 0 | G50: 0 | H50: 0
A51: 1955 | B51: Communications Equipment | E51: 0 | F51: =IF(D51=0,'App.2-CE_MIFRS_DepExp_2015'!K51,+'App.2-CE_MIFRS_DepExp_2015'!K51+((C51*0.5)/D51)) -> 0 | G51: 0 | H51: 0
A52: 1955 | B52: Communication Equipment (Smart Meters) | E52: 0 | F52: =IF(D52=0,'App.2-CE_MIFRS_DepExp_2015'!K52,+'App.2-CE_MIFRS_DepExp_2015'!K52+((C52*0.5)/D52)) -> 0 | G52: 0 | H52: 0
A53: 1960 | B53: Miscellaneous Equipment | E53: 0 | F53: =IF(D53=0,'App.2-CE_MIFRS_DepExp_2015'!K53,+'App.2-CE_MIFRS_DepExp_2015'!K53+((C53*0.5)/D53)) -> 0 | G53: 0 | H53: 0
A54: 1970 | B54: Load Management Controls Customer Premises | E54: =IF(D54=0,0,1/D54) -> 0 | F54: =IF(D54=0,'App.2-CE_MIFRS_DepExp_2015'!K54,+'App.2-CE_MIFRS_DepExp_2015'!K54+((C54*0.5)/D54)) -> 0 | G54: 0 | H54: 0
A55: 1975 | B55: Load Management Controls Utility Premises | E55: 0 | F55: =IF(D55=0,'App.2-CE_MIFRS_DepExp_2015'!K55,+'App.2-CE_MIFRS_DepExp_2015'!K55+((C55*0.5)/D55)) -> 0 | G55: 0 | H55: 0
A56: 1980 | B56: System Supervisor Equipment | D56: 20 | E56: 0.05 | F56: =IF(D56=0,'App.2-CE_MIFRS_DepExp_2015'!K56,+'App.2-CE_MIFRS_DepExp_2015'!K56+((C56*0.5)/D56)) -> 4400.7275 | G56: 4400.7275 | H56: 0
A57: 1985 | B57: Miscellaneous Fixed Assets | E57: 0 | F57: =IF(D57=0,'App.2-CE_MIFRS_DepExp_2015'!K57,+'App.2-CE_MIFRS_DepExp_2015'!K57+((C57*0.5)/D57)) -> 0 | G57: 0 | H57: 0 | M57: 4400.72
A58: 1990 | B58: Other Tangible Property | E58: 0 | F58: =IF(D58=0,'App.2-CE_MIFRS_DepExp_2015'!K58,+'App.2-CE_MIFRS_DepExp_2015'!K58+((C58*0.5)/D58)) -> 0 | G58: 0 | H58: 0
A59: 2440-1820-01 | B59: Deferred Revenue - Station Building & Infrastructure | D59: 50 | E59: 0.02 | F59: =IF(D59=0,'App.2-CE_MIFRS_DepExp_2015'!K59,+'App.2-CE_MIFRS_DepExp_2015'!K59+((C59*0.5)/D59)) -> 0 | G59: 0 | H59: 0
A60: 2440-1820-02 | B60: Deferred Revenue - Station Civil Work | D60: 50 | E60: 0.02 | F60: =IF(D60=0,'App.2-CE_MIFRS_DepExp_2015'!K60,+'App.2-CE_MIFRS_DepExp_2015'!K60+((C60*0.5)/D60)) -> 0 | G60: 0 | H60: 0 | M60: 0
A61: 2440-1820-03 | B61: Deferred Revenue - Station LV/Reclosures & Breakers | D61: 20 | E61: 0.05 | F61: =IF(D61=0,'App.2-CE_MIFRS_DepExp_2015'!K61,+'App.2-CE_MIFRS_DepExp_2015'!K61+((C61*0.5)/D61)) -> 0 | G61: 0 | H61: 0 | M61: 0
A62: 2440-1820-04 | B62: Deferred Revenue- Station Equipment | D62: 40 | E62: 0.025 | F62: =IF(D62=0,'App.2-CE_MIFRS_DepExp_2015'!K62,+'App.2-CE_MIFRS_DepExp_2015'!K62+((C62*0.5)/D62)) -> 0 | G62: 0 | H62: 0 | M62: 0
A63: 2440-1820-05 | B63: Deferred Revenue - Station Transformers | D63: 45 | E63: 0.02222222222 | F63: =IF(D63=0,'App.2-CE_MIFRS_DepExp_2015'!K63,+'App.2-CE_MIFRS_DepExp_2015'!K63+((C63*0.5)/D63)) -> 0 | G63: 0 | H63: 0 | M63: 0
A64: 2440-1830 | B64: Deferred Revenue - Poles | D64: 45 | E64: 0.02222222222 | F64: =IF(D64=0,'App.2-CE_MIFRS_DepExp_2015'!K64,+'App.2-CE_MIFRS_DepExp_2015'!K64+((C64*0.5)/D64)) -> -8230.532222 | G64: -5194.421111 | H64: -3036.111111 | M64: 0
A65: 2440-1835 | B65: Deferred Revenue - O/H Conductor | D65: 45 | E65: 0.02222222222 | F65: =IF(D65=0,'App.2-CE_MIFRS_DepExp_2015'!K65,+'App.2-CE_MIFRS_DepExp_2015'!K65+((C65*0.5)/D65)) -> -587.8306667 | G65: -587.8306667 | H65: 0 | M65: =-10500.51+5333.2 -> -5167.31
A66: 2440-1840 | B66: Deferred Revenue - Conduit | D66: 50 | E66: 0.02 | F66: =IF(D66=0,'App.2-CE_MIFRS_DepExp_2015'!K66,+'App.2-CE_MIFRS_DepExp_2015'!K66+((C66*0.5)/D66)) -> -271.3356 | G66: -271.3356 | H66: 0 | M66: =-2082.73+1487.99 -> -594.74
A67: 2440-1845 | B67: Deferred Revenue - U/G Conductor | C67: -76500 | D67: 30 | E67: 0.03333333333 | F67: =IF(D67=0,'App.2-CE_MIFRS_DepExp_2015'!K67,+'App.2-CE_MIFRS_DepExp_2015'!K67+((C67*0.5)/D67)) -> -12695.93363 | G67: -15249.40033 | H67: 2553.466703 | M67: =-5224.53+4946.33 -> -278.2
A68: 2440-1850 | B68: Deferred Revenue - Transformers | C68: -67500 | D68: 40 | E68: 0.025 | F68: =IF(D68=0,'App.2-CE_MIFRS_DepExp_2015'!K68,+'App.2-CE_MIFRS_DepExp_2015'!K68+((C68*0.5)/D68)) -> -6937.945723 | G68: -8184.44575 | H68: 1246.500027 | M68: =-81190.42+'App.2-CE_MIFRS_DepExp_2015'!I68*1/'App.2-CE_MIFRS_DepExp_2015'!J68+'App.2-CF_MIFRS_DepExp_2016'!I68*1/'App.2-CF_MIFRS_DepExp_2016'!J68*0.5+71474.68 -> 
A69: 2440-1855 | B69: Deferred Revenue - Secondary Services | C69: -132250 | D69: 35 | E69: 0.02857142857 | F69: =IF(D69=0,'App.2-CE_MIFRS_DepExp_2015'!K69,+'App.2-CE_MIFRS_DepExp_2015'!K69+((C69*0.5)/D69)) -> -8922.67454 | G69: -10862.67457 | H69: 1940.000031 | M69: =-41095.42+'App.2-CE_MIFRS_DepExp_2015'!I69*1/'App.2-CE_MIFRS_DepExp_2015'!J69+'App.2-CF_MIFRS_DepExp_2016'!I69*1/'App.2-CF_MIFRS_DepExp_2016'!J69*0.5+36212.44 -> 
A70: 2440-1860 | B70: Deferred Revenue - Smart Meters | D70: 15 | E70: 0.06666666667 | F70: =IF(D70=0,'App.2-CE_MIFRS_DepExp_2015'!K70,+'App.2-CE_MIFRS_DepExp_2015'!K70+((C70*0.5)/D70)) -> -220.1953333 | G70: -220.1953333 | H70: 0 | M70: =-39968.78+'App.2-CE_MIFRS_DepExp_2015'!I70*1/'App.2-CE_MIFRS_DepExp_2015'!J70+'App.2-CF_MIFRS_DepExp_2016'!I70*1/'App.2-CF_MIFRS_DepExp_2016'!J70*0.5+35673.9 -> 
A71: 2005 | B71: Capital Lease - Communication Equipment | D71: 20 | E71: 0.05 | F71: =IF(D71=0,'App.2-CE_MIFRS_DepExp_2015'!K71,+'App.2-CE_MIFRS_DepExp_2015'!K71+((C71*0.5)/D71)) -> 2464.154 | G71: 2464.154 | H71: 0 | M71: =-2976.15+2770.39 -> -205.76
A72: 2005 | B72: Capital Lease - Structure | D72: 50 | E72: 0.02 | F72: =IF(D72=0,'App.2-CE_MIFRS_DepExp_2015'!K72,+'App.2-CE_MIFRS_DepExp_2015'!K72+((C72*0.5)/D72)) -> 1550.2016 | G72: 1550.2016 | H72: 0 | M72: 2464
B73: Total | C73: =SUM(C17:C72) -> 1378750 | F73: =SUM(F17:F72) -> 547003.2617 | G73: =SUM(G17:G72) -> 554314.594 | H73: =SUM(H17:H72) -> -7311.332286 | M73: 1550
B74: Depreciation exp. adj. from gain or loss on the retirement of assets (pool of like assets)
B75: Total Depreciation expense to be included in the test year revenue requirement | F75: =SUM(F73:F74) -> 547003.2617
A76: Notes:
A77: 1 | B77: Board policy of the "half-year" rule - the applicant must ensure that additions in the year attract a half-year depreciation expense in the first year. Deviations from this standard practice must be supported in the application.
A78: 2 | B78: The applicant must provide an explanation of material variances in evidence.
A81: General: | B81: Applicants must provide a breakdown of depreciation and amortization expense in the above format for all relevant accounts. Asset Retirement Obligations (AROs), depreciation and accretion expense should be disclosed separately consistent with the Notes of historical Audited Financial Statements.
B85: 2016 | C85: MIFRS
A87: Account | B87: Description | C87: Additions | D87: Years (new additions only) | E87: Depreciation Rate on New Additions | F87: 2016 Depreciation Expense 1 | G87: 2016 Depreciation Expense per Appendix 2-BA Fixed Assets, Column J (l) | H87: Variance 2
C88: (d) | D88: (f) | E88: (g) = 1 / (f) | F88: (h)=2015 Full Year Depreciation + ((d)*0.5)/(f) | H88: (m) = (h) - (l)
A89: 1611 | B89: Computer Software (Formally known as Account 1925) | C89: 40000 | D89: 10 | E89: =IF(D89=0,0,1/D89) -> 0.1 | F89: =IF(D89=0,'App.2-CE_MIFRS_DepExp_2015'!K89,+'App.2-CE_MIFRS_DepExp_2015'!K89+((C89*0.5)/D89)) -> 16535.1462 | G89: 16535.1462 | H89: =IF(ISERROR(+F89-G89), 0, +F89-G89) -> 0
A90: 1612 | B90: Land Rights (Formally known as Account 1906) | D90: 0 | E90: 0 | F90: =IF(D90=0,'App.2-CE_MIFRS_DepExp_2015'!K90,+'App.2-CE_MIFRS_DepExp_2015'!K90+((C90*0.5)/D90)) -> 0 | G90: 0 | H90: 0
A91: 1805 | B91: Land | D91: 0 | E91: 0 | F91: =IF(D91=0,'App.2-CE_MIFRS_DepExp_2015'!K91,+'App.2-CE_MIFRS_DepExp_2015'!K91+((C91*0.5)/D91)) -> 0 | G91: 0 | H91: 0
A92: 1808 | B92: Buildings | D92: 0 | E92: 0 | F92: =IF(D92=0,'App.2-CE_MIFRS_DepExp_2015'!K92,+'App.2-CE_MIFRS_DepExp_2015'!K92+((C92*0.5)/D92)) -> 0 | G92: 0 | H92: 0
A93: 1810 | B93: Leasehold Improvements | D93: 0 | E93: 0 | F93: =IF(D93=0,'App.2-CE_MIFRS_DepExp_2015'!K93,+'App.2-CE_MIFRS_DepExp_2015'!K93+((C93*0.5)/D93)) -> 0 | G93: 0 | H93: 0
A94: 1815 | B94: Transformer Station Equipment >50 kV | D94: 0 | E94: 0 | F94: =IF(D94=0,'App.2-CE_MIFRS_DepExp_2015'!K94,+'App.2-CE_MIFRS_DepExp_2015'!K94+((C94*0.5)/D94)) -> 0 | G94: 0 | H94: 0
A95: 1820 | B95: Distribution Station Equipment <50 kV - Building & Infrastructure | D95: 50 | E95: 0.02 | F95: =IF(D95=0,'App.2-CE_MIFRS_DepExp_2015'!K95,+'App.2-CE_MIFRS_DepExp_2015'!K95+((C95*0.5)/D95)) -> 7310.542791 | G95: 7310.542791 | H95: 0
A96: 1820 | B96: Distribution Station Equipment <50 kV - Civil Work | D96: 50 | E96: 0.02 | F96: =IF(D96=0,'App.2-CE_MIFRS_DepExp_2015'!K96,+'App.2-CE_MIFRS_DepExp_2015'!K96+((C96*0.5)/D96)) -> 2942.911011 | G96: 2942.911011 | H96: 0
A97: 1820 | B97: Distribution Station Equipment <50 kV - LV Reclosures & Breakers | D97: 20 | E97: 0.05 | F97: =IF(D97=0,'App.2-CE_MIFRS_DepExp_2015'!K97,+'App.2-CE_MIFRS_DepExp_2015'!K97+((C97*0.5)/D97)) -> 23030.00087 | G97: 23030.00087 | H97: 0
A98: 1820 | B98: Distribution Station Equipment <50 kV - Equipment | D98: 40 | E98: 0.025 | F98: =IF(D98=0,'App.2-CE_MIFRS_DepExp_2015'!K98,+'App.2-CE_MIFRS_DepExp_2015'!K98+((C98*0.5)/D98)) -> 24367.52345 | G98: 24367.52345 | H98: 0
A99: 1820 | B99: Distribution Station Equipment <50 kV - Transformer | D99: 45 | E99: 0.02222222222 | F99: =IF(D99=0,'App.2-CE_MIFRS_DepExp_2015'!K99,+'App.2-CE_MIFRS_DepExp_2015'!K99+((C99*0.5)/D99)) -> 20489.13107 | G99: 20489.13107 | H99: 0
A100: 1825 | B100: Storage Battery Equipment | D100: 0 | E100: 0 | F100: =IF(D100=0,'App.2-CE_MIFRS_DepExp_2015'!K100,+'App.2-CE_MIFRS_DepExp_2015'!K100+((C100*0.5)/D100)) -> 0 | G100: 0 | H100: 0
A101: 1830 | B101: Poles, Towers & Fixtures | C101: =525000+50000-75000 -> 500000 | D101: 45 | E101: 0.02222222222 | F101: =IF(D101=0,'App.2-CE_MIFRS_DepExp_2015'!K101,+'App.2-CE_MIFRS_DepExp_2015'!K101+((C101*0.5)/D101)) -> 66330.90164 | G101: =+F101 -> 66330.90164 | H101: 0
A102: 1835 | B102: Overhead Conductors & Devices | C102: =265000+50000 -> 315000 | D102: 45 | E102: 0.02222222222 | F102: =IF(D102=0,'App.2-CE_MIFRS_DepExp_2015'!K102,+'App.2-CE_MIFRS_DepExp_2015'!K102+((C102*0.5)/D102)) -> 53746.79231 | G102: 53746.79231 | H102: 0
A103: 1840 | B103: Underground Conduit | D103: 50 | E103: 0.02 | F103: =IF(D103=0,'App.2-CE_MIFRS_DepExp_2015'!K103,+'App.2-CE_MIFRS_DepExp_2015'!K103+((C103*0.5)/D103)) -> 6422.935404 | G103: 6422.935404 | H103: 0
A104: 1845 | B104: Underground Conductors & Devices | C104: 112000 | D104: 30 | E104: 0.03333333333 | F104: =IF(D104=0,'App.2-CE_MIFRS_DepExp_2015'!K104,+'App.2-CE_MIFRS_DepExp_2015'!K104+((C104*0.5)/D104)) -> 173477.464 | G104: 173477.464 | H104: 0
A105: 1850 | B105: Line Transformers | C105: 235000 | D105: 40 | E105: 0.025 | F105: =IF(D105=0,'App.2-CE_MIFRS_DepExp_2015'!K105,+'App.2-CE_MIFRS_DepExp_2015'!K105+((C105*0.5)/D105)) -> 86660.08796 | G105: 86660.08796 | H105: 0
A106: 1855 | B106: Services (Overhead & Underground) | C106: 273000 | D106: 35 | E106: 0.02857142857 | F106: =IF(D106=0,'App.2-CE_MIFRS_DepExp_2015'!K106,+'App.2-CE_MIFRS_DepExp_2015'!K106+((C106*0.5)/D106)) -> 108328.8381 | G106: 108328.8381 | H106: 0
A107: 1860 | B107: Meters | C107: 5000 | D107: 25 | E107: 0.04 | F107: =IF(D107=0,'App.2-CE_MIFRS_DepExp_2015'!K107,+'App.2-CE_MIFRS_DepExp_2015'!K107+((C107*0.5)/D107)) -> 602.7530612 | G107: 602.7530612 | H107: 0
A108: 1860 | B108: Meters (Smart Meters) | C108: 100000 | D108: 15 | E108: 0.06666666667 | F108: =IF(D108=0,'App.2-CE_MIFRS_DepExp_2015'!K108,+'App.2-CE_MIFRS_DepExp_2015'!K108+((C108*0.5)/D108)) -> 121191.4201 | G108: 121191.4201 | H108: 0
A109: 1860 | B109: Primary Metering Equipment | D109: 25 | E109: 0.04 | F109: =IF(D109=0,'App.2-CE_MIFRS_DepExp_2015'!K109,+'App.2-CE_MIFRS_DepExp_2015'!K109+((C109*0.5)/D109)) -> 6669.28026 | G109: 6669.28026 | H109: 0
A110: 1905 | B110: Land | D110: 0 | E110: 0 | F110: =IF(D110=0,'App.2-CE_MIFRS_DepExp_2015'!K110,+'App.2-CE_MIFRS_DepExp_2015'!K110+((C110*0.5)/D110)) -> 0 | G110: 0 | H110: 0
A111: 1908 | B111: Buildings & Fixtures | D111: 50 | E111: 0.02 | F111: =IF(D111=0,'App.2-CE_MIFRS_DepExp_2015'!K111,+'App.2-CE_MIFRS_DepExp_2015'!K111+((C111*0.5)/D111)) -> 29157.23789 | G111: 29157.23789 | H111: 0
A112: 1910 | B112: Leasehold Improvements | E112: 0 | F112: =IF(D112=0,'App.2-CE_MIFRS_DepExp_2015'!K112,+'App.2-CE_MIFRS_DepExp_2015'!K112+((C112*0.5)/D112)) -> 0 | G112: 0 | H112: 0
A113: 1915 | B113: Office Furniture & Equipment (10 years) | E113: 0 | F113: =IF(D113=0,'App.2-CE_MIFRS_DepExp_2015'!K113,+'App.2-CE_MIFRS_DepExp_2015'!K113+((C113*0.5)/D113)) -> 0 | G113: 0 | H113: 0
A114: 1915 | B114: Office Furniture & Equipment (5 years) | E114: 0 | F114: =IF(D114=0,'App.2-CE_MIFRS_DepExp_2015'!K114,+'App.2-CE_MIFRS_DepExp_2015'!K114+((C114*0.5)/D114)) -> 0 | G114: 0 | H114: 0
A115: 1920 | B115: Computer Equipment - Hardware | E115: 0 | F115: =IF(D115=0,'App.2-CE_MIFRS_DepExp_2015'!K115,+'App.2-CE_MIFRS_DepExp_2015'!K115+((C115*0.5)/D115)) -> 0 | G115: 0 | H115: 0
A116: 1920 | B116: Computer Equip.-Hardware(Post Mar. 22/04) | E116: 0 | F116: =IF(D116=0,'App.2-CE_MIFRS_DepExp_2015'!K116,+'App.2-CE_MIFRS_DepExp_2015'!K116+((C116*0.5)/D116)) -> 0 | G116: 0 | H116: 0
A117: 1920 | B117: Computer Equip.-Hardware(Post Mar. 19/07) | E117: 0 | F117: =IF(D117=0,'App.2-CE_MIFRS_DepExp_2015'!K117,+'App.2-CE_MIFRS_DepExp_2015'!K117+((C117*0.5)/D117)) -> 0 | G117: 0 | H117: 0
A118: 1930 | B118: Transportation Equipment | E118: 0 | F118: =IF(D118=0,'App.2-CE_MIFRS_DepExp_2015'!K118,+'App.2-CE_MIFRS_DepExp_2015'!K118+((C118*0.5)/D118)) -> 0 | G118: 0 | H118: 0
A119: 1935 | B119: Stores Equipment | E119: 0 | F119: =IF(D119=0,'App.2-CE_MIFRS_DepExp_2015'!K119,+'App.2-CE_MIFRS_DepExp_2015'!K119+((C119*0.5)/D119)) -> 0 | G119: 0 | H119: 0
A120: 1940 | B120: Tools, Shop & Garage Equipment | E120: 0 | F120: =IF(D120=0,'App.2-CE_MIFRS_DepExp_2015'!K120,+'App.2-CE_MIFRS_DepExp_2015'!K120+((C120*0.5)/D120)) -> 0 | G120: 0 | H120: 0
A121: 1945 | B121: Measurement & Testing Equipment | E121: 0 | F121: =IF(D121=0,'App.2-CE_MIFRS_DepExp_2015'!K121,+'App.2-CE_MIFRS_DepExp_2015'!K121+((C121*0.5)/D121)) -> 0 | G121: 0 | H121: 0
A122: 1950 | B122: Power Operated Equipment | E122: 0 | F122: =IF(D122=0,'App.2-CE_MIFRS_DepExp_2015'!K122,+'App.2-CE_MIFRS_DepExp_2015'!K122+((C122*0.5)/D122)) -> 0 | G122: 0 | H122: 0
A123: 1955 | B123: Communications Equipment | E123: 0 | F123: =IF(D123=0,'App.2-CE_MIFRS_DepExp_2015'!K123,+'App.2-CE_MIFRS_DepExp_2015'!K123+((C123*0.5)/D123)) -> 0 | G123: 0 | H123: 0
A124: 1955 | B124: Communication Equipment (Smart Meters) | E124: 0 | F124: =IF(D124=0,'App.2-CE_MIFRS_DepExp_2015'!K124,+'App.2-CE_MIFRS_DepExp_2015'!K124+((C124*0.5)/D124)) -> 0 | G124: 0 | H124: 0
A125: 1960 | B125: Miscellaneous Equipment | E125: 0 | F125: =IF(D125=0,'App.2-CE_MIFRS_DepExp_2015'!K125,+'App.2-CE_MIFRS_DepExp_2015'!K125+((C125*0.5)/D125)) -> 0 | G125: 0 | H125: 0
A126: 1970 | B126: Load Management Controls Customer Premises | E126: 0 | F126: =IF(D126=0,'App.2-CE_MIFRS_DepExp_2015'!K126,+'App.2-CE_MIFRS_DepExp_2015'!K126+((C126*0.5)/D126)) -> 0 | G126: 0 | H126: 0
A127: 1975 | B127: Load Management Controls Utility Premises | E127: 0 | F127: =IF(D127=0,'App.2-CE_MIFRS_DepExp_2015'!K127,+'App.2-CE_MIFRS_DepExp_2015'!K127+((C127*0.5)/D127)) -> 0 | G127: 0 | H127: 0
A128: 1980 | B128: System Supervisor Equipment | D128: 20 | E128: 0.05 | F128: =IF(D128=0,'App.2-CE_MIFRS_DepExp_2015'!K128,+'App.2-CE_MIFRS_DepExp_2015'!K128+((C128*0.5)/D128)) -> 4400.7275 | G128: 4400.7275 | H128: 0
A129: 1985 | B129: Miscellaneous Fixed Assets | E129: 0 | F129: =IF(D129=0,'App.2-CE_MIFRS_DepExp_2015'!K129,+'App.2-CE_MIFRS_DepExp_2015'!K129+((C129*0.5)/D129)) -> 0 | G129: 0 | H129: 0
A130: 1990 | B130: Other Tangible Property | E130: 0 | F130: =IF(D130=0,'App.2-CE_MIFRS_DepExp_2015'!K130,+'App.2-CE_MIFRS_DepExp_2015'!K130+((C130*0.5)/D130)) -> 0 | G130: 0 | H130: 0
A131: 2440-1820-01 | B131: Deferred Revenue - Station Building & Infrastructure | D131: 50 | E131: 0.02 | F131: =IF(D131=0,'App.2-CE_MIFRS_DepExp_2015'!K131,+'App.2-CE_MIFRS_DepExp_2015'!K131+((C131*0.5)/D131)) -> -887.8661263 | G131: -887.8661263 | H131: 0
A132: 2440-1820-02 | B132: Deferred Revenue - Station Civil Work | D132: 50 | E132: 0.02 | F132: =IF(D132=0,'App.2-CE_MIFRS_DepExp_2015'!K132,+'App.2-CE_MIFRS_DepExp_2015'!K132+((C132*0.5)/D132)) -> -853.9749263 | G132: -853.9749263 | H132: 0
A133: 2440-1820-03 | B133: Deferred Revenue - Station LV/Reclosures & Breakers | D133: 20 | E133: 0.05 | F133: =IF(D133=0,'App.2-CE_MIFRS_DepExp_2015'!K133,+'App.2-CE_MIFRS_DepExp_2015'!K133+((C133*0.5)/D133)) -> -3221.722786 | G133: -3221.722786 | H133: 0
A134: 2440-1820-04 | B134: Deferred Revenue- Station Equipment | D134: 40 | E134: 0.025 | F134: =IF(D134=0,'App.2-CE_MIFRS_DepExp_2015'!K134,+'App.2-CE_MIFRS_DepExp_2015'!K134+((C134*0.5)/D134)) -> -3980.013083 | G134: -3980.013083 | H134: 0
A135: 2440-1820-05 | B135: Deferred Revenue - Station Transformers | D135: 45 | E135: 0.02222222222 | F135: =IF(D135=0,'App.2-CE_MIFRS_DepExp_2015'!K135,+'App.2-CE_MIFRS_DepExp_2015'!K135+((C135*0.5)/D135)) -> -4799.161137 | G135: -4799.161137 | H135: 0
A136: 2440-1830 | B136: Deferred Revenue - Poles | D136: 45 | E136: 0.02222222222 | F136: =IF(D136=0,'App.2-CE_MIFRS_DepExp_2015'!K136,+'App.2-CE_MIFRS_DepExp_2015'!K136+((C136*0.5)/D136)) -> -13563.73592 | G136: -13563.73592 | H136: 0
A137: 2440-1835 | B137: Deferred Revenue - O/H Conductor | D137: 45 | E137: 0.02222222222 | F137: =IF(D137=0,'App.2-CE_MIFRS_DepExp_2015'!K137,+'App.2-CE_MIFRS_DepExp_2015'!K137+((C137*0.5)/D137)) -> -2075.822946 | G137: -2075.822946 | H137: 0
A138: 2440-1840 | B138: Deferred Revenue - Conduit | D138: 50 | E138: 0.02 | F138: =IF(D138=0,'App.2-CE_MIFRS_DepExp_2015'!K138,+'App.2-CE_MIFRS_DepExp_2015'!K138+((C138*0.5)/D138)) -> -5217.666135 | G138: -5217.666135 | H138: 0
A139: 2440-1845 | B139: Deferred Revenue - U/G Conductor | C139: -76500 | D139: 30 | E139: 0.03333333333 | F139: =IF(D139=0,'App.2-CE_MIFRS_DepExp_2015'!K139,+'App.2-CE_MIFRS_DepExp_2015'!K139+((C139*0.5)/D139)) -> -84170.61725 | G139: -84170.61725 | H139: 0
A140: 2440-1850 | B140: Deferred Revenue - Transformers | C140: -67500 | D140: 40 | E140: 0.025 | F140: =IF(D140=0,'App.2-CE_MIFRS_DepExp_2015'!K140,+'App.2-CE_MIFRS_DepExp_2015'!K140+((C140*0.5)/D140)) -> -43150.38493 | G140: -43150.38493 | H140: 0
A141: 2440-1855 | B141: Deferred Revenue - Secondary Services | C141: -132250 | D141: 35 | E141: 0.02857142857 | F141: =IF(D141=0,'App.2-CE_MIFRS_DepExp_2015'!K141,+'App.2-CE_MIFRS_DepExp_2015'!K141+((C141*0.5)/D141)) -> -44596.57492 | G141: -44596.57492 | H141: 0
A142: 2440-1860 | B142: Deferred Revenue - Smart Meters | D142: 15 | E142: 0.06666666667 | F142: =IF(D142=0,'App.2-CE_MIFRS_DepExp_2015'!K142,+'App.2-CE_MIFRS_DepExp_2015'!K142+((C142*0.5)/D142)) -> -2990.580788 | G142: -2990.580788 | H142: 0
A143: 2005 | B143: Capital Lease - Communication Equipment | D143: 20 | E143: 0.05 | F143: =IF(D143=0,'App.2-CE_MIFRS_DepExp_2015'!K143,+'App.2-CE_MIFRS_DepExp_2015'!K143+((C143*0.5)/D143)) -> 2464.154 | G143: 2464.154 | H143: 0
A144: 2005 | B144: Capital Lease - Structure | D144: 50 | E144: 0.02 | F144: =IF(D144=0,'App.2-CE_MIFRS_DepExp_2015'!K144,+'App.2-CE_MIFRS_DepExp_2015'!K144+((C144*0.5)/D144)) -> 1550.2016 | G144: 1550.2016 | H144: 0
B145: Total | C145: =SUM(C89:C144) -> 1303750 | F145: =SUM(F89:F144) -> 546169.9284 | G145: =SUM(G89:G144) -> 546169.9284 | H145: =SUM(H89:H144) -> 0
B146: Depreciation exp. adj. from gain or loss on the retirement of assets (pool of like assets)
B147: Total Depreciation expense to be included in the test year revenue requirement | F147: =SUM(F145:F146) -> 546169.9284

Sheet App.2-CG_OldCGAAP_DepExp_2013
K1: File Number: | L1: =EBNUMBER -> EB-2015-0107
K2: Exhibit:
K3: Tab:
K4: Schedule:
K5: Page:
K7: Date:
A9: Appendix 2-CG
A10: Depreciation and Amortization Expense
B11: Assumes the applicant made capitalization and depreciation expense accounting policy changes under CGAAP effective January 1, 2013 and has adopted IFRS for financial reporting purposes effective January 1, 2015.
C13: Year | D13: 2013 | E13: Former CGAAP
A15: Account | B15: Description | C15: Opening Regulatory Gross PP&E as at Jan 1, 2013 | D15: Less Fully Depreciated | E15: Net for Depreciation | F15: Additions | G15: Total for Depreciation 1 | H15: Years | I15: Depreciation Rate | J15: Depreciation Expense | K15: 2013 Depreciation Expense per Appendix 2-BA Fixed Assets, Column J (l) | L15: Variance 2
C16: (a) | D16: (b) | E16: (c) | F16: (d) | G16: (e) = (c) + ½ x (d) | H16: (f) | I16: (g) = 1 / (f) | J16: (h) = (e) / (f) | L16: (m) = (h) - (l)
A17: 1611 | B17: Computer Software (Formally known as Account 1925) | E17: =C17-D17 -> 0 | G17: =E17+0.5*F17 -> 0 | I17: =IF(H17=0,0,1/H17) -> 0 | J17: =IF(H17=0,0,G17/H17) -> 0 | L17: =IF(ISERROR(+J17-K17), 0, +J17-K17) -> 0
A18: 1612 | B18: Land Rights (Formally known as Account 1906) | E18: =C18-D18 -> 0 | G18: =E18+0.5*F18 -> 0 | I18: 0 | J18: 0 | L18: 0
A19: 1805 | B19: Land | E19: 0 | G19: 0 | I19: 0 | J19: 0 | L19: 0
A20: 1808 | B20: Buildings | E20: 0 | G20: 0 | I20: 0 | J20: 0 | L20: 0
A21: 1810 | B21: Leasehold Improvements | E21: 0 | G21: 0 | I21: 0 | J21: 0 | L21: 0
A22: 1815 | B22: Transformer Station Equipment >50 kV | E22: 0 | G22: 0 | I22: 0 | J22: 0 | L22: 0
A23: 1820 | B23: Distribution Station Equipment <50 kV | E23: 0 | G23: 0 | I23: 0 | J23: 0 | L23: 0
A24: 1825 | B24: Storage Battery Equipment | E24: 0 | G24: 0 | I24: 0 | J24: 0 | L24: 0
A25: 1830 | B25: Poles, Towers & Fixtures | E25: 0 | G25: 0 | I25: 0 | J25: 0 | L25: 0
A26: 1835 | B26: Overhead Conductors & Devices | E26: 0 | G26: 0 | I26: 0 | J26: 0 | L26: 0
A27: 1840 | B27: Underground Conduit | E27: 0 | G27: 0 | I27: 0 | J27: 0 | L27: 0
A28: 1845 | B28: Underground Conductors & Devices | E28: 0 | G28: 0 | I28: 0 | J28: 0 | L28: 0
A29: 1850 | B29: Line Transformers | E29: 0 | G29: 0 | I29: 0 | J29: 0 | L29: 0
A30: 1855 | B30: Services (Overhead & Underground) | E30: 0 | G30: 0 | I30: 0 | J30: 0 | L30: 0
A31: 1860 | B31: Meters | E31: 0 | G31: 0 | I31: 0 | J31: 0 | L31: 0
A32: 1860 | B32: Meters (Smart Meters) | E32: 0 | G32: 0 | I32: 0 | J32: 0 | L32: 0
A33: 1905 | B33: Land | E33: 0 | G33: 0 | I33: 0 | J33: 0 | L33: 0
A34: 1908 | B34: Buildings & Fixtures | E34: 0 | G34: 0 | I34: 0 | J34: 0 | L34: 0
A35: 1910 | B35: Leasehold Improvements | E35: 0 | G35: 0 | I35: 0 | J35: 0 | L35: 0
A36: 1915 | B36: Office Furniture & Equipment (10 years) | E36: 0 | G36: 0 | I36: 0 | J36: 0 | L36: 0
A37: 1915 | B37: Office Furniture & Equipment (5 years) | E37: 0 | G37: 0 | I37: 0 | J37: 0 | L37: 0
A38: 1920 | B38: Computer Equipment - Hardware | E38: 0 | G38: 0 | I38: 0 | J38: 0 | L38: 0
A39: 1920 | B39: Computer Equip.-Hardware(Post Mar. 22/04) | E39: 0 | G39: 0 | I39: 0 | J39: 0 | L39: 0
A40: 1920 | B40: Computer Equip.-Hardware(Post Mar. 19/07) | E40: 0 | G40: 0 | I40: 0 | J40: 0 | L40: 0
A41: 1930 | B41: Transportation Equipment | E41: 0 | G41: 0 | I41: 0 | J41: 0 | L41: 0
A42: 1935 | B42: Stores Equipment | E42: 0 | G42: 0 | I42: 0 | J42: 0 | L42: 0
A43: 1940 | B43: Tools, Shop & Garage Equipment | E43: 0 | G43: 0 | I43: 0 | J43: 0 | L43: 0
A44: 1945 | B44: Measurement & Testing Equipment | E44: 0 | G44: 0 | I44: 0 | J44: 0 | L44: 0
A45: 1950 | B45: Power Operated Equipment | E45: 0 | G45: 0 | I45: 0 | J45: 0 | L45: 0
A46: 1955 | B46: Communications Equipment | E46: 0 | G46: 0 | I46: 0 | J46: 0 | L46: 0
A47: 1955 | B47: Communication Equipment (Smart Meters) | E47: 0 | G47: 0 | I47: 0 | J47: 0 | L47: 0
A48: 1960 | B48: Miscellaneous Equipment | E48: 0 | G48: 0 | I48: 0 | J48: 0 | L48: 0
A49: 1970 | B49: Load Management Controls - Customer Premises | E49: 0 | G49: 0 | I49: 0 | J49: 0 | L49: 0
A50: 1975 | B50: Load Management Controls Utility Premises | E50: 0 | G50: 0 | I50: 0 | J50: 0 | L50: 0
A51: 1980 | B51: System Supervisor Equipment | E51: 0 | G51: 0 | I51: 0 | J51: 0 | L51: 0
A52: 1985 | B52: Miscellaneous Fixed Assets | E52: 0 | G52: 0 | I52: 0 | J52: 0 | L52: 0
A53: 1990 | B53: Other Tangible Property | E53: 0 | G53: 0 | I53: 0 | J53: 0 | L53: 0
A54: 1995 | B54: Contributions & Grants | E54: 0 | G54: 0 | I54: 0 | J54: 0 | L54: 0
B55: Total | C55: =SUM(C17:C54) -> 0 | D55: =SUM(D17:D54) -> 0 | E55: =SUM(E17:E54) -> 0 | F55: =SUM(F17:F54) -> 0 | G55: =SUM(G17:G54) -> 0 | J55: =SUM(J17:J54) -> 0 | K55: =SUM(K17:K54) -> 0 | L55: =SUM(L17:L54) -> 0
A57: Notes:
A59: 1 | B59: Board policy of the "half-year" rule - the applicant must ensure that additions in the year attract a half-year depreciation expense in the first year. Deviations from this standard practice must be supported in the application.
A60: 2 | B60: The applicant must provide an explanation of material variances in evidence.
A62: General | B62: Applicants must provide a breakdown of depreciation and amortization expense in the above format for all relevant accounts. Asset Retirement Obligations (AROs), depreciation and accretion expense should be disclosed separately consistent with the Notes of historical Audited Financial Statements.

Sheet App.2-CH_NewCGAAP_DepExp_2013
N1: File Number: | O1: =EBNUMBER -> EB-2015-0107
N2: Exhibit:
N3: Tab:
N4: Schedule:
N5: Page:
N7: Date:
A9: Appendix 2-CH
A10: Depreciation and Amortization Expense
A11: Assumes the applicant made capitalization and depreciation expense accounting policy changes under CGAAP effective January 1, 2013 and has adopted IFRS for financial reporting purposes effective January 1, 2015.
C13: Year | D13: 2013 | E13: Revised CGAAP
A15: Account | B15: Description | C15: Opening NBV as at Jan 1, 2013 5 | D15: Additions | E15: Average Remaining Life of Opening NBV 4 | F15: Years (new additions only) 3 | G15: Depreciation Rate on New Additions | H15: Depreciation Expense on Opening NBV | I15: Depreciation Expense on Additions 1 | J15: 2013 Depreciation Expense | K15: 2013 Depreciation Expense per Appendix 2-BA Fixed Assets, Column J (l) | L15: Variance 2 | M15: Depreciation Expense on 2013 Full Year Additions | N15: Less Depreciation Expense on Assets Fully Depreciated during the year (o) | O15: 2013 Full Year Depreciation 6
C16: (a) | D16: (d) | E16: (i) | F16: (f) | G16: (g) = 1 / (f) | H16: (j) = (a) / (i) | I16: (h)=((d)*0.5)/(f) | J16: (k) = (j) + (h) | L16: (m) = (k) - (l) | M16: (n) = (d)/(f) | O16: (p) = (j) + (n) - (o)
A17: 1611 | B17: Computer Software (Formally known as Account 1925) | G17: =IF(F17=0,0,1/F17) -> 0 | H17: =IF(E17=0,0,+C17/E17) -> 0 | I17: =IF(F17=0,0,+(D17*0.5)/F17) -> 0 | J17: =IF(ISERROR(+H17+I17), 0, +H17+I17) -> 0 | L17: =IF(ISERROR(+J17-K17), 0, +J17-K17) -> 0 | M17: =IF(F17=0,0,+(D17)/F17) -> 0 | O17: =IF(ISERROR(+M17+H17-N17), 0, +M17+H17-N17) -> 0
A18: 1612 | B18: Land Rights (Formally known as Account 1906) | G18: 0 | H18: 0 | I18: 0 | J18: 0 | L18: 0 | M18: 0 | O18: =IF(ISERROR(+M18+H18-N18), 0, +M18+H18-N18) -> 0
A19: 1805 | B19: Land | G19: 0 | H19: 0 | I19: 0 | J19: 0 | L19: 0 | M19: 0 | O19: 0
A20: 1808 | B20: Buildings | G20: 0 | H20: 0 | I20: 0 | J20: 0 | L20: 0 | M20: 0 | O20: 0
A21: 1810 | B21: Leasehold Improvements | G21: 0 | H21: 0 | I21: 0 | J21: 0 | L21: 0 | M21: 0 | O21: 0
A22: 1815 | B22: Transformer Station Equipment >50 kV | G22: 0 | H22: 0 | I22: 0 | J22: 0 | L22: 0 | M22: 0 | O22: 0
A23: 1820 | B23: Distribution Station Equipment <50 kV | G23: 0 | H23: 0 | I23: 0 | J23: 0 | L23: 0 | M23: 0 | O23: 0
A24: 1825 | B24: Storage Battery Equipment | G24: 0 | H24: 0 | I24: 0 | J24: 0 | L24: 0 | M24: 0 | O24: 0
A25: 1830 | B25: Poles, Towers & Fixtures | G25: 0 | H25: 0 | I25: 0 | J25: 0 | L25: 0 | M25: 0 | O25: 0
A26: 1835 | B26: Overhead Conductors & Devices | G26: 0 | H26: 0 | I26: 0 | J26: 0 | L26: 0 | M26: 0 | O26: 0
A27: 1840 | B27: Underground Conduit | G27: 0 | H27: 0 | I27: 0 | J27: 0 | L27: 0 | M27: 0 | O27: 0
A28: 1845 | B28: Underground Conductors & Devices | G28: 0 | H28: 0 | I28: 0 | J28: 0 | L28: 0 | M28: 0 | O28: 0
A29: 1850 | B29: Line Transformers | G29: 0 | H29: 0 | I29: 0 | J29: 0 | L29: 0 | M29: 0 | O29: 0
A30: 1855 | B30: Services (Overhead & Underground) | G30: 0 | H30: 0 | I30: 0 | J30: 0 | L30: 0 | M30: 0 | O30: 0
A31: 1860 | B31: Meters | G31: 0 | H31: 0 | I31: 0 | J31: 0 | L31: 0 | M31: 0 | O31: 0
A32: 1860 | B32: Meters (Smart Meters) | G32: 0 | H32: 0 | I32: 0 | J32: 0 | L32: 0 | M32: 0 | O32: 0
A33: 1905 | B33: Land | G33: 0 | H33: 0 | I33: 0 | J33: 0 | L33: 0 | M33: 0 | O33: 0
A34: 1908 | B34: Buildings & Fixtures | G34: 0 | H34: 0 | I34: 0 | J34: 0 | L34: 0 | M34: 0 | O34: 0
A35: 1910 | B35: Leasehold Improvements | G35: 0 | H35: 0 | I35: 0 | J35: 0 | L35: 0 | M35: 0 | O35: 0
A36: 1915 | B36: Office Furniture & Equipment (10 years) | G36: 0 | H36: 0 | I36: 0 | J36: 0 | L36: 0 | M36: 0 | O36: 0
A37: 1915 | B37: Office Furniture & Equipment (5 years) | G37: 0 | H37: 0 | I37: 0 | J37: 0 | L37: 0 | M37: 0 | O37: 0
A38: 1920 | B38: Computer Equipment - Hardware | G38: 0 | H38: 0 | I38: 0 | J38: 0 | L38: 0 | M38: 0 | O38: 0
A39: 1920 | B39: Computer Equip.-Hardware(Post Mar. 22/04) | G39: 0 | H39: 0 | I39: 0 | J39: 0 | L39: 0 | M39: 0 | O39: 0
A40: 1920 | B40: Computer Equip.-Hardware(Post Mar. 19/07) | G40: 0 | H40: 0 | I40: 0 | J40: 0 | L40: 0 | M40: 0 | O40: 0
A41: 1930 | B41: Transportation Equipment | G41: 0 | H41: 0 | I41: 0 | J41: 0 | L41: 0 | M41: 0 | O41: 0
A42: 1935 | B42: Stores Equipment | G42: 0 | H42: 0 | I42: 0 | J42: 0 | L42: 0 | M42: 0 | O42: 0
A43: 1940 | B43: Tools, Shop & Garage Equipment | G43: 0 | H43: 0 | I43: 0 | J43: 0 | L43: 0 | M43: 0 | O43: 0
A44: 1945 | B44: Measurement & Testing Equipment | G44: 0 | H44: 0 | I44: 0 | J44: 0 | L44: 0 | M44: 0 | O44: 0
A45: 1950 | B45: Power Operated Equipment | G45: 0 | H45: 0 | I45: 0 | J45: 0 | L45: 0 | M45: 0 | O45: 0
A46: 1955 | B46: Communications Equipment | G46: 0 | H46: 0 | I46: 0 | J46: 0 | L46: 0 | M46: 0 | O46: 0
A47: 1955 | B47: Communication Equipment (Smart Meters) | G47: 0 | H47: 0 | I47: 0 | J47: 0 | L47: 0 | M47: 0 | O47: 0
A48: 1960 | B48: Miscellaneous Equipment | G48: 0 | H48: 0 | I48: 0 | J48: 0 | L48: 0 | M48: 0 | O48: 0
A49: 1970 | B49: Load Management Controls - Customer Premises | G49: 0 | H49: 0 | I49: 0 | J49: 0 | L49: 0 | M49: 0 | O49: 0
A50: 1975 | B50: Load Management Controls Utility Premises | G50: 0 | H50: 0 | I50: 0 | J50: 0 | L50: 0 | M50: 0 | O50: 0
A51: 1980 | B51: System Supervisor Equipment | G51: 0 | H51: 0 | I51: 0 | J51: 0 | L51: 0 | M51: 0 | O51: 0
A52: 1985 | B52: Miscellaneous Fixed Assets | G52: 0 | H52: 0 | I52: 0 | J52: 0 | L52: 0 | M52: 0 | O52: 0
A53: 1990 | B53: Other Tangible Property | G53: 0 | H53: 0 | I53: 0 | J53: 0 | L53: 0 | M53: 0 | O53: 0
A54: 1995 | B54: Contributions & Grants | G54: 0 | H54: 0 | I54: 0 | J54: 0 | L54: 0 | M54: 0 | O54: 0
B55: Total | C55: =SUM(C17:C54) -> 0 | D55: =SUM(D17:D54) -> 0 | H55: =SUM(H17:H54) -> 0 | I55: 0 | J55: 0 | K55: 0 | L55: 0 | M55: 0 | N55: 0 | O55: 0
A57: Notes:
A59: 1 | B59: Board policy of the "half-year" rule - the applicant must ensure that additions in the year attract a half-year depreciation expense in the first year. Deviations from this standard practice must be supported in the application.
A60: 2 | B60: The applicant must provide an explanation of material variances in evidence.
A61: 3 | B61: The applicant should ensure that the years for new additions of assets are the asset useful lives determined by management in accordance with the Board's regulatory accounting policies. The capitalization and depreciation expense accounting changes should be implemented consistent with the Board’s regulatory accounting policies as set out for MIFRS as contained in the Report of the Board, Transition to International Financial Reporting Standards, EB-2008-0408, the Kinectrics Report, and the Revised 2012 Accounting Procedures Handbook for Electricity Distributors.
A62: 4 | B62: A recalculation should be performed to determine the average remaining life of opening balance of assets (i.e. excluding 2013 additions) under the change in policies under CGAAP. For example, Asset A had a useful life of 20 years under CGAAP without the change in policies. On January 1, 2013, the effective date of the changes in policies, Asset A was 3 years depreciated. As a result, Asset A would have a remaining service life of 17 years (20 years less 3 years) as of January 1, 2013. Due to making the change in policies under CGAAP, management re-assessed the asset useful lives and concluded that the revised useful life of Asset A is now 30 years. Therefore, the average remaining useful life of the opening balance of Asset A is determined to be 27 years (30 years less 3 years) under the revised CGAAP as of January 1, 2013.
A63: 5 | B63: NBV must exclude assets still on the books but which have been fully amortized or depreciated.
A64: 6 | B64: This column refers to the calculated full year depreciation but excludes the depreciation expense on assets fully depreciated during the year. This column is used for the purpose of calculating depreciation expense in the following year on the next worksheet.
A66: General: | B66: Applicants must provide a breakdown of depreciation and amortization expense in the above format for all relevant accounts. Asset Retirement Obligations (AROs), depreciation and accretion expense should be disclosed separately consistent with the Notes of historical Audited Financial Statements.

Sheet App.2-CI_MIFRS_DepExp_2014
J1: File Number: | K1: =EBNUMBER -> EB-2015-0107
J2: Exhibit:
J3: Tab:
J4: Schedule:
J5: Page:
J7: Date:
A9: Appendix 2-CI
A10: Depreciation and Amortization Expense
A11: Assumes the applicant made capitalization and depreciation expense accounting policy changes under CGAAP effective January 1, 2013 and has adopted IFRS for financial reporting purposes effective January 1, 2015.
E13: 2014 | F13: MIFRS
A15: Account | B15: Description | C15: Additions | D15: Years (new additions only) | E15: Depreciation Rate on New Additions | F15: 2014 Depreciation Expense 1 | G15: 2014 Depreciation Expense per Apppendix 2-BA Fixed Assets, Column J (l) | H15: Variance 2 | I15: Depreciation Expense on 2014 Full Year Additions | J15: Less Depreciation Expense on Assets Fully Depreciated during the year (o) | K15: 2014 Full Year Depreciation 3
C16: (d) | D16: (f) | E16: (g) = 1 / (f) | F16: (h)=2013 Full Year Deprecation + ((d)*0.5)/(f) | H16: (m) = (h) - (l) | I16: (n)=((d))/(f) | K16: (p) = 2013 Full Year Depreciation + (n) - (o)
A17: 1611 | B17: Computer Software (Formally known as Account 1925) | E17: =IF(D17=0,0,1/D17) -> 0 | F17: =IF(D17=0,+'App.2-CH_NewCGAAP_DepExp_2013'!O17,+'App.2-CH_NewCGAAP_DepExp_2013'!O17+((C17*0.5)/D17)) -> 0 | H17: =IF(ISERROR(+F17-G17), 0, +F17-G17) -> 0 | I17: =IF(D17=0,0,+(C17)/D17) -> 0 | K17: =IF(ISERROR(+I17+'App.2-CH_NewCGAAP_DepExp_2013'!O17-J17), 0, +I17+'App.2-CH_NewCGAAP_DepExp_2013'!O17-J17) -> 0
A18: 1612 | B18: Land Rights (Formally known as Account 1906) | E18: 0 | F18: =IF(D18=0,+'App.2-CH_NewCGAAP_DepExp_2013'!O18,+'App.2-CH_NewCGAAP_DepExp_2013'!O18+((C18*0.5)/D18)) -> 0 | H18: 0 | I18: 0 | K18: =IF(ISERROR(+I18+'App.2-CH_NewCGAAP_DepExp_2013'!O18-J18), 0, +I18+'App.2-CH_NewCGAAP_DepExp_2013'!O18-J18) -> 0
A19: 1805 | B19: Land | E19: 0 | F19: =IF(D19=0,+'App.2-CH_NewCGAAP_DepExp_2013'!O19,+'App.2-CH_NewCGAAP_DepExp_2013'!O19+((C19*0.5)/D19)) -> 0 | H19: 0 | I19: 0 | K19: =IF(ISERROR(+I19+'App.2-CH_NewCGAAP_DepExp_2013'!O19-J19), 0, +I19+'App.2-CH_NewCGAAP_DepExp_2013'!O19-J19) -> 0
A20: 1808 | B20: Buildings | E20: 0 | F20: =IF(D20=0,+'App.2-CH_NewCGAAP_DepExp_2013'!O20,+'App.2-CH_NewCGAAP_DepExp_2013'!O20+((C20*0.5)/D20)) -> 0 | H20: 0 | I20: 0 | K20: =IF(ISERROR(+I20+'App.2-CH_NewCGAAP_DepExp_2013'!O20-J20), 0, +I20+'App.2-CH_NewCGAAP_DepExp_2013'!O20-J20) -> 0
A21: 1810 | B21: Leasehold Improvements | E21: 0 | F21: =IF(D21=0,+'App.2-CH_NewCGAAP_DepExp_2013'!O21,+'App.2-CH_NewCGAAP_DepExp_2013'!O21+((C21*0.5)/D21)) -> 0 | H21: 0 | I21: 0 | K21: =IF(ISERROR(+I21+'App.2-CH_NewCGAAP_DepExp_2013'!O21-J21), 0, +I21+'App.2-CH_NewCGAAP_DepExp_2013'!O21-J21) -> 0
A22: 1815 | B22: Transformer Station Equipment >50 kV | E22: 0 | F22: =IF(D22=0,+'App.2-CH_NewCGAAP_DepExp_2013'!O22,+'App.2-CH_NewCGAAP_DepExp_2013'!O22+((C22*0.5)/D22)) -> 0 | H22: 0 | I22: 0 | K22: =IF(ISERROR(+I22+'App.2-CH_NewCGAAP_DepExp_2013'!O22-J22), 0, +I22+'App.2-CH_NewCGAAP_DepExp_2013'!O22-J22) -> 0
A23: 1820 | B23: Distribution Station Equipment <50 kV | E23: 0 | F23: =IF(D23=0,+'App.2-CH_NewCGAAP_DepExp_2013'!O23,+'App.2-CH_NewCGAAP_DepExp_2013'!O23+((C23*0.5)/D23)) -> 0 | H23: 0 | I23: 0 | K23: =IF(ISERROR(+I23+'App.2-CH_NewCGAAP_DepExp_2013'!O23-J23), 0, +I23+'App.2-CH_NewCGAAP_DepExp_2013'!O23-J23) -> 0
A24: 1825 | B24: Storage Battery Equipment | E24: 0 | F24: =IF(D24=0,+'App.2-CH_NewCGAAP_DepExp_2013'!O24,+'App.2-CH_NewCGAAP_DepExp_2013'!O24+((C24*0.5)/D24)) -> 0 | H24: 0 | I24: 0 | K24: =IF(ISERROR(+I24+'App.2-CH_NewCGAAP_DepExp_2013'!O24-J24), 0, +I24+'App.2-CH_NewCGAAP_DepExp_2013'!O24-J24) -> 0
A25: 1830 | B25: Poles, Towers & Fixtures | E25: 0 | F25: =IF(D25=0,+'App.2-CH_NewCGAAP_DepExp_2013'!O25,+'App.2-CH_NewCGAAP_DepExp_2013'!O25+((C25*0.5)/D25)) -> 0 | H25: 0 | I25: 0 | K25: =IF(ISERROR(+I25+'App.2-CH_NewCGAAP_DepExp_2013'!O25-J25), 0, +I25+'App.2-CH_NewCGAAP_DepExp_2013'!O25-J25) -> 0
A26: 1835 | B26: Overhead Conductors & Devices | E26: 0 | F26: =IF(D26=0,+'App.2-CH_NewCGAAP_DepExp_2013'!O26,+'App.2-CH_NewCGAAP_DepExp_2013'!O26+((C26*0.5)/D26)) -> 0 | H26: 0 | I26: 0 | K26: =IF(ISERROR(+I26+'App.2-CH_NewCGAAP_DepExp_2013'!O26-J26), 0, +I26+'App.2-CH_NewCGAAP_DepExp_2013'!O26-J26) -> 0
A27: 1840 | B27: Underground Conduit | E27: 0 | F27: =IF(D27=0,+'App.2-CH_NewCGAAP_DepExp_2013'!O27,+'App.2-CH_NewCGAAP_DepExp_2013'!O27+((C27*0.5)/D27)) -> 0 | H27: 0 | I27: 0 | K27: =IF(ISERROR(+I27+'App.2-CH_NewCGAAP_DepExp_2013'!O27-J27), 0, +I27+'App.2-CH_NewCGAAP_DepExp_2013'!O27-J27) -> 0
A28: 1845 | B28: Underground Conductors & Devices | E28: 0 | F28: =IF(D28=0,+'App.2-CH_NewCGAAP_DepExp_2013'!O28,+'App.2-CH_NewCGAAP_DepExp_2013'!O28+((C28*0.5)/D28)) -> 0 | H28: 0 | I28: 0 | K28: =IF(ISERROR(+I28+'App.2-CH_NewCGAAP_DepExp_2013'!O28-J28), 0, +I28+'App.2-CH_NewCGAAP_DepExp_2013'!O28-J28) -> 0
A29: 1850 | B29: Line Transformers | E29: 0 | F29: =IF(D29=0,+'App.2-CH_NewCGAAP_DepExp_2013'!O29,+'App.2-CH_NewCGAAP_DepExp_2013'!O29+((C29*0.5)/D29)) -> 0 | H29: 0 | I29: 0 | K29: =IF(ISERROR(+I29+'App.2-CH_NewCGAAP_DepExp_2013'!O29-J29), 0, +I29+'App.2-CH_NewCGAAP_DepExp_2013'!O29-J29) -> 0
A30: 1855 | B30: Services (Overhead & Underground) | E30: 0 | F30: =IF(D30=0,+'App.2-CH_NewCGAAP_DepExp_2013'!O30,+'App.2-CH_NewCGAAP_DepExp_2013'!O30+((C30*0.5)/D30)) -> 0 | H30: 0 | I30: 0 | K30: =IF(ISERROR(+I30+'App.2-CH_NewCGAAP_DepExp_2013'!O30-J30), 0, +I30+'App.2-CH_NewCGAAP_DepExp_2013'!O30-J30) -> 0
A31: 1860 | B31: Meters | E31: 0 | F31: =IF(D31=0,+'App.2-CH_NewCGAAP_DepExp_2013'!O31,+'App.2-CH_NewCGAAP_DepExp_2013'!O31+((C31*0.5)/D31)) -> 0 | H31: 0 | I31: 0 | K31: =IF(ISERROR(+I31+'App.2-CH_NewCGAAP_DepExp_2013'!O31-J31), 0, +I31+'App.2-CH_NewCGAAP_DepExp_2013'!O31-J31) -> 0
A32: 1860 | B32: Meters (Smart Meters) | E32: 0 | F32: =IF(D32=0,+'App.2-CH_NewCGAAP_DepExp_2013'!O32,+'App.2-CH_NewCGAAP_DepExp_2013'!O32+((C32*0.5)/D32)) -> 0 | H32: 0 | I32: 0 | K32: =IF(ISERROR(+I32+'App.2-CH_NewCGAAP_DepExp_2013'!O32-J32), 0, +I32+'App.2-CH_NewCGAAP_DepExp_2013'!O32-J32) -> 0
A33: 1905 | B33: Land | E33: 0 | F33: =IF(D33=0,+'App.2-CH_NewCGAAP_DepExp_2013'!O33,+'App.2-CH_NewCGAAP_DepExp_2013'!O33+((C33*0.5)/D33)) -> 0 | H33: 0 | I33: 0 | K33: =IF(ISERROR(+I33+'App.2-CH_NewCGAAP_DepExp_2013'!O33-J33), 0, +I33+'App.2-CH_NewCGAAP_DepExp_2013'!O33-J33) -> 0
A34: 1908 | B34: Buildings & Fixtures | E34: 0 | F34: =IF(D34=0,+'App.2-CH_NewCGAAP_DepExp_2013'!O34,+'App.2-CH_NewCGAAP_DepExp_2013'!O34+((C34*0.5)/D34)) -> 0 | H34: 0 | I34: 0 | K34: =IF(ISERROR(+I34+'App.2-CH_NewCGAAP_DepExp_2013'!O34-J34), 0, +I34+'App.2-CH_NewCGAAP_DepExp_2013'!O34-J34) -> 0
A35: 1910 | B35: Leasehold Improvements | E35: 0 | F35: =IF(D35=0,+'App.2-CH_NewCGAAP_DepExp_2013'!O35,+'App.2-CH_NewCGAAP_DepExp_2013'!O35+((C35*0.5)/D35)) -> 0 | H35: 0 | I35: 0 | K35: =IF(ISERROR(+I35+'App.2-CH_NewCGAAP_DepExp_2013'!O35-J35), 0, +I35+'App.2-CH_NewCGAAP_DepExp_2013'!O35-J35) -> 0
A36: 1915 | B36: Office Furniture & Equipment (10 years) | E36: 0 | F36: =IF(D36=0,+'App.2-CH_NewCGAAP_DepExp_2013'!O36,+'App.2-CH_NewCGAAP_DepExp_2013'!O36+((C36*0.5)/D36)) -> 0 | H36: 0 | I36: 0 | K36: =IF(ISERROR(+I36+'App.2-CH_NewCGAAP_DepExp_2013'!O36-J36), 0, +I36+'App.2-CH_NewCGAAP_DepExp_2013'!O36-J36) -> 0
A37: 1915 | B37: Office Furniture & Equipment (5 years) | E37: 0 | F37: =IF(D37=0,+'App.2-CH_NewCGAAP_DepExp_2013'!O37,+'App.2-CH_NewCGAAP_DepExp_2013'!O37+((C37*0.5)/D37)) -> 0 | H37: 0 | I37: 0 | K37: =IF(ISERROR(+I37+'App.2-CH_NewCGAAP_DepExp_2013'!O37-J37), 0, +I37+'App.2-CH_NewCGAAP_DepExp_2013'!O37-J37) -> 0
A38: 1920 | B38: Computer Equipment - Hardware | E38: 0 | F38: =IF(D38=0,+'App.2-CH_NewCGAAP_DepExp_2013'!O38,+'App.2-CH_NewCGAAP_DepExp_2013'!O38+((C38*0.5)/D38)) -> 0 | H38: 0 | I38: 0 | K38: =IF(ISERROR(+I38+'App.2-CH_NewCGAAP_DepExp_2013'!O38-J38), 0, +I38+'App.2-CH_NewCGAAP_DepExp_2013'!O38-J38) -> 0
A39: 1920 | B39: Computer Equip.-Hardware(Post Mar. 22/04) | E39: 0 | F39: =IF(D39=0,+'App.2-CH_NewCGAAP_DepExp_2013'!O39,+'App.2-CH_NewCGAAP_DepExp_2013'!O39+((C39*0.5)/D39)) -> 0 | H39: 0 | I39: 0 | K39: =IF(ISERROR(+I39+'App.2-CH_NewCGAAP_DepExp_2013'!O39-J39), 0, +I39+'App.2-CH_NewCGAAP_DepExp_2013'!O39-J39) -> 0
A40: 1920 | B40: Computer Equip.-Hardware(Post Mar. 19/07) | E40: 0 | F40: =IF(D40=0,+'App.2-CH_NewCGAAP_DepExp_2013'!O40,+'App.2-CH_NewCGAAP_DepExp_2013'!O40+((C40*0.5)/D40)) -> 0 | H40: 0 | I40: 0 | K40: =IF(ISERROR(+I40+'App.2-CH_NewCGAAP_DepExp_2013'!O40-J40), 0, +I40+'App.2-CH_NewCGAAP_DepExp_2013'!O40-J40) -> 0
A41: 1930 | B41: Transportation Equipment | E41: 0 | F41: =IF(D41=0,+'App.2-CH_NewCGAAP_DepExp_2013'!O41,+'App.2-CH_NewCGAAP_DepExp_2013'!O41+((C41*0.5)/D41)) -> 0 | H41: 0 | I41: 0 | K41: =IF(ISERROR(+I41+'App.2-CH_NewCGAAP_DepExp_2013'!O41-J41), 0, +I41+'App.2-CH_NewCGAAP_DepExp_2013'!O41-J41) -> 0
A42: 1935 | B42: Stores Equipment | E42: 0 | F42: =IF(D42=0,+'App.2-CH_NewCGAAP_DepExp_2013'!O42,+'App.2-CH_NewCGAAP_DepExp_2013'!O42+((C42*0.5)/D42)) -> 0 | H42: 0 | I42: 0 | K42: =IF(ISERROR(+I42+'App.2-CH_NewCGAAP_DepExp_2013'!O42-J42), 0, +I42+'App.2-CH_NewCGAAP_DepExp_2013'!O42-J42) -> 0
A43: 1940 | B43: Tools, Shop & Garage Equipment | E43: 0 | F43: =IF(D43=0,+'App.2-CH_NewCGAAP_DepExp_2013'!O43,+'App.2-CH_NewCGAAP_DepExp_2013'!O43+((C43*0.5)/D43)) -> 0 | H43: 0 | I43: 0 | K43: =IF(ISERROR(+I43+'App.2-CH_NewCGAAP_DepExp_2013'!O43-J43), 0, +I43+'App.2-CH_NewCGAAP_DepExp_2013'!O43-J43) -> 0
A44: 1945 | B44: Measurement & Testing Equipment | E44: 0 | F44: =IF(D44=0,+'App.2-CH_NewCGAAP_DepExp_2013'!O44,+'App.2-CH_NewCGAAP_DepExp_2013'!O44+((C44*0.5)/D44)) -> 0 | H44: 0 | I44: 0 | K44: =IF(ISERROR(+I44+'App.2-CH_NewCGAAP_DepExp_2013'!O44-J44), 0, +I44+'App.2-CH_NewCGAAP_DepExp_2013'!O44-J44) -> 0
A45: 1950 | B45: Power Operated Equipment | E45: 0 | F45: =IF(D45=0,+'App.2-CH_NewCGAAP_DepExp_2013'!O45,+'App.2-CH_NewCGAAP_DepExp_2013'!O45+((C45*0.5)/D45)) -> 0 | H45: 0 | I45: 0 | K45: =IF(ISERROR(+I45+'App.2-CH_NewCGAAP_DepExp_2013'!O45-J45), 0, +I45+'App.2-CH_NewCGAAP_DepExp_2013'!O45-J45) -> 0
A46: 1955 | B46: Communications Equipment | E46: 0 | F46: =IF(D46=0,+'App.2-CH_NewCGAAP_DepExp_2013'!O46,+'App.2-CH_NewCGAAP_DepExp_2013'!O46+((C46*0.5)/D46)) -> 0 | H46: 0 | I46: 0 | K46: =IF(ISERROR(+I46+'App.2-CH_NewCGAAP_DepExp_2013'!O46-J46), 0, +I46+'App.2-CH_NewCGAAP_DepExp_2013'!O46-J46) -> 0
A47: 1955 | B47: Communication Equipment (Smart Meters) | E47: 0 | F47: =IF(D47=0,+'App.2-CH_NewCGAAP_DepExp_2013'!O47,+'App.2-CH_NewCGAAP_DepExp_2013'!O47+((C47*0.5)/D47)) -> 0 | H47: 0 | I47: 0 | K47: =IF(ISERROR(+I47+'App.2-CH_NewCGAAP_DepExp_2013'!O47-J47), 0, +I47+'App.2-CH_NewCGAAP_DepExp_2013'!O47-J47) -> 0
A48: 1960 | B48: Miscellaneous Equipment | E48: 0 | F48: =IF(D48=0,+'App.2-CH_NewCGAAP_DepExp_2013'!O48,+'App.2-CH_NewCGAAP_DepExp_2013'!O48+((C48*0.5)/D48)) -> 0 | H48: 0 | I48: 0 | K48: =IF(ISERROR(+I48+'App.2-CH_NewCGAAP_DepExp_2013'!O48-J48), 0, +I48+'App.2-CH_NewCGAAP_DepExp_2013'!O48-J48) -> 0
A49: 1970 | B49: Load Management Controls - Customer Premises | E49: 0 | F49: =IF(D49=0,+'App.2-CH_NewCGAAP_DepExp_2013'!O49,+'App.2-CH_NewCGAAP_DepExp_2013'!O49+((C49*0.5)/D49)) -> 0 | H49: 0 | I49: 0 | K49: =IF(ISERROR(+I49+'App.2-CH_NewCGAAP_DepExp_2013'!O49-J49), 0, +I49+'App.2-CH_NewCGAAP_DepExp_2013'!O49-J49) -> 0
A50: 1975 | B50: Load Management Controls Utility Premises | E50: 0 | F50: =IF(D50=0,+'App.2-CH_NewCGAAP_DepExp_2013'!O50,+'App.2-CH_NewCGAAP_DepExp_2013'!O50+((C50*0.5)/D50)) -> 0 | H50: 0 | I50: 0 | K50: =IF(ISERROR(+I50+'App.2-CH_NewCGAAP_DepExp_2013'!O50-J50), 0, +I50+'App.2-CH_NewCGAAP_DepExp_2013'!O50-J50) -> 0
A51: 1980 | B51: System Supervisor Equipment | E51: 0 | F51: =IF(D51=0,+'App.2-CH_NewCGAAP_DepExp_2013'!O51,+'App.2-CH_NewCGAAP_DepExp_2013'!O51+((C51*0.5)/D51)) -> 0 | H51: 0 | I51: 0 | K51: =IF(ISERROR(+I51+'App.2-CH_NewCGAAP_DepExp_2013'!O51-J51), 0, +I51+'App.2-CH_NewCGAAP_DepExp_2013'!O51-J51) -> 0
A52: 1985 | B52: Miscellaneous Fixed Assets | E52: 0 | F52: =IF(D52=0,+'App.2-CH_NewCGAAP_DepExp_2013'!O52,+'App.2-CH_NewCGAAP_DepExp_2013'!O52+((C52*0.5)/D52)) -> 0 | H52: 0 | I52: 0 | K52: =IF(ISERROR(+I52+'App.2-CH_NewCGAAP_DepExp_2013'!O52-J52), 0, +I52+'App.2-CH_NewCGAAP_DepExp_2013'!O52-J52) -> 0
A53: 1990 | B53: Other Tangible Property | E53: 0 | F53: =IF(D53=0,+'App.2-CH_NewCGAAP_DepExp_2013'!O53,+'App.2-CH_NewCGAAP_DepExp_2013'!O53+((C53*0.5)/D53)) -> 0 | H53: 0 | I53: 0 | K53: =IF(ISERROR(+I53+'App.2-CH_NewCGAAP_DepExp_2013'!O53-J53), 0, +I53+'App.2-CH_NewCGAAP_DepExp_2013'!O53-J53) -> 0
A54: 1995 | B54: Contributions & Grants | E54: =IF(D54=0,0,1/D54) -> 0 | F54: =IF(D54=0,+'App.2-CH_NewCGAAP_DepExp_2013'!O54,+'App.2-CH_NewCGAAP_DepExp_2013'!O54+((C54*0.5)/D54)) -> 0 | H54: 0 | I54: 0 | K54: =IF(ISERROR(+I54+'App.2-CH_NewCGAAP_DepExp_2013'!O54-J54), 0, +I54+'App.2-CH_NewCGAAP_DepExp_2013'!O54-J54) -> 0
B55: Total | C55: =SUM(C17:C54) -> 0 | F55: =SUM(F17:F54) -> 0 | G55: 0 | H55: 0 | I55: 0 | J55: 0 | K55: 0
B56: Depreciation exp. adj. from gain or loss on the retirement of assets (pool of like assets)
B57: Total Depreciation Expense | F57: =SUM(F55:F56) -> 0
A59: Notes:
A60: 1 | B60: Board policy of the "half-year" rule - the applicant must ensure that additions in the year attract a half-year depreciation expense in the first year. Deviations from this standard practice must be supported in the application.
A61: 2 | B61: The applicant must provide an explanation of material variances in evidence.
A62: 3 | B62: This column refers to the calculated full year depreciation but excludes the depreciation expense on assets fully depreciated during the year. This column is used for the purpose of calculating depreciation expense in the following year on the next worksheet.
A64: General: | B64: Applicants must provide a breakdown of depreciation and amortization expense in the above format for all relevant accounts. Asset Retirement Obligations (AROs), depreciation and accretion expense should be disclosed separately consistent with the Notes of historical Audited Financial Statements.

Sheet App.2-CJ MIFRS_DepExp_2015
G1: File Number: | H1: =EBNUMBER -> EB-2015-0107
G2: Exhibit:
G3: Tab:
G4: Schedule:
G5: Page:
G7: Date:
A9: Appendix 2-CJ
A10: Depreciation and Amortization Expense
A11: Assumes the applicant made capitalization and depreciation expense accounting policy changes under CGAAP effective January 1, 2013 and has adopted IFRS for financial reporting purposes effective January 1, 2015.
D13: 2015 | E13: MIFRS
A15: Account | B15: Description | C15: Additions | D15: Years (new additions only) | E15: Depreciation Rate on New Additions | F15: 2015 Depreciation Expense 1 | G15: 2015 Depreciation Expense per Appendix 2-BA Fixed Assets, Column J (l) | H15: Variance 2 | I15: Depreciation Expense on 2015 Full Year Additions | J15: Less Depreciation Expense on Assets Fully Depreciated during the year (o) | K15: 2015 Full Year Depreciation 3
C16: (d) | D16: (f) | E16: (g) = 1 / (f) | F16: (h)=2014 Full Year Depreciation + ((d)*0.5)/(f) | H16: (m) = (h) - (l) | I16: (n)=((d))/(f) | K16: (p) = 2014 Full Year Depreciation + (n) - (o)
A17: 1611 | B17: Computer Software (Formally known as Account 1925) | E17: =IF(D17=0,0,1/D17) -> 0 | F17: =IF(D17=0,'App.2-CI_MIFRS_DepExp_2014'!K17,+'App.2-CI_MIFRS_DepExp_2014'!K17+((C17*0.5)/D17)) -> 0 | H17: =IF(ISERROR(+F17-G17), 0, +F17-G17) -> 0 | I17: =IF(D17=0,0,+(C17)/D17) -> 0 | K17: =IF(ISERROR(+I17+'App.2-CI_MIFRS_DepExp_2014'!K17-J17), 0, +I17+'App.2-CI_MIFRS_DepExp_2014'!K17-J17) -> 0
A18: 1612 | B18: Land Rights (Formally known as Account 1906) | E18: 0 | F18: =IF(D18=0,'App.2-CI_MIFRS_DepExp_2014'!K18,+'App.2-CI_MIFRS_DepExp_2014'!K18+((C18*0.5)/D18)) -> 0 | H18: 0 | I18: =IF(D18=0,0,+(C18)/D18) -> 0 | K18: =IF(ISERROR(+I18+'App.2-CI_MIFRS_DepExp_2014'!K18-J18), 0, +I18+'App.2-CI_MIFRS_DepExp_2014'!K18-J18) -> 0
A19: 1805 | B19: Land | E19: 0 | F19: =IF(D19=0,'App.2-CI_MIFRS_DepExp_2014'!K19,+'App.2-CI_MIFRS_DepExp_2014'!K19+((C19*0.5)/D19)) -> 0 | H19: 0 | I19: 0 | K19: =IF(ISERROR(+I19+'App.2-CI_MIFRS_DepExp_2014'!K19-J19), 0, +I19+'App.2-CI_MIFRS_DepExp_2014'!K19-J19) -> 0
A20: 1808 | B20: Buildings | E20: 0 | F20: =IF(D20=0,'App.2-CI_MIFRS_DepExp_2014'!K20,+'App.2-CI_MIFRS_DepExp_2014'!K20+((C20*0.5)/D20)) -> 0 | H20: 0 | I20: 0 | K20: =IF(ISERROR(+I20+'App.2-CI_MIFRS_DepExp_2014'!K20-J20), 0, +I20+'App.2-CI_MIFRS_DepExp_2014'!K20-J20) -> 0
A21: 1810 | B21: Leasehold Improvements | E21: 0 | F21: =IF(D21=0,'App.2-CI_MIFRS_DepExp_2014'!K21,+'App.2-CI_MIFRS_DepExp_2014'!K21+((C21*0.5)/D21)) -> 0 | H21: 0 | I21: 0 | K21: =IF(ISERROR(+I21+'App.2-CI_MIFRS_DepExp_2014'!K21-J21), 0, +I21+'App.2-CI_MIFRS_DepExp_2014'!K21-J21) -> 0
A22: 1815 | B22: Transformer Station Equipment >50 kV | E22: 0 | F22: =IF(D22=0,'App.2-CI_MIFRS_DepExp_2014'!K22,+'App.2-CI_MIFRS_DepExp_2014'!K22+((C22*0.5)/D22)) -> 0 | H22: 0 | I22: 0 | K22: =IF(ISERROR(+I22+'App.2-CI_MIFRS_DepExp_2014'!K22-J22), 0, +I22+'App.2-CI_MIFRS_DepExp_2014'!K22-J22) -> 0
A23: 1820 | B23: Distribution Station Equipment <50 kV | E23: 0 | F23: =IF(D23=0,'App.2-CI_MIFRS_DepExp_2014'!K23,+'App.2-CI_MIFRS_DepExp_2014'!K23+((C23*0.5)/D23)) -> 0 | H23: 0 | I23: 0 | K23: =IF(ISERROR(+I23+'App.2-CI_MIFRS_DepExp_2014'!K23-J23), 0, +I23+'App.2-CI_MIFRS_DepExp_2014'!K23-J23) -> 0
A24: 1825 | B24: Storage Battery Equipment | E24: 0 | F24: =IF(D24=0,'App.2-CI_MIFRS_DepExp_2014'!K24,+'App.2-CI_MIFRS_DepExp_2014'!K24+((C24*0.5)/D24)) -> 0 | H24: 0 | I24: 0 | K24: =IF(ISERROR(+I24+'App.2-CI_MIFRS_DepExp_2014'!K24-J24), 0, +I24+'App.2-CI_MIFRS_DepExp_2014'!K24-J24) -> 0
A25: 1830 | B25: Poles, Towers & Fixtures | E25: 0 | F25: =IF(D25=0,'App.2-CI_MIFRS_DepExp_2014'!K25,+'App.2-CI_MIFRS_DepExp_2014'!K25+((C25*0.5)/D25)) -> 0 | H25: 0 | I25: 0 | K25: =IF(ISERROR(+I25+'App.2-CI_MIFRS_DepExp_2014'!K25-J25), 0, +I25+'App.2-CI_MIFRS_DepExp_2014'!K25-J25) -> 0
A26: 1835 | B26: Overhead Conductors & Devices | E26: 0 | F26: =IF(D26=0,'App.2-CI_MIFRS_DepExp_2014'!K26,+'App.2-CI_MIFRS_DepExp_2014'!K26+((C26*0.5)/D26)) -> 0 | H26: 0 | I26: 0 | K26: =IF(ISERROR(+I26+'App.2-CI_MIFRS_DepExp_2014'!K26-J26), 0, +I26+'App.2-CI_MIFRS_DepExp_2014'!K26-J26) -> 0
A27: 1840 | B27: Underground Conduit | E27: 0 | F27: =IF(D27=0,'App.2-CI_MIFRS_DepExp_2014'!K27,+'App.2-CI_MIFRS_DepExp_2014'!K27+((C27*0.5)/D27)) -> 0 | H27: 0 | I27: 0 | K27: =IF(ISERROR(+I27+'App.2-CI_MIFRS_DepExp_2014'!K27-J27), 0, +I27+'App.2-CI_MIFRS_DepExp_2014'!K27-J27) -> 0
A28: 1845 | B28: Underground Conductors & Devices | E28: 0 | F28: =IF(D28=0,'App.2-CI_MIFRS_DepExp_2014'!K28,+'App.2-CI_MIFRS_DepExp_2014'!K28+((C28*0.5)/D28)) -> 0 | H28: 0 | I28: 0 | K28: =IF(ISERROR(+I28+'App.2-CI_MIFRS_DepExp_2014'!K28-J28), 0, +I28+'App.2-CI_MIFRS_DepExp_2014'!K28-J28) -> 0
A29: 1850 | B29: Line Transformers | E29: 0 | F29: =IF(D29=0,'App.2-CI_MIFRS_DepExp_2014'!K29,+'App.2-CI_MIFRS_DepExp_2014'!K29+((C29*0.5)/D29)) -> 0 | H29: 0 | I29: 0 | K29: =IF(ISERROR(+I29+'App.2-CI_MIFRS_DepExp_2014'!K29-J29), 0, +I29+'App.2-CI_MIFRS_DepExp_2014'!K29-J29) -> 0
A30: 1855 | B30: Services (Overhead & Underground) | E30: 0 | F30: =IF(D30=0,'App.2-CI_MIFRS_DepExp_2014'!K30,+'App.2-CI_MIFRS_DepExp_2014'!K30+((C30*0.5)/D30)) -> 0 | H30: 0 | I30: 0 | K30: =IF(ISERROR(+I30+'App.2-CI_MIFRS_DepExp_2014'!K30-J30), 0, +I30+'App.2-CI_MIFRS_DepExp_2014'!K30-J30) -> 0
A31: 1860 | B31: Meters | E31: 0 | F31: =IF(D31=0,'App.2-CI_MIFRS_DepExp_2014'!K31,+'App.2-CI_MIFRS_DepExp_2014'!K31+((C31*0.5)/D31)) -> 0 | H31: 0 | I31: 0 | K31: =IF(ISERROR(+I31+'App.2-CI_MIFRS_DepExp_2014'!K31-J31), 0, +I31+'App.2-CI_MIFRS_DepExp_2014'!K31-J31) -> 0
A32: 1860 | B32: Meters (Smart Meters) | E32: 0 | F32: =IF(D32=0,'App.2-CI_MIFRS_DepExp_2014'!K32,+'App.2-CI_MIFRS_DepExp_2014'!K32+((C32*0.5)/D32)) -> 0 | H32: 0 | I32: 0 | K32: =IF(ISERROR(+I32+'App.2-CI_MIFRS_DepExp_2014'!K32-J32), 0, +I32+'App.2-CI_MIFRS_DepExp_2014'!K32-J32) -> 0
A33: 1905 | B33: Land | E33: 0 | F33: =IF(D33=0,'App.2-CI_MIFRS_DepExp_2014'!K33,+'App.2-CI_MIFRS_DepExp_2014'!K33+((C33*0.5)/D33)) -> 0 | H33: 0 | I33: 0 | K33: =IF(ISERROR(+I33+'App.2-CI_MIFRS_DepExp_2014'!K33-J33), 0, +I33+'App.2-CI_MIFRS_DepExp_2014'!K33-J33) -> 0
A34: 1908 | B34: Buildings & Fixtures | E34: 0 | F34: =IF(D34=0,'App.2-CI_MIFRS_DepExp_2014'!K34,+'App.2-CI_MIFRS_DepExp_2014'!K34+((C34*0.5)/D34)) -> 0 | H34: 0 | I34: 0 | K34: =IF(ISERROR(+I34+'App.2-CI_MIFRS_DepExp_2014'!K34-J34), 0, +I34+'App.2-CI_MIFRS_DepExp_2014'!K34-J34) -> 0
A35: 1910 | B35: Leasehold Improvements | E35: 0 | F35: =IF(D35=0,'App.2-CI_MIFRS_DepExp_2014'!K35,+'App.2-CI_MIFRS_DepExp_2014'!K35+((C35*0.5)/D35)) -> 0 | H35: 0 | I35: 0 | K35: =IF(ISERROR(+I35+'App.2-CI_MIFRS_DepExp_2014'!K35-J35), 0, +I35+'App.2-CI_MIFRS_DepExp_2014'!K35-J35) -> 0
A36: 1915 | B36: Office Furniture & Equipment (10 years) | E36: 0 | F36: =IF(D36=0,'App.2-CI_MIFRS_DepExp_2014'!K36,+'App.2-CI_MIFRS_DepExp_2014'!K36+((C36*0.5)/D36)) -> 0 | H36: 0 | I36: 0 | K36: =IF(ISERROR(+I36+'App.2-CI_MIFRS_DepExp_2014'!K36-J36), 0, +I36+'App.2-CI_MIFRS_DepExp_2014'!K36-J36) -> 0
A37: 1915 | B37: Office Furniture & Equipment (5 years) | E37: 0 | F37: =IF(D37=0,'App.2-CI_MIFRS_DepExp_2014'!K37,+'App.2-CI_MIFRS_DepExp_2014'!K37+((C37*0.5)/D37)) -> 0 | H37: 0 | I37: 0 | K37: =IF(ISERROR(+I37+'App.2-CI_MIFRS_DepExp_2014'!K37-J37), 0, +I37+'App.2-CI_MIFRS_DepExp_2014'!K37-J37) -> 0
A38: 1920 | B38: Computer Equipment - Hardware | E38: 0 | F38: =IF(D38=0,'App.2-CI_MIFRS_DepExp_2014'!K38,+'App.2-CI_MIFRS_DepExp_2014'!K38+((C38*0.5)/D38)) -> 0 | H38: 0 | I38: 0 | K38: =IF(ISERROR(+I38+'App.2-CI_MIFRS_DepExp_2014'!K38-J38), 0, +I38+'App.2-CI_MIFRS_DepExp_2014'!K38-J38) -> 0
A39: 1920 | B39: Computer Equip.-Hardware(Post Mar. 22/04) | E39: 0 | F39: =IF(D39=0,'App.2-CI_MIFRS_DepExp_2014'!K39,+'App.2-CI_MIFRS_DepExp_2014'!K39+((C39*0.5)/D39)) -> 0 | H39: 0 | I39: 0 | K39: =IF(ISERROR(+I39+'App.2-CI_MIFRS_DepExp_2014'!K39-J39), 0, +I39+'App.2-CI_MIFRS_DepExp_2014'!K39-J39) -> 0
A40: 1920 | B40: Computer Equip.-Hardware(Post Mar. 19/07) | E40: 0 | F40: =IF(D40=0,'App.2-CI_MIFRS_DepExp_2014'!K40,+'App.2-CI_MIFRS_DepExp_2014'!K40+((C40*0.5)/D40)) -> 0 | H40: 0 | I40: 0 | K40: =IF(ISERROR(+I40+'App.2-CI_MIFRS_DepExp_2014'!K40-J40), 0, +I40+'App.2-CI_MIFRS_DepExp_2014'!K40-J40) -> 0
A41: 1930 | B41: Transportation Equipment | E41: 0 | F41: =IF(D41=0,'App.2-CI_MIFRS_DepExp_2014'!K41,+'App.2-CI_MIFRS_DepExp_2014'!K41+((C41*0.5)/D41)) -> 0 | H41: 0 | I41: 0 | K41: =IF(ISERROR(+I41+'App.2-CI_MIFRS_DepExp_2014'!K41-J41), 0, +I41+'App.2-CI_MIFRS_DepExp_2014'!K41-J41) -> 0
A42: 1935 | B42: Stores Equipment | E42: 0 | F42: =IF(D42=0,'App.2-CI_MIFRS_DepExp_2014'!K42,+'App.2-CI_MIFRS_DepExp_2014'!K42+((C42*0.5)/D42)) -> 0 | H42: 0 | I42: 0 | K42: =IF(ISERROR(+I42+'App.2-CI_MIFRS_DepExp_2014'!K42-J42), 0, +I42+'App.2-CI_MIFRS_DepExp_2014'!K42-J42) -> 0
A43: 1940 | B43: Tools, Shop & Garage Equipment | E43: 0 | F43: =IF(D43=0,'App.2-CI_MIFRS_DepExp_2014'!K43,+'App.2-CI_MIFRS_DepExp_2014'!K43+((C43*0.5)/D43)) -> 0 | H43: 0 | I43: 0 | K43: =IF(ISERROR(+I43+'App.2-CI_MIFRS_DepExp_2014'!K43-J43), 0, +I43+'App.2-CI_MIFRS_DepExp_2014'!K43-J43) -> 0
A44: 1945 | B44: Measurement & Testing Equipment | E44: 0 | F44: =IF(D44=0,'App.2-CI_MIFRS_DepExp_2014'!K44,+'App.2-CI_MIFRS_DepExp_2014'!K44+((C44*0.5)/D44)) -> 0 | H44: 0 | I44: 0 | K44: =IF(ISERROR(+I44+'App.2-CI_MIFRS_DepExp_2014'!K44-J44), 0, +I44+'App.2-CI_MIFRS_DepExp_2014'!K44-J44) -> 0
A45: 1950 | B45: Power Operated Equipment | E45: 0 | F45: =IF(D45=0,'App.2-CI_MIFRS_DepExp_2014'!K45,+'App.2-CI_MIFRS_DepExp_2014'!K45+((C45*0.5)/D45)) -> 0 | H45: 0 | I45: 0 | K45: =IF(ISERROR(+I45+'App.2-CI_MIFRS_DepExp_2014'!K45-J45), 0, +I45+'App.2-CI_MIFRS_DepExp_2014'!K45-J45) -> 0
A46: 1955 | B46: Communications Equipment | E46: 0 | F46: =IF(D46=0,'App.2-CI_MIFRS_DepExp_2014'!K46,+'App.2-CI_MIFRS_DepExp_2014'!K46+((C46*0.5)/D46)) -> 0 | H46: 0 | I46: 0 | K46: =IF(ISERROR(+I46+'App.2-CI_MIFRS_DepExp_2014'!K46-J46), 0, +I46+'App.2-CI_MIFRS_DepExp_2014'!K46-J46) -> 0
A47: 1955 | B47: Communication Equipment (Smart Meters) | E47: 0 | F47: =IF(D47=0,'App.2-CI_MIFRS_DepExp_2014'!K47,+'App.2-CI_MIFRS_DepExp_2014'!K47+((C47*0.5)/D47)) -> 0 | H47: 0 | I47: 0 | K47: =IF(ISERROR(+I47+'App.2-CI_MIFRS_DepExp_2014'!K47-J47), 0, +I47+'App.2-CI_MIFRS_DepExp_2014'!K47-J47) -> 0
A48: 1960 | B48: Miscellaneous Equipment | E48: 0 | F48: =IF(D48=0,'App.2-CI_MIFRS_DepExp_2014'!K48,+'App.2-CI_MIFRS_DepExp_2014'!K48+((C48*0.5)/D48)) -> 0 | H48: 0 | I48: 0 | K48: =IF(ISERROR(+I48+'App.2-CI_MIFRS_DepExp_2014'!K48-J48), 0, +I48+'App.2-CI_MIFRS_DepExp_2014'!K48-J48) -> 0
A49: 1970 | B49: Load Management Controls - Customer Premises | E49: 0 | F49: =IF(D49=0,'App.2-CI_MIFRS_DepExp_2014'!K49,+'App.2-CI_MIFRS_DepExp_2014'!K49+((C49*0.5)/D49)) -> 0 | H49: 0 | I49: 0 | K49: =IF(ISERROR(+I49+'App.2-CI_MIFRS_DepExp_2014'!K49-J49), 0, +I49+'App.2-CI_MIFRS_DepExp_2014'!K49-J49) -> 0
A50: 1975 | B50: Load Management Controls Utility Premises | E50: 0 | F50: =IF(D50=0,'App.2-CI_MIFRS_DepExp_2014'!K50,+'App.2-CI_MIFRS_DepExp_2014'!K50+((C50*0.5)/D50)) -> 0 | H50: 0 | I50: 0 | K50: =IF(ISERROR(+I50+'App.2-CI_MIFRS_DepExp_2014'!K50-J50), 0, +I50+'App.2-CI_MIFRS_DepExp_2014'!K50-J50) -> 0
A51: 1980 | B51: System Supervisor Equipment | E51: 0 | F51: =IF(D51=0,'App.2-CI_MIFRS_DepExp_2014'!K51,+'App.2-CI_MIFRS_DepExp_2014'!K51+((C51*0.5)/D51)) -> 0 | H51: 0 | I51: 0 | K51: =IF(ISERROR(+I51+'App.2-CI_MIFRS_DepExp_2014'!K51-J51), 0, +I51+'App.2-CI_MIFRS_DepExp_2014'!K51-J51) -> 0
A52: 1985 | B52: Miscellaneous Fixed Assets | E52: 0 | F52: =IF(D52=0,'App.2-CI_MIFRS_DepExp_2014'!K52,+'App.2-CI_MIFRS_DepExp_2014'!K52+((C52*0.5)/D52)) -> 0 | H52: 0 | I52: 0 | K52: =IF(ISERROR(+I52+'App.2-CI_MIFRS_DepExp_2014'!K52-J52), 0, +I52+'App.2-CI_MIFRS_DepExp_2014'!K52-J52) -> 0
A53: 1990 | B53: Other Tangible Property | E53: 0 | F53: =IF(D53=0,'App.2-CI_MIFRS_DepExp_2014'!K53,+'App.2-CI_MIFRS_DepExp_2014'!K53+((C53*0.5)/D53)) -> 0 | H53: 0 | I53: 0 | K53: =IF(ISERROR(+I53+'App.2-CI_MIFRS_DepExp_2014'!K53-J53), 0, +I53+'App.2-CI_MIFRS_DepExp_2014'!K53-J53) -> 0
A54: 1995 | B54: Contributions & Grants | E54: 0 | F54: =IF(D54=0,'App.2-CI_MIFRS_DepExp_2014'!K54,+'App.2-CI_MIFRS_DepExp_2014'!K54+((C54*0.5)/D54)) -> 0 | H54: 0 | I54: 0 | K54: =IF(ISERROR(+I54+'App.2-CI_MIFRS_DepExp_2014'!K54-J54), 0, +I54+'App.2-CI_MIFRS_DepExp_2014'!K54-J54) -> 0
B55: Total | C55: =SUM(C17:C54) -> 0 | F55: =SUM(F17:F54) -> 0 | G55: =SUM(G17:G54) -> 0 | H55: =SUM(H17:H54) -> 0 | I55: =SUM(I17:I54) -> 0 | J55: 0 | K55: =SUM(K17:K54) -> 0
B56: Depreciation exp. adj. from gain or loss on the retirement of assets (pool of like assets)
B57: Total Depreciation expense to be included in the test year revenue requirement | F57: =SUM(F55:F56) -> 0
A58: Notes:
A59: 1 | B59: Board policy of the "half-year" rule - the applicant must ensure that additions in the year attract a half-year depreciation expense in the first year. Deviations from this standard practice must be supported in the application.
A60: 2 | B60: The applicant must provide an explanation of material variances in evidence.
A61: 3 | B61: This column refers to the calculated full year depreciation but excludes the depreciation expense on assets fully depreciated during the year. This column is used for the purpose of calculating depreciation expense in the following year on the next worksheet.
A64: General: | B64: Applicants must provide a breakdown of depreciation and amortization expense in the above format for all relevant accounts. Asset Retirement Obligations (AROs), depreciation and accretion expense should be disclosed separately consistent with the Notes of historical Audited Financial Statements.

Sheet App.2-CK MIFRS_DepExp_2016
G1: File Number: | H1: =EBNUMBER -> EB-2015-0107
G2: Exhibit:
G3: Tab:
G4: Schedule:
G5: Page:
G7: Date:
A9: Appendix 2-CK
A10: Depreciation and Amortization Expense
A11: Assumes the applicant made capitalization and depreciation expense accounting policy changes under CGAAP effective January 1, 2013 and has adopted IFRS for financial reporting purposes effective January 1, 2015.
D13: 2016 | E13: MIFRS
A15: Account | B15: Description | C15: Additions | D15: Years (new additions only) | E15: Depreciation Rate on New Additions | F15: 2016 Depreciation Expense 1 | G15: 2016 Depreciation Expense per Appendix 2-BA Fixed Assets, Column J (l) | H15: Variance 2
C16: (d) | D16: (f) | E16: (g) = 1 / (f) | F16: (h)=2015 Full Year Depreciation + ((d)*0.5)/(f) | H16: (m) = (h) - (l)
A17: 1611 | B17: Computer Software (Formally known as Account 1925) | E17: =IF(D17=0,0,1/D17) -> 0 | F17: =IF(D17=0,'App.2-CJ MIFRS_DepExp_2015'!K17,+'App.2-CJ MIFRS_DepExp_2015'!K17+((C17*0.5)/D17)) -> 0 | H17: =IF(ISERROR(+F17-G17), 0, +F17-G17) -> 0
A18: 1612 | B18: Land Rights (Formally known as Account 1906) | E18: 0 | F18: =IF(D18=0,'App.2-CJ MIFRS_DepExp_2015'!K18,+'App.2-CJ MIFRS_DepExp_2015'!K18+((C18*0.5)/D18)) -> 0 | H18: 0
A19: 1805 | B19: Land | E19: 0 | F19: =IF(D19=0,'App.2-CJ MIFRS_DepExp_2015'!K19,+'App.2-CJ MIFRS_DepExp_2015'!K19+((C19*0.5)/D19)) -> 0 | H19: 0
A20: 1808 | B20: Buildings | E20: 0 | F20: =IF(D20=0,'App.2-CJ MIFRS_DepExp_2015'!K20,+'App.2-CJ MIFRS_DepExp_2015'!K20+((C20*0.5)/D20)) -> 0 | H20: 0
A21: 1810 | B21: Leasehold Improvements | E21: 0 | F21: =IF(D21=0,'App.2-CJ MIFRS_DepExp_2015'!K21,+'App.2-CJ MIFRS_DepExp_2015'!K21+((C21*0.5)/D21)) -> 0 | H21: 0
A22: 1815 | B22: Transformer Station Equipment >50 kV | E22: 0 | F22: =IF(D22=0,'App.2-CJ MIFRS_DepExp_2015'!K22,+'App.2-CJ MIFRS_DepExp_2015'!K22+((C22*0.5)/D22)) -> 0 | H22: 0
A23: 1820 | B23: Distribution Station Equipment <50 kV | E23: 0 | F23: =IF(D23=0,'App.2-CJ MIFRS_DepExp_2015'!K23,+'App.2-CJ MIFRS_DepExp_2015'!K23+((C23*0.5)/D23)) -> 0 | H23: 0
A24: 1825 | B24: Storage Battery Equipment | E24: 0 | F24: =IF(D24=0,'App.2-CJ MIFRS_DepExp_2015'!K24,+'App.2-CJ MIFRS_DepExp_2015'!K24+((C24*0.5)/D24)) -> 0 | H24: 0
A25: 1830 | B25: Poles, Towers & Fixtures | E25: 0 | F25: =IF(D25=0,'App.2-CJ MIFRS_DepExp_2015'!K25,+'App.2-CJ MIFRS_DepExp_2015'!K25+((C25*0.5)/D25)) -> 0 | H25: 0
A26: 1835 | B26: Overhead Conductors & Devices | E26: 0 | F26: =IF(D26=0,'App.2-CJ MIFRS_DepExp_2015'!K26,+'App.2-CJ MIFRS_DepExp_2015'!K26+((C26*0.5)/D26)) -> 0 | H26: 0
A27: 1840 | B27: Underground Conduit | E27: 0 | F27: =IF(D27=0,'App.2-CJ MIFRS_DepExp_2015'!K27,+'App.2-CJ MIFRS_DepExp_2015'!K27+((C27*0.5)/D27)) -> 0 | H27: 0
A28: 1845 | B28: Underground Conductors & Devices | E28: 0 | F28: =IF(D28=0,'App.2-CJ MIFRS_DepExp_2015'!K28,+'App.2-CJ MIFRS_DepExp_2015'!K28+((C28*0.5)/D28)) -> 0 | H28: 0
A29: 1850 | B29: Line Transformers | E29: 0 | F29: =IF(D29=0,'App.2-CJ MIFRS_DepExp_2015'!K29,+'App.2-CJ MIFRS_DepExp_2015'!K29+((C29*0.5)/D29)) -> 0 | H29: 0
A30: 1855 | B30: Services (Overhead & Underground) | E30: 0 | F30: =IF(D30=0,'App.2-CJ MIFRS_DepExp_2015'!K30,+'App.2-CJ MIFRS_DepExp_2015'!K30+((C30*0.5)/D30)) -> 0 | H30: 0
A31: 1860 | B31: Meters | E31: 0 | F31: =IF(D31=0,'App.2-CJ MIFRS_DepExp_2015'!K31,+'App.2-CJ MIFRS_DepExp_2015'!K31+((C31*0.5)/D31)) -> 0 | H31: 0
A32: 1860 | B32: Meters (Smart Meters) | E32: 0 | F32: =IF(D32=0,'App.2-CJ MIFRS_DepExp_2015'!K32,+'App.2-CJ MIFRS_DepExp_2015'!K32+((C32*0.5)/D32)) -> 0 | H32: 0
A33: 1905 | B33: Land | E33: 0 | F33: =IF(D33=0,'App.2-CJ MIFRS_DepExp_2015'!K33,+'App.2-CJ MIFRS_DepExp_2015'!K33+((C33*0.5)/D33)) -> 0 | H33: 0
A34: 1908 | B34: Buildings & Fixtures | E34: 0 | F34: =IF(D34=0,'App.2-CJ MIFRS_DepExp_2015'!K34,+'App.2-CJ MIFRS_DepExp_2015'!K34+((C34*0.5)/D34)) -> 0 | H34: 0
A35: 1910 | B35: Leasehold Improvements | E35: 0 | F35: =IF(D35=0,'App.2-CJ MIFRS_DepExp_2015'!K35,+'App.2-CJ MIFRS_DepExp_2015'!K35+((C35*0.5)/D35)) -> 0 | H35: 0
A36: 1915 | B36: Office Furniture & Equipment (10 years) | E36: 0 | F36: =IF(D36=0,'App.2-CJ MIFRS_DepExp_2015'!K36,+'App.2-CJ MIFRS_DepExp_2015'!K36+((C36*0.5)/D36)) -> 0 | H36: 0
A37: 1915 | B37: Office Furniture & Equipment (5 years) | E37: 0 | F37: =IF(D37=0,'App.2-CJ MIFRS_DepExp_2015'!K37,+'App.2-CJ MIFRS_DepExp_2015'!K37+((C37*0.5)/D37)) -> 0 | H37: 0
A38: 1920 | B38: Computer Equipment - Hardware | E38: 0 | F38: =IF(D38=0,'App.2-CJ MIFRS_DepExp_2015'!K38,+'App.2-CJ MIFRS_DepExp_2015'!K38+((C38*0.5)/D38)) -> 0 | H38: 0
A39: 1920 | B39: Computer Equip.-Hardware(Post Mar. 22/04) | E39: 0 | F39: =IF(D39=0,'App.2-CJ MIFRS_DepExp_2015'!K39,+'App.2-CJ MIFRS_DepExp_2015'!K39+((C39*0.5)/D39)) -> 0 | H39: 0
A40: 1920 | B40: Computer Equip.-Hardware(Post Mar. 19/07) | E40: 0 | F40: =IF(D40=0,'App.2-CJ MIFRS_DepExp_2015'!K40,+'App.2-CJ MIFRS_DepExp_2015'!K40+((C40*0.5)/D40)) -> 0 | H40: 0
A41: 1930 | B41: Transportation Equipment | E41: 0 | F41: =IF(D41=0,'App.2-CJ MIFRS_DepExp_2015'!K41,+'App.2-CJ MIFRS_DepExp_2015'!K41+((C41*0.5)/D41)) -> 0 | H41: 0
A42: 1935 | B42: Stores Equipment | E42: 0 | F42: =IF(D42=0,'App.2-CJ MIFRS_DepExp_2015'!K42,+'App.2-CJ MIFRS_DepExp_2015'!K42+((C42*0.5)/D42)) -> 0 | H42: 0
A43: 1940 | B43: Tools, Shop & Garage Equipment | E43: 0 | F43: =IF(D43=0,'App.2-CJ MIFRS_DepExp_2015'!K43,+'App.2-CJ MIFRS_DepExp_2015'!K43+((C43*0.5)/D43)) -> 0 | H43: 0
A44: 1945 | B44: Measurement & Testing Equipment | E44: 0 | F44: =IF(D44=0,'App.2-CJ MIFRS_DepExp_2015'!K44,+'App.2-CJ MIFRS_DepExp_2015'!K44+((C44*0.5)/D44)) -> 0 | H44: 0
A45: 1950 | B45: Power Operated Equipment | E45: 0 | F45: =IF(D45=0,'App.2-CJ MIFRS_DepExp_2015'!K45,+'App.2-CJ MIFRS_DepExp_2015'!K45+((C45*0.5)/D45)) -> 0 | H45: 0
A46: 1955 | B46: Communications Equipment | E46: 0 | F46: =IF(D46=0,'App.2-CJ MIFRS_DepExp_2015'!K46,+'App.2-CJ MIFRS_DepExp_2015'!K46+((C46*0.5)/D46)) -> 0 | H46: 0
A47: 1955 | B47: Communication Equipment (Smart Meters) | E47: 0 | F47: =IF(D47=0,'App.2-CJ MIFRS_DepExp_2015'!K47,+'App.2-CJ MIFRS_DepExp_2015'!K47+((C47*0.5)/D47)) -> 0 | H47: 0
A48: 1960 | B48: Miscellaneous Equipment | E48: 0 | F48: =IF(D48=0,'App.2-CJ MIFRS_DepExp_2015'!K48,+'App.2-CJ MIFRS_DepExp_2015'!K48+((C48*0.5)/D48)) -> 0 | H48: 0
A49: 1970 | B49: Load Management Controls - Customer Premises | E49: 0 | F49: =IF(D49=0,'App.2-CJ MIFRS_DepExp_2015'!K49,+'App.2-CJ MIFRS_DepExp_2015'!K49+((C49*0.5)/D49)) -> 0 | H49: 0
A50: 1975 | B50: Load Management Controls Utility Premises | E50: 0 | F50: =IF(D50=0,'App.2-CJ MIFRS_DepExp_2015'!K50,+'App.2-CJ MIFRS_DepExp_2015'!K50+((C50*0.5)/D50)) -> 0 | H50: 0
A51: 1980 | B51: System Supervisor Equipment | E51: 0 | F51: =IF(D51=0,'App.2-CJ MIFRS_DepExp_2015'!K51,+'App.2-CJ MIFRS_DepExp_2015'!K51+((C51*0.5)/D51)) -> 0 | H51: 0
A52: 1985 | B52: Miscellaneous Fixed Assets | E52: 0 | F52: =IF(D52=0,'App.2-CJ MIFRS_DepExp_2015'!K52,+'App.2-CJ MIFRS_DepExp_2015'!K52+((C52*0.5)/D52)) -> 0 | H52: 0
A53: 1990 | B53: Other Tangible Property | E53: 0 | F53: =IF(D53=0,'App.2-CJ MIFRS_DepExp_2015'!K53,+'App.2-CJ MIFRS_DepExp_2015'!K53+((C53*0.5)/D53)) -> 0 | H53: 0
A54: 1995 | B54: Contributions & Grants | E54: 0 | F54: =IF(D54=0,'App.2-CJ MIFRS_DepExp_2015'!K54,+'App.2-CJ MIFRS_DepExp_2015'!K54+((C54*0.5)/D54)) -> 0 | H54: 0
B55: Total | C55: =SUM(C17:C54) -> 0 | F55: =SUM(F17:F54) -> 0 | G55: =SUM(G17:G54) -> 0 | H55: =SUM(H17:H54) -> 0
B56: Depreciation exp. adj. from gain or loss on the retirement of assets (pool of like assets)
B57: Total Depreciation expense to be included in the test year revenue requirement | F57: =SUM(F55:F56) -> 0
A58: Notes:
A59: 1 | B59: Board policy of the "half-year" rule - the applicant must ensure that additions in the year attract a half-year depreciation expense in the first year. Deviations from this standard practice must be supported in the application.
A60: 2 | B60: The applicant must provide an explanation of material variances in evidence.
A62: General: | B62: Applicants must provide a breakdown of depreciation and amortization expense in the above format for all relevant accounts. Asset Retirement Obligations (AROs), depreciation and accretion expense should be disclosed separately consistent with the Notes of historical Audited Financial Statements.

Sheet App.2-D_Overhead
F1: File Number: | G1: =EBNUMBER -> EB-2015-0107
F2: Exhibit: | G2: 4
F3: Tab: | G3: 2
F4: Schedule: | G4: 2
F5: Page: | G5: 11
F7: Date:
A9: Appendix 2-D
A10: Overhead Expense
A12: Applicants are to provide a breakdown of OM&A before capitalization in the below table. OM&A before capitalization may be broken down by cost center, program, drivers or another format best suited to focus on capitalized vs. uncapitalized OM&A.
A14: OM&A Before Capitalization
B15: 2012 | C15: 2013 | D15: 2014 | E15: 2015 | F15: 2016
B16: Historical Year | C16: Historical Year | D16: Historical Year | E16: Bridge Year | F16: Test Year
A27: Total OM&A Before Capitalization (B) | B27: =SUM(B17:B26) -> 0 | C27: =SUM(C17:C26) -> 0 | D27: 0 | E27: 0 | F27: 0
A29: Applicants are to provide a breakdown of capitalized OM&A in the below table. Capitalized OM&A may be broken down using the categories listed in the table below if possible. Otherwise, applicants are to provide its own break down of capitalized OM&A.
A31: Capitalized OM&A | G31: Directly | H31: Explanation for Change in Overhead Capitalized
B32: 2012 | C32: 2013 | D32: 2014 | E32: 2015 | F32: 2016 | G32: Attributable?
B33: Historical Year | C33: Historical Year | D33: Historical Year | E33: Bridge Year | F33: Test Year | G33: (Y/N)
A34: employee benefits
A35: costs of site preparation
A36: initial delivery and handling costs
A37: costs of testing whether the asset is functioning properly
A38: professional fees
A40: costs of opening a new facility
A41: costs of introducing a new product or service (including costs of advertising and promotional activities)
A42: costs of conducting business in a new location or with a new class of customer (including costs of staff training)
A43: administration and other general overhead costs
A45: Insert description of additional item(s) and new rows if needed
A47: Total Capitalized OM&A (A) | B47: =SUM(B34:B46) -> 0 | C47: =SUM(C34:C46) -> 0 | D47: =SUM(D34:D46) -> 0 | E47: =SUM(E34:E46) -> 0 | F47: =SUM(F34:F46) -> 0
A49: % of Capitalized OM&A (=A/B) | B49: =IF(ISERROR(B47/B27),"0%",B47/B27) -> 0% | C49: =IF(ISERROR(C47/C27),"0%",C47/C27) -> 0% | D49: 0% | E49: 0% | F49: 0%

Sheet App.2-EA_Account 1575 (2015)
I1: File Number: | J1: =EBNUMBER -> EB-2015-0107
I2: Exhibit: | J2: 9
I3: Tab: | J3: 1
I4: Schedule: | J4: 5
I5: Page: | J5: 15
I7: Date:
A9: Appendix 2-EA
A10: Account 1575 - IFRS-CGAAP Transitional PP&E Amounts
A11: 2015 Adopters of IFRS for Financial Reporting Purposes
A13: For applicants that adopted IFRS on January 1, 2015 for financial reporting purposes
B17: =RebaseYear &" Rebasing Year" -> 2012 Rebasing Year | C17: 2012 | D17: 2013 | E17: 2014 | F17: 2015 | G17: 2016 Rebasing Year
A18: Reporting Basis | B18: CGAAP | C18: CGAAP | D18: CGAAP | E18: CGAAP | F18: MIFRS | G18: MIFRS
B19: Forecast | C19: Actual | D19: Actual | E19: Actual | F19: Forecast | G19: Forecast
E20: $ | F20: $
A21: PP&E Values under CGAAP
A22: Opening net PP&E - Note 1 | E22: 0 | F22: =+E25 -> 0
A23: Net Additions - Note 4 | E23: 0 | F23: 0
A24: Net Depreciation (amounts should be negative) - Note 4 | E24: 0 | F24: 0
A25: Closing net PP&E (1) | E25: =E22+E23+E24 -> 0 | F25: =SUM(F22:F24) -> 0
A27: PP&E Values under MIFRS (Starts from 2014, the transition year)
A28: Opening net PP&E - Note 1 | E28: 0 | F28: =+E31 -> 0
A29: Net Additions - Note 4 | E29: 0 | F29: 0
A30: Net Depreciation (amounts should be negative) - Note 4 | E30: 0 | F30: 0
A31: Closing net PP&E (2) | E31: =SUM(E28:E30) -> 0 | F31: =SUM(F28:F30) -> 0
A33: Difference in Closing net PP&E, former CGAAP vs. revised CGAAP | E33: =E25-E31 -> 0 | F33: =F25-F31 -> 0
A36: Effect on Deferral and Variance Account Rate Riders
A37: Closing balance in Account 1576 | G37: =IF(ISERROR(F33), 0, F33) -> 0 | I37: WACC | J37: 0
A38: Return on Rate Base Associated with Account 1576 balance at WACC - Note 2 | G38: =F33*J37*J38 -> 0 | H38: # of years of rate rider disposition period | J38: 0
A39: Amount included in Deferral and Variance Account Rate Rider Calculation | G39: =G37+G38 -> 0
A41: Notes:
A42: 1 For an applicant that adopted IFRS on January 1, 2015, the PP&E values as of January 1, 2014 under both CGAAP and MIFRS should be the same.
A43: 2 Return on rate base associated with deferred balance is calculated as:
A44: the deferral account closing balance as of 2015 rebasing year x WACC X # of years of rate rider disposition period
A45: * Please note that the calculation should be adjusted once WACC is updated and finalized in the rate application.
A46: 3 The PP&E deferral account is cleared by including the total balance in the deferral and variance account rate rider calculation.
A47: 4 Net additions are additions net of disposals; Net depreciation is additions to depreciation net of disposals.

Sheet App.2-EB_Account 1576 (2012)
I1: File Number: | J1: =EBNUMBER -> EB-2015-0107
I2: Exhibit: | J2: 9
I3: Tab: | J3: 1
I4: Schedule: | J4: 5
I5: Page: | J5: 14
I7: Date:
A9: Appendix 2-EB
A10: Account 1576 - Accounting Changes under CGAAP
A11: 2012 Changes in Accounting Policies under CGAAP
A13: For applicants that made capitalization and depreciation expense accounting policy changes under CGAAP effective January 1, 2012
B17: =RebaseYear &" Rebasing Year" -> 2012 Rebasing Year | C17: 2012 | D17: 2013 | E17: 2014 | F17: 2015 | G17: 2016 Rebasing Year
A18: Reporting Basis | B18: CGAAP | C18: CGAAP | D18: CGAAP | E18: CGAAP | F18: MIFRS | G18: MIFRS
B19: Forecast | C19: Actual | D19: Actual | E19: Actual | F19: Forecast | G19: Forecast
C20: $ | D20: $ | E20: $ | F20: $
A21: PP&E Values under former CGAAP
A22: Opening net PP&E - Note 1 | C22: 0 | D22: =+C25 -> 0 | E22: =+D25 -> 0 | F22: =+E25 -> 0
A23: Net Additions - Note 4 | C23: 0 | D23: 0 | E23: 0 | F23: 0
A24: Net Depreciation (amounts should be negative) - Note 4 | C24: 0 | D24: 0 | E24: 0 | F24: 0
A25: Closing net PP&E (1) | C25: =C22+C23+C24 -> 0 | D25: =D22+D23+D24 -> 0 | E25: =E22+E23+E24 -> 0 | F25: =F22+F23+F24 -> 0
A27: PP&E Values under revised CGAAP (Starts from 2012)
A28: Opening net PP&E - Note 1 | C28: 0 | D28: =+C31 -> 0 | E28: =+D31 -> 0 | F28: =+E31 -> 0
A29: Net Additions - Note 4 | C29: 0 | D29: 0 | E29: 0 | F29: 0
A30: Net Depreciation (amounts should be negative) - Note 4 | C30: 0 | D30: 0 | E30: 0 | F30: 0
A31: Closing net PP&E (2) | C31: =SUM(C28:C30) -> 0 | D31: =SUM(D28:D30) -> 0 | E31: =SUM(E28:E30) -> 0 | F31: =SUM(F28:F30) -> 0
A33: Difference in Closing net PP&E, former CGAAP vs. revised CGAAP | C33: =C25-C31 -> 0 | D33: =D25-D31 -> 0 | E33: =E25-E31 -> 0 | F33: =F25-F31 -> 0
A36: Effect on Deferral and Variance Account Rate Riders
A37: Closing balance in Account 1576 | G37: =IF(ISERROR(F33), 0, F33) -> 0 | I37: WACC | J37: 0
A38: Return on Rate Base Associated with Account 1576 balance at WACC - Note 2 | G38: =F33*J37*J38 -> 0 | H38: # of years of rate rider disposition period | J38: 0
A39: Amount included in Deferral and Variance Account Rate Rider Calculation | G39: =G37+G38 -> 0
A41: Notes:
A42: 1 For an applicant that made the capitalization and depreciation expense accounting policy changes on January 1, 2012, the PP&E values as of January 1, 2012 under both former CGAAP and revised CGAAP should be the same.
A43: 2 Return on rate base associated with Account 1576 balance is calculated as:
A44: the variance account ending balance as of 2015 rebasing year x WACC X # of years of rate rider disposition period
A45: * Please note that the calculation should be adjusted once WACC is updated and finalized in the rate application.
A46: 3 Account 1576 is cleared by including the total balance in the deferral and variance account rate rider calculation.
A47: 4 Net additions are additions net of disposals; Net depreciation is additions to depreciation net of disposals.

Sheet App.2-EC_Account 1576 (2013)
I1: File Number: | J1: =EBNUMBER -> EB-2015-0107
I2: Exhibit:
I3: Tab:
I4: Schedule:
I5: Page:
I7: Date:
A9: Appendix 2-EC
A10: Account 1576 - Accounting Changes under CGAAP
A11: 2013 Changes in Accounting Policies under CGAAP
A13: For applicants that made capitalization and depreciation expense accounting policy changes under CGAAP effective January 1, 2013
B17: =RebaseYear &" Rebasing Year" -> 2012 Rebasing Year | C17: 2012 | D17: 2013 | E17: 2014 | F17: 2015 | G17: 2016 Rebasing Year
A18: Reporting Basis | B18: CGAAP | C18: CGAAP | D18: CGAAP | E18: CGAAP | F18: MIFRS | G18: MIFRS
B19: Forecast | C19: Actual | D19: Actual | E19: Actual | F19: Forecast | G19: Forecast
D20: $ | E20: $ | F20: $
A21: PP&E Values under former CGAAP
A22: Opening net PP&E - Note 1 | E22: =+D25 -> 0 | F22: =+E25 -> 0
A23: Net Additions - Note 4
A24: Net Depreciation (amounts should be negative) - Note 4
A25: Closing net PP&E (1) | D25: =D22+D23+D24 -> 0 | E25: =E22+E23+E24 -> 0 | F25: =F22+F23+F24 -> 0
A27: PP&E Values under revised CGAAP (Starts from 2012)
A28: Opening net PP&E - Note 1 | E28: =+D31 -> 0 | F28: =+E31 -> 0
A29: Net Additions - Note 4
A30: Net Depreciation (amounts should be negative) - Note 4
A31: Closing net PP&E (2) | D31: =SUM(D28:D30) -> 0 | E31: =SUM(E28:E30) -> 0 | F31: =SUM(F28:F30) -> 0
A33: Difference in Closing net PP&E, former CGAAP vs. revised CGAAP | D33: =D25-D31 -> 0 | E33: =E25-E31 -> 0 | F33: =F25-F31 -> 0
A36: Effect on Deferral and Variance Account Rate Riders
A37: Closing balance in Account 1576 | G37: =IF(ISERROR(F33), 0, F33) -> 0 | I37: WACC
A38: Return on Rate Base Associated with Account 1576 balance at WACC - Note 2 | G38: =F33*J37*J38 -> 0 | H38: # of years of rate rider disposition period
A39: Amount included in Deferral and Variance Account Rate Rider Calculation | G39: =G37+G38 -> 0
A41: Notes:
A42: 1 For an applicant that made the capitalization and depreciation expense accounting policy changes on January 1, 2013, the PP&E values as of January 1, 2013 under both former CGAAP and revised CGAAP should be the same.
A43: 2 Return on rate base associated with Account 1576 balance is calculated as:
A44: the variance account ending balance as of 2015 rebasing year x WACC X # of years of rate rider disposition period
A45: * Please note that the calculation should be adjusted once WACC is updated and finalized in the rate application.
A46: 3 Account 1576 is cleared by including the total balance in the deferral and variance account rate rider calculation.
A47: 4 Net additions are additions net of disposals; Net depreciation is additions to depreciation net of disposals.

Sheet App.2-FA Proposed REG Invest.
J1: File Number: | K1: =EBNUMBER -> EB-2015-0107
J2: Exhibit:
J3: Tab:
J4: Schedule:
J5: Page:
J7: Date:
A9: Appendix 2-FA
A10: Renewable Generation Connection Investment Summary (past investments or over the future rate setting period)
A12: Enter the details of the Renewable Generation Connection projects as described in the appropriate section of the Filing Requirements.
A13: All costs entered on this page will be transferred to the appropriate cells in the appendices that follow.
A14: For Part A, Renewable Enabling Improvements (REI), these amounts will be transferred to Appendix 2 - FB
A15: For Part B, Expansions, these amounts will be transferred to Appendix 2 - FC
A17: If there are more than five projects proposed to be in-service in a certain year, please amend the tables below and ensure that the formulae for the Total Amounts in any given rate year are updated.
A18: Based on the current methodology and allocation, amounts allocated represent 6% for REI Connection Investments and 17% for Expansion Investments. (EB-2009-0349, 6-10-2010, p. 15, note 9)
A20: There are two scenarios described below. Separate sets of spreadsheets (2-FA, 2-FB, 2-FC) should be submited for each scenario as required.
A21: Scenario 1: Past Investments with No Recovery. The distributor has made investments in the past (during the IRM Years), but has not received approval for these projects and therefore did not receive
A22: revenue from the IESO under Regulation 330/09 and did not receive ratepayer revenue for the direct benefit portion of the investment.
A23: The WCA percentage, debt percentages, interest rates, kWh, tax rates, amortization period, CCA Class and percentage should correspond to the distributor's last Cost of Service approval.
A24: The Direct Benefit portion of the calculated Revenue Requirement for each year should be summed and can be applied for recovery from the distributor's ratepayers through a rate rider.
A25: The Provincial Recovery portion of the calculated Revenue Requirement for each year should be summed and can be applied for recovery from the IESO through a separate order.
A27: Scenario 2: Investments in the Test Year and Beyond. Distributor plans to make investments in 2016 and/or beyond. These investments should be added to 2-FA in the appropriate year.
A28: The WCA percentage, debt percentages, interest rates, kWh, tax rates, amortization period, CCA Class and percentage should correspond to the distributor's current application.
A30: Part A | G30: Test Year
A31: REI Investments (Direct Benefit at 6%) | C31: 2012 | D31: 2013 | E31: 2014 | F31: 2015 | G31: 2016 | H31: =G31+1 -> 2017 | I31: =H31+1 -> 2018 | J31: 2019 | K31: 2020
A32: Project 1
A33: Name: REI Connection Project
A34: Capital Costs | C34: 0 | D34: 0 | E34: 0 | F34: 0 | G34: 0 | H34: 0 | I34: 0 | J34: 0 | K34: 0
A35: OM&A (Start-Up) | C35: 0 | D35: 0 | E35: 0 | F35: 0 | G35: 0 | H35: 0 | I35: 0 | J35: 0 | K35: 0
A36: OM&A (Ongoing) | C36: 0 | D36: 0 | E36: 0 | F36: 0 | G36: 0 | H36: 0 | I36: 0 | J36: 0 | K36: 0
A38: Project 2
A39: Name: REI Connection Project
A40: Capital Costs | C40: 0 | D40: 0 | E40: 0 | F40: 0 | G40: 0 | H40: 0 | I40: 0 | J40: 0 | K40: 0
A41: OM&A (Start-Up) | C41: 0 | D41: 0 | E41: 0 | F41: 0 | G41: 0 | H41: 0 | I41: 0 | J41: 0 | K41: 0
A42: OM&A (Ongoing) | C42: 0 | D42: 0 | E42: 0 | F42: 0 | G42: 0 | H42: 0 | I42: 0 | J42: 0 | K42: 0
A44: Project 3
A45: Name: REI Connection Project
A46: Capital Costs | C46: 0 | D46: 0 | E46: 0 | F46: 0 | G46: 0 | H46: 0 | I46: 0 | J46: 0 | K46: 0
A47: OM&A (Start-Up) | C47: 0 | D47: 0 | E47: 0 | F47: 0 | G47: 0 | H47: 0 | I47: 0 | J47: 0 | K47: 0
A48: OM&A (Ongoing) | C48: 0 | D48: 0 | E48: 0 | F48: 0 | G48: 0 | H48: 0 | I48: 0 | J48: 0 | K48: 0
A50: Project 4
A51: Name: REI Connection Project
A52: Capital Costs | C52: 0 | D52: 0 | E52: 0 | F52: 0 | G52: 0 | H52: 0 | I52: 0 | J52: 0 | K52: 0
A53: OM&A (Start-Up) | C53: 0 | D53: 0 | E53: 0 | F53: 0 | G53: 0 | H53: 0 | I53: 0 | J53: 0 | K53: 0
A54: OM&A (Ongoing) | C54: 0 | D54: 0 | E54: 0 | F54: 0 | G54: 0 | H54: 0 | I54: 0 | J54: 0 | K54: 0
A56: Project 5
A57: Name: REI Connection Project
A58: Capital Costs | C58: 0 | D58: 0 | E58: 0 | F58: 0 | G58: 0 | H58: 0 | I58: 0 | J58: 0 | K58: 0
A59: OM&A (Start-Up) | C59: 0 | D59: 0 | E59: 0 | F59: 0 | G59: 0 | H59: 0 | I59: 0 | J59: 0 | K59: 0
A60: OM&A (Ongoing) | C60: 0 | D60: 0 | E60: 0 | F60: 0 | G60: 0 | H60: 0 | I60: 0 | J60: 0 | K60: 0
A62: Total Capital Costs | C62: =SUM(C58,C52,C46,C40,C34) -> 0 | D62: 0 | E62: 0 | F62: 0 | G62: =SUM(G58,G52,G46,G40,G34) -> 0 | H62: =SUM(H58,H52,H46,H40,H34) -> 0 | I62: 0 | J62: 0 | K62: 0
A63: Total OM&A (Start-Up) | C63: 0 | D63: 0 | E63: 0 | F63: 0 | G63: =SUM(G59,G53,G47,G41,G35) -> 0 | H63: 0 | I63: 0 | J63: 0 | K63: 0
A64: Total OM&A (Ongoing) | C64: 0 | D64: 0 | E64: 0 | F64: 0 | G64: =SUM(G60,G54,G48,G42,G36) -> 0 | H64: 0 | I64: 0 | J64: 0 | K64: 0
A67: Part B | G67: Test Year
A68: Expansion Investments (Direct Benefit at 17%) | C68: 2012 | D68: 2013 | E68: 2014 | F68: 2015 | G68: 2016 | H68: =G68+1 -> 2017 | I68: =H68+1 -> 2018 | J68: 2019 | K68: 2020
A69: Project 1
A70: Name: Expansion Connection Project
A71: Capital Costs | C71: 0 | D71: 0 | E71: 0 | F71: 0 | G71: 0 | H71: 0 | I71: 0 | J71: 0 | K71: 0
A72: OM&A (Start-Up) | C72: 0 | D72: 0 | E72: 0 | F72: 0 | G72: 0 | H72: 0 | I72: 0 | J72: 0 | K72: 0
A73: OM&A (Ongoing) | C73: 0 | D73: 0 | E73: 0 | F73: 0 | G73: 0 | H73: 0 | I73: 0 | J73: 0 | K73: 0
A75: Project 2
A76: Name: Expansion Connection Project
A77: Capital Costs | C77: 0 | D77: 0 | E77: 0 | F77: 0 | G77: 0 | H77: 0 | I77: 0 | J77: 0 | K77: 0
A78: OM&A (Start-Up) | C78: 0 | D78: 0 | E78: 0 | F78: 0 | G78: 0 | H78: 0 | I78: 0 | J78: 0 | K78: 0
A79: OM&A (Ongoing) | C79: 0 | D79: 0 | E79: 0 | F79: 0 | G79: 0 | H79: 0 | I79: 0 | J79: 0 | K79: 0
A81: Project 3
A82: Name: Expansion Connection Project
A83: Capital Costs | C83: 0 | D83: 0 | E83: 0 | F83: 0 | G83: 0 | H83: 0 | I83: 0 | J83: 0 | K83: 0
A84: OM&A (Start-Up) | C84: 0 | D84: 0 | E84: 0 | F84: 0 | G84: 0 | H84: 0 | I84: 0 | J84: 0 | K84: 0
A85: OM&A (Ongoing) | C85: 0 | D85: 0 | E85: 0 | F85: 0 | G85: 0 | H85: 0 | I85: 0 | J85: 0 | K85: 0
A87: Project 4
A88: Name: Expansion Connection Project
A89: Capital Costs | C89: 0 | D89: 0 | E89: 0 | F89: 0 | G89: 0 | H89: 0 | I89: 0 | J89: 0 | K89: 0
A90: OM&A (Start-Up) | C90: 0 | D90: 0 | E90: 0 | F90: 0 | G90: 0 | H90: 0 | I90: 0 | J90: 0 | K90: 0
A91: OM&A (Ongoing) | C91: 0 | D91: 0 | E91: 0 | F91: 0 | G91: 0 | H91: 0 | I91: 0 | J91: 0 | K91: 0
A93: Project 5
A94: Name: Expansion Connection Project
A95: Capital Costs | C95: 0 | D95: 0 | E95: 0 | F95: 0 | G95: 0 | H95: 0 | I95: 0 | J95: 0 | K95: 0
A96: OM&A (Start-Up) | C96: 0 | D96: 0 | E96: 0 | F96: 0 | G96: 0 | H96: 0 | I96: 0 | J96: 0 | K96: 0
A97: OM&A (Ongoing) | C97: 0 | D97: 0 | E97: 0 | F97: 0 | G97: 0 | H97: 0 | I97: 0 | J97: 0 | K97: 0
A99: Total Capital Costs | C99: =SUM(C95,C89,C83,C77,C71) -> 0 | D99: 0 | E99: 0 | F99: 0 | G99: =SUM(G95,G89,G83,G77,G71) -> 0 | H99: =SUM(H95,H89,H83,H77,H71) -> 0 | I99: 0 | J99: 0 | K99: 0
A100: Total OM&A (Start-Up) | C100: 0 | D100: 0 | E100: 0 | F100: 0 | G100: =SUM(G96,G90,G84,G78,G72) -> 0 | H100: 0 | I100: 0 | J100: 0 | K100: 0
A101: Total OM&A (Ongoing) | C101: 0 | D101: 0 | E101: 0 | F101: 0 | G101: =SUM(G97,G91,G85,G79,G73) -> 0 | H101: 0 | I101: 0 | J101: 0 | K101: 0

Sheet App.2-FB Calc of REG Improvemnt
N1: File Number: | O1: =EBNUMBER -> EB-2015-0107
N2: Exhibit:
N3: Tab:
N4: Schedule:
N5: Page:
N7: Date:
A9: Appendix 2-FB
A10: Calculation of Renewable Generation Connection Direct Benefits/Provincial Amount: Renewable Enabling Improvement Investments
A12: This table will calculate the distributor/provincial shares of the investments entered in Part A of Appendix 2-FA.
A13: Enter values in green shaded cells: WCA percentage, debt percentages, interest rates, kWh, tax rates, amortization period, CCA Class and percentage.
A14: For historical investments, enter these variables for your last cost of service test year. For 2016 and beyond, enter variables as in the application.
A15: Rate Riders are not calculated for Test Year as these assets and costs are already in the distributor's rate base/revenue requirement.
C17: 2012 | F17: 2013 | I17: 2014 | L17: 2015 | O17: 2016 Test Year | R17: 2017 | U17: 2018 | V17: 2016 | X17: 2019 | AA17: 2020
D18: Direct Benefit | E18: Provincial | G18: Direct Benefit | H18: Provincial | J18: Direct Benefit | K18: Provincial | M18: Direct Benefit | N18: Provincial | P18: Direct Benefit | Q18: Provincial | S18: Direct Benefit | T18: Provincial | V18: Direct Benefit | W18: Provincial | Y18: Direct Benefit | Z18: Provincial | AB18: Direct Benefit | AC18: Provincial
C19: Total | D19: 0.06 | E19: 0.94 | F19: Total | G19: 0.06 | H19: 0.94 | I19: Total | J19: 0.06 | K19: 0.94 | L19: Total | M19: 0.06 | N19: 0.94 | O19: Total | P19: 0.06 | Q19: 0.94 | R19: Total | S19: 0.06 | T19: 0.94 | U19: Total | V19: 0.06 | W19: 0.94 | X19: Total | Y19: 0.06 | Z19: 0.94 | AA19: Total | AB19: 0.06 | AC19: 0.94
A20: Net Fixed Assets (average) | C20: =D82 -> 0 | D20: =C20*D19 -> 0 | E20: =C20*E19 -> 0 | F20: =E82 -> 0 | G20: =F20*G19 -> 0 | H20: =F20*H19 -> 0 | I20: =F82 -> 0 | J20: =I20*J19 -> 0 | K20: =I20*K19 -> 0 | L20: =G82 -> 0 | M20: =L20*M19 -> 0 | N20: =L20*N19 -> 0 | O20: =H82 -> 0 | P20: =O20*P19 -> 0 | Q20: =O20*Q19 -> 0 | R20: =I82 -> 0 | S20: =R20*S19 -> 0 | T20: =R20*T19 -> 0 | U20: =J82 -> 0 | V20: =U20*V19 -> 0 | W20: =U20*W19 -> 0 | X20: =K82 -> 0 | Y20: =X20*Y19 -> 0 | Z20: =X20*Z19 -> 0 | AA20: =L82 -> 0 | AB20: =AA20*AB19 -> 0 | AC20: =AA20*AC19 -> 0
A21: Incremental OM&A (on-going, N/A for Provincial Recovery) | C21: ='App.2-FA Proposed REG Invest.'!C64 -> 0 | D21: =C21 -> 0 | F21: ='App.2-FA Proposed REG Invest.'!D64 -> 0 | G21: =F21 -> 0 | I21: ='App.2-FA Proposed REG Invest.'!E64 -> 0 | J21: =I21 -> 0 | L21: ='App.2-FA Proposed REG Invest.'!F64 -> 0 | M21: =L21 -> 0 | O21: ='App.2-FA Proposed REG Invest.'!G64 -> 0 | P21: =O21 -> 0 | R21: ='App.2-FA Proposed REG Invest.'!H64 -> 0 | S21: =R21 -> 0 | U21: ='App.2-FA Proposed REG Invest.'!I64 -> 0 | V21: =U21 -> 0 | X21: ='App.2-FA Proposed REG Invest.'!J64 -> 0 | Y21: =X21 -> 0 | AA21: ='App.2-FA Proposed REG Invest.'!K64 -> 0 | AB21: =AA21 -> 0
A22: Incremental OM&A (start-up, applicable for Provincial Recovery) | C22: ='App.2-FA Proposed REG Invest.'!C63 -> 0 | D22: =C22*D19 -> 0 | E22: =C22*E19 -> 0 | F22: ='App.2-FA Proposed REG Invest.'!D63 -> 0 | G22: =F22*G19 -> 0 | H22: =F22*H19 -> 0 | I22: ='App.2-FA Proposed REG Invest.'!E63 -> 0 | J22: =I22*J19 -> 0 | K22: =I22*K19 -> 0 | L22: ='App.2-FA Proposed REG Invest.'!F63 -> 0 | M22: =L22*M19 -> 0 | N22: =L22*N19 -> 0 | O22: ='App.2-FA Proposed REG Invest.'!G63 -> 0 | P22: =O22*P19 -> 0 | Q22: =O22*Q19 -> 0 | R22: ='App.2-FA Proposed REG Invest.'!H63 -> 0 | S22: =R22*S19 -> 0 | T22: =R22*T19 -> 0 | U22: ='App.2-FA Proposed REG Invest.'!I63 -> 0 | V22: =U22*V19 -> 0 | W22: =U22*W19 -> 0 | X22: ='App.2-FA Proposed REG Invest.'!J63 -> 0 | Y22: =X22*Y19 -> 0 | Z22: =X22*Z19 -> 0 | AA22: ='App.2-FA Proposed REG Invest.'!K63 -> 0 | AB22: =AA22*AB19 -> 0 | AC22: =AA22*AC19 -> 0
A23: WCA | D23: =(D21+D22)*$B$23 -> 0 | E23: =E22*$B$23 -> 0 | G23: =(G21+G22)*$B$23 -> 0 | H23: =H22*$B$23 -> 0 | J23: =(J21+J22)*$B$23 -> 0 | K23: =K22*$B$23 -> 0 | M23: =(M21+M22)*$B$23 -> 0 | N23: =N22*$B$23 -> 0 | P23: =(P21+P22)*$B$23 -> 0 | Q23: =Q22*$B$23 -> 0 | S23: =(S21+S22)*$B$23 -> 0 | T23: =T22*$B$23 -> 0 | V23: =(V21+V22)*$B$23 -> 0 | W23: =W22*$B$23 -> 0 | Y23: =(Y21+Y22)*$B$23 -> 0 | Z23: =Z22*$B$23 -> 0 | AB23: =(AB21+AB22)*$B$23 -> 0 | AC23: =AC22*$B$23 -> 0
A24: Rate Base | D24: =SUM(D20+D23) -> 0 | E24: =SUM(E20+E23) -> 0 | G24: =SUM(G20+G23) -> 0 | H24: =SUM(H20+H23) -> 0 | J24: =SUM(J20+J23) -> 0 | K24: =SUM(K20+K23) -> 0 | M24: =SUM(M20+M23) -> 0 | N24: =SUM(N20+N23) -> 0 | P24: =SUM(P20+P23) -> 0 | Q24: =SUM(Q20+Q23) -> 0 | S24: =SUM(S20+S23) -> 0 | T24: =SUM(T20+T23) -> 0 | V24: =SUM(V20+V23) -> 0 | W24: =SUM(W20+W23) -> 0 | Y24: =SUM(Y20+Y23) -> 0 | Z24: =SUM(Z20+Z23) -> 0 | AB24: =SUM(AB20+AB23) -> 0 | AC24: =SUM(AC20+AC23) -> 0
A27: Deemed ST Debt | D27: =D24*$B$27 -> 0 | E27: =E24*$B$27 -> 0 | G27: =G24*$B$27 -> 0 | H27: =H24*$B$27 -> 0 | J27: =J24*$B$27 -> 0 | K27: =K24*$B$27 -> 0 | M27: =M24*$B$27 -> 0 | N27: =N24*$B$27 -> 0 | P27: =P24*$B$27 -> 0 | Q27: =Q24*$B$27 -> 0 | S27: =S24*$B$27 -> 0 | T27: =T24*$B$27 -> 0 | V27: =V24*$B$27 -> 0 | W27: =W24*$B$27 -> 0 | Y27: =Y24*$B$27 -> 0 | Z27: =Z24*$B$27 -> 0 | AB27: =AB24*$B$27 -> 0 | AC27: =AC24*$B$27 -> 0
A28: Deemed LT Debt | D28: =D24*$B$28 -> 0 | E28: =E24*$B$28 -> 0 | G28: =G24*$B$28 -> 0 | H28: =H24*$B$28 -> 0 | J28: =J24*$B$28 -> 0 | K28: =K24*$B$28 -> 0 | M28: =M24*$B$28 -> 0 | N28: =N24*$B$28 -> 0 | P28: =P24*$B$28 -> 0 | Q28: =Q24*$B$28 -> 0 | S28: =S24*$B$28 -> 0 | T28: =T24*$B$28 -> 0 | V28: =V24*$B$28 -> 0 | W28: =W24*$B$28 -> 0 | Y28: =Y24*$B$28 -> 0 | Z28: =Z24*$B$28 -> 0 | AB28: =AB24*$B$28 -> 0 | AC28: =AC24*$B$28 -> 0
A29: Deemed Equity | D29: =D24*$B$29 -> 0 | E29: =E24*$B$29 -> 0 | G29: =G24*$B$29 -> 0 | H29: =H24*$B$29 -> 0 | J29: =J24*$B$29 -> 0 | K29: =K24*$B$29 -> 0 | M29: =M24*$B$29 -> 0 | N29: =N24*$B$29 -> 0 | P29: =P24*$B$29 -> 0 | Q29: =Q24*$B$29 -> 0 | S29: =S24*$B$29 -> 0 | T29: =T24*$B$29 -> 0 | V29: =V24*$B$29 -> 0 | W29: =W24*$B$29 -> 0 | Y29: =Y24*$B$29 -> 0 | Z29: =Z24*$B$29 -> 0 | AB29: =AB24*$B$29 -> 0 | AC29: =AC24*$B$29 -> 0
A31: ST Interest | D31: =D27*$B31 -> 0 | E31: =E27*$B31 -> 0 | G31: =G27*$B31 -> 0 | H31: =H27*$B31 -> 0 | J31: =J27*$B31 -> 0 | K31: =K27*$B31 -> 0 | M31: =M27*$B31 -> 0 | N31: =N27*$B31 -> 0 | P31: =P27*$B31 -> 0 | Q31: =Q27*$B31 -> 0 | S31: =S27*$B31 -> 0 | T31: =T27*$B31 -> 0 | V31: =V27*$B31 -> 0 | W31: =W27*$B31 -> 0 | Y31: =Y27*$B31 -> 0 | Z31: =Z27*$B31 -> 0 | AB31: =AB27*$B31 -> 0 | AC31: =AC27*$B31 -> 0
A32: LT Interest | D32: =D28*$B32 -> 0 | E32: 0 | G32: =G28*$B32 -> 0 | H32: 0 | J32: =J28*$B32 -> 0 | K32: 0 | M32: =M28*$B32 -> 0 | N32: 0 | P32: =P28*$B32 -> 0 | Q32: 0 | S32: =S28*$B32 -> 0 | T32: 0 | V32: =V28*$B32 -> 0 | W32: 0 | Y32: =Y28*$B32 -> 0 | Z32: 0 | AB32: =AB28*$B32 -> 0 | AC32: 0
A33: ROE | D33: 0 | E33: 0 | G33: 0 | H33: 0 | J33: 0 | K33: 0 | M33: 0 | N33: 0 | P33: 0 | Q33: 0 | S33: 0 | T33: 0 | V33: 0 | W33: 0 | Y33: 0 | Z33: 0 | AB33: 0 | AC33: 0
A34: Cost of Capital Total | D34: =SUM(D31:D33) -> 0 | E34: =SUM(E31:E33) -> 0 | G34: =SUM(G31:G33) -> 0 | H34: =SUM(H31:H33) -> 0 | J34: =SUM(J31:J33) -> 0 | K34: =SUM(K31:K33) -> 0 | M34: =SUM(M31:M33) -> 0 | N34: =SUM(N31:N33) -> 0 | P34: =SUM(P31:P33) -> 0 | Q34: =SUM(Q31:Q33) -> 0 | S34: =SUM(S31:S33) -> 0 | T34: =SUM(T31:T33) -> 0 | V34: =SUM(V31:V33) -> 0 | W34: =SUM(W31:W33) -> 0 | Y34: =SUM(Y31:Y33) -> 0 | Z34: =SUM(Z31:Z33) -> 0 | AB34: =SUM(AB31:AB33) -> 0 | AC34: =SUM(AC31:AC33) -> 0
A36: OM&A | D36: =D21+D22 -> 0 | E36: =E22 -> 0 | G36: =G21+G22 -> 0 | H36: =H22 -> 0 | J36: =J21+J22 -> 0 | K36: =K22 -> 0 | M36: =M21+M22 -> 0 | N36: =N22 -> 0 | P36: =P21+P22 -> 0 | Q36: =Q22 -> 0 | S36: =S21+S22 -> 0 | T36: =T22 -> 0 | V36: =V21+V22 -> 0 | W36: =W22 -> 0 | Y36: =Y21+Y22 -> 0 | Z36: =Z22 -> 0 | AB36: =AB21+AB22 -> 0 | AC36: =AC22 -> 0
A37: Amortization | C37: =D77 -> 0 | D37: =C37*D$19 -> 0 | E37: =C37*E$19 -> 0 | F37: =E77 -> 0 | G37: =F37*G$19 -> 0 | H37: =F37*H$19 -> 0 | I37: =F77 -> 0 | J37: =I37*J$19 -> 0 | K37: =I37*K$19 -> 0 | L37: =G77 -> 0 | M37: =L37*M$19 -> 0 | N37: =L37*N$19 -> 0 | O37: =H77 -> 0 | P37: =O37*P$19 -> 0 | Q37: =O37*Q$19 -> 0 | R37: =I76+I77 -> 0 | S37: =R37*S$19 -> 0 | T37: =R37*T$19 -> 0 | U37: =J76+J77 -> 0 | V37: =U37*V$19 -> 0 | W37: =U37*W$19 -> 0 | X37: =K76+K77 -> 0 | Y37: =X37*Y$19 -> 0 | Z37: =X37*Z$19 -> 0 | AA37: =L76+L77 -> 0 | AB37: =AA37*AB$19 -> 0 | AC37: =AA37*AC$19 -> 0
A38: Grossed-up PILs | D38: =D65 -> 0 | E38: =E65 -> 0 | G38: =G65 -> 0 | H38: =H65 -> 0 | J38: =J65 -> 0 | K38: =K65 -> 0 | M38: =M65 -> 0 | N38: =N65 -> 0 | P38: =P65 -> 0 | Q38: =Q65 -> 0 | S38: =S65 -> 0 | T38: =T65 -> 0 | V38: =V65 -> 0 | W38: =W65 -> 0 | Y38: =Y65 -> 0 | Z38: =Z65 -> 0 | AB38: =AB65 -> 0 | AC38: =AC65 -> 0
A40: Revenue Requirement | D40: =SUM(D34:D38) -> 0 | E40: =SUM(E34:E38) -> 0 | G40: =SUM(G34:G38) -> 0 | H40: =SUM(H34:H38) -> 0 | J40: =SUM(J34:J38) -> 0 | K40: =SUM(K34:K38) -> 0 | M40: =SUM(M34:M38) -> 0 | N40: =SUM(N34:N38) -> 0 | P40: =SUM(P34:P38) -> 0 | Q40: =SUM(Q34:Q38) -> 0 | S40: =SUM(S34:S38) -> 0 | T40: =SUM(T34:T38) -> 0 | V40: =SUM(V34:V38) -> 0 | W40: =SUM(W34:W38) -> 0 | Y40: =SUM(Y34:Y38) -> 0 | Z40: =SUM(Z34:Z38) -> 0 | AB40: =SUM(AB34:AB38) -> 0 | AC40: =SUM(AC34:AC38) -> 0
A43: Provincial Rate Protection | E43: =E40 -> 0 | H43: =H40 -> 0 | K43: =K40 -> 0 | N43: =N40 -> 0 | Q43: =Q40 -> 0 | T43: =T40 -> 0 | W43: =W40 -> 0 | Z43: =Z40 -> 0 | AC43: =AC40 -> 0
A45: Monthly Amount Paid by IESO | E45: =E43/12 -> 0 | H45: =H43/12 -> 0 | K45: =K43/12 -> 0 | N45: =N43/12 -> 0 | Q45: =Q43/12 -> 0 | T45: =T43/12 -> 0 | W45: =W43/12 -> 0 | Z45: =Z43/12 -> 0 | AC45: =AC43/12 -> 0
A47: Note 1: The difference between the actual costs of approved eligible investments and revenue received from the IESO should be recorded in a variance account. The Board may provide
A48: regulatory accounting guidance regarding a variance account either in an individual proceeding or on a generic basis.
A49: Note 2: For the 2016 Test Year, Costs and Revenues of the Direct Benefit are to be included in the test year applicant Rate Base and Revenues.
A51: PILs Calculation
D52: 2012 | G52: 2013 | J52: 2014 | M52: 2015 | P52: 2016 | S52: =P52+1 -> 2017 | V52: =S52+1 -> 2018 | Y52: =V52+1 -> 2019 | AB52: =Y52+1 -> 2020
A53: Income Tax | D53: Direct Benefit | E53: Provincial | G53: Direct Benefit | H53: Provincial | J53: Direct Benefit | K53: Provincial | M53: Direct Benefit | N53: Provincial | P53: Direct Benefit | Q53: Provincial | S53: Direct Benefit | T53: Provincial | V53: Direct Benefit | W53: Provincial | Y53: Direct Benefit | Z53: Provincial | AB53: Direct Benefit | AC53: Provincial
X54: Total | AA54: Total
A55: Net Income - ROE on Rate Base | D55: =D33 -> 0 | E55: =E33 -> 0 | G55: =G33 -> 0 | H55: =H33 -> 0 | J55: =J33 -> 0 | K55: =K33 -> 0 | M55: =M33 -> 0 | N55: =N33 -> 0 | P55: =P33 -> 0 | Q55: =Q33 -> 0 | S55: =S33 -> 0 | T55: =T33 -> 0 | V55: =V33 -> 0 | W55: =W33 -> 0 | Y55: =Y33 -> 0 | Z55: =Z33 -> 0 | AB55: =AB33 -> 0 | AC55: =AC33 -> 0
A56: Amortization (6% DB and 94% P) | D56: =D37 -> 0 | E56: =E37 -> 0 | G56: =G37 -> 0 | H56: =H37 -> 0 | J56: =J37 -> 0 | K56: =K37 -> 0 | M56: =M37 -> 0 | N56: =N37 -> 0 | P56: =P37 -> 0 | Q56: =Q37 -> 0 | S56: =S37 -> 0 | T56: =T37 -> 0 | V56: =V37 -> 0 | W56: =W37 -> 0 | Y56: =Y37 -> 0 | Z56: =Z37 -> 0 | AB56: =AB37 -> 0 | AC56: =AC37 -> 0
A57: CCA (6% DB and 94% P) | D57: =-D94*D$19 -> 0 | E57: =-D94*E$19 -> 0 | G57: =-E94*G19 -> 0 | H57: =-E94*H$19 -> 0 | J57: =-F94*J$19 -> 0 | K57: =-F94*K$19 -> 0 | M57: =-G94*M$19 -> 0 | N57: =-G94*N$19 -> 0 | P57: =-H94*P$19 -> 0 | Q57: =-H94*Q$19 -> 0 | S57: =-I94*S$19 -> 0 | T57: =-I94*T$19 -> 0 | V57: =-J94*V$19 -> 0 | W57: =-J94*W$19 -> 0 | Y57: =-K94*Y$19 -> 0 | Z57: =-K94*Z$19 -> 0 | AB57: =-L94*AB$19 -> 0 | AC57: =-L94*AC$19 -> 0
A58: Taxable income | D58: =SUM(D55:D57) -> 0 | E58: =SUM(E55:E57) -> 0 | G58: =SUM(G55:G57) -> 0 | H58: =SUM(H55:H57) -> 0 | J58: =SUM(J55:J57) -> 0 | K58: =SUM(K55:K57) -> 0 | M58: =SUM(M55:M57) -> 0 | N58: =SUM(N55:N57) -> 0 | P58: =SUM(P55:P57) -> 0 | Q58: =SUM(Q55:Q57) -> 0 | S58: =SUM(S55:S57) -> 0 | T58: =SUM(T55:T57) -> 0 | V58: =SUM(V55:V57) -> 0 | W58: =SUM(W55:W57) -> 0 | Y58: =SUM(Y55:Y57) -> 0 | Z58: =SUM(Z55:Z57) -> 0 | AB58: =SUM(AB55:AB57) -> 0 | AC58: =SUM(AC55:AC57) -> 0
A60: Tax Rate (to be entered)
A62: Income Taxes Payable | D62: =D58*D60 -> 0 | E62: =E58*E60 -> 0 | G62: =G58*G60 -> 0 | H62: =H58*H60 -> 0 | J62: =J58*J60 -> 0 | K62: =K58*K60 -> 0 | M62: =M58*M60 -> 0 | N62: =N58*N60 -> 0 | P62: =P58*P60 -> 0 | Q62: =Q58*Q60 -> 0 | S62: =S58*S60 -> 0 | T62: =T58*T60 -> 0 | V62: =V58*V60 -> 0 | W62: =W58*W60 -> 0 | Y62: =Y58*Y60 -> 0 | Z62: =Z58*Z60 -> 0 | AB62: =AB58*AB60 -> 0 | AC62: =AC58*AC60 -> 0
A63: Gross Up
A64: Income Taxes Payable | D64: =D62/(1-D60) -> 0 | E64: =E62/(1-E60) -> 0 | G64: =G62/(1-G60) -> 0 | H64: =H62/(1-H60) -> 0 | J64: =J62/(1-J60) -> 0 | K64: =K62/(1-K60) -> 0 | M64: =M62/(1-M60) -> 0 | N64: =N62/(1-N60) -> 0 | P64: =P62/(1-P60) -> 0 | Q64: =Q62/(1-Q60) -> 0 | S64: =S62/(1-S60) -> 0 | T64: =T62/(1-T60) -> 0 | V64: =V62/(1-V60) -> 0 | W64: =W62/(1-W60) -> 0 | Y64: =Y62/(1-Y60) -> 0 | Z64: =Z62/(1-Z60) -> 0 | AB64: =AB62/(1-AB60) -> 0 | AC64: =AC62/(1-AC60) -> 0
A65: Grossed Up PILs | D65: =SUM(D64:D64) -> 0 | E65: =SUM(E64:E64) -> 0 | G65: =SUM(G64:G64) -> 0 | H65: =SUM(H64:H64) -> 0 | J65: =SUM(J64:J64) -> 0 | K65: =SUM(K64:K64) -> 0 | M65: =SUM(M64:M64) -> 0 | N65: =SUM(N64:N64) -> 0 | P65: =SUM(P64:P64) -> 0 | Q65: =SUM(Q64:Q64) -> 0 | S65: =SUM(S64:S64) -> 0 | T65: =SUM(T64:T64) -> 0 | V65: =SUM(V64:V64) -> 0 | W65: =SUM(W64:W64) -> 0 | Y65: =SUM(Y64:Y64) -> 0 | Z65: =SUM(Z64:Z64) -> 0 | AB65: =SUM(AB64:AB64) -> 0 | AC65: =SUM(AC64:AC64) -> 0
D68: 2012 | E68: 2013 | F68: 2014 | G68: 2015 | H68: 2016 | I68: =H68+1 -> 2017 | J68: =I68+1 -> 2018 | K68: 2019 | L68: 2020
A69: Net Fixed Assets
B70: Enter applicable amortization in years: | C70: 25
